Workbook

Sheet ACS_Notes (hidden)
A1: NOTES:
A4: Data are based on a sample and are subject to sampling variability. The degree of uncertainty for an estimate arising from sampling variability is represented through the use of a margin of error. The value shown here is the 90 percent margin of error. The margin of error can be interpreted roughly as providing a 90 percent probability that the interval defined by the estimate minus the margin of error and the estimate plus the margin of error (the lower and upper confidence bounds) contains the true value. In addition to sampling variability, the ACS estimates are subject to nonsampling error (for a discussion of nonsampling variability, see Accuracy of the Data). The effect of nonsampling error is not represented in these tables.
A8: In addition to sampling variability, the ACS estimates are subject to nonsampling error (for a discussion of nonsampling variability, see Accuracy of the Data. The link is located at the end of this worksheet.). The effect of nonsampling error is not represented in these tables.
A11: While the 2005-2009 American Community Survey (ACS) data generally reflect the November 2008 Office of Management and Budget (OMB) definitions of metropolitan and micropolitan statistical areas; in certain instances the names, codes, and boundaries of the principal cities shown in ACS tables may differ from the OMB definitions due to differences in the effective dates of the geographic entities.
A15: Estimates of urban and rural population, housing units, and characteristics reflect boundaries of urban areas defined based on Census 2000 data. Boundaries for urban areas have not been updated since Census 2000. As a result, data for urban and rural areas from the ACS do not necessarily reflect the results of ongoing urbanization.
A17: Explanation of Symbols:
A19: 1. An '**' entry in the margin of error column indicates that either no sample observations or too few sample observations were available to compute a standard error and thus the margin of error. A statistical test is not appropriate.
A21: 2. An '-' entry in the estimate column indicates that either no sample observations or too few sample observations were available to compute an estimate, or a ratio of medians cannot be calculated because one or both of the median estimates falls in the lowest interval or upper interval of an open-ended distribution.
A23: 3. An '-' following a median estimate means the median falls in the lowest interval of an open-ended distribution.
A24: 4. An '+' following a median estimate means the median falls in the upper interval of an open-ended distribution.
A25: 5. An '***' entry in the margin of error column indicates that the median falls in the lowest interval or upper interval of an open-ended distribution. A statistical test is not appropriate.
A26: 6. An '*****' entry in the margin of error column indicates that the estimate is controlled. A statistical test for sampling variability is not appropriate.
A28: Accuracy of Data

Sheet StartInstruction
A1: Demographic Profiles for Municipalities in Rockingham County
A3: To view or print a Demographic Profile follow the steps below
A6: Step 1. | C6: Select the municipality you wish to
C7: Profile from the drop down box below.
A12: Step 2. | C12: Click one of the profile topic buttons below to review or print
C13: the information for the selected geography.
C14: Don't forget to adjust the axis on charts as necessary.
N28: Updated: | P28: 2020-12-18
N30: Next Update: | P30: Spring 2021 - Annual Labor Force and Unemployment Rate Data

Sheet ACS_B08303 (hidden)
B1: B08303: TRAVEL TIME TO WORK
B2: Universe: Workers 16 years and over who did not work at home
B3: Data Set: 2008-2010 American Community Survey 3-Year Estimates
C5: Atkinson | E5: Auburn | G5: Brentwood | I5: Candia | K5: Chester | M5: Danville | O5: Deerfield | Q5: Derry | S5: East Kingston | U5: Epping | W5: Exeter | Y5: Fremont | AA5: Greenland | AC5: Hampstead | AE5: Hampton | AG5: Hampton Falls | AI5: Kensington | AK5: Kingston | AM5: Londonderry | AO5: New Castle | AQ5: Newfields | AS5: Newington | AU5: Newmarket | AW5: Newton | AY5: North Hampton | BA5: Northwood | BC5: Nottingham | BE5: Plaistow | BG5: Portsmouth | BI5: Raymond | BK5: Rye | BM5: Salem | BO5: Sandown | BQ5: Seabrook | BS5: South Hampton | BU5: Stratham | BW5: Windham
C6: Esitimate | D6: Margin Of Error | E6: Esitimate | F6: Margin Of Error | G6: Esitimate | H6: Margin Of Error | I6: Esitimate | J6: Margin Of Error | K6: Esitimate | L6: Margin Of Error | M6: Esitimate | N6: Margin Of Error | O6: Esitimate | P6: Margin Of Error | Q6: Esitimate | R6: Margin Of Error | S6: Esitimate | T6: Margin Of Error | U6: Esitimate | V6: Margin Of Error | W6: Esitimate | X6: Margin Of Error | Y6: Esitimate | Z6: Margin Of Error | AA6: Esitimate | AB6: Margin Of Error | AC6: Esitimate | AD6: Margin Of Error | AE6: Esitimate | AF6: Margin Of Error | AG6: Esitimate | AH6: Margin Of Error | AI6: Esitimate | AJ6: Margin Of Error | AK6: Esitimate | AL6: Margin Of Error | AM6: Esitimate | AN6: Margin Of Error | AO6: Esitimate | AP6: Margin Of Error | AQ6: Esitimate | AR6: Margin Of Error | AS6: Esitimate | AT6: Margin Of Error | AU6: Esitimate | AV6: Margin Of Error | AW6: Esitimate | AX6: Margin Of Error | AY6: Esitimate | AZ6: Margin Of Error | BA6: Esitimate | BB6: Margin Of Error | BC6: Esitimate | BD6: Margin Of Error | BE6: Esitimate | BF6: Margin Of Error | BG6: Esitimate | BH6: Margin Of Error | BI6: Esitimate | BJ6: Margin Of Error | BK6: Esitimate | BL6: Margin Of Error | BM6: Esitimate | BN6: Margin Of Error | BO6: Esitimate | BP6: Margin Of Error | BQ6: Esitimate | BR6: Margin Of Error | BS6: Esitimate | BT6: Margin Of Error | BU6: Esitimate | BV6: Margin Of Error | BW6: Esitimate | BX6: Margin Of Error
B7: Population Older than 16 not working at hom | C7: 3816 | D7: 320 | E7: 2835 | F7: 249 | G7: 2019 | H7: 185 | I7: 2013 | J7: 190 | K7: 2590 | L7: 190 | M7: 2612 | N7: 168 | O7: 2484 | P7: 178 | Q7: 18200 | R7: 646 | S7: 1144 | T7: 133 | U7: 3836 | V7: 303 | W7: 7240 | X7: 406 | Y7: 2553 | Z7: 230 | AA7: 2009 | AB7: 176 | AC7: 4190 | AD7: 291 | AE7: 8224 | AF7: 309 | AG7: 1294 | AH7: 159 | AI7: 1133 | AJ7: 89 | AK7: 3025 | AL7: 311 | AM7: 13675 | AN7: 405 | AO7: 318 | AP7: 100 | AQ7: 906 | AR7: 139 | AS7: 378 | AT7: 65 | AU7: 5489 | AV7: 276 | AW7: 2833 | AX7: 226 | AY7: 2150 | AZ7: 187 | BA7: 2432 | BB7: 174 | BC7: 2658 | BD7: 183 | BE7: 4263 | BF7: 334 | BG7: 11983 | BH7: 394 | BI7: 5615 | BJ7: 385 | BK7: 2280 | BL7: 229 | BM7: 15226 | BN7: 547 | BO7: 3627 | BP7: 252 | BQ7: 4354 | BR7: 283 | BS7: 357 | BT7: 55 | BU7: 3667 | BV7: 330 | BW7: 6201 | BX7: 425
B8: Less than 5 minutes | C8: 26138 | D8: 1637 | E8: 1399 | F8: 370 | G8: 1544 | H8: 459 | I8: 1916 | J8: 383 | K8: 1271 | L8: 254 | M8: 2370 | N8: 425 | O8: 5316 | P8: 761 | Q8: 2734 | R8: 409 | S8: 5515 | T8: 696 | U8: 3396 | V8: 575 | W8: 677 | X8: 219
B9: 5 to 9 minutes | C9: 38 | D9: 42 | E9: 48 | F9: 68 | G9: 81 | H9: 58 | I9: 36 | J9: 33 | K9: 18 | L9: 15 | M9: 136 | N9: 69 | O9: 28 | P9: 31 | Q9: 230 | R9: 141 | S9: 53 | T9: 27 | U9: 187 | V9: 190 | W9: 270 | X9: 118 | Y9: 18 | Z9: 21 | AA9: 116 | AB9: 62 | AC9: 109 | AD9: 67 | AE9: 356 | AF9: 146 | AG9: 84 | AH9: 49 | AI9: 43 | AJ9: 32 | AK9: 41 | AL9: 50 | AM9: 270 | AN9: 142 | AO9: 9 | AP9: 15 | AQ9: 32 | AR9: 34 | AS9: 21 | AT9: 11 | AU9: 81 | AV9: 51 | AW9: 72 | AX9: 60 | AY9: 196 | AZ9: 84 | BA9: 73 | BB9: 45 | BC9: 115 | BD9: 129 | BE9: 149 | BF9: 103 | BG9: 722 | BH9: 224 | BI9: 90 | BJ9: 83 | BK9: 57 | BL9: 48 | BM9: 400 | BN9: 159 | BO9: 36 | BP9: 57 | BQ9: 286 | BR9: 188 | BS9: 0 | BT9: 11 | BU9: 66 | BV9: 55 | BW9: 81 | BX9: 53
B10: 10 to 14 minutes | C10: 227 | D10: 104 | E10: 141 | F10: 75 | G10: 90 | H10: 50 | I10: 89 | J10: 62 | K10: 52 | L10: 37 | M10: 68 | N10: 75 | O10: 128 | P10: 64 | Q10: 1296 | R10: 300 | S10: 59 | T10: 31 | U10: 268 | V10: 132 | W10: 1096 | X10: 236 | Y10: 176 | Z10: 83 | AA10: 149 | AB10: 63 | AC10: 175 | AD10: 63 | AE10: 1036 | AF10: 204 | AG10: 118 | AH10: 77 | AI10: 77 | AJ10: 31 | AK10: 187 | AL10: 115 | AM10: 1058 | AN10: 201 | AO10: 70 | AP10: 37 | AQ10: 71 | AR10: 28 | AS10: 46 | AT10: 26 | AU10: 213 | AV10: 80 | AW10: 109 | AX10: 69 | AY10: 280 | AZ10: 116 | BA10: 188 | BB10: 85 | BC10: 67 | BD10: 56 | BE10: 469 | BF10: 178 | BG10: 2071 | BH10: 348 | BI10: 340 | BJ10: 135 | BK10: 129 | BL10: 70 | BM10: 1089 | BN10: 222 | BO10: 174 | BP10: 89 | BQ10: 735 | BR10: 180 | BS10: 23 | BT10: 12 | BU10: 264 | BV10: 119 | BW10: 179 | BX10: 113
B11: 15 to 19 minutes | C11: 540 | D11: 287 | E11: 213 | F11: 99 | G11: 225 | H11: 82 | I11: 121 | J11: 63 | K11: 74 | L11: 42 | M11: 155 | N11: 56 | O11: 80 | P11: 40 | Q11: 1762 | R11: 440 | S11: 113 | T11: 41 | U11: 309 | V11: 155 | W11: 1026 | X11: 226 | Y11: 84 | Z11: 57 | AA11: 251 | AB11: 78 | AC11: 380 | AD11: 138 | AE11: 1067 | AF11: 223 | AG11: 205 | AH11: 69 | AI11: 125 | AJ11: 38 | AK11: 262 | AL11: 158 | AM11: 1590 | AN11: 278 | AO11: 95 | AP11: 54 | AQ11: 88 | AR11: 34 | AS11: 80 | AT11: 35 | AU11: 453 | AV11: 152 | AW11: 119 | AX11: 61 | AY11: 218 | AZ11: 83 | BA11: 176 | BB11: 91 | BC11: 136 | BD11: 66 | BE11: 324 | BF11: 128 | BG11: 2584 | BH11: 419 | BI11: 387 | BJ11: 115 | BK11: 348 | BL11: 150 | BM11: 1985 | BN11: 324 | BO11: 401 | BP11: 187 | BQ11: 536 | BR11: 158 | BS11: 40 | BT11: 30 | BU11: 535 | BV11: 150 | BW11: 440 | BX11: 195
B12: 20 to 24 minutes | C12: 497 | D12: 156 | E12: 688 | F12: 179 | G12: 316 | H12: 116 | I12: 179 | J12: 80 | K12: 266 | L12: 138 | M12: 264 | N12: 121 | O12: 97 | P12: 65 | Q12: 1933 | R12: 400 | S12: 172 | T12: 50 | U12: 577 | V12: 226 | W12: 959 | X12: 192 | Y12: 227 | Z12: 84 | AA12: 574 | AB12: 129 | AC12: 311 | AD12: 100 | AE12: 818 | AF12: 178 | AG12: 130 | AH12: 56 | AI12: 198 | AJ12: 47 | AK12: 298 | AL12: 160 | AM12: 1471 | AN12: 217 | AO12: 16 | AP12: 16 | AQ12: 133 | AR12: 44 | AS12: 36 | AT12: 16 | AU12: 1128 | AV12: 265 | AW12: 373 | AX12: 148 | AY12: 277 | AZ12: 92 | BA12: 132 | BB12: 60 | BC12: 140 | BD12: 58 | BE12: 439 | BF12: 157 | BG12: 1678 | BH12: 323 | BI12: 628 | BJ12: 200 | BK12: 624 | BL12: 203 | BM12: 2150 | BN12: 419 | BO12: 202 | BP12: 131 | BQ12: 343 | BR12: 102 | BS12: 42 | BT12: 16 | BU12: 557 | BV12: 170 | BW12: 940 | BX12: 279
B13: 25 to 29 minutes | C13: 353 | D13: 144 | E13: 401 | F13: 107 | G13: 263 | H13: 95 | I13: 468 | J13: 120 | K13: 338 | L13: 112 | M13: 202 | N13: 92 | O13: 223 | P13: 83 | Q13: 2260 | R13: 396 | S13: 187 | T13: 85 | U13: 370 | V13: 149 | W13: 858 | X13: 208 | Y13: 393 | Z13: 121 | AA13: 314 | AB13: 102 | AC13: 528 | AD13: 157 | AE13: 1421 | AF13: 248 | AG13: 230 | AH13: 63 | AI13: 155 | AJ13: 58 | AK13: 430 | AL13: 189 | AM13: 1790 | AN13: 260 | AO13: 21 | AP13: 16 | AQ13: 141 | AR13: 46 | AS13: 76 | AT13: 23 | AU13: 1074 | AV13: 243 | AW13: 264 | AX13: 109 | AY13: 274 | AZ13: 112 | BA13: 245 | BB13: 107 | BC13: 240 | BD13: 103 | BE13: 589 | BF13: 252 | BG13: 1426 | BH13: 226 | BI13: 548 | BJ13: 181 | BK13: 359 | BL13: 151 | BM13: 1832 | BN13: 348 | BO13: 399 | BP13: 141 | BQ13: 712 | BR13: 209 | BS13: 60 | BT13: 21 | BU13: 729 | BV13: 263 | BW13: 701 | BX13: 199
B14: 30 to 34 minutes | C14: 165 | D14: 73 | E14: 112 | F14: 53 | G14: 114 | H14: 67 | I14: 214 | J14: 75 | K14: 181 | L14: 91 | M14: 298 | N14: 120 | O14: 252 | P14: 126 | Q14: 1707 | R14: 282 | S14: 50 | T14: 33 | U14: 159 | V14: 98 | W14: 735 | X14: 244 | Y14: 263 | Z14: 86 | AA14: 95 | AB14: 44 | AC14: 348 | AD14: 149 | AE14: 493 | AF14: 147 | AG14: 85 | AH14: 24 | AI14: 44 | AJ14: 19 | AK14: 93 | AL14: 84 | AM14: 1076 | AN14: 188 | AO14: 7 | AP14: 8 | AQ14: 87 | AR14: 41 | AS14: 27 | AT14: 13 | AU14: 501 | AV14: 158 | AW14: 343 | AX14: 112 | AY14: 162 | AZ14: 78 | BA14: 162 | BB14: 77 | BC14: 239 | BD14: 104 | BE14: 312 | BF14: 107 | BG14: 712 | BH14: 152 | BI14: 495 | BJ14: 196 | BK14: 221 | BL14: 124 | BM14: 969 | BN14: 255 | BO14: 341 | BP14: 181 | BQ14: 239 | BR14: 100 | BS14: 33 | BT14: 17 | BU14: 209 | BV14: 113 | BW14: 540 | BX14: 156
B15: 35 to 39 minutes | C15: 707 | D15: 201 | E15: 452 | F15: 131 | G15: 256 | H15: 109 | I15: 273 | J15: 73 | K15: 338 | L15: 93 | M15: 295 | N15: 118 | O15: 510 | P15: 149 | Q15: 2519 | R15: 378 | S15: 116 | T15: 45 | U15: 869 | V15: 241 | W15: 933 | X15: 181 | Y15: 373 | Z15: 101 | AA15: 197 | AB15: 99 | AC15: 511 | AD15: 133 | AE15: 816 | AF15: 180 | AG15: 145 | AH15: 58 | AI15: 150 | AJ15: 42 | AK15: 292 | AL15: 149 | AM15: 1875 | AN15: 303 | AO15: 12 | AP15: 11 | AQ15: 129 | AR15: 38 | AS15: 15 | AT15: 10 | AU15: 798 | AV15: 156 | AW15: 398 | AX15: 117 | AY15: 112 | AZ15: 55 | BA15: 277 | BB15: 87 | BC15: 423 | BD15: 116 | BE15: 573 | BF15: 217 | BG15: 734 | BH15: 198 | BI15: 1144 | BJ15: 238 | BK15: 172 | BL15: 84 | BM15: 2190 | BN15: 359 | BO15: 694 | BP15: 210 | BQ15: 535 | BR15: 195 | BS15: 40 | BT15: 19 | BU15: 388 | BV15: 137 | BW15: 1142 | BX15: 268
B16: 40 to 44 minutes | C16: 103 | D16: 81 | E16: 106 | F16: 69 | G16: 107 | H16: 55 | I16: 48 | J16: 34 | K16: 223 | L16: 126 | M16: 129 | N16: 77 | O16: 301 | P16: 92 | Q16: 991 | R16: 223 | S16: 48 | T16: 27 | U16: 220 | V16: 86 | W16: 185 | X16: 80 | Y16: 141 | Z16: 76 | AA16: 41 | AB16: 30 | AC16: 251 | AD16: 115 | AE16: 214 | AF16: 92 | AG16: 69 | AH16: 38 | AI16: 61 | AJ16: 22 | AK16: 68 | AL16: 56 | AM16: 507 | AN16: 117 | AO16: 10 | AP16: 11 | AQ16: 15 | AR16: 13 | AS16: 7 | AT16: 10 | AU16: 243 | AV16: 123 | AW16: 183 | AX16: 83 | AY16: 8 | AZ16: 15 | BA16: 264 | BB16: 86 | BC16: 348 | BD16: 97 | BE16: 206 | BF16: 125 | BG16: 168 | BH16: 90 | BI16: 269 | BJ16: 117 | BK16: 56 | BL16: 47 | BM16: 671 | BN16: 175 | BO16: 295 | BP16: 128 | BQ16: 98 | BR16: 54 | BS16: 15 | BT16: 11 | BU16: 77 | BV16: 66 | BW16: 210 | BX16: 102
B17: 45 to 59 minutes | C17: 200 | D17: 97 | E17: 107 | F17: 59 | G17: 92 | H17: 57 | I17: 95 | J17: 56 | K17: 244 | L17: 106 | M17: 196 | N17: 102 | O17: 246 | P17: 85 | Q17: 924 | R17: 195 | S17: 70 | T17: 35 | U17: 45 | V17: 36 | W17: 232 | X17: 113 | Y17: 293 | Z17: 89 | AA17: 53 | AB17: 42 | AC17: 240 | AD17: 103 | AE17: 344 | AF17: 131 | AG17: 6 | AH17: 8 | AI17: 49 | AJ17: 18 | AK17: 301 | AL17: 207 | AM17: 633 | AN17: 178 | AO17: 40 | AP17: 43 | AQ17: 22 | AR17: 17 | AS17: 0 | AT17: 11 | AU17: 126 | AV17: 90 | AW17: 207 | AX17: 73 | AY17: 72 | AZ17: 53 | BA17: 162 | BB17: 69 | BC17: 255 | BD17: 80 | BE17: 168 | BF17: 121 | BG17: 208 | BH17: 91 | BI17: 276 | BJ17: 127 | BK17: 81 | BL17: 52 | BM17: 796 | BN17: 179 | BO17: 279 | BP17: 124 | BQ17: 132 | BR17: 71 | BS17: 9 | BT17: 8 | BU17: 149 | BV17: 99 | BW17: 266 | BX17: 102
B18: 60 to 89 minutes | C18: 416 | D18: 162 | E18: 289 | F18: 110 | G18: 149 | H18: 65 | I18: 222 | J18: 102 | K18: 330 | L18: 98 | M18: 460 | N18: 128 | O18: 323 | P18: 125 | Q18: 1985 | R18: 284 | S18: 101 | T18: 42 | U18: 314 | V18: 114 | W18: 356 | X18: 101 | Y18: 281 | Z18: 80 | AA18: 40 | AB18: 29 | AC18: 608 | AD18: 159 | AE18: 877 | AF18: 172 | AG18: 86 | AH18: 37 | AI18: 101 | AJ18: 30 | AK18: 610 | AL18: 180 | AM18: 1490 | AN18: 228 | AO18: 14 | AP18: 17 | AQ18: 79 | AR18: 37 | AS18: 26 | AT18: 20 | AU18: 365 | AV18: 112 | AW18: 364 | AX18: 142 | AY18: 142 | AZ18: 55 | BA18: 540 | BB18: 126 | BC18: 274 | BD18: 82 | BE18: 428 | BF18: 123 | BG18: 645 | BH18: 156 | BI18: 679 | BJ18: 194 | BK18: 120 | BL18: 71 | BM18: 1318 | BN18: 248 | BO18: 391 | BP18: 139 | BQ18: 261 | BR18: 105 | BS18: 42 | BT18: 19 | BU18: 213 | BV18: 123 | BW18: 555 | BX18: 157
B19: 90 or more minutes | C19: 455 | D19: 150 | E19: 162 | F19: 81 | G19: 204 | H19: 83 | I19: 118 | J19: 50 | K19: 341 | L19: 97 | M19: 259 | N19: 128 | O19: 182 | P19: 85 | Q19: 1788 | R19: 288 | S19: 143 | T19: 57 | U19: 338 | V19: 149 | W19: 444 | X19: 125 | Y19: 186 | Z19: 72 | AA19: 148 | AB19: 78 | AC19: 403 | AD19: 121 | AE19: 557 | AF19: 142 | AG19: 98 | AH19: 51 | AI19: 103 | AJ19: 29 | AK19: 266 | AL19: 119 | AM19: 1426 | AN19: 246 | AO19: 24 | AP19: 20 | AQ19: 76 | AR19: 29 | AS19: 37 | AT19: 22 | AU19: 211 | AV19: 100 | AW19: 288 | AX19: 94 | AY19: 231 | AZ19: 91 | BA19: 187 | BB19: 78 | BC19: 230 | BD19: 77 | BE19: 485 | BF19: 262 | BG19: 650 | BH19: 168 | BI19: 483 | BJ19: 180 | BK19: 66 | BL19: 83 | BM19: 1082 | BN19: 233 | BO19: 259 | BP19: 104 | BQ19: 322 | BR19: 110 | BS19: 34 | BT19: 19 | BU19: 176 | BV19: 91 | BW19: 861 | BX19: 199
C20: 115 | D20: 88 | E20: 116 | F20: 65 | G20: 122 | H20: 71 | I20: 150 | J20: 93 | K20: 185 | L20: 81 | M20: 150 | N20: 91 | O20: 114 | P20: 73 | Q20: 805 | R20: 210 | S20: 32 | T20: 21 | U20: 180 | V20: 106 | W20: 146 | X20: 77 | Y20: 118 | Z20: 64 | AA20: 31 | AB20: 28 | AC20: 326 | AD20: 106 | AE20: 225 | AF20: 97 | AG20: 38 | AH20: 21 | AI20: 27 | AJ20: 17 | AK20: 177 | AL20: 109 | AM20: 489 | AN20: 122 | AO20: 0 | AP20: 11 | AQ20: 33 | AR20: 17 | AS20: 7 | AT20: 5 | AU20: 296 | AV20: 108 | AW20: 113 | AX20: 61 | AY20: 178 | AZ20: 80 | BA20: 26 | BB20: 24 | BC20: 191 | BD20: 94 | BE20: 121 | BF20: 81 | BG20: 385 | BH20: 113 | BI20: 276 | BJ20: 109 | BK20: 47 | BL20: 54 | BM20: 744 | BN20: 189 | BO20: 156 | BP20: 99 | BQ20: 155 | BR20: 94 | BS20: 19 | BT20: 10 | BU20: 304 | BV20: 139 | BW20: 286 | BX20: 139

Sheet HHIncomeByAge (hidden)
C2: =CntyDataLink!A55 -> Atkinson
C3: INCOME CHARACTERISTICS
C21: =HHIncomeByAge!C2 -> Atkinson | D21: Household Income in 2019
G22: Households by Age of Householder
D23: Households | E23: Margin of Error Households | G23: Under 25 | H23: Margin of Error Under 25 | J23: 25 to 44 | K23: Margin of Error 25 to 44 | M23: 45 to 64 | N23: Margin of Error 45 to 64 | P23: 65 & Over | Q23: Margin of Error 65 & Over | S23: Family Households | T23: MOE Family HH | U23: Non-Family HH | V23: MOE Non-Family HH
C24: Less Than $10,000 | D24: =CntyDataLink!$D$116 -> 44 | E24: =CntyDataLink!$E$116 -> 43 | G24: =CntyDataLink!$AN$116 -> 0 | H24: =CntyDataLink!$AO$116 -> 16 | J24: =CntyDataLink!$BV$116 -> 0 | K24: =CntyDataLink!$BW$116 -> 16 | M24: =CntyDataLink!$DD$116 -> 18 | N24: =CntyDataLink!$DE$116 -> 28 | P24: =CntyDataLink!$EL$116 -> 26 | Q24: =CntyDataLink!$EM$116 -> 32 | S24: =CntyDataLink!$D$160 -> 0 | T24: =CntyDataLink!$E$160 -> 16 | U24: =CntyDataLink!$AN$160 -> 44 | V24: =CntyDataLink!$AO$160 -> 43
C25: $10,000 to $14,999 | D25: =CntyDataLink!$F$116 -> 50 | E25: =CntyDataLink!$G$116 -> 63 | G25: =CntyDataLink!$AP$116 -> 0 | H25: =CntyDataLink!$AQ$116 -> 16 | J25: =CntyDataLink!$BX$116 -> 0 | K25: =CntyDataLink!$BY$116 -> 16 | M25: =CntyDataLink!$DF$116 -> 0 | N25: =CntyDataLink!$DG$116 -> 16 | P25: =CntyDataLink!$EN$116 -> 50 | Q25: =CntyDataLink!$EO$116 -> 63 | S25: =CntyDataLink!$F$160 -> 0 | T25: =CntyDataLink!$G$160 -> 16 | U25: =CntyDataLink!$AP$160 -> 50 | V25: =CntyDataLink!$AQ$160 -> 63
C26: $15,000 to $19,999 | D26: =CntyDataLink!$H$116 -> 14 | E26: =CntyDataLink!$I$116 -> 23 | G26: =CntyDataLink!$AR$116 -> 0 | H26: =CntyDataLink!$AS$116 -> 16 | J26: =CntyDataLink!$BZ$116 -> 0 | K26: =CntyDataLink!$CA$116 -> 16 | M26: =CntyDataLink!$DH$116 -> 0 | N26: =CntyDataLink!$DI$116 -> 16 | P26: =CntyDataLink!$EP$116 -> 14 | Q26: =CntyDataLink!$EQ$116 -> 23 | S26: =CntyDataLink!$H$160 -> 0 | T26: =CntyDataLink!$I$160 -> 16 | U26: =CntyDataLink!$AR$160 -> 14 | V26: =CntyDataLink!$AS$160 -> 23
C27: $20,000 to $24,999 | D27: =CntyDataLink!$J$116 -> 84 | E27: =CntyDataLink!$K$116 -> 90 | G27: =CntyDataLink!$AT$116 -> 0 | H27: =CntyDataLink!$AU$116 -> 16 | J27: =CntyDataLink!$CB$116 -> 53 | K27: =CntyDataLink!$CC$116 -> 83 | M27: =CntyDataLink!$DJ$116 -> 31 | N27: =CntyDataLink!$DK$116 -> 37 | P27: =CntyDataLink!$ER$116 -> 0 | Q27: =CntyDataLink!$ES$116 -> 16 | S27: =CntyDataLink!$J$160 -> 0 | T27: =CntyDataLink!$K$160 -> 16 | U27: =CntyDataLink!$AT$160 -> 84 | V27: =CntyDataLink!$AU$160 -> 90
C28: $25,000 to $29,999 | D28: =CntyDataLink!$L$116 -> 16 | E28: =CntyDataLink!$M$116 -> 27 | G28: =CntyDataLink!$AV$116 -> 0 | H28: =CntyDataLink!$AW$116 -> 16 | J28: =CntyDataLink!$CD$116 -> 0 | K28: =CntyDataLink!$CE$116 -> 16 | M28: =CntyDataLink!$DL$116 -> 16 | N28: =CntyDataLink!$DM$116 -> 27 | P28: =CntyDataLink!$ET$116 -> 0 | Q28: =CntyDataLink!$EU$116 -> 16 | S28: =CntyDataLink!$L$160 -> 27 | T28: =CntyDataLink!$M$160 -> 35 | U28: =CntyDataLink!$AV$160 -> 0 | V28: =CntyDataLink!$AW$160 -> 16
C29: $30,000 to $34,999 | D29: =CntyDataLink!$N$116 -> 72 | E29: =CntyDataLink!$O$116 -> 51 | G29: =CntyDataLink!$AX$116 -> 0 | H29: =CntyDataLink!$AY$116 -> 16 | J29: =CntyDataLink!$CF$116 -> 19 | K29: =CntyDataLink!$CG$116 -> 31 | M29: =CntyDataLink!$DN$116 -> 0 | N29: =CntyDataLink!$DO$116 -> 16 | P29: =CntyDataLink!$EV$116 -> 53 | Q29: =CntyDataLink!$EW$116 -> 41 | S29: =CntyDataLink!$N$160 -> 33 | T29: =CntyDataLink!$O$160 -> 38 | U29: =CntyDataLink!$AX$160 -> 39 | V29: =CntyDataLink!$AY$160 -> 35
C30: $35,000 to $39,999 | D30: =CntyDataLink!$P$116 -> 13 | E30: =CntyDataLink!$Q$116 -> 20 | G30: =CntyDataLink!$AZ$116 -> 0 | H30: =CntyDataLink!$BA$116 -> 16 | J30: =CntyDataLink!$CH$116 -> 0 | K30: =CntyDataLink!$CI$116 -> 16 | M30: =CntyDataLink!$DP$116 -> 0 | N30: =CntyDataLink!$DQ$116 -> 16 | P30: =CntyDataLink!$EX$116 -> 13 | Q30: =CntyDataLink!$EY$116 -> 20 | S30: =CntyDataLink!$P$160 -> 0 | T30: =CntyDataLink!$Q$160 -> 16 | U30: =CntyDataLink!$AZ$160 -> 13 | V30: =CntyDataLink!$BA$160 -> 20
C31: $40,000 to $44,999 | D31: =CntyDataLink!$R$116 -> 75 | E31: =CntyDataLink!$S$116 -> 83 | G31: =CntyDataLink!$BB$116 -> 0 | H31: =CntyDataLink!$BC$116 -> 16 | J31: =CntyDataLink!$CJ$116 -> 0 | K31: =CntyDataLink!$CK$116 -> 16 | M31: =CntyDataLink!$DR$116 -> 0 | N31: =CntyDataLink!$DS$116 -> 16 | P31: =CntyDataLink!$EZ$116 -> 75 | Q31: =CntyDataLink!$FA$116 -> 83 | S31: =CntyDataLink!$R$160 -> 15 | T31: =CntyDataLink!$S$160 -> 24 | U31: =CntyDataLink!$BB$160 -> 60 | V31: =CntyDataLink!$BC$160 -> 80
C32: $45,000 to $49,999 | D32: =CntyDataLink!$T$116 -> 87 | E32: =CntyDataLink!$U$116 -> 69 | G32: =CntyDataLink!$BD$116 -> 0 | H32: =CntyDataLink!$BE$116 -> 16 | J32: =CntyDataLink!$CL$116 -> 0 | K32: =CntyDataLink!$CM$116 -> 16 | M32: =CntyDataLink!$DT$116 -> 14 | N32: =CntyDataLink!$DU$116 -> 25 | P32: =CntyDataLink!$FB$116 -> 73 | Q32: =CntyDataLink!$FC$116 -> 68 | S32: =CntyDataLink!$T$160 -> 37 | T32: =CntyDataLink!$U$160 -> 38 | U32: =CntyDataLink!$BD$160 -> 50 | V32: =CntyDataLink!$BE$160 -> 60
C33: $50,000 to $59,999 | D33: =CntyDataLink!$V$116 -> 161 | E33: =CntyDataLink!$W$116 -> 95 | G33: =CntyDataLink!$BF$116 -> 0 | H33: =CntyDataLink!$BG$116 -> 16 | J33: =CntyDataLink!$CN$116 -> 32 | K33: =CntyDataLink!$CO$116 -> 42 | M33: =CntyDataLink!$DV$116 -> 26 | N33: =CntyDataLink!$DW$116 -> 29 | P33: =CntyDataLink!$FD$116 -> 103 | Q33: =CntyDataLink!$FE$116 -> 77 | S33: =CntyDataLink!$V$160 -> 32 | T33: =CntyDataLink!$W$160 -> 35 | U33: =CntyDataLink!$BF$160 -> 129 | V33: =CntyDataLink!$BG$160 -> 84
C34: $60,000 to $74,999 | D34: =CntyDataLink!$X$116 -> 131 | E34: =CntyDataLink!$Y$116 -> 72 | G34: =CntyDataLink!$BH$116 -> 0 | H34: =CntyDataLink!$BI$116 -> 16 | J34: =CntyDataLink!$CP$116 -> 11 | K34: =CntyDataLink!$CQ$116 -> 19 | M34: =CntyDataLink!$DX$116 -> 29 | N34: =CntyDataLink!$DY$116 -> 35 | P34: =CntyDataLink!$FF$116 -> 91 | Q34: =CntyDataLink!$FG$116 -> 57 | S34: =CntyDataLink!$X$160 -> 118 | T34: =CntyDataLink!$Y$160 -> 66 | U34: =CntyDataLink!$BH$160 -> 21 | V34: =CntyDataLink!$BI$160 -> 32
C35: $75,000 to $99,999 | D35: =CntyDataLink!$Z$116 -> 351 | E35: =CntyDataLink!$AA$116 -> 143 | G35: =CntyDataLink!$BJ$116 -> 0 | H35: =CntyDataLink!$BK$116 -> 16 | J35: =CntyDataLink!$CR$116 -> 99 | K35: =CntyDataLink!$CS$116 -> 65 | M35: =CntyDataLink!$DZ$116 -> 196 | N35: =CntyDataLink!$EA$116 -> 121 | P35: =CntyDataLink!$FH$116 -> 56 | Q35: =CntyDataLink!$FI$116 -> 48 | S35: =CntyDataLink!$Z$160 -> 262 | T35: =CntyDataLink!$AA$160 -> 119 | U35: =CntyDataLink!$BJ$160 -> 70 | V35: =CntyDataLink!$BK$160 -> 59
C36: $100,000 to $124,999 | D36: =CntyDataLink!$AB$116 -> 441 | E36: =CntyDataLink!$AC$116 -> 142 | G36: =CntyDataLink!$BL$116 -> 0 | H36: =CntyDataLink!$BM$116 -> 16 | J36: =CntyDataLink!$CT$116 -> 96 | K36: =CntyDataLink!$CU$116 -> 68 | M36: =CntyDataLink!$EB$116 -> 285 | N36: =CntyDataLink!$EC$116 -> 113 | P36: =CntyDataLink!$FJ$116 -> 60 | Q36: =CntyDataLink!$FK$116 -> 50 | S36: =CntyDataLink!$AB$160 -> 413 | T36: =CntyDataLink!$AC$160 -> 140 | U36: =CntyDataLink!$BL$160 -> 28 | V36: =CntyDataLink!$BM$160 -> 34
C37: $125,000 to $149,999 | D37: =CntyDataLink!$AD$116 -> 291 | E37: =CntyDataLink!$AE$116 -> 99 | G37: =CntyDataLink!$BN$116 -> 0 | H37: =CntyDataLink!$BO$116 -> 16 | J37: =CntyDataLink!$CV$116 -> 53 | K37: =CntyDataLink!$CW$116 -> 49 | M37: =CntyDataLink!$ED$116 -> 184 | N37: =CntyDataLink!$EE$116 -> 82 | P37: =CntyDataLink!$FL$116 -> 54 | Q37: =CntyDataLink!$FM$116 -> 45 | S37: =CntyDataLink!$AD$160 -> 280 | T37: =CntyDataLink!$AE$160 -> 96 | U37: =CntyDataLink!$BN$160 -> 11 | V37: =CntyDataLink!$BO$160 -> 19
C38: $150,000 to $199,999 | D38: =CntyDataLink!$AF$116 -> 457 | E38: =CntyDataLink!$AG$116 -> 141 | G38: =CntyDataLink!$BP$116 -> 0 | H38: =CntyDataLink!$BQ$116 -> 16 | J38: =CntyDataLink!$CX$116 -> 129 | K38: =CntyDataLink!$CY$116 -> 85 | M38: =CntyDataLink!$EF$116 -> 260 | N38: =CntyDataLink!$EG$116 -> 133 | P38: =CntyDataLink!$FN$116 -> 68 | Q38: =CntyDataLink!$FO$116 -> 53 | S38: =CntyDataLink!$AF$160 -> 403 | T38: =CntyDataLink!$AG$160 -> 138 | U38: =CntyDataLink!$BP$160 -> 54 | V38: =CntyDataLink!$BQ$160 -> 66
C39: $200,000 or More | D39: =CntyDataLink!$AH$116 -> 458 | E39: =CntyDataLink!$AI$116 -> 138 | G39: =CntyDataLink!$BR$116 -> 0 | H39: =CntyDataLink!$BS$116 -> 16 | J39: =CntyDataLink!$CZ$116 -> 59 | K39: =CntyDataLink!$DA$116 -> 44 | M39: =CntyDataLink!$EH$116 -> 300 | N39: =CntyDataLink!$EI$116 -> 117 | P39: =CntyDataLink!$FP$116 -> 99 | Q39: =CntyDataLink!$FQ$116 -> 59 | S39: =CntyDataLink!$AH$160 -> 374 | T39: =CntyDataLink!$AI$160 -> 107 | U39: =CntyDataLink!$BR$160 -> 84 | V39: =CntyDataLink!$BS$160 -> 72
C41: Total Households | D41: =CntyDataLink!$B$116 -> 2745 | E41: =CntyDataLink!$C$116 -> 185 | G41: =CntyDataLink!$AL$116 -> 0 | H41: =CntyDataLink!$AM$116 -> 16 | J41: =CntyDataLink!$BT$116 -> 551 | K41: =CntyDataLink!$BU$116 -> 142 | M41: =CntyDataLink!$DB$116 -> 1359 | N41: =CntyDataLink!$DC$116 -> 147 | P41: =CntyDataLink!$EJ$116 -> 835 | Q41: =CntyDataLink!$EK$116 -> 175 | S41: =CntyDataLink!$B$160 -> 1994 | T41: =CntyDataLink!$C$160 -> 146 | U41: =CntyDataLink!$AL$160 -> 751 | V41: =CntyDataLink!$AM$160 -> 187
C42: Median Household Inc | D42: =CntyDataLink!$FR$116 -> 118712 | E42: =CntyDataLink!$FS$116 -> 8166 | G42: =CntyDataLink!$FT$116 -> - | H42: =CntyDataLink!$FU$116 -> ** | J42: =CntyDataLink!$FV$116 -> 112578 | K42: =CntyDataLink!$FW$116 -> 28786 | M42: =CntyDataLink!$FX$116 -> 137725 | N42: =CntyDataLink!$FY$116 -> 19549 | P42: =CntyDataLink!$FZ$116 -> 63510 | Q42: =CntyDataLink!$GA$116 -> 14401 | S42: =CntyDataLink!$AJ$160 -> 132500 | T42: =CntyDataLink!$AK$160 -> 12176 | U42: =CntyDataLink!BT$160 -> 51991 | V42: =CntyDataLink!$BU$160 -> 9834
C44: Source: 2015-2019 American Community Survey Table B19001; B19037; B19101; B19102; B19112; B19113; B19049
C45: Data from the American Community Survey are estimates
C47: =C2 -> Atkinson
C48: INCOME CHARACTERISTICS
C80: Source: 2015-2019 American Community Survey Tables B19001; B19102 | P80: Data from the American Community Survey are estimates

Sheet Updates
A1: Important Notes
A2: Date | C2: Task
A4: 2020-12-18 | C4: Updated 2015-2019 Amreican Community Survey Data and added 2019 NH Permit data.
A5: 2020-09-10 | C5: Updated historical data 2005-2009 and 2010-2014 ACS Data
A6: 2020-07-10 | C6: Updated 2019 Unemployment Rate and Labor Force Data to Employment, Wages, LaborForce & Unemp. Worksheet for large communities.
A7: 2019-12-31 | C7: Updated Visual Basic Code changing the footer font from Gotham Medium to Verdana.
A8: 2019-12-27 | C8: Updated with 2014-2018 ACS Data. Updated 2018 Permit data. Updated CPI Adjustment Factor (1.02437673) to the 2009-2013 and 2014-2018 Income Comparison Table. This factor was provided by Census
A9: 2019-11-27 | C9: Updated the 2009-2013 ACS data for comparison purposes. Updated charts to new color scheme
A10: 2019-01-08 | C10: Updated the location of the 2008-2012 data and the ACS_Tbl_B11001_B11002_B25010 worksheet. This fixed an error on the PopulationCharacteristics worksheet
A11: 2018-12-19 | C11: Updated 2017 Annual Employment and Wage data; updated Housing and Employment worksheet. Updated 2017 Permit data
A12: 2018-12-13 | C12: Updated the 2008-2012 ACS data for comparison purposes. Updated CPI Adjustment Factor (1.0676) to the 2008-2012 and 2013-2017 Income Comparison Table. This factor was provided by Census.
A13: 2018-12-06 | C13: Updated labels in workbook to reflect 2013-2017 data set and 2008-2012 comparison data set. Updated footer text. Updated 2013-2017 ACS
A14: 2018-08-16 | C14: Updated Chart formats
A15: 2018-05-09 | C15: Updated 2017 Unemployment Rate and Labor Force Data to Employment, Wages, LaborForce & Unemp. Worksheet for large communities.
A16: 2017-12-18 | C16: Updated 2016 NH Permit Data
A17: 2017-12-12 | C17: Updated Charts with 2012-2016 data; updated code to reflect additional data points in various tables. Updated CPI Adjustment Factor (1.06686838) to the 2007-2011 and 2012-2016 Income Comparison Table. This factor was provided by Census.
A18: 2017-11-16 | C18: Updated the 2007-2011 ACS data for comparison purposes.
A19: 2017-10-12 | C19: Updated 2016 Annual Employment and Wage data; updated Housing and Employment worksheet
A20: 2017-05-15 | C20: Updated 2016 Unemployment Rate and Labor Force Data to Employment, Wages, LaborForce & Unemp. Worksheet for large communities.
A21: 2017-01-05 | C21: Verified Charts; Added 2015 Permit Data; Updated Housing and Permit data
A22: 2016-12-29 | C22: Updated the 2006-2010 ACS data for comparison purposes.
A23: 2016-12-23 | C23: Updated Town Comparisons: Employment and Housing with 2015 data
A24: 2016-12-20 | C24: Updated Charts with 2011-2015 data; updated code to reflect additional data points in various tables. Updated CPI Adjustment Factor (1.08710584) to the 2006-2010 and 2011-2015 Income Comparison Table. This factor was provided by Census.
A25: 2016-12-16 | C25: Updated 2011-2015 ACS data
A26: 2016-10-31 | C26: Updated 2015 Annual Employment and Wage data
A27: 2016-08-09 | C27: Updated Labor Force and Unemployment data for the specific towns: Concord; Derry; Dover; Hudson; Londonderry; Manchester; Merrimack; Nashua; Rochester; and Salem
A28: 2016-01-14 | C28: Fixed error in School Attainment worksheet - Graduate or Professional Degree data.
A29: 2016-01-07 | C29: Fixed formula in Poverty worksheet; fixed Non-Family Persons per Household data; fixed legend of Rental Cost Charts.
A30: 2015-12-23 | C30: Fixed Table ACS_B25074
A31: 2015-12-16 | C31: Updated Code to correct an error on the OwnerHousingCost worksheet; updated column names on CntyDataLink.
A32: 2015-12-11 | C32: Updated Code to correct an error on the RentalHousingCost worksheet; updated column names on CntyDataLink.
A33: 2015-12-10 | C33: Updated 2010-2014 ACS data
A34: 2015-12-07 | C34: Updated Permit Data and all appropriate charts.
A35: 2015-12-03 | C35: Updated Color scheme on charts and added correct logo to the charts; updated RentalHousingCost and OwnerCost worksheet to eliminate a printed page. Charts were moved and reduced in size. Updated the CPI Adjustment Factor (1.1034264) to the 2005-2009 and 2010-2014 Income Comparison Table. This factor was provided by Census.
A36: 2015-10-06 | C36: Added County Comparison Employment and Housing data. Added Visual basic code to automatically update footer. Visual basic code will run when Ctrl-j is selected.
A37: 2015-09-29 | C37: Updated Employment Information
A38: 2015-09-18 | C38: Updated RentalHousingCost worksheet to accommodate changes to Table B25074. Updated Charts and code to allow for prior 5 year estimates to be update
A39: 2015-09-01 | C39: Updated Code to include Prior 5 Year Estimates.
A40: 2015-08-18 | C40: Updated Owner Cost Chart and data. Added Table B25106. Housing Cost burden by Income. Updated 2006-2010 ACS Estimate data.
A41: 2015-08-06 | C41: Corrected the Employment vs. Housing worksheet.
A42: 2015-03-17 | C42: Added Labor Force Data
A43: 2014-12-30 | C43: Corrected Rental Cost formula.
A44: 2014-12-17 | C44: Corrected and verified household pie charts. All Permit data and employment data has been updated through 2013.
A45: 2011-10-14 | C45: Reformatted the code in the worksheet and corrected an error in the Income Comparison Sheet
A46: 2010-12-21 | C46: Added Margin of Error information on all applicable ACS Sheets
A47: 2010-12-07 | C47: Created a calculated Table B19001 in anticipation for the 5 year data. Table C19001 will not be provided

Sheet PopulationCharacteristics (hidden)
B2: =CntyDataLink!$A35 -> Atkinson
G3: Land Area: | I3: =((CntyDataLink!F35*10.764)/43560)/640 -> 11.12845335 | K3: Water Area: | L3: =((CntyDataLink!G35*10.764)/43560)/640 -> 0.161654211
B4: POPULATION CHARACTERISTICS
B19: Population | C19: ="Source: US Census; New Hampshire Office of Strategic Initiatives; "& L20&", "&P20&", and "&S20&" American Community Survey Table B01001" -> Source: US Census; New Hampshire Office of Strategic Initiatives; 2005-2009, 2010-2014, and 2015-2019 American Community Survey Table B01001 | N19: Population by Age | P19: ="Source: "& L20&", "&P20&", and "&S20&" American Community Survey Tables B01001 and B01002" -> Source: 2005-2009, 2010-2014, and 2015-2019 American Community Survey Tables B01001 and B01002
L20: 2005-2009 | P20: 2010-2014 | S20: 2015-2019
C21: 1980 | D21: 1990 | E21: 2000 | F21: 2015-2019 | G21: 2025 | H21: 2030 | L21: Estimate | N21: Margin of Error | O21: Percent Change | P21: Estimate | Q21: Margin of Error | R21: Percent Change | S21: Estimate | T21: Margin of Error | V21: Percent Change | W21: Statistically Significant Change
C22: =CntyDataLink!$E$20 -> 4397 | D22: =CntyDataLink!$F$20 -> 5188 | E22: =CntyDataLink!$G$20 -> 6178 | F22: =CntyDataLink!$B$132 -> 6952 | G22: =CntyDataLink!$I$20 -> 7358 | H22: =CntyDataLink!$K$20 -> 7536 | K22: Under 15 yrs. | L22: =CntyDataLinkPrior10YearEstimate!$D$132 -> 1164 | N22: =CntyDataLinkPrior10YearEstimate!$E$132 -> 207.9687477 | O22: =L22/SUM($L$22:$L$29) -> 0.1751429431 | P22: =CntyDataLinkPrior5YearEstimates!$D$132 -> 1022 | Q22: =CntyDataLinkPrior5YearEstimates!$E$132 -> 220.0363606 | R22: =P22/SUM($P$22:$P$29) -> 0.1505598114 | S22: =CntyDataLink!$D$132 -> 1032 | T22: =CntyDataLink!$E$132 -> 283.3390196 | U22: =S22/SUM($S$22:$S$29) -> 0.1484464902 | V22: =(S22-P22)/P22 -> 0.009784735812 | W22: =StatisticallySignificantCalcs!$A3 -> Y
K23: 15 to 24 yrs. | L23: =CntyDataLinkPrior10YearEstimate!$F$132 -> 630 | N23: =CntyDataLinkPrior10YearEstimate!$G$132 -> 224.3479441 | O23: =L23/SUM($L$22:$L$29) -> 0.09479386097 | P23: =CntyDataLinkPrior5YearEstimates!$F$132 -> 965 | Q23: =CntyDataLinkPrior5YearEstimates!$G$132 -> 223.9084634 | R23: 0.14216264 | S23: =CntyDataLink!$F$132 -> 907 | T23: =CntyDataLink!$G$132 -> 234.5847395 | U23: 0.1304660529 | V23: -0.06010362694 | W23: =StatisticallySignificantCalcs!$A4 -> Y
B24: Percent Change | K24: 25 to 34 yrs. | L24: =CntyDataLinkPrior10YearEstimate!$H$132 -> 441 | N24: =CntyDataLinkPrior10YearEstimate!$I$132 -> 158.0822571 | O24: =L24/SUM($L$22:$L$29) -> 0.06635570268 | P24: =CntyDataLinkPrior5YearEstimates!$H$132 -> 425 | Q24: =CntyDataLinkPrior5YearEstimates!$I$132 -> 145.523194 | R24: 0.0626104891 | S24: =CntyDataLink!$H$132 -> 461 | T24: =CntyDataLink!$I$132 -> 148.9832205 | U24: 0.0663118527 | V24: 0.08470588235 | W24: =StatisticallySignificantCalcs!$A5 -> Y
D25: =C21&"-"&(D21-1900) -> 1980-90 | E25: 1990-2000 | F25: =E21&"-19" -> 2000-19 | G25: =2019&"-"&(G21) -> 2019-2025 | H25: =G21&"-"&(H21) -> 2025-2030 | K25: 35 to 44 yrs. | L25: =CntyDataLinkPrior10YearEstimate!$J$132 -> 956 | N25: =CntyDataLinkPrior10YearEstimate!$K$132 -> 159.9187294 | O25: 0.1438459224 | P25: =CntyDataLinkPrior5YearEstimates!$J$132 -> 728 | Q25: =CntyDataLinkPrior5YearEstimates!$K$132 -> 180.3247071 | R25: 0.1072480849 | S25: =CntyDataLink!$J$132 -> 620 | T25: =CntyDataLink!$K$132 -> 165.2361946 | U25: 0.08918296893 | V25: -0.1483516484 | W25: =StatisticallySignificantCalcs!$A6 -> Y
D26: =(D22-C22)/C22 -> 0.1798953832 | E26: =(E22-D22)/D22 -> 0.1908249807 | F26: =(F22-E22)/E22 -> 0.1252832632 | G26: =(G22-F22)/F22 -> 0.0584004603 | H26: =(H22-G22)/G22 -> 0.02419135635 | K26: 45 to 54 yrs. | L26: =CntyDataLinkPrior10YearEstimate!$L$132 -> 1254 | N26: =CntyDataLinkPrior10YearEstimate!$M$132 -> 210.4043726 | O26: 0.1886849233 | P26: =CntyDataLinkPrior5YearEstimates!$L$132 -> 1295 | Q26: =CntyDataLinkPrior5YearEstimates!$M$132 -> 214.7952513 | R26: 0.1907778433 | S26: =CntyDataLink!$L$132 -> 1356 | T26: =CntyDataLink!$M$132 -> 252.3866082 | U26: 0.1950517837 | V26: 0.0471042471 | W26: =StatisticallySignificantCalcs!$A7 -> Y
K27: 55 to 64 yrs. | L27: =CntyDataLinkPrior10YearEstimate!$N$132 -> 1099 | N27: =CntyDataLinkPrior10YearEstimate!$O$132 -> 166.5653025 | O27: 0.1653626241 | P27: =CntyDataLinkPrior5YearEstimates!$N$132 -> 1222 | Q27: =CntyDataLinkPrior5YearEstimates!$O$132 -> 231.3979257 | R27: 0.180023571 | S27: =CntyDataLink!$N$132 -> 1201 | T27: =CntyDataLink!$O$132 -> 227.659834 | U27: 0.1727560414 | V27: -0.01718494272 | W27: =StatisticallySignificantCalcs!$A8 -> Y
K28: 65 to 74 yrs. | L28: =CntyDataLinkPrior10YearEstimate!$P$132 -> 556 | N28: =CntyDataLinkPrior10YearEstimate!$Q$132 -> 138.7804021 | O28: 0.08365934397 | P28: =CntyDataLinkPrior5YearEstimates!$P$132 -> 622 | Q28: =CntyDataLinkPrior5YearEstimates!$Q$132 -> 156.1601742 | R28: 0.09163229228 | S28: =CntyDataLink!$P$132 -> 902 | T28: =CntyDataLink!$Q$132 -> 195 | U28: 0.1297468354 | V28: 0.4501607717 | W28: =StatisticallySignificantCalcs!$A9 -> Y
K29: Over 74 yrs. | L29: =CntyDataLinkPrior10YearEstimate!$R$132 -> 546 | N29: =CntyDataLinkPrior10YearEstimate!$S$132 -> 154.1265714 | O29: 0.08215467951 | P29: =CntyDataLinkPrior5YearEstimates!$R$132 -> 509 | Q29: =CntyDataLinkPrior5YearEstimates!$S$132 -> 171.7934807 | R29: 0.07498526812 | S29: =CntyDataLink!$R$132 -> 473 | T29: =CntyDataLink!$S$132 -> 132.5707358 | U29: 0.06803797468 | V29: -0.07072691552 | W29: =StatisticallySignificantCalcs!$A10 -> Y
K30: Median Age (years) | L30: =CntyDataLinkPrior10YearEstimate!$AX$132 -> 46.3 | N30: =CntyDataLinkPrior10YearEstimate!$AY$132 -> 1.9 | P30: =CntyDataLinkPrior5YearEstimates!$AX132 -> 47.2 | Q30: =CntyDataLinkPrior5YearEstimates!$AY$132 -> 2 | S30: =CntyDataLink!$AX$132 -> 48.6 | T30: =CntyDataLink!$AY$132 -> 2.9
B32: Population By Race | M32: Statistically Significant Change
M33: =IF(L36="","-",StatisticallySignificantCalcs!A20) -> N
C34: 2005-2009 | F34: 2010-2014 | I34: 2015-2019 | L34: Statistically Significant Change
C35: Estimate | D35: Margin of Error | F35: Estimate | G35: Margin of Error | I35: Estimate | J35: Margin of Error | L35: 2009-2019 | M35: 2014-2019
B36: White | C36: =CntyDataLinkPrior10YearEstimate!$AL$132 -> 6419 | D36: =CntyDataLinkPrior10YearEstimate!$AM$132 -> 171 | E36: =IF(C$36="-","-",VALUE(C36/$C$41)) -> 0.9658441168 | F36: =CntyDataLinkPrior5YearEstimates!$AL$132 -> 6553 | G36: =CntyDataLinkPrior5YearEstimates!$AM$132 -> 168 | H36: =IF(F$36="-","-",VALUE(F36/$F$41)) -> 0.9653800825 | I36: =CntyDataLink!$AL$132 -> 6627 | J36: =CntyDataLink!$AM$132 -> 190 | K36: =IF(I$36="-","-",VALUE(I36/$I$41)) -> 0.9532508631 | L36: =StatisticallySignificantCalcs!A20 -> N | M36: =StatisticallySignificantCalcs!J20 -> N
B37: Black | C37: =CntyDataLinkPrior10YearEstimate!$AN132 -> 84 | D37: =CntyDataLinkPrior10YearEstimate!$AO$132 -> 121 | E37: =IF(C$37="-","-",VALUE(C37/$C$41)) -> 0.01263918146 | F37: =CntyDataLinkPrior5YearEstimates!$AN132 -> 0 | G37: =CntyDataLinkPrior5YearEstimates!$AO$132 -> 15 | H37: =IF(F$37="-","-",VALUE(F37/$F$41)) -> 0 | I37: =CntyDataLink!$AN$132 -> 0 | J37: =CntyDataLink!$AO$132 -> 16 | K37: =IF(I$37="-","-",VALUE(I37/$I$41)) -> 0 | L37: =StatisticallySignificantCalcs!A21 -> N | M37: =StatisticallySignificantCalcs!J21 -> N
B38: American Indian | C38: =CntyDataLinkPrior10YearEstimate!$AP$132 -> 17 | D38: =CntyDataLinkPrior10YearEstimate!$AQ$132 -> 27 | E38: =IF(C$38="-","-",VALUE(C38/$C$41)) -> 0.002557929582 | F38: =CntyDataLinkPrior5YearEstimates!$AP$132 -> 0 | G38: =CntyDataLinkPrior5YearEstimates!$AQ$132 -> 15 | H38: =IF(F$38="-","-",VALUE(F38/$F$41)) -> 0 | I38: =CntyDataLink!$AP$132 -> 0 | J38: =CntyDataLink!$AQ$132 -> 16 | K38: =IF(I$38="-","-",VALUE(I38/$I$41)) -> 0 | L38: =StatisticallySignificantCalcs!A22 -> N | M38: =StatisticallySignificantCalcs!J22 -> N
B39: Asian &Pacific Is. | C39: =CntyDataLinkPrior10YearEstimate!$AR$132 -> 0 | D39: =CntyDataLinkPrior10YearEstimate!$AS$132 -> 161.2203461 | E39: =IF(C$39="-","-",VALUE(C39/$C$41)) -> 0 | F39: =CntyDataLinkPrior5YearEstimates!$AR$132 -> 0 | G39: =CntyDataLinkPrior5YearEstimates!$AS$132 -> 21.21320344 | H39: =IF(F$39="-","-",VALUE(F39/$F$41)) -> 0 | I39: =CntyDataLink!$AR$132 -> 110 | J39: =CntyDataLink!$AS$132 -> 91.41115906 | K39: =IF(I$39="-","-",VALUE(I39/$I$41)) -> 0.01582278481 | L39: =StatisticallySignificantCalcs!A23 -> N | M39: =StatisticallySignificantCalcs!J23 -> Y
B40: Other* | C40: =CntyDataLinkPrior10YearEstimate!$AT$132 -> 26 | D40: =CntyDataLinkPrior10YearEstimate!$AU$132 -> 118.6802427 | E40: =IF(C$40="-","-",VALUE(C40/$C$41)) -> 0.003912127596 | F40: =CntyDataLinkPrior5YearEstimates!$AT$132 -> 19 | G40: =CntyDataLinkPrior5YearEstimates!$AU$132 -> 26.62705391 | H40: =IF(F$40="-","-",VALUE(F40/$F$41)) -> 0.00279905716 | I40: =CntyDataLink!$AT$132 -> 70 | J40: =CntyDataLink!$AU$132 -> 80.60397013 | K40: =IF(I$40="-","-",VALUE(I40/$I$41)) -> 0.01006904488 | L40: =StatisticallySignificantCalcs!A24 -> N | M40: =StatisticallySignificantCalcs!J24 -> N
B41: Total Population | C41: =CntyDataLinkPrior10YearEstimate!$B$132 -> 6646 | D41: =CntyDataLinkPrior10YearEstimate!$C$132 -> 22 | F41: =CntyDataLinkPrior5YearEstimates!$B$132 -> 6788 | G41: =CntyDataLinkPrior5YearEstimates!$C$132 -> 19 | I41: =CntyDataLink!$B$132 -> 6952 | J41: =CntyDataLink!$C$132 -> 33
B42: Hispanic | C42: =CntyDataLinkPrior10YearEstimate!$AV$132 -> 100 | D42: =CntyDataLinkPrior10YearEstimate!$AW$132 -> 76 | E42: =IF(C$42="-","-",VALUE(C42/$C$41)) -> 0.0150466446 | F42: =CntyDataLinkPrior5YearEstimates!$AV132 -> 216 | G42: =CntyDataLinkPrior5YearEstimates!$AW$132 -> 171 | H42: =IF(F$42="-","-",VALUE(F42/$F$41)) -> 0.03182086034 | I42: =CntyDataLink!$AV$132 -> 145 | J42: =CntyDataLink!$AW$132 -> 107 | K42: =IF(I$42="-","-",VALUE(I42/$I$41)) -> 0.02085730725 | L42: =StatisticallySignificantCalcs!A26 -> N | M42: =StatisticallySignificantCalcs!J26 -> N
B44: * | C44: Other includes population of 2 or more races
B46: ="Source: "& L20&", "&P20&", and "&S20&" American Community Survey Table B03002" -> Source: 2005-2009, 2010-2014, and 2015-2019 American Community Survey Table B03002
C48: Households and Families
D49: 2005-2009 | G49: 2010-2014 | J49: 2015-2019 | N49: Percent Change 2009-2019 | P49: Percent Change 2010-2019
D50: Estimate | E50: Margin of Error | G50: Estimate | H50: Margin of Error | J50: Estimate | K50: Margin of Error
C51: Total Households | D51: =CntyDataLinkPrior10YearEstimate!$T$132 -> 2613 | E51: =CntyDataLinkPrior10YearEstimate!$U$132 -> 114 | G51: =CntyDataLinkPrior5YearEstimates!$T$132 -> 2597 | H51: =CntyDataLinkPrior5YearEstimates!$U$132 -> 115 | J51: =CntyDataLink!$T$132 -> 2745 | K51: =CntyDataLink!$U$132 -> 185 | N51: =(J51-D51)/D51 -> 0.05051664753 | P51: =(J51-G51)/G51 -> 0.05698883327
C52: Persons per Household | D52: =CntyDataLinkPrior10YearEstimate!$BD$132 -> 2.543436663 | E52: =CntyDataLinkPrior10YearEstimate!$BE$132 -> 0.11 | G52: =CntyDataLinkPrior5YearEstimates!$BD$132 -> 2.613400077 | H52: =CntyDataLinkPrior5YearEstimates!$BE$132 -> 0.12 | J52: =CntyDataLink!$BD$132 -> 2.532604736 | K52: =CntyDataLink!$BE$132 -> 0.17 | N52: -0.004258775976 | P52: -0.03091579504
C53: Family Households | D53: =CntyDataLinkPrior10YearEstimate!$V$132 -> 1927 | E53: =CntyDataLinkPrior10YearEstimate!$U$132 -> 114 | G53: =CntyDataLinkPrior5YearEstimates!$V$132 -> 2033 | H53: =CntyDataLinkPrior5YearEstimates!$U$132 -> 115 | J53: =CntyDataLink!$V$132 -> 1994 | K53: =CntyDataLink!$U$132 -> 185 | N53: 0.03476907109 | P53: -0.0191834727
C54: Persons per Family Household | D54: =CntyDataLinkPrior10YearEstimate!$BF$132 -> 3.048780488 | E54: =CntyDataLinkPrior10YearEstimate!$BG$132 -> 0.2297283143 | G54: =CntyDataLinkPrior5YearEstimates!$BF$132 -> 3.030988687 | H54: =CntyDataLinkPrior5YearEstimates!$BG$132 -> 0.1739381715 | J54: =CntyDataLink!$BF$132 -> 3.002006018 | K54: =CntyDataLink!$BG$132 -> 0.2686513607 | N54: -0.01534202608 | P54: -0.009562117055
C55: Married-Couple Family Hh | D55: =CntyDataLinkPrior10YearEstimate!$X$132 -> 1771 | E55: =CntyDataLinkPrior10YearEstimate!$Y$132 -> 145 | G55: =CntyDataLinkPrior5YearEstimates!$X$132 -> 1842 | H55: =CntyDataLinkPrior5YearEstimates!$Y$132 -> 137 | J55: =CntyDataLink!$X$132 -> 1781 | K55: =CntyDataLink!$Y$132 -> 164 | N55: 0.005646527386 | P55: -0.03311617807
C56: Single-Parent Family Hh | D56: =CntyDataLinkPrior10YearEstimate!$Z$132 -> 156 | E56: =CntyDataLinkPrior10YearEstimate!$AA$132 -> 71 | G56: =CntyDataLinkPrior5YearEstimates!$Z$132 -> 191 | H56: =CntyDataLinkPrior5YearEstimates!$AA$132 -> 94 | J56: =CntyDataLink!$Z$132 -> 213 | K56: =CntyDataLink!$AA$132 -> 101 | N56: 0.3653846154 | P56: 0.1151832461
C57: Non-Family Households* | D57: =CntyDataLinkPrior10YearEstimate!$AF$132 -> 686 | E57: =CntyDataLinkPrior10YearEstimate!$AG$132 -> 175 | G57: =CntyDataLinkPrior5YearEstimates!$AF$132 -> 564 | H57: =CntyDataLinkPrior5YearEstimates!$AG$132 -> 152 | J57: =CntyDataLink!$AF$132 -> 751 | K57: =CntyDataLink!$AG$132 -> 187 | N57: 0.09475218659 | P57: 0.3315602837
C58: Persons per Non-Family Hh | D58: =CntyDataLinkPrior10YearEstimate!$BH$132 -> 0 | E58: =CntyDataLinkPrior10YearEstimate!$BI$132 -> 0.166180758 | G58: =CntyDataLinkPrior5YearEstimates!$BH$132 -> 1.108156028 | H58: =CntyDataLinkPrior5YearEstimates!$BI$132 -> 0.4293853964 | J58: =CntyDataLink!$BH$132 -> 1.286284953 | K58: =CntyDataLink!$BI$132 -> 0.5151360741 | P58: 0.1607435419
B61: As a result of changes in the American Community Survey, direct comparisons between the data should be made with caution.
B63: Source: 2005-2009, 2010-2014, and 2015-2019 American Community Survey Table B11001
B64: POPULATION CHARACTERISTICS

Sheet SchoolEnrolEduAttain (hidden)
C2: =CntyDataLink!A50 -> Atkinson
C3: SOCIAL CHARACTERISTICS
C21: School Enrollment | F21: 2005-2009 | I21: 2010-2014 | L21: 2015-2019 | P21: Statistically Significant Change
F22: Estimate | G22: Margin of Error | H22: Percent of Population | I22: Estimate | J22: Margin of Error | K22: Percent of Population | L22: Estimate | M22: Margin of Error | N22: Percent of Population | P22: 2009-2019 | Q22: 2014-2019
C23: Population 3 years and over | F23: =CntyDataLinkPrior10YearEstimate!$B$140 -> 28402 | G23: =CntyDataLinkPrior10YearEstimate!$C$140 -> 261 | I23: =CntyDataLinkPrior5YearEstimates!$B$140 -> 28134 | J23: =CntyDataLinkPrior5YearEstimates!$C$140 -> 177 | L23: =CntyDataLink!$B$140 -> 6070 | M23: =CntyDataLink!$C$140 -> 120 | P23: =StatisticallySignificantCalcs!$A$45 -> Y | Q23: =StatisticallySignificantCalcs!$J$45 -> Y
C24: Population 3 years & over enrolled in school | F24: =CntyDataLinkPrior10YearEstimate!$D$140 -> 7744 | G24: =CntyDataLinkPrior10YearEstimate!$E$140 -> 440 | H24: =F24/$F$23 -> 0.2726568552 | I24: =CntyDataLinkPrior5YearEstimates!$D$140 -> 6951 | J24: =CntyDataLinkPrior5YearEstimates!$E$140 -> 418 | K24: =I24/$I$23 -> 0.247067605 | L24: =CntyDataLink!$D$140 -> 1357 | M24: =CntyDataLink!$E$140 -> 177 | N24: =L24/$L$23 -> 0.2235584843 | P24: =StatisticallySignificantCalcs!$A$46 -> Y | Q24: =StatisticallySignificantCalcs!$J$46 -> Y
C25: Preprimary (Nursery, Preschool, Kindergarten) | F25: =CntyDataLinkPrior10YearEstimate!$F$140 -> 799 | G25: =CntyDataLinkPrior10YearEstimate!$G$140 -> 161.9660458 | H25: 0.0281318217 | I25: =CntyDataLinkPrior5YearEstimates!$F$140 -> 664 | J25: =CntyDataLinkPrior5YearEstimates!$G$140 -> 160 | K25: =I25/$I$23 -> 0.02360133646 | L25: =CntyDataLink!$F$140 -> 117 | M25: =CntyDataLink!$G$140 -> 86.95401083 | N25: 0.01927512356 | P25: =StatisticallySignificantCalcs!$A$47 -> Y | Q25: =StatisticallySignificantCalcs!$J$47 -> Y
C26: Nursery school and Preschool | F26: =CntyDataLinkPrior10YearEstimate!$H$140 -> 418 | G26: =CntyDataLinkPrior10YearEstimate!$I$140 -> 117 | H26: 0.01471727343 | I26: =CntyDataLinkPrior5YearEstimates!$H$140 -> 409 | J26: =CntyDataLinkPrior5YearEstimates!$I$140 -> 128 | K26: 0.0145375702 | L26: =CntyDataLink!$H$140 -> 78 | M26: =CntyDataLink!$I$140 -> 75 | N26: 0.01285008237 | P26: =StatisticallySignificantCalcs!$A$48 -> Y | Q26: =StatisticallySignificantCalcs!$J$48 -> Y
C27: Kindergarten | F27: =CntyDataLinkPrior10YearEstimate!$J$140 -> 381 | G27: =CntyDataLinkPrior10YearEstimate!$K$140 -> 112 | H27: 0.01341454827 | I27: =CntyDataLinkPrior5YearEstimates!$J$140 -> 255 | J27: =CntyDataLinkPrior5YearEstimates!$K$140 -> 96 | K27: 0.009063766261 | L27: =CntyDataLink!$J$140 -> 39 | M27: =CntyDataLink!$K$140 -> 44 | N27: 0.006425041186 | P27: =StatisticallySignificantCalcs!$A$49 -> Y | Q27: =StatisticallySignificantCalcs!$J$49 -> Y
C28: Elementary through High school | F28: =CntyDataLinkPrior10YearEstimate!$P$140 -> 5221 | G28: =CntyDataLinkPrior10YearEstimate!$Q$140 -> 450.9512169 | H28: 0.1838250827 | I28: =CntyDataLinkPrior5YearEstimates!$P$140 -> 4367 | J28: =CntyDataLinkPrior5YearEstimates!$Q$140 -> 448.0825817 | K28: 0.1552214403 | L28: =CntyDataLink!$P$140 -> 1025 | M28: =CntyDataLink!$Q$140 -> 261.4574535 | N28: 0.1688632619 | P28: =StatisticallySignificantCalcs!$A$50 -> Y | Q28: =StatisticallySignificantCalcs!$J$50 -> Y
C29: Elementary school (grades 1-8) | F29: =CntyDataLinkPrior10YearEstimate!$L$140 -> 3237 | G29: =CntyDataLinkPrior10YearEstimate!$M$140 -> 351.0954286 | H29: 0.1139708471 | I29: =CntyDataLinkPrior5YearEstimates!$L$140 -> 2786 | J29: =CntyDataLinkPrior5YearEstimates!$M$140 -> 383.3457969 | K29: 0.09902608943 | L29: =CntyDataLink!$L$140 -> 622 | M29: =CntyDataLink!$M$140 -> 229.0938672 | N29: 0.1024711697 | P29: =StatisticallySignificantCalcs!$A$51 -> Y | Q29: =StatisticallySignificantCalcs!$J$51 -> Y
C30: High school (grades 9-12) | F30: =CntyDataLinkPrior10YearEstimate!$N$140 -> 1984 | G30: =CntyDataLinkPrior10YearEstimate!$O$140 -> 283 | H30: 0.06985423562 | I30: =CntyDataLinkPrior5YearEstimates!$N$140 -> 1581 | J30: =CntyDataLinkPrior5YearEstimates!$O$140 -> 232 | K30: 0.05619535082 | L30: =CntyDataLink!$N$140 -> 403 | M30: =CntyDataLink!$O$140 -> 126 | N30: 0.06639209226 | P30: =StatisticallySignificantCalcs!$A$52 -> Y | Q30: =StatisticallySignificantCalcs!$J$52 -> Y
C31: College or Graduate School | F31: =CntyDataLinkPrior10YearEstimate!$R$140 -> 1724 | G31: =CntyDataLinkPrior10YearEstimate!$S$140 -> 271.9356542 | H31: 0.06069995071 | I31: =CntyDataLinkPrior5YearEstimates!$R$140 -> 1920 | J31: =CntyDataLinkPrior5YearEstimates!$S$140 -> 307.353217 | K31: 0.06824482832 | L31: =CntyDataLink!$R$140 -> 215 | M31: =CntyDataLink!$S$140 -> 103.247276 | N31: 0.03542009885 | P31: =StatisticallySignificantCalcs!$A$53 -> Y | Q31: =StatisticallySignificantCalcs!$J$53 -> Y
C33: ="Source: "&F21&", "& I21&" and "&L21&" American Community Survey Table B14001" -> Source: 2005-2009, 2010-2014 and 2015-2019 American Community Survey Table B14001
C50: Educational Attainment | F50: 2005-2009 | I50: 2010-2014 | L50: 2015.-2019 | P50: Statistically Significant Change
F51: Estimate | G51: Margin of Error | H51: Percent of Population | I51: Estimate | J51: Margin of Error | K51: Percent of Population | L51: Estimate | M51: Margin of Error | N51: Percent of Population | P51: 2009-2019 | Q51: 2014-2019
C52: Population 25 years and over | F52: =CntyDataLinkPrior10YearEstimate!$V$140 -> 20080 | G52: =CntyDataLinkPrior10YearEstimate!$W$140 -> 403 | I52: =CntyDataLinkPrior5YearEstimates!$V$140 -> 514 | J52: =CntyDataLinkPrior5YearEstimates!$W$140 -> 171.9389427 | L52: =CntyDataLink!$V$140 -> 4338 | M52: =CntyDataLink!$W$140 -> 161 | P52: =StatisticallySignificantCalcs!A54 -> Y | Q52: =StatisticallySignificantCalcs!$J$54 -> Y
C53: Less than 9th Grade | F53: =CntyDataLinkPrior10YearEstimate!$X$140 -> 484 | G53: =CntyDataLinkPrior10YearEstimate!$Y$140 -> 130.1422299 | H53: =F53/$F$52 -> 0.02410358566 | I53: =CntyDataLinkPrior5YearEstimates!$X$140 -> 989 | J53: =CntyDataLinkPrior5YearEstimates!$Y$140 -> 202.9679778 | K53: =I53/$I$52 -> 1.924124514 | L53: =CntyDataLink!$X$140 -> 0 | M53: =CntyDataLink!$Y$140 -> 39.19183588 | N53: =L53/$L$52 -> 0 | P53: =StatisticallySignificantCalcs!A55 -> Y | Q53: =StatisticallySignificantCalcs!$J$55 -> Y
C54: 9th to 12th Grade, no Diploma | F54: =CntyDataLinkPrior10YearEstimate!$Z$140 -> 1488 | G54: =CntyDataLinkPrior10YearEstimate!$AA$140 -> 302.0347662 | H54: =F54/$F$52 -> 0.07410358566 | I54: =CntyDataLinkPrior5YearEstimates!$Z$140 -> 6701 | J54: =CntyDataLinkPrior5YearEstimates!$AA$140 -> 482.5971405 | K54: 13.03696498 | L54: =CntyDataLink!$Z$140 -> 285 | M54: =CntyDataLink!$AA$140 -> 139.0863041 | N54: 0.06569847856 | P54: =StatisticallySignificantCalcs!A56 -> Y | Q54: =StatisticallySignificantCalcs!$J$56 -> Y
C55: High School Graduate | F55: =CntyDataLinkPrior10YearEstimate!$AB$140 -> 6309 | G55: =CntyDataLinkPrior10YearEstimate!$AC$140 -> 491.808906 | H55: 0.3141932271 | I55: =CntyDataLinkPrior5YearEstimates!$AB$140 -> 3939 | J55: =CntyDataLinkPrior5YearEstimates!$AC$140 -> 406.4431079 | K55: 7.663424125 | L55: =CntyDataLink!$AB$140 -> 1194 | M55: =CntyDataLink!$AC$140 -> 238.8493249 | N55: 0.275242047 | P55: =StatisticallySignificantCalcs!A57 -> Y | Q55: =StatisticallySignificantCalcs!$J$57 -> Y
C56: Some College, No Degree | F56: =CntyDataLinkPrior10YearEstimate!$AD$140 -> 3733 | G56: =CntyDataLinkPrior10YearEstimate!$AE$140 -> 392.1504813 | H56: 0.1859063745 | I56: =CntyDataLinkPrior5YearEstimates!$AD$140 -> 1818 | J56: =CntyDataLinkPrior5YearEstimates!$AE$140 -> 221.144749 | K56: 3.536964981 | L56: =CntyDataLink!$AD$140 -> 1018 | M56: =CntyDataLink!$AE$140 -> 215.1999071 | N56: 0.234670355 | P56: =StatisticallySignificantCalcs!A58 -> Y | Q56: =StatisticallySignificantCalcs!$J$58 -> Y
C57: Associate Degree | F57: =CntyDataLinkPrior10YearEstimate!$AF$140 -> 2267 | G57: =CntyDataLinkPrior10YearEstimate!$AG$140 -> 283.8045102 | H57: 0.1128984064 | I57: =CntyDataLinkPrior5YearEstimates!$AF$140 -> 4558 | J57: =CntyDataLinkPrior5YearEstimates!$AG$140 -> 448.2644309 | K57: 8.86770428 | L57: =CntyDataLink!$AF$140 -> 552 | M57: =CntyDataLink!$AG$140 -> 179.0111728 | N57: 0.1272475795 | P57: =StatisticallySignificantCalcs!A59 -> Y | Q57: =StatisticallySignificantCalcs!$J$59 -> Y
C58: Bachelor's Degree | F58: =CntyDataLinkPrior10YearEstimate!$AH$140 -> 3686 | G58: =CntyDataLinkPrior10YearEstimate!$AI$140 -> 376.94164 | H58: 0.1835657371 | I58: =CntyDataLinkPrior5YearEstimates!$AH$140 -> 1791 | J58: =CntyDataLinkPrior5YearEstimates!$AI$140 -> 275.1999273 | K58: 3.484435798 | L58: =CntyDataLink!$AH$140 -> 816 | M58: =CntyDataLink!$AI$140 -> 197.0609043 | N58: 0.1881051176 | P58: =StatisticallySignificantCalcs!A60 -> Y | Q58: =StatisticallySignificantCalcs!$J$60 -> Y
C59: Graduate or Professional Degree | F59: =CntyDataLinkPrior10YearEstimate!$AJ$140 -> 1145 | G59: =CntyDataLinkPrior10YearEstimate!$AK$140 -> 250.593296 | H59: 0.05702191235 | I59: =CntyDataLinkPrior5YearEstimates!$AJ$140 -> 952 | J59: =CntyDataLinkPrior5YearEstimates!$AK$140 -> 223.2106628 | K59: 1.852140078 | L59: =CntyDataLink!$AJ$140 -> 473 | M59: =CntyDataLink!$AK$140 -> 163.8841054 | N59: 0.1090364223 | P59: =StatisticallySignificantCalcs!A61 -> Y | Q59: =StatisticallySignificantCalcs!$J$61 -> Y
C61: Percent of High School Graduate or Higher | H61: =SUM(F55:F59)/F52 -> 0.8535856574 | K61: =SUM(I55:I59)/I52 -> 25.40466926 | N61: =SUM(L55:L59)/L52 -> 0.9343015214
C62: Percent of Bachelor's Degree or Higher | H62: =SUM(F58:F59)/F52 -> 0.2405876494 | K62: =SUM(I58:I59)/I52 -> 5.336575875 | N62: =SUM(L58:L59)/L52 -> 0.2971415399
C64: ="Source: "&F21&", "&I21&" and "&L21&" American Community Survey Table B15002" -> Source: 2005-2009, 2010-2014 and 2015-2019 American Community Survey Table B15002 | H64: Data from the American Community Survey are estimates
C66: As a result of changes in the American Community Survey, direct comparisons between the data should be made with caution.
C67: be made with caution.

Sheet HousingCharacteristics (hidden)
B2: =CntyDataLink!$A35 -> Atkinson
B4: HOUSING CHARACTERISTICS
D27: ="Source: "& " "&D69&", "&G69&" and "&J69& " American Community Survey Table B25024; B25032" -> Source: 2005-2009, 2010-2014 and 2015-2019 American Community Survey Table B25024; B25032
B28: Units by Tenure & Vacancy
C30: 2005-2009 | F30: 2010-2014 | I30: 2015-2019 | L30: Percent Change | O30: Statistically Significant Change
C31: Estimate | D31: Margin of Error | E31: % | F31: Estimate | G31: Margin of Error | H31: % | I31: Estimate | J31: Margin of Error | K31: % | L31: 2009-2019 | M31: 2014-2019 | O31: 2009-2019 | P31: 2014-2019
B32: Total Units | C32: =CntyDataLinkPrior10YearEstimate!$B$108 -> 2701 | D32: =CntyDataLinkPrior5YearEstimates!$C$108 -> 133 | F32: =CntyDataLinkPrior5YearEstimates!$B$108 -> 2738 | G32: =CntyDataLinkPrior5YearEstimates!$C$108 -> 133 | I32: =CntyDataLink!$B$108 -> 2899 | J32: =CntyDataLink!$C$108 -> 199 | L32: =IF(I32="-","-",(I32-C32)/C32) -> 0.0733061829 | M32: =IF(I32="-","-",(I32-F32)/F32) -> 0.05880204529 | O32: =StatisticallySignificantCalcs!$A62 -> N | P32: =StatisticallySignificantCalcs!$J62 -> N
B33: Occupied Units | C33: =CntyDataLinkPrior10YearEstimate!$D$108 -> 2613 | D33: =CntyDataLinkPrior5YearEstimates!$E$108 -> 115 | E33: =ROUND(C33/C32,2)*100&"% of Total" -> 97% of Total | F33: =CntyDataLinkPrior5YearEstimates!$D$108 -> 2597 | G33: =CntyDataLinkPrior5YearEstimates!$E$108 -> 115 | H33: =ROUND(F33/F32,2)*100&"% of Total" -> 95% of Total | I33: =CntyDataLink!$D$108 -> 2745 | J33: =CntyDataLink!$E$108 -> 185 | K33: =ROUND(I33/I32,2)*100&"% of Total" -> 95% of Total | L33: =IF(I33="-","-",(I33-C33)/C33) -> 0.05051664753 | M33: 0.05698883327 | O33: =StatisticallySignificantCalcs!$A63 -> N | P33: =StatisticallySignificantCalcs!$J63 -> N
B34: Owner Occupied | C34: =CntyDataLinkPrior10YearEstimate!$F$108 -> 2211 | D34: =CntyDataLinkPrior5YearEstimates!$G$108 -> 123 | E34: =ROUND(C34/C33,2)*100&"% of Occ." -> 85% of Occ. | F34: =CntyDataLinkPrior5YearEstimates!$F$108 -> 2395 | G34: =CntyDataLinkPrior5YearEstimates!$G$108 -> 123 | H34: =ROUND(F34/F33,2)*100&"% of Occ." -> 92% of Occ. | I34: =CntyDataLink!$F$108 -> 2551 | J34: =CntyDataLink!$G$108 -> 169 | K34: =ROUND(I34/I33,2)*100&"% of Occ." -> 93% of Occ. | L34: =IF(I34="-","-",(I34-C34)/C34) -> 0.1537765717 | M34: 0.06513569937 | O34: =StatisticallySignificantCalcs!$A64 -> Y | P34: =StatisticallySignificantCalcs!$J64 -> N
B35: Renter Occupied | C35: =CntyDataLinkPrior10YearEstimate!$H$108 -> 402 | D35: =CntyDataLinkPrior5YearEstimates!$I$108 -> 108 | E35: =ROUND(C35/C33,2)*100&"% of Occ." -> 15% of Occ. | F35: =CntyDataLinkPrior5YearEstimates!$H$108 -> 202 | G35: =CntyDataLinkPrior5YearEstimates!$I$108 -> 108 | H35: =ROUND(F35/F33,2)*100&"% of Occ." -> 8% of Occ. | I35: =CntyDataLink!$H$108 -> 194 | J35: =CntyDataLink!$I$108 -> 106 | K35: =ROUND(I35/I33,2)*100&"% of Occ." -> 7% of Occ. | L35: =IF(I35="-","-",(I35-C35)/C35) -> -0.5174129353 | M35: -0.0396039604 | O35: =StatisticallySignificantCalcs!$A65 -> Y | P35: =StatisticallySignificantCalcs!$J65 -> N
B36: Vacant Units | C36: =CntyDataLinkPrior10YearEstimate!$J$108 -> 88 | D36: =CntyDataLinkPrior5YearEstimates!$K$108 -> 89 | E36: =ROUND(C36/C32,2)*100&"% of Total" -> 3% of Total | F36: =CntyDataLinkPrior5YearEstimates!$J$108 -> 141 | G36: =CntyDataLinkPrior5YearEstimates!$K$108 -> 89 | H36: =ROUND(F36/F32,2)*100&"% of Total" -> 5% of Total | I36: =CntyDataLink!$J$108 -> 154 | J36: =CntyDataLink!$K$108 -> 101 | K36: =ROUND(I36/I32,2)*100&"% of Total" -> 5% of Total | L36: =IF(I36="-",I36,VALUE((I36-C36)/C36)) -> 0.75 | M36: 0.09219858156 | O36: =StatisticallySignificantCalcs!$A66 -> N | P36: =StatisticallySignificantCalcs!$J66 -> N
B37: Vacant For Sale | C37: =CntyDataLinkPrior10YearEstimate!$P$108 -> 47 | D37: =CntyDataLinkPrior5YearEstimates!$Q$108 -> 44 | E37: =ROUND(C37/(C34+C37),3)*100&"% Vac." -> 2.1% Vac. | F37: =CntyDataLinkPrior5YearEstimates!$P$108 -> 39 | G37: =CntyDataLinkPrior5YearEstimates!$Q$108 -> 44 | H37: =ROUND(F37/(F34+F37),3)*100&"% Vac." -> 1.6% Vac. | I37: =CntyDataLink!$P$108 -> 0 | J37: =CntyDataLink!$Q$108 -> 16 | K37: =ROUND(I37/(I34+I37),3)*100&"% Vac." -> 0% Vac. | L37: =IF(I37="-",I37,VALUE((I37-C37)/C37)) -> -1 | M37: -1 | O37: =StatisticallySignificantCalcs!$A67 -> Y | P37: =StatisticallySignificantCalcs!$J67 -> N
B38: Vacant For Rent | C38: =CntyDataLinkPrior10YearEstimate!$L$108 -> 15 | D38: =CntyDataLinkPrior5YearEstimates!$M$108 -> 15 | E38: =ROUND(C38/(C35+C38),3)*100&"% Vac." -> 3.6% Vac. | F38: =CntyDataLinkPrior5YearEstimates!$L$108 -> 0 | G38: =CntyDataLinkPrior5YearEstimates!$M$108 -> 15 | H38: =ROUND(F38/(F35+F38),3)*100&"% Vac." -> 0% Vac. | I38: =CntyDataLink!$L$108 -> 0 | J38: =CntyDataLink!$M$108 -> 16 | K38: =ROUND(I38/(I35+I38),3)*100&"% Vac." -> 0% Vac. | L38: =IF(I38="-",I38,VALUE((I38-C38)/C38)) -> -1 | O38: =StatisticallySignificantCalcs!$A68 -> N | P38: =StatisticallySignificantCalcs!$J68 -> N
B39: Vacant Seasonal | C39: =CntyDataLinkPrior10YearEstimate!$T$108 -> 26 | D39: =CntyDataLinkPrior5YearEstimates!$U$108 -> 61 | E39: =ROUND(C39/C32,2)*100&"% of Total" -> 1% of Total | F39: =CntyDataLinkPrior5YearEstimates!$T$108 -> 39 | G39: =CntyDataLinkPrior5YearEstimates!$U$108 -> 61 | H39: =ROUND(F39/F32,2)*100&"% of Total" -> 1% of Total | I39: =CntyDataLink!$T$108 -> 78 | J39: =CntyDataLink!$U$108 -> 73 | K39: =ROUND(I39/I32,2)*100&"% of Total" -> 3% of Total | L39: =IF(I39="-",I39,VALUE((I39-C39)/C39)) -> 2 | M39: 1 | O39: =StatisticallySignificantCalcs!$A69 -> N | P39: =StatisticallySignificantCalcs!$J69 -> N
B41: Data from the American Community Survey are estimates
B44: HOUSING CHARACTERISTICS
D65: ="Source: "& " "&D69&", "&G69&" and "&J69& " American Community Survey Table B25024; B25032" -> Source: 2005-2009, 2010-2014 and 2015-2019 American Community Survey Table B25024; B25032
C67: Units by Type
D69: 2005-2009 | G69: 2010-2014 | J69: 2015-2019 | M69: Percent Change | O69: Statistically Significant Change
D70: Estimate | E70: Margin of Error | F70: % of Total | G70: Estimate | H70: Margin of Error | I70: % of Total | J70: Estimate | K70: Margin of Error | L70: % of Total | M70: 2009-2019 | N70: 2014-2019 | O70: 2009-2019 | P70: 2014-2019
C71: Total Units | D71: =CntyDataLinkPrior10YearEstimate!$B$108 -> 2701 | E71: =CntyDataLinkPrior10YearEstimate!$C$108 -> 107 | G71: =CntyDataLinkPrior5YearEstimates!$B$108 -> 2738 | H71: =CntyDataLinkPrior5YearEstimates!$C$108 -> 133 | J71: =CntyDataLink!$B$108 -> 2899 | K71: =CntyDataLink!$C$108 -> 199 | O71: =StatisticallySignificantCalcs!$A70 -> N | P71: =StatisticallySignificantCalcs!$J70 -> N
C72: Single Family Units | D72: =CntyDataLinkPrior10YearEstimate!$AT$108 -> 1824 | E72: =CntyDataLinkPrior10YearEstimate!$AU$108 -> 156 | F72: =IF(D72="-","-",($D$72/$D$71)) -> 0.6753054424 | G72: =CntyDataLinkPrior5YearEstimates!$AT$108 -> 1960 | H72: =CntyDataLinkPrior5YearEstimates!$AU$108 -> 168 | I72: =IF(G72="-","-",($G$72/$G$71)) -> 0.7158509861 | J72: =CntyDataLink!$AT$108 -> 2259 | K72: =CntyDataLink!$AU$108 -> 187 | L72: =IF(J72="-","-",($J$72/$J$71)) -> 0.7792342187 | M72: =IF(J72="-","-",($J72-$D72)/$D72) -> 0.2384868421 | N72: =IF(J72="-","-",($J72-$G72)/$G72) -> 0.1525510204 | O72: =StatisticallySignificantCalcs!$A71 -> Y | P72: =StatisticallySignificantCalcs!$J71 -> Y
C73: SF Owner Occ. | D73: =CntyDataLinkPrior10YearEstimate!$AF$108 -> 1679 | E73: =CntyDataLinkPrior10YearEstimate!$AG$108 -> 136 | G73: =CntyDataLinkPrior5YearEstimates!$AF$108 -> 1861 | H73: =CntyDataLinkPrior5YearEstimates!$AG$108 -> 161 | J73: =CntyDataLink!$AF$108 -> 2087 | K73: =CntyDataLink!$AG$108 -> 162 | O73: =StatisticallySignificantCalcs!$A72 -> Y | P73: =StatisticallySignificantCalcs!$J72 -> N
C74: SF Renter Occ. | D74: =CntyDataLinkPrior10YearEstimate!$AN$108 -> 72 | E74: =CntyDataLinkPrior10YearEstimate!$AO$108 -> 65 | G74: =CntyDataLinkPrior5YearEstimates!$AN$108 -> 33 | H74: =CntyDataLinkPrior5YearEstimates!$AO$108 -> 36 | J74: =CntyDataLink!$AN$108 -> 18 | K74: =CntyDataLink!$AO$108 -> 29 | O74: =StatisticallySignificantCalcs!$A73 -> N | P74: =StatisticallySignificantCalcs!$J73 -> N
C75: Multi-family Units | D75: =CntyDataLinkPrior10YearEstimate!$AV$108 -> 877 | E75: =CntyDataLinkPrior10YearEstimate!$AW$108 -> 247.117381 | F75: =IF(D75="-","-",$D$75/$D$71) -> 0.3246945576 | G75: =CntyDataLinkPrior5YearEstimates!$AV$108 -> 778 | H75: =CntyDataLinkPrior5YearEstimates!$AW$108 -> 208.3194662 | I75: =IF(G75="-","-",$G$75/$G$71) -> 0.2841490139 | J75: =CntyDataLink!$AV$108 -> 640 | K75: =CntyDataLink!$AW$108 -> 184.596858 | L75: =IF(J75="-","-",$J$75/$J$71) -> 0.2207657813 | M75: =IF(J75="-","-",($J75-$D75)/$D75) -> -0.2702394527 | N75: =IF(J75="-","-",($J75-$G75)/$G75) -> -0.177377892 | O75: =StatisticallySignificantCalcs!$A74 -> N | P75: =StatisticallySignificantCalcs!$J74 -> N
C76: MF Owner Occ. | D76: =CntyDataLinkPrior10YearEstimate!$AH$108 -> 532 | E76: =CntyDataLinkPrior10YearEstimate!$AI$108 -> 254.7351566 | G76: =CntyDataLinkPrior5YearEstimates!$AH$108 -> 534 | H76: =CntyDataLinkPrior5YearEstimates!$AI$108 -> 166.5082581 | J76: =CntyDataLink!$AH$108 -> 464 | K76: =CntyDataLink!$AI$108 -> 124.5552086 | O76: =StatisticallySignificantCalcs!$A75 -> N | P76: =StatisticallySignificantCalcs!$J75 -> N
C77: MF Renter Occ. | D77: =CntyDataLinkPrior10YearEstimate!$AP$108 -> 330 | E77: =CntyDataLinkPrior10YearEstimate!$AQ$108 -> 271.7940397 | G77: =CntyDataLinkPrior5YearEstimates!$AP$108 -> 169 | H77: =CntyDataLinkPrior5YearEstimates!$AQ$108 -> 106.8129206 | J77: =CntyDataLink!$AP$108 -> 176 | K77: =CntyDataLink!$AQ$108 -> 130.1038047 | O77: =StatisticallySignificantCalcs!$A76 -> N | P77: =StatisticallySignificantCalcs!$J76 -> N
C78: Mobile Home & Other | D78: =CntyDataLinkPrior10YearEstimate!$AX$108 -> 0 | E78: =CntyDataLinkPrior10YearEstimate!$AY$108 -> 161.2203461 | F78: =IF(D78="-","-",($D$78/$D$71)) -> 0 | G78: =CntyDataLinkPrior5YearEstimates!$AX$108 -> 0 | H78: =CntyDataLinkPrior5YearEstimates!$AY$108 -> 21.21320344 | I78: =IF(G78="-","-",($G$78/$G$71)) -> 0 | J78: =CntyDataLink!$AX$108 -> 0 | K78: =CntyDataLink!$AY$108 -> 22.627417 | L78: =IF(J78="-","-",($J$78/$J$71)) -> 0 | M78: =IF(J78="-","-",($J78-$D78)/$D78) ->  | N78: =IF(J78="-","-",($J78-$G78)/$G78) ->  | O78: =StatisticallySignificantCalcs!$A77 -> N | P78: =StatisticallySignificantCalcs!$J77 -> N
B80: Data from the American Community Survey are estimates
B83: Units by Number of Bedrooms
D84: ="Source: "& " "&D69&", "&G69&" and "&J69& " American Community Survey Table B25041" -> Source: 2005-2009, 2010-2014 and 2015-2019 American Community Survey Table B25041
C86: 2005-2009 | G86: 2010-2014 | K86: 2015-2019 | O86: Statistically Significant Change
B87: Bedrooms | C87: Estimate | D87: Margin of Error | E87: % of Total | G87: Estimate | H87: Margin of Error | I87: % of Total | K87: Estimate | L87: Margin of Error | M87: % of Total | O87: 2009-2019 | P87: 2014-2019
B88: No Bedrooms | C88: =CntyDataLinkPrior10YearEstimate!$BR$108 -> 34 | D88: =CntyDataLinkPrior10YearEstimate!$BS$108 -> 41 | E88: =C88/SUM($C$88:$C$92) -> 0.0125879304 | G88: =CntyDataLinkPrior5YearEstimates!$BR$108 -> 77 | H88: =CntyDataLinkPrior5YearEstimates!$BS$108 -> 93 | I88: =G88/SUM($G$88:$G$92) -> 0.02812271731 | K88: =CntyDataLink!$BT$108 -> 40 | L88: =CntyDataLink!$BU$108 -> 39 | M88: =K88/SUM($K$88:$K$92) -> 0.01379786133 | O88: =StatisticallySignificantCalcs!$A78 -> N | P88: =StatisticallySignificantCalcs!$J78 -> N
B89: 1 Bedroom | C89: =CntyDataLinkPrior10YearEstimate!$BT$108 -> 336 | D89: =CntyDataLinkPrior10YearEstimate!$BU$108 -> 110 | E89: =C89/SUM($C$88:$C$92) -> 0.124398371 | G89: =CntyDataLinkPrior5YearEstimates!$BT$108 -> 196 | H89: =CntyDataLinkPrior5YearEstimates!$BU$108 -> 83 | I89: =G89/SUM($G$88:$G$92) -> 0.07158509861 | K89: =CntyDataLink!$BV$108 -> 136 | L89: =CntyDataLink!$BW$108 -> 80 | M89: =K89/SUM($K$88:$K$92) -> 0.04691272853 | O89: =StatisticallySignificantCalcs!$A79 -> N | P89: =StatisticallySignificantCalcs!$J79 -> N
B90: 2 Bedrooms | C90: =CntyDataLinkPrior10YearEstimate!$BV$108 -> 624 | D90: =CntyDataLinkPrior10YearEstimate!$BW$108 -> 118 | E90: =C90/SUM($C$88:$C$92) -> 0.2310255461 | G90: =CntyDataLinkPrior5YearEstimates!$BV$108 -> 818 | H90: =CntyDataLinkPrior5YearEstimates!$BW$108 -> 187 | I90: =G90/SUM($G$88:$G$92) -> 0.2987582177 | K90: =CntyDataLink!$BX$108 -> 529 | L90: =CntyDataLink!$BY$108 -> 140 | M90: =K90/SUM($K$88:$K$92) -> 0.1824767161 | O90: =StatisticallySignificantCalcs!$A80 -> Y | P90: =StatisticallySignificantCalcs!$J80 -> Y
B91: 3 Bedrooms | C91: =CntyDataLinkPrior10YearEstimate!$BX$108 -> 984 | D91: =CntyDataLinkPrior10YearEstimate!$BY$108 -> 153 | E91: =C91/SUM($C$88:$C$92) -> 0.364309515 | G91: =CntyDataLinkPrior5YearEstimates!$BX$108 -> 1045 | H91: =CntyDataLinkPrior5YearEstimates!$BY$108 -> 178 | I91: =G91/SUM($G$88:$G$92) -> 0.3816654492 | K91: =CntyDataLink!$BZ$108 -> 1352 | L91: =CntyDataLink!$CA$108 -> 223 | M91: =K91/SUM($K$88:$K$92) -> 0.466367713 | O91: =StatisticallySignificantCalcs!$A81 -> Y | P91: =StatisticallySignificantCalcs!$J81 -> Y
B92: 4+ Bedrooms | C92: =CntyDataLinkPrior10YearEstimate!$BZ$108 -> 723 | D92: =CntyDataLinkPrior10YearEstimate!$CA$108 -> 165.0121208 | E92: =C92/SUM($C$88:$C$92) -> 0.2676786375 | G92: =CntyDataLinkPrior5YearEstimates!$BZ$108 -> 602 | H92: =CntyDataLinkPrior5YearEstimates!$CA$108 -> 161.0589954 | I92: =G92/SUM($G$88:$G$92) -> 0.2198685172 | K92: =CntyDataLink!$CB$108 -> 842 | L92: =CntyDataLink!$CC$108 -> 203.3937069 | M92: =K92/SUM($K$88:$K$92) -> 0.290444981 | O92: =StatisticallySignificantCalcs!$A82 -> Y | P92: =StatisticallySignificantCalcs!$J82 -> N
B94: As a result of changes in the American Community Survey, direct comparisons between the 2009-2013 and 2015-2019 data should be made with caution.
B95: Data from the American Community Survey are estimates
B97: Units by Year Built
B98: ="Source: "&K86& " American Community Survey Table B25034" -> Source: 2015-2019 American Community Survey Table B25034
D100: Year Built | G100: Units | I100: % of Total | K100: Margin of Error
F101: 2014 or later | G101: =CntyDataLink!$AZ$108 -> 81 | I101: =G101/SUM($G$101:$G$110) -> 0.0279406692 | K101: =CntyDataLink!$BA$108 -> 66
F102: 2010 through 2013 | G102: =CntyDataLink!$BB$108 -> 37 | I102: 0.01276302173 | K102: =CntyDataLink!$BC$108 -> 41
F103: 2000 through 2009 | G103: =CntyDataLink!$BD$108 -> 335 | I103: 0.1155570887 | K103: =CntyDataLink!$BE$108 -> 112
F104: 1990 through 1999 | G104: =CntyDataLink!$BF$108 -> 521 | I104: 0.1797171438 | K104: =CntyDataLink!$BG$108 -> 177
F105: 1980 through 1989 | G105: =CntyDataLink!$BH$108 -> 536 | I105: 0.1848913418 | K105: =CntyDataLink!$BI$108 -> 137
F106: 1970 through 1979 | G106: =CntyDataLink!$BJ$108 -> 571 | I106: 0.1969644705 | K106: =CntyDataLink!$BK$108 -> 165
F107: 1960 through 1969 | G107: =CntyDataLink!$BL$108 -> 432 | I107: 0.1490169024 | K107: =CntyDataLink!$BM$108 -> 128
F108: 1950 through 1959 | G108: =CntyDataLink!$BN$108 -> 167 | I108: 0.05760607106 | K108: =CntyDataLink!$BO$108 -> 113
F109: 1940 through 1949 | G109: =CntyDataLink!$BP$108 -> 18 | I109: 0.006209037599 | K109: =CntyDataLink!$BQ$108 -> 28
F110: 1939 and earlier | G110: =CntyDataLink!$BR$108 -> 201 | I110: 0.06933425319 | K110: =CntyDataLink!$BS$108 -> 104
B112: Data from the American Community Survey are estimates

Sheet CntyDataLink (hidden)
A1: 1 | B1: =A1+1 -> 2 | C1: =B1+1 -> 3 | D1: 4 | E1: 5 | F1: 6 | G1: 7 | H1: 8 | I1: 9 | J1: 10 | K1: 11 | L1: 12 | M1: 13 | N1: 14 | O1: 15 | P1: =O1+1 -> 16 | Q1: 17 | R1: 18 | S1: 19 | T1: 20 | U1: 21 | V1: 22 | W1: 23 | X1: 24 | Y1: 25 | Z1: 26 | AA1: 27 | AB1: 28 | AC1: 29 | AD1: 30 | AE1: 31 | AF1: 32 | AG1: 33 | AH1: 34 | AI1: 35 | AJ1: 36 | AK1: 37 | AL1: 38 | AM1: 39 | AN1: 40 | AO1: 41 | AP1: 42 | AQ1: 43 | AR1: 44 | AS1: 45 | AT1: 46 | AU1: 47 | AV1: 48 | AW1: 49 | AX1: 50 | AY1: 51 | AZ1: 52 | BA1: 53 | BB1: 54 | BC1: 55 | BD1: 56 | BE1: 57 | BF1: 58 | BG1: 59 | BH1: 60 | BI1: 61 | BJ1: 62 | BK1: 63 | BL1: 64 | BM1: 65 | BN1: 66 | BO1: =BN1+1 -> 67 | BP1: 68 | BQ1: 69 | BR1: 70 | BS1: 71 | BT1: 72 | BU1: 73 | BV1: 74 | BW1: 75 | BX1: 76 | BY1: 77 | BZ1: 78 | CA1: 79 | CB1: 80 | CC1: 81 | CD1: 82 | CE1: 83 | CF1: 84 | CG1: 85 | CH1: 86 | CI1: 87 | CJ1: 88 | CK1: 89 | CL1: 90 | CM1: 91 | CN1: 92 | CO1: 93 | CP1: 94 | CQ1: 95 | CR1: 96 | CS1: 97 | CT1: 98 | CU1: 99 | CV1: 100 | CW1: 101 | CX1: 102 | CY1: 103 | CZ1: 104 | DA1: 105 | DB1: 106 | DC1: 107 | DD1: 108 | DE1: 109 | DF1: 110 | DG1: 111 | DH1: 112 | DI1: 113 | DJ1: 114 | DK1: 115 | DL1: 116 | DM1: 117 | DN1: 118 | DO1: 119 | DP1: 120 | DQ1: 121 | DR1: 122 | DS1: 123 | DT1: 124 | DU1: 125 | DV1: 126 | DW1: 127 | DX1: 128 | DY1: 129 | DZ1: 130 | EA1: =DZ1+1 -> 131 | EB1: 132 | EC1: 133 | ED1: 134 | EE1: 135 | EF1: 136 | EG1: 137 | EH1: 138 | EI1: 139 | EJ1: 140 | EK1: 141 | EL1: 142 | EM1: 143 | EN1: 144 | EO1: 145 | EP1: 146 | EQ1: 147 | ER1: 148 | ES1: 149 | ET1: 150 | EU1: 151 | EV1: 152 | EW1: 153 | EX1: 154 | EY1: 155 | EZ1: 156 | FA1: 157 | FB1: 158 | FC1: 159 | FD1: 160 | FE1: 161 | FF1: 162 | FG1: 163 | FH1: 164 | FI1: 165 | FJ1: 166 | FK1: 167 | FL1: 168 | FM1: 169 | FN1: 170 | FO1: 171 | FP1: 172 | FQ1: 173 | FR1: 174 | FS1: 175 | FT1: 176 | FU1: 177 | FV1: 178 | FW1: 179 | FX1: 180 | FY1: 181 | FZ1: 182 | GA1: 183 | GB1: 184 | GC1: 185 | GD1: 186 | GE1: 187 | GF1: 188 | GG1: 189 | GH1: 190 | GI1: 191 | GJ1: 192 | GK1: 193 | GL1: 194 | GM1: =GL1+1 -> 195 | GN1: 196 | GO1: 197 | GP1: 198 | GQ1: 199 | GR1: 200 | GS1: 201 | GT1: 202 | GU1: 203 | GV1: 204 | GW1: 205 | GX1: 206 | GY1: 207 | GZ1: 208 | HA1: 209 | HB1: 210 | HC1: 211 | HD1: 212 | HE1: 213 | HF1: 214 | HG1: 215 | HH1: 216 | HI1: 217 | HJ1: 218 | HK1: 219 | HL1: 220 | HM1: 221 | HN1: 222 | HO1: 223 | HP1: 224 | HQ1: 225 | HR1: 226 | HS1: 227 | HT1: 228 | HU1: 229 | HV1: 230 | HW1: 231 | HX1: 232 | HY1: 233 | HZ1: 234 | IA1: 235 | IB1: 236 | IC1: 237 | ID1: 238 | IE1: 239 | IF1: 240 | IG1: 241 | IH1: 242 | II1: 243 | IJ1: 244 | IK1: 245 | IL1: 246 | IM1: 247 | IN1: 248 | IO1: 249 | IP1: 250 | IQ1: 251 | IR1: 252 | IS1: 253 | IT1: 254 | IU1: 255
A3: Census 1990 Data - Query Name: DPCnty90Census
A4: TownName | B4: Cnty_Code | C4: Census_Cnty_Code | D4: LandAcres | E4: WaterAcres | F4: HousingUnits90Cen | G4: Persons90Cen | H4: Families90Cen | I4: Households90cen | J4: MalePop90cen | K4: FemalePop90cen | L4: WhitePop | M4: BlackPop | N4: AmerIndianPop | O4: AsianPIPop | P4: OtherRacePop | Q4: HispanicOrPop | R4: AgeUnder15_90cen | S4: Age15to24_90cen | T4: Age25to34_90cen | U4: Age35to44_90cen | V4: Age45to54_90cen | W4: Age55to64_90cen | X4: Age65to74_90cen | Y4: Age75andOver_90cen | Z4: PersonsInHH90cen | AA4: PersonsInFamHH90cen | AB4: PersonsInGC | AC4: PersonsPerHH90cen | AD4: PersonsPerFam90Cen | AE4: SinglePersonHH90cen | AF4: MarriedCoupleHH90cen | AG4: SingleParentHH90cen | AH4: NonFamilyHH90cen | AI4: TotalHousingUnits | AJ4: OccupiedHousingUnits | AK4: VacantHousingUnits | AL4: OwnerOccHU | AM4: RenterOccHU | AN4: VacantForRent90 | AO4: VacantForSale90 | AP4: VacantSeasonalRec | AQ4: SingFamHU90cen | AR4: MultiFamHU90cen | AS4: MobileHom90cen | AT4: SingFamOwnHU90cen | AU4: MultiFamOwnHU90cen | AV4: MobileHomOwnHU90cen | AW4: SingFamRntrHU90cen | AX4: MultiFamRntrHU90cen | AY4: MobileHomRntrHU90cen | AZ4: HU<5yrs90cen | BA4: HU5to20yrs90cen | BB4: HU20to50yrs90cen | BC4: HU>50yrs90cen | BD4: Units0Bedroom90cen | BE4: Units1Bedroom90cen | BF4: Units2Bedroom90cen | BG4: Units3Bedroom90cen | BH4: Units4+Bedroom90cen | BI4: HI<5K | BJ4: HI5Kto10K | BK4: HI10Kto15K | BL4: HI15Kto25K | BM4: HI25Kto35K | BN4: HI35Kto50K | BO4: HI50Kto75K | BP4: HI75Kto100K | BQ4: HI>100K | BR4: MedHI | BS4: HH<25HI<5K | BT4: HH<25HI5Kto10K | BU4: HH<25HI10Kto15K | BV4: HH<25HI15Kto25K | BW4: HH<25HI25Kto35K | BX4: HH<25HI35Kto50K | BY4: HH<25HI50Kto75K | BZ4: HH<25HI75Kto100K | CA4: HH<25HI>100K | CB4: HH25to34HI<5K | CC4: HH25to34HI5Kto10K | CD4: HH25to34HI10Kto15K | CE4: HH25to34HI15Kto25K | CF4: HH25to34HI25Kto35K | CG4: HH25to34HI35Kto50K | CH4: HH25to34HI50Kto75K | CI4: HH25to34HI75Kto100K | CJ4: HH25to34HI>100K | CK4: HH35to44HI<5K | CL4: HH35to44HI5Kto10K | CM4: HH35to44HI10Kto15K | CN4: HH35to44HI15Kto25K | CO4: HH35to44HI25Kto35K | CP4: HH35to44HI35Kto50K | CQ4: HH35to44HI50Kto75K | CR4: HH35to44HI75Kto100K | CS4: HH35to44HI>100K | CT4: HH45to54HI<5K | CU4: HH45to54HI5Kto10K | CV4: HH45to54HI10Kto15K | CW4: HH45to54HI15Kto25K | CX4: HH45to54HI25Kto35K | CY4: HH45to54HI35Kto50K | CZ4: HH45to54HI50Kto75K | DA4: HH45to54HI75Kto100K | DB4: HH45to54HI>100K | DC4: HH55to64HI<5K | DD4: HH55to64HI5Kto10K | DE4: HH55to64HI10Kto15K | DF4: HH55to64HI15Kto25K | DG4: HH55to64HI25Kto35K | DH4: HH55to64HI35Kto50K | DI4: HH55to64HI50Kto75K | DJ4: HH55to64HI75Kto100K | DK4: HH55to64HI>100K | DL4: HH65to74HI<5K | DM4: HH65to74HI5Kto10K | DN4: HH65to74HI10Kto15K | DO4: HH65to74HI15Kto25K | DP4: HH65to74HI25Kto35K | DQ4: HH65to74HI35Kto50K | DR4: HH65to74HI50Kto75K | DS4: HH65to74HI75Kto100K | DT4: HH65to74HI>100K | DU4: HH>75HI<5K | DV4: HH>75HI5Kto10K | DW4: HH>75HI10Kto15K | DX4: HH>75HI15Kto25K | DY4: HH>75HI25Kto35K | DZ4: HH>75HI35Kto50K | EA4: HH>75HI50Kto75K | EB4: HH>75HI75Kto100K | EC4: HH>75HI>100K | ED4: SchoolEnrollment1thru12 | EE4: Pop25andOver | EF4: HSGradorHigher | EG4: CollGradorHigher | EH4: NativePop | EI4: ForeignBornPop | EJ4: BornStateOfRes | EK4: NativePop2 | EL4: ForeignBornPop2 | EM4: DroveAlone | EN4: CarPooled | EO4: PublicTranspt | EP4: Walked | EQ4: OtherMeans | ER4: WorkedAtHome | ES4: HHInc<10K | ET4: HHInc10to15K | EU4: HHInc15to25K | EV4: HHInc25to35K | EW4: HHInc35to50K | EX4: HHInc50to75K | EY4: HHInc75to100K | EZ4: HHInc100to150K | FA4: HHInc>150K
B5: =VLOOKUP(DropDownList!$A$47,CntyQuery!$A$4:$FA$46,B1) -> 15005 | C5: =VLOOKUP(DropDownList!$A$47,CntyQuery!$A$4:$FA$46,C1) -> 02340 | D5: =VLOOKUP(DropDownList!$A$47,CntyQuery!$A$4:$FA$46,D1) -> 7154.53 | E5: =VLOOKUP(DropDownList!$A$47,CntyQuery!$A$4:$FA$46,E1) -> 103.92 | F5: =VLOOKUP(DropDownList!$A$47,CntyQuery!$A$4:$FA$46,F1) -> 1885 | G5: =VLOOKUP(DropDownList!$A$47,CntyQuery!$A$4:$FA$46,G1) -> 5188 | H5: =VLOOKUP(DropDownList!$A$47,CntyQuery!$A$4:$FA$46,H1) -> 1449 | I5: =VLOOKUP(DropDownList!$A$47,CntyQuery!$A$4:$FA$46,I1) -> 1774 | J5: =VLOOKUP(DropDownList!$A$47,CntyQuery!$A$4:$FA$46,J1) -> 2605 | K5: =VLOOKUP(DropDownList!$A$47,CntyQuery!$A$4:$FA$46,K1) -> 2583 | L5: =VLOOKUP(DropDownList!$A$47,CntyQuery!$A$4:$FA$46,L1) -> 5125 | M5: =VLOOKUP(DropDownList!$A$47,CntyQuery!$A$4:$FA$46,M1) -> 15 | N5: =VLOOKUP(DropDownList!$A$47,CntyQuery!$A$4:$FA$46,N1) -> 1 | O5: =VLOOKUP(DropDownList!$A$47,CntyQuery!$A$4:$FA$46,O1) -> 43 | P5: =VLOOKUP(DropDownList!$A$47,CntyQuery!$A$4:$FA$46,P1) -> 4 | Q5: =VLOOKUP(DropDownList!$A$47,CntyQuery!$A$4:$FA$46,Q1) -> 12 | R5: =VLOOKUP(DropDownList!$A$47,CntyQuery!$A$4:$FA$46,R1) -> 1072 | S5: =VLOOKUP(DropDownList!$A$47,CntyQuery!$A$4:$FA$46,S1) -> 752 | T5: =VLOOKUP(DropDownList!$A$47,CntyQuery!$A$4:$FA$46,T1) -> 685 | U5: =VLOOKUP(DropDownList!$A$47,CntyQuery!$A$4:$FA$46,U1) -> 1083 | V5: =VLOOKUP(DropDownList!$A$47,CntyQuery!$A$4:$FA$46,V1) -> 759 | W5: =VLOOKUP(DropDownList!$A$47,CntyQuery!$A$4:$FA$46,W1) -> 454 | X5: =VLOOKUP(DropDownList!$A$47,CntyQuery!$A$4:$FA$46,X1) -> 259 | Y5: =VLOOKUP(DropDownList!$A$47,CntyQuery!$A$4:$FA$46,Y1) -> 124 | Z5: =VLOOKUP(DropDownList!$A$47,CntyQuery!$A$4:$FA$46,Z1) -> 5188 | AA5: =VLOOKUP(DropDownList!$A$47,CntyQuery!$A$4:$FA$46,AA1) -> 4797 | AB5: =VLOOKUP(DropDownList!$A$47,CntyQuery!$A$4:$FA$46,AB1) -> 0 | AC5: =VLOOKUP(DropDownList!$A$47,CntyQuery!$A$4:$FA$46,AC1) -> 2.924464487 | AD5: =VLOOKUP(DropDownList!$A$47,CntyQuery!$A$4:$FA$46,AD1) -> 3.310559006 | AE5: =VLOOKUP(DropDownList!$A$47,CntyQuery!$A$4:$FA$46,AE1) -> 271 | AF5: =VLOOKUP(DropDownList!$A$47,CntyQuery!$A$4:$FA$46,AF1) -> 1319 | AG5: =VLOOKUP(DropDownList!$A$47,CntyQuery!$A$4:$FA$46,AG1) -> 130 | AH5: =VLOOKUP(DropDownList!$A$47,CntyQuery!$A$4:$FA$46,AH1) -> 54 | AI5: =VLOOKUP(DropDownList!$A$47,CntyQuery!$A$4:$FA$46,AI1) -> 1885 | AJ5: =VLOOKUP(DropDownList!$A$47,CntyQuery!$A$4:$FA$46,AJ1) -> 1774 | AK5: =VLOOKUP(DropDownList!$A$47,CntyQuery!$A$4:$FA$46,AK1) -> 111 | AL5: =VLOOKUP(DropDownList!$A$47,CntyQuery!$A$4:$FA$46,AL1) -> 1549 | AM5: =VLOOKUP(DropDownList!$A$47,CntyQuery!$A$4:$FA$46,AM1) -> 225 | AN5: =VLOOKUP(DropDownList!$A$47,CntyQuery!$A$4:$FA$46,AN1) -> 2 | AO5: =VLOOKUP(DropDownList!$A$47,CntyQuery!$A$4:$FA$46,AO1) -> 18 | AP5: =VLOOKUP(DropDownList!$A$47,CntyQuery!$A$4:$FA$46,AP1) -> 74 | AQ5: =VLOOKUP(DropDownList!$A$47,CntyQuery!$A$4:$FA$46,AQ1) -> 1591 | AR5: =VLOOKUP(DropDownList!$A$47,CntyQuery!$A$4:$FA$46,AR1) -> 281 | AS5: =VLOOKUP(DropDownList!$A$47,CntyQuery!$A$4:$FA$46,AS1) -> 13 | AT5: =VLOOKUP(DropDownList!$A$47,CntyQuery!$A$4:$FA$46,AT1) -> 1436 | AU5: =VLOOKUP(DropDownList!$A$47,CntyQuery!$A$4:$FA$46,AU1) -> 104 | AV5: =VLOOKUP(DropDownList!$A$47,CntyQuery!$A$4:$FA$46,AV1) -> 13 | AW5: =VLOOKUP(DropDownList!$A$47,CntyQuery!$A$4:$FA$46,AW1) -> 58 | AX5: =VLOOKUP(DropDownList!$A$47,CntyQuery!$A$4:$FA$46,AX1) -> 164 | AY5: =VLOOKUP(DropDownList!$A$47,CntyQuery!$A$4:$FA$46,AY1) -> 3 | AZ5: =VLOOKUP(DropDownList!$A$47,CntyQuery!$A$4:$FA$46,AZ1) -> 257 | BA5: =VLOOKUP(DropDownList!$A$47,CntyQuery!$A$4:$FA$46,BA1) -> 892 | BB5: =VLOOKUP(DropDownList!$A$47,CntyQuery!$A$4:$FA$46,BB1) -> 562 | BC5: =VLOOKUP(DropDownList!$A$47,CntyQuery!$A$4:$FA$46,BC1) -> 174 | BD5: =VLOOKUP(DropDownList!$A$47,CntyQuery!$A$4:$FA$46,BD1) -> 8 | BE5: =VLOOKUP(DropDownList!$A$47,CntyQuery!$A$4:$FA$46,BE1) -> 196 | BF5: =VLOOKUP(DropDownList!$A$47,CntyQuery!$A$4:$FA$46,BF1) -> 251 | BG5: =VLOOKUP(DropDownList!$A$47,CntyQuery!$A$4:$FA$46,BG1) -> 946 | BH5: =VLOOKUP(DropDownList!$A$47,CntyQuery!$A$4:$FA$46,BH1) -> 484 | BI5: =VLOOKUP(DropDownList!$A$47,CntyQuery!$A$4:$FA$46,BI1) -> 39 | BJ5: =VLOOKUP(DropDownList!$A$47,CntyQuery!$A$4:$FA$46,BJ1) -> 42 | BK5: =VLOOKUP(DropDownList!$A$47,CntyQuery!$A$4:$FA$46,BK1) -> 51 | BL5: =VLOOKUP(DropDownList!$A$47,CntyQuery!$A$4:$FA$46,BL1) -> 124 | BM5: =VLOOKUP(DropDownList!$A$47,CntyQuery!$A$4:$FA$46,BM1) -> 133 | BN5: =VLOOKUP(DropDownList!$A$47,CntyQuery!$A$4:$FA$46,BN1) -> 287 | BO5: =VLOOKUP(DropDownList!$A$47,CntyQuery!$A$4:$FA$46,BO1) -> 502 | BP5: =VLOOKUP(DropDownList!$A$47,CntyQuery!$A$4:$FA$46,BP1) -> 328 | BQ5: =VLOOKUP(DropDownList!$A$47,CntyQuery!$A$4:$FA$46,BQ1) -> 219 | BR5: =VLOOKUP(DropDownList!$A$47,CntyQuery!$A$4:$FA$46,BR1) -> 58239 | BS5: =VLOOKUP(DropDownList!$A$47,CntyQuery!$A$4:$FA$46,BS1) -> 0 | BT5: =VLOOKUP(DropDownList!$A$47,CntyQuery!$A$4:$FA$46,BT1) -> 9 | BU5: =VLOOKUP(DropDownList!$A$47,CntyQuery!$A$4:$FA$46,BU1) -> 0 | BV5: =VLOOKUP(DropDownList!$A$47,CntyQuery!$A$4:$FA$46,BV1) -> 9 | BW5: =VLOOKUP(DropDownList!$A$47,CntyQuery!$A$4:$FA$46,BW1) -> 0 | BX5: =VLOOKUP(DropDownList!$A$47,CntyQuery!$A$4:$FA$46,BX1) -> 0 | BY5: =VLOOKUP(DropDownList!$A$47,CntyQuery!$A$4:$FA$46,BY1) -> 0 | BZ5: =VLOOKUP(DropDownList!$A$47,CntyQuery!$A$4:$FA$46,BZ1) -> 0 | CA5: =VLOOKUP(DropDownList!$A$47,CntyQuery!$A$4:$FA$46,CA1) -> 0 | CB5: =VLOOKUP(DropDownList!$A$47,CntyQuery!$A$4:$FA$46,CB1) -> 7 | CC5: =VLOOKUP(DropDownList!$A$47,CntyQuery!$A$4:$FA$46,CC1) -> 5 | CD5: =VLOOKUP(DropDownList!$A$47,CntyQuery!$A$4:$FA$46,CD1) -> 7 | CE5: =VLOOKUP(DropDownList!$A$47,CntyQuery!$A$4:$FA$46,CE1) -> 19 | CF5: =VLOOKUP(DropDownList!$A$47,CntyQuery!$A$4:$FA$46,CF1) -> 49 | CG5: =VLOOKUP(DropDownList!$A$47,CntyQuery!$A$4:$FA$46,CG1) -> 36 | CH5: =VLOOKUP(DropDownList!$A$47,CntyQuery!$A$4:$FA$46,CH1) -> 86 | CI5: =VLOOKUP(DropDownList!$A$47,CntyQuery!$A$4:$FA$46,CI1) -> 57 | CJ5: =VLOOKUP(DropDownList!$A$47,CntyQuery!$A$4:$FA$46,CJ1) -> 15 | CK5: =VLOOKUP(DropDownList!$A$47,CntyQuery!$A$4:$FA$46,CK1) -> 0 | CL5: =VLOOKUP(DropDownList!$A$47,CntyQuery!$A$4:$FA$46,CL1) -> 6 | CM5: =VLOOKUP(DropDownList!$A$47,CntyQuery!$A$4:$FA$46,CM1) -> 0 | CN5: =VLOOKUP(DropDownList!$A$47,CntyQuery!$A$4:$FA$46,CN1) -> 43 | CO5: =VLOOKUP(DropDownList!$A$47,CntyQuery!$A$4:$FA$46,CO1) -> 27 | CP5: =VLOOKUP(DropDownList!$A$47,CntyQuery!$A$4:$FA$46,CP1) -> 92 | CQ5: =VLOOKUP(DropDownList!$A$47,CntyQuery!$A$4:$FA$46,CQ1) -> 160 | CR5: =VLOOKUP(DropDownList!$A$47,CntyQuery!$A$4:$FA$46,CR1) -> 155 | CS5: =VLOOKUP(DropDownList!$A$47,CntyQuery!$A$4:$FA$46,CS1) -> 118 | CT5: =VLOOKUP(DropDownList!$A$47,CntyQuery!$A$4:$FA$46,CT1) -> 0 | CU5: =VLOOKUP(DropDownList!$A$47,CntyQuery!$A$4:$FA$46,CU1) -> 14 | CV5: =VLOOKUP(DropDownList!$A$47,CntyQuery!$A$4:$FA$46,CV1) -> 0 | CW5: =VLOOKUP(DropDownList!$A$47,CntyQuery!$A$4:$FA$46,CW1) -> 9 | CX5: =VLOOKUP(DropDownList!$A$47,CntyQuery!$A$4:$FA$46,CX1) -> 16 | CY5: =VLOOKUP(DropDownList!$A$47,CntyQuery!$A$4:$FA$46,CY1) -> 66 | CZ5: =VLOOKUP(DropDownList!$A$47,CntyQuery!$A$4:$FA$46,CZ1) -> 125 | DA5: =VLOOKUP(DropDownList!$A$47,CntyQuery!$A$4:$FA$46,DA1) -> 76 | DB5: =VLOOKUP(DropDownList!$A$47,CntyQuery!$A$4:$FA$46,DB1) -> 51 | DC5: =VLOOKUP(DropDownList!$A$47,CntyQuery!$A$4:$FA$46,DC1) -> 9 | DD5: =VLOOKUP(DropDownList!$A$47,CntyQuery!$A$4:$FA$46,DD1) -> 0 | DE5: =VLOOKUP(DropDownList!$A$47,CntyQuery!$A$4:$FA$46,DE1) -> 7 | DF5: =VLOOKUP(DropDownList!$A$47,CntyQuery!$A$4:$FA$46,DF1) -> 13 | DG5: =VLOOKUP(DropDownList!$A$47,CntyQuery!$A$4:$FA$46,DG1) -> 4 | DH5: =VLOOKUP(DropDownList!$A$47,CntyQuery!$A$4:$FA$46,DH1) -> 54 | DI5: =VLOOKUP(DropDownList!$A$47,CntyQuery!$A$4:$FA$46,DI1) -> 99 | DJ5: =VLOOKUP(DropDownList!$A$47,CntyQuery!$A$4:$FA$46,DJ1) -> 27 | DK5: =VLOOKUP(DropDownList!$A$47,CntyQuery!$A$4:$FA$46,DK1) -> 35 | DL5: =VLOOKUP(DropDownList!$A$47,CntyQuery!$A$4:$FA$46,DL1) -> 10 | DM5: =VLOOKUP(DropDownList!$A$47,CntyQuery!$A$4:$FA$46,DM1) -> 0 | DN5: =VLOOKUP(DropDownList!$A$47,CntyQuery!$A$4:$FA$46,DN1) -> 19 | DO5: =VLOOKUP(DropDownList!$A$47,CntyQuery!$A$4:$FA$46,DO1) -> 11 | DP5: =VLOOKUP(DropDownList!$A$47,CntyQuery!$A$4:$FA$46,DP1) -> 37 | DQ5: =VLOOKUP(DropDownList!$A$47,CntyQuery!$A$4:$FA$46,DQ1) -> 35 | DR5: =VLOOKUP(DropDownList!$A$47,CntyQuery!$A$4:$FA$46,DR1) -> 10 | DS5: =VLOOKUP(DropDownList!$A$47,CntyQuery!$A$4:$FA$46,DS1) -> 13 | DT5: =VLOOKUP(DropDownList!$A$47,CntyQuery!$A$4:$FA$46,DT1) -> 0 | DU5: =VLOOKUP(DropDownList!$A$47,CntyQuery!$A$4:$FA$46,DU1) -> 13 | DV5: =VLOOKUP(DropDownList!$A$47,CntyQuery!$A$4:$FA$46,DV1) -> 8 | DW5: =VLOOKUP(DropDownList!$A$47,CntyQuery!$A$4:$FA$46,DW1) -> 18 | DX5: =VLOOKUP(DropDownList!$A$47,CntyQuery!$A$4:$FA$46,DX1) -> 20 | DY5: =VLOOKUP(DropDownList!$A$47,CntyQuery!$A$4:$FA$46,DY1) -> 0 | DZ5: =VLOOKUP(DropDownList!$A$47,CntyQuery!$A$4:$FA$46,DZ1) -> 4 | EA5: =VLOOKUP(DropDownList!$A$47,CntyQuery!$A$4:$FA$46,EA1) -> 22 | EB5: =VLOOKUP(DropDownList!$A$47,CntyQuery!$A$4:$FA$46,EB1) -> 0 | EC5: =VLOOKUP(DropDownList!$A$47,CntyQuery!$A$4:$FA$46,EC1) -> 0 | ED5: =VLOOKUP(DropDownList!$A$47,CntyQuery!$A$4:$FA$46,ED1) -> 990 | EE5: =VLOOKUP(DropDownList!$A$47,CntyQuery!$A$4:$FA$46,EE1) -> 3364 | EF5: =VLOOKUP(DropDownList!$A$47,CntyQuery!$A$4:$FA$46,EF1) -> 3090 | EG5: =VLOOKUP(DropDownList!$A$47,CntyQuery!$A$4:$FA$46,EG1) -> 1012 | EH5: =VLOOKUP(DropDownList!$A$47,CntyQuery!$A$4:$FA$46,EH1) -> 5039 | EI5: =VLOOKUP(DropDownList!$A$47,CntyQuery!$A$4:$FA$46,EI1) -> 149 | EJ5: =VLOOKUP(DropDownList!$A$47,CntyQuery!$A$4:$FA$46,EJ1) -> 374 | EK5: =VLOOKUP(DropDownList!$A$47,CntyQuery!$A$4:$FA$46,EK1) -> 5039 | EL5: =VLOOKUP(DropDownList!$A$47,CntyQuery!$A$4:$FA$46,EL1) -> 149 | EM5: =VLOOKUP(DropDownList!$A$47,CntyQuery!$A$4:$FA$46,EM1) -> 2415 | EN5: =VLOOKUP(DropDownList!$A$47,CntyQuery!$A$4:$FA$46,EN1) -> 313 | EO5: =VLOOKUP(DropDownList!$A$47,CntyQuery!$A$4:$FA$46,EO1) -> 20 | EP5: =VLOOKUP(DropDownList!$A$47,CntyQuery!$A$4:$FA$46,EP1) -> 31 | EQ5: =VLOOKUP(DropDownList!$A$47,CntyQuery!$A$4:$FA$46,EQ1) -> 12 | ER5: =VLOOKUP(DropDownList!$A$47,CntyQuery!$A$4:$FA$46,ER1) -> 99 | ES5: =VLOOKUP(DropDownList!$A$47,CntyQuery!$A$4:$FA$46,ES1) -> 81 | ET5: =VLOOKUP(DropDownList!$A$47,CntyQuery!$A$4:$FA$46,ET1) -> 51 | EU5: =VLOOKUP(DropDownList!$A$47,CntyQuery!$A$4:$FA$46,EU1) -> 124 | EV5: =VLOOKUP(DropDownList!$A$47,CntyQuery!$A$4:$FA$46,EV1) -> 133 | EW5: =VLOOKUP(DropDownList!$A$47,CntyQuery!$A$4:$FA$46,EW1) -> 287 | EX5: =VLOOKUP(DropDownList!$A$47,CntyQuery!$A$4:$FA$46,EX1) -> 502 | EY5: =VLOOKUP(DropDownList!$A$47,CntyQuery!$A$4:$FA$46,EY1) -> 328 | EZ5: =VLOOKUP(DropDownList!$A$47,CntyQuery!$A$4:$FA$46,EZ1) -> 150 | FA5: =VLOOKUP(DropDownList!$A$47,CntyQuery!$A$4:$FA$46,FA1) -> 69
A8: Census 1990 Data - Query Name: TownSTF1Qry1
A9: NAME | B9: COUSUBFP | C9: Census_Cnty_Code | D9: FIPS | E9: LandAcres | F9: WaterAcres | G9: HousingUnits90Cen | H9: P01Persons90Cen | I9: P02Families90Cen | J9: P03Households90cen | K9: P05MalePop90cen | L9: P05FemalePop90cen | M9: P06WhitePop | N9: P06BlackPop | O9: P06AmerIndianPop | P9: P06AsianPIPop | Q9: P06OtherRacePop | R9: P08HispanicOrPop | S9: P11AgeUnder15_90cen | T9: P11Age15to24_90cen | U9: P11Age25to34_90cen | V9: P11Age35to44_90cen | W9: P11Age45to54_90cen | X9: P11Age55to64_90cen | Y9: P11Age65to74_90cen | Z9: P11Age75andOver_90cen | AA9: P15PersonsInHH90cen | AB9: P15PersonsInFamHH90cen | AC9: P15PersonsInGC | AD9: PersonsPerHH90cen | AE9: PersonsPerFam90Cen | AF9: P16SinglePersonHH90cen | AG9: P16MarriedCoupleHH90cen | AH9: P16SingleParentHH90cen | AI9: P16NonFamilyHH90cen | AJ9: H01TotalHousingUnits | AK9: H02OccupiedHousingUnits | AL9: H02VacantHousingUnits | AM9: H03OwnerOccHU | AN9: H03RenterOccHU | AO9: H05VacantForRent90 | AP9: H05VacantForSale90 | AQ9: H05VacantSeasonalRec | AR9: H23OOHUVal<15k | AS9: H23OOHUVal15to19k | AT9: H23OOHUVal20to24k | AU9: H23OOHUVal25to29k | AV9: H23OOHUVal30to34k | AW9: H23OOHUVal35to39k | AX9: H23OOHUVal40to44k | AY9: H23OOHUVal45to49k | AZ9: H23OOHUVal50to59k | BA9: H23OOHUVal60to74k | BB9: H23OOHUVal75to99k | BC9: H23OOHUVal100to124k | BD9: H23OOHUVal125to149k | BE9: H23OOHUVal150to174k | BF9: H23OOHUVal175to199k | BG9: H23OOHUVal200to249k | BH9: H23OOHUVal250to299k | BI9: H23OOHUVal300to399k | BJ9: H23OOHUVal400to499k | BK9: H23OOHUVal500kOrMore | BL9: H23BOOHUMedVal | BM9: H41SingFamHU90cen | BN9: H41MultiFamHU90cen | BO9: H41MobileHom90cen | BP9: H43SingFamOwnHU90cen | BQ9: H43MultiFamOwnHU90cen | BR9: H43MobileHomOwnHU90cen | BS9: H43SingFamRntrHU90cen | BT9: H43MultiFamRntrHU90cen | BU9: H43MobileHomRntrHU90cen | BV9: H41HU1UnitDet | BW9: H41HU1UnitAtt | BX9: H41HU2Unit | BY9: H41HU3to4Unit | BZ9: H41HU5to9Unit | CA9: H41HU10to19Unit | CB9: H41HU20to49Unit | CC9: H41HU50PlusUnit | CD9: H41HUMobilH | CE9: H41HUOther
B10: =VLOOKUP(DropDownList!$B$47,CntyQuery!$A$51:$CE$93,B$1) -> 801 | C10: =VLOOKUP(DropDownList!$B$47,CntyQuery!$A$51:$CE$93,C$1) -> 15005 | D10: =VLOOKUP(DropDownList!$B$47,CntyQuery!$A$51:$CE$93,D$1) -> 02340 | E10: =VLOOKUP(DropDownList!$B$47,CntyQuery!$A$51:$CE$93,E$1) -> 7154.53 | F10: =VLOOKUP(DropDownList!$B$47,CntyQuery!$A$51:$CE$93,F$1) -> 103.92 | G10: =VLOOKUP(DropDownList!$B$47,CntyQuery!$A$51:$CE$93,G$1) -> 1885 | H10: =VLOOKUP(DropDownList!$B$47,CntyQuery!$A$51:$CE$93,H$1) -> 5188 | I10: =VLOOKUP(DropDownList!$B$47,CntyQuery!$A$51:$CE$93,I$1) -> 1449 | J10: =VLOOKUP(DropDownList!$B$47,CntyQuery!$A$51:$CE$93,J$1) -> 1774 | K10: =VLOOKUP(DropDownList!$B$47,CntyQuery!$A$51:$CE$93,K$1) -> 2605 | L10: =VLOOKUP(DropDownList!$B$47,CntyQuery!$A$51:$CE$93,L$1) -> 2583 | M10: =VLOOKUP(DropDownList!$B$47,CntyQuery!$A$51:$CE$93,M$1) -> 5125 | N10: =VLOOKUP(DropDownList!$B$47,CntyQuery!$A$51:$CE$93,N$1) -> 15 | O10: =VLOOKUP(DropDownList!$B$47,CntyQuery!$A$51:$CE$93,O$1) -> 1 | P10: =VLOOKUP(DropDownList!$B$47,CntyQuery!$A$51:$CE$93,P$1) -> 43 | Q10: =VLOOKUP(DropDownList!$B$47,CntyQuery!$A$51:$CE$93,Q$1) -> 4 | R10: =VLOOKUP(DropDownList!$B$47,CntyQuery!$A$51:$CE$93,R$1) -> 12 | S10: =VLOOKUP(DropDownList!$B$47,CntyQuery!$A$51:$CE$93,S$1) -> 1072 | T10: =VLOOKUP(DropDownList!$B$47,CntyQuery!$A$51:$CE$93,T$1) -> 752 | U10: =VLOOKUP(DropDownList!$B$47,CntyQuery!$A$51:$CE$93,U$1) -> 685 | V10: =VLOOKUP(DropDownList!$B$47,CntyQuery!$A$51:$CE$93,V$1) -> 1083 | W10: =VLOOKUP(DropDownList!$B$47,CntyQuery!$A$51:$CE$93,W$1) -> 759 | X10: =VLOOKUP(DropDownList!$B$47,CntyQuery!$A$51:$CE$93,X$1) -> 454 | Y10: =VLOOKUP(DropDownList!$B$47,CntyQuery!$A$51:$CE$93,Y$1) -> 259 | Z10: =VLOOKUP(DropDownList!$B$47,CntyQuery!$A$51:$CE$93,Z$1) -> 124 | AA10: =VLOOKUP(DropDownList!$B$47,CntyQuery!$A$51:$CE$93,AA$1) -> 5188 | AB10: =VLOOKUP(DropDownList!$B$47,CntyQuery!$A$51:$CE$93,AB$1) -> 4797 | AC10: =VLOOKUP(DropDownList!$B$47,CntyQuery!$A$51:$CE$93,AC$1) -> 0 | AD10: =VLOOKUP(DropDownList!$B$47,CntyQuery!$A$51:$CE$93,AD$1) -> 2.924464487 | AE10: =VLOOKUP(DropDownList!$B$47,CntyQuery!$A$51:$CE$93,AE$1) -> 3.310559006 | AF10: =VLOOKUP(DropDownList!$B$47,CntyQuery!$A$51:$CE$93,AF$1) -> 271 | AG10: =VLOOKUP(DropDownList!$B$47,CntyQuery!$A$51:$CE$93,AG$1) -> 1319 | AH10: =VLOOKUP(DropDownList!$B$47,CntyQuery!$A$51:$CE$93,AH$1) -> 130 | AI10: =VLOOKUP(DropDownList!$B$47,CntyQuery!$A$51:$CE$93,AI$1) -> 54 | AJ10: =VLOOKUP(DropDownList!$B$47,CntyQuery!$A$51:$CE$93,AJ$1) -> 1885 | AK10: =VLOOKUP(DropDownList!$B$47,CntyQuery!$A$51:$CE$93,AK$1) -> 1774 | AL10: =VLOOKUP(DropDownList!$B$47,CntyQuery!$A$51:$CE$93,AL$1) -> 111 | AM10: =VLOOKUP(DropDownList!$B$47,CntyQuery!$A$51:$CE$93,AM$1) -> 1549 | AN10: =VLOOKUP(DropDownList!$B$47,CntyQuery!$A$51:$CE$93,AN$1) -> 225 | AO10: =VLOOKUP(DropDownList!$B$47,CntyQuery!$A$51:$CE$93,AO$1) -> 2 | AP10: =VLOOKUP(DropDownList!$B$47,CntyQuery!$A$51:$CE$93,AP$1) -> 18 | AQ10: =VLOOKUP(DropDownList!$B$47,CntyQuery!$A$51:$CE$93,AQ$1) -> 74 | AR10: =VLOOKUP(DropDownList!$B$47,CntyQuery!$A$51:$CE$93,AR$1) -> 0 | AS10: =VLOOKUP(DropDownList!$B$47,CntyQuery!$A$51:$CE$93,AS$1) -> 0 | AT10: =VLOOKUP(DropDownList!$B$47,CntyQuery!$A$51:$CE$93,AT$1) -> 1 | AU10: =VLOOKUP(DropDownList!$B$47,CntyQuery!$A$51:$CE$93,AU$1) -> 0 | AV10: =VLOOKUP(DropDownList!$B$47,CntyQuery!$A$51:$CE$93,AV$1) -> 0 | AW10: =VLOOKUP(DropDownList!$B$47,CntyQuery!$A$51:$CE$93,AW$1) -> 0 | AX10: =VLOOKUP(DropDownList!$B$47,CntyQuery!$A$51:$CE$93,AX$1) -> 0 | AY10: =VLOOKUP(DropDownList!$B$47,CntyQuery!$A$51:$CE$93,AY$1) -> 1 | AZ10: =VLOOKUP(DropDownList!$B$47,CntyQuery!$A$51:$CE$93,AZ$1) -> 1 | BA10: =VLOOKUP(DropDownList!$B$47,CntyQuery!$A$51:$CE$93,BA$1) -> 3 | BB10: =VLOOKUP(DropDownList!$B$47,CntyQuery!$A$51:$CE$93,BB$1) -> 23 | BC10: =VLOOKUP(DropDownList!$B$47,CntyQuery!$A$51:$CE$93,BC$1) -> 64 | BD10: =VLOOKUP(DropDownList!$B$47,CntyQuery!$A$51:$CE$93,BD$1) -> 203 | BE10: =VLOOKUP(DropDownList!$B$47,CntyQuery!$A$51:$CE$93,BE$1) -> 341 | BF10: =VLOOKUP(DropDownList!$B$47,CntyQuery!$A$51:$CE$93,BF$1) -> 266 | BG10: =VLOOKUP(DropDownList!$B$47,CntyQuery!$A$51:$CE$93,BG$1) -> 248 | BH10: =VLOOKUP(DropDownList!$B$47,CntyQuery!$A$51:$CE$93,BH$1) -> 88 | BI10: =VLOOKUP(DropDownList!$B$47,CntyQuery!$A$51:$CE$93,BI$1) -> 69 | BJ10: =VLOOKUP(DropDownList!$B$47,CntyQuery!$A$51:$CE$93,BJ$1) -> 16 | BK10: =VLOOKUP(DropDownList!$B$47,CntyQuery!$A$51:$CE$93,BK$1) -> 11 | BL10: =VLOOKUP(DropDownList!$B$47,CntyQuery!$A$51:$CE$93,BL$1) -> 177900 | BM10: =VLOOKUP(DropDownList!$B$47,CntyQuery!$A$51:$CE$93,BM$1) -> 1591 | BN10: =VLOOKUP(DropDownList!$B$47,CntyQuery!$A$51:$CE$93,BN$1) -> 281 | BO10: =VLOOKUP(DropDownList!$B$47,CntyQuery!$A$51:$CE$93,BO$1) -> 13 | BP10: =VLOOKUP(DropDownList!$B$47,CntyQuery!$A$51:$CE$93,BP$1) -> 1436 | BQ10: =VLOOKUP(DropDownList!$B$47,CntyQuery!$A$51:$CE$93,BQ$1) -> 104 | BR10: =VLOOKUP(DropDownList!$B$47,CntyQuery!$A$51:$CE$93,BR$1) -> 9 | BS10: =VLOOKUP(DropDownList!$B$47,CntyQuery!$A$51:$CE$93,BS$1) -> 58 | BT10: =VLOOKUP(DropDownList!$B$47,CntyQuery!$A$51:$CE$93,BT$1) -> 164 | BU10: =VLOOKUP(DropDownList!$B$47,CntyQuery!$A$51:$CE$93,BU$1) -> 3 | BV10: =VLOOKUP(DropDownList!$B$47,CntyQuery!$A$51:$CE$93,BV$1) -> 1591 | BW10: =VLOOKUP(DropDownList!$B$47,CntyQuery!$A$51:$CE$93,BW$1) -> 87 | BX10: =VLOOKUP(DropDownList!$B$47,CntyQuery!$A$51:$CE$93,BX$1) -> 40 | BY10: =VLOOKUP(DropDownList!$B$47,CntyQuery!$A$51:$CE$93,BY$1) -> 29 | BZ10: =VLOOKUP(DropDownList!$B$47,CntyQuery!$A$51:$CE$93,BZ$1) -> 0 | CA10: =VLOOKUP(DropDownList!$B$47,CntyQuery!$A$51:$CE$93,CA$1) -> 125 | CB10: =VLOOKUP(DropDownList!$B$47,CntyQuery!$A$51:$CE$93,CB$1) -> 0 | CC10: =VLOOKUP(DropDownList!$B$47,CntyQuery!$A$51:$CE$93,CC$1) -> 0 | CD10: =VLOOKUP(DropDownList!$B$47,CntyQuery!$A$51:$CE$93,CD$1) -> 3 | CE10: =VLOOKUP(DropDownList!$B$47,CntyQuery!$A$51:$CE$93,CE$1) -> 10
A13: Census 1990 Data - Query Name: TownSTF3Qry1
A14: NAME | B14: FIPS | C14: COUSUBFP | D14: LandAcres | E14: WaterAcres | F14: HousingUnits90Cen | G14: P01Persons90Cen | H14: P02Families90Cen | I14: P03Households90cen | J14: H25HU<5yrs90cen | K14: H25HU5to20yrs90cen | L14: H25HU20to50yrs90cen | M14: H25HU>50yrs90cen | N14: H31Units0Bedroom90cen | O14: H31Units1Bedroom90cen | P14: H31Units2Bedroom90cen | Q14: H31Units3Bedroom90cen | R14: H31Units4Bedroom90cen | S14: H31Units5+Bedroom90cen | T14: P80HI<5K | U14: P80HI5Kto10K | V14: P80HI10Kto15K | W14: P80HI15Kto25K | X14: P80HI25Kto35K | Y14: P80HI35Kto50K | Z14: P80HI50Kto75K | AA14: P80HI75Kto100K | AB14: P80HI>100K | AC14: P80AMedHI | AD14: P86HH<25HI<5K | AE14: P86HH<25HI5Kto10K | AF14: P86HH<25HI10Kto15K | AG14: P86HH<25HI15Kto25K | AH14: P86HH<25HI25Kto35K | AI14: P86HH<25HI35Kto50K | AJ14: P86HH<25HI50Kto75K | AK14: P86HH<25HI75Kto100K | AL14: P86HH<25HI>100K | AM14: P86HH25to34HI<5K | AN14: P86HH25to34HI5Kto10K | AO14: P86HH25to34HI10Kto15K | AP14: P86HH25to34HI15Kto25K | AQ14: P86HH25to34HI25Kto35K | AR14: P86HH25to34HI35Kto50K | AS14: P86HH25to34HI50Kto75K | AT14: P86HH25to34HI75Kto100K | AU14: P86HH25to34HI>100K | AV14: P86HH35to44HI<5K | AW14: P86HH35to44HI5Kto10K | AX14: P86HH35to44HI10Kto15K | AY14: P86HH35to44HI15Kto25K | AZ14: P86HH35to44HI25Kto35K | BA14: P86HH35to44HI35Kto50K | BB14: P86HH35to44HI50Kto75K | BC14: P86HH35to44HI75Kto100K | BD14: P86HH35to44HI>100K | BE14: P86HH45to54HI<5K | BF14: P86HH45to54HI5Kto10K | BG14: P86HH45to54HI10Kto15K | BH14: P86HH45to54HI15Kto25K | BI14: P86HH45to54HI25Kto35K | BJ14: P86HH45to54HI35Kto50K | BK14: P86HH45to54HI50Kto75K | BL14: P86HH45to54HI75Kto100K | BM14: P86HH45to54HI>100K | BN14: P86HH55to64HI<5K | BO14: P86HH55to64HI5Kto10K | BP14: P86HH55to64HI10Kto15K | BQ14: P86HH55to64HI15Kto25K | BR14: P86HH55to64HI25Kto35K | BS14: P86HH55to64HI35Kto50K | BT14: P86HH55to64HI50Kto75K | BU14: P86HH55to64HI75Kto100K | BV14: P86HH55to64HI>100K | BW14: P86HH65to74HI<5K | BX14: P86HH65to74HI5Kto10K | BY14: P86HH65to74HI10Kto15K | BZ14: P86HH65to74HI15Kto25K | CA14: P86HH65to74HI25Kto35K | CB14: P86HH65to74HI35Kto50K | CC14: P86HH65to74HI50Kto75K | CD14: P86HH65to74HI75Kto100K | CE14: P86HH65to74HI>100K | CF14: P86HH>75HI<5K | CG14: P86HH>75HI5Kto10K | CH14: P86HH>75HI10Kto15K | CI14: P86HH>75HI15Kto25K | CJ14: P86HH>75HI25Kto35K | CK14: P86HH>75HI35Kto50K | CL14: P86HH>75HI50Kto75K | CM14: P86HH>75HI75Kto100K | CN14: P86HH>75HI>100K | CO14: P54SchlEnrlPrePrim | CP14: P54SchlEnrlElemThrHS | CQ14: P54SchlEnrlCollege | CR14: P54NotEnrlInSch | CS14: P57Pop25andOver | CT14: P57LessThan9thGrade | CU14: P579thto12thNoDip | CV14: P57HSGrad | CW14: P57SomeCollege | CX14: P57AssocDeg | CY14: P57BachelDeg | CZ14: P57GradorProfDeg | DA14: P57HSGradorHigher | DB14: P57CollGradorHigher | DC14: P42NativePop | DD14: P42ForeignBornPop | DE14: P42BornStateOfRes | DF14: P37NativePop2 | DG14: P37ForeignBornPop2 | DH14: P49DroveAlone | DI14: P49CarPooled | DJ14: P49PublicTranspt | DK14: P49Walked | DL14: P49OtherMeans | DM14: P49WorkedAtHome | DN14: P80HHInc<10K | DO14: P80HHInc10to15K | DP14: P80HHInc15to25K | DQ14: P80HHInc25to35K | DR14: P80HHInc35to50K | DS14: P80HHInc50to75K | DT14: P80HHInc75to100K | DU14: P80HHInc100to150K | DV14: P80HHInc>150K | DW14: H25YearStBlt89to90 | DX14: H25YearStBlt85to88 | DY14: H25YearStBlt80to84 | DZ14: H25YearStBlt70to79 | EA14: H25YearStBlt60to69 | EB14: H25YearStBlt50to59 | EC14: H25YearStBlt40to49 | ED14: H25YearStBlt39earlier | EE14: P107FamInc<10K | EF14: P107FamInc10to15K | EG14: P107FamInc15to25K | EH14: P107FamInc25to35K | EI14: P107FamInc35to50K | EJ14: P107FamInc50to75K | EK14: P107FamInc75to100K | EL14: P107FamInc100to150K | EM14: P107FamInc>150K | EN14: P107AMedFamInc | EO14: P110NonFamInc<10K | EP14: P110NonFamInc10to15K | EQ14: P110NonFamInc15to25K | ER14: P110NonFamInc25to35K | ES14: P110NonFamInc35to50K | ET14: P110NonFamInc50to75K | EU14: P110NonFamInc75to100K | EV14: P110NonFamInc100to150K | EW14: P110NonFamInc>150K | EX14: P110AMedNonFamInc | EY14: H16HU1Room | EZ14: H16HU2Room | FA14: H16HU3Room | FB14: H16HU4Room | FC14: H16HU5Room | FD14: H16HU6Room | FE14: H16HU7Room | FF14: H16HU8Room | FG14: H16HU9+Room | FH14: H43GrossRnt<100 | FI14: H43GrossRnt100to149 | FJ14: H43GrossRnt150to199 | FK14: H43GrossRnt200to249 | FL14: H43GrossRnt250to299 | FM14: H43GrossRnt300to349 | FN14: H43GrossRnt350to399 | FO14: H43GrossRnt400to449 | FP14: H43GrossRnt450to499 | FQ14: H43GrossRnt500to549 | FR14: H43GrossRnt550to599 | FS14: H43GrossRnt600to649 | FT14: H43GrossRnt650to699 | FU14: H43GrossRnt700to749 | FV14: H43GrossRnt750to999 | FW14: H43GrossRnt1000Plus | FX14: H43NoCashRent | FY14: H43MedGrossRent | FZ14: H51GrossRnt<20PctHHInc | GA14: H51GrossRnt20to24PctHHInc | GB14: H51GrossRnt25to29PctHHInc | GC14: H51GrossRnt30to34PctHHInc | GD14: H51GrossRnt35PctOrMoreHHInc | GE14: H51GrossRntAsPctHHIncNotComp | GF14: H52HUwMtgMoOwnCst<200 | GG14: H52HUwMtgMoOwnCst200to299 | GH14: H52HUwMtgMoOwnCst300to399 | GI14: H52HUwMtgMoOwnCst400to499 | GJ14: H52HUwMtgMoOwnCst500to599 | GK14: H52HUwMtgMoOwnCst600to699 | GL14: H52HUwMtgMoOwnCst700to799 | GM14: H52HUwMtgMoOwnCst800to899 | GN14: H52HUwMtgMoOwnCst900to999 | GO14: H52HUwMtgMoOwnCst1000to1249 | GP14: H52HUwMtgMoOwnCst1250to1499 | GQ14: H52HUwMtgMoOwnCst1500to1999 | GR14: H52HUwMtgMoOwnCst2000More | GS14: H52HUwNoMtgMoOwnCst<100 | GT14: H52HUwNoMtgMoOwnCst100to149 | GU14: H52HUwNoMtgMoOwnCst150to199 | GV14: H52HUwNoMtgMoOwnCst200to249 | GW14: H52HUwNoMtgMoOwnCst250to299 | GX14: H52HUwNoMtgMoOwnCst300to349 | GY14: H52HUwNoMtgMoOwnCst350to399 | GZ14: H52HUwNoMtgMoOwnCst400More | HA14: H52AMedMoOwnCstWMortg | HB14: H52AMedMoOwnCstWNoMortg | HC14: H58HUwMtgMOC<20pHHInc | HD14: H58HUwMtgMOC20to24pHHInc | HE14: H58HUwMtgMOC25to29pHHInc | HF14: H58HUwMtgMOC30to34pHHInc | HG14: H58wMtgMOC>35pHHInc | HH14: H58HUwMtgMOCNotComp | HI14: H58HUwNoMtgMOC<20pHHInc | HJ14: H58HUwNoMtgMOC20to24pHHInc | HK14: H58HUwNoMtgMOC25to29pHHInc | HL14: H58HUwNoMtgMOC30to34pHHInc | HM14: H58wNoMtgMOC>35pHHInc | HN14: H58HUwNoMtgMOCNotComp | HO14: H61OOHUVal<15k | HP14: H61OOHUVal15to19k | HQ14: H61OOHUVal20to24k | HR14: H61OOHUVal25to29k | HS14: H61OOHUVal30to34k | HT14: H61OOHUVal35to39k | HU14: H61OOHUVal40to44k | HV14: H61OOHUVal45to49k | HW14: H61OOHUVal50to59k | HX14: H61OOHUVal60to74k | HY14: H61OOHUVal75to99k | HZ14: H61OOHUVal100to124k | IA14: H61OOHUVal125to149k | IB14: H61OOHUVal150to174k | IC14: H61OOHUVal175to199k | ID14: H61OOHUVal200to249k | IE14: H61OOHUVal250to299k | IF14: H61OOHUVal300to399k | IG14: H61OOHUVal400to499k | IH14: H61OOHUVal500kOrMore | II14: H61aOOHUMedVal
A18: Other Demo Data - Query Name: QryAllTowns-ACSDemographicSheet
A19: TOWN_NAME | B19: FIPS | C19: TOWNCNTY | D19: COUSUB | E19: POP80 | F19: POP90CDCEN | G19: POP2000CEN | H19: POP2010CEN | I19: POP2025-Proj | J19: POP2030-Proj | K19: POP2040-Proj | L19: SF80 | M19: MF80 | N19: MH80 | O19: SF81 | P19: MF81 | Q19: MH81 | R19: SF82 | S19: MF82 | T19: MH82 | U19: SF83 | V19: MF83 | W19: MH83 | X19: SF84_OSP | Y19: MF84_OSP | Z19: MH84_OSP | AA19: SF85_OSP | AB19: MF85_OSP | AC19: MH85_OSP | AD19: SF86_OSP | AE19: MF86_OSP | AF19: MH86_OSP | AG19: SF87_OSP | AH19: MF87_OSP | AI19: MH87_OSP | AJ19: SF88_OSP | AK19: MF88_OSP | AL19: MH88_OSP | AM19: SF89_OSP | AN19: MF89_OSP | AO19: MH89_OSP | AP19: SF90_OSP | AQ19: MF90_OSP | AR19: MH90_OSP | AS19: SF91_OSP | AT19: MF91_OSP | AU19: MH91_OSP | AV19: SF92_OSP | AW19: MF92_OSP | AX19: MH92_OSP | AY19: SF93_OSP | AZ19: MF93_OSP | BA19: MH93_OSP | BB19: SF94_OSP | BC19: MF94_OSP | BD19: MH94_OSP | BE19: SF95_OSP | BF19: MF95_OSP | BG19: MH95_OSP | BH19: SF96_OSP | BI19: MF96_OSP | BJ19: MH96_OSP | BK19: SF97_OSP | BL19: MF97_OSP | BM19: MH97_OSP | BN19: SF98_OSP | BO19: MF98_OSP | BP19: MH98_OSP | BQ19: SF99_OSP | BR19: MF99_OSP | BS19: MH99_OSP | BT19: SF00_OSP | BU19: MF00_OSP | BV19: MH00_OSP | BW19: SF01_OSP | BX19: MF01_OSP | BY19: MH01_OSP | BZ19: SF02_OSP | CA19: MF02_OSP | CB19: MH02_OSP | CC19: SF03_OSP | CD19: MF03_OSP | CE19: MH03_OSP | CF19: SF04_OSP | CG19: MF04_OSP | CH19: MH04_OSP | CI19: SF05_OSP | CJ19: MF05_OSP | CK19: MH05_OSP | CL19: SF06_OSP | CM19: MF06_OSP | CN19: MH06_OSP | CO19: SF07_OSP | CP19: MF07_OSP | CQ19: MH07_OSP | CR19: SF08_OSP | CS19: MF08_OSP | CT19: MH08_OSP | CU19: SF09_OSP | CV19: MF09_OSP | CW19: MH09_OSP | CX19: SF10_OSP | CY19: MF10_OSP | CZ19: MH10_OSP | DA19: SF11_OSP | DB19: MF11_OSP | DC19: MH11_OSP | DD19: SF12_OSP | DE19: MF12_OSP | DF19: MH12_OSP | DG19: SF13_OSP | DH19: MF13_OSP | DI19: MH13_OSP | DJ19: SF14_OSP | DK19: MF14_OSP | DL19: MH14_OSP | DM19: SF15_OSP | DN19: MF15_OSP | DO19: MH15_OSP | DP19: SF16_OSP | DQ19: MF16_OSP | DR19: MH16_OSP | DS19: SF17_OSP | DT19: MF17_OSP | DU19: MH17_OSP | DV19: SF18_OSP | DW19: MF18_OSP | DX19: MH18_OSP | DY19: SF19_OSP | DZ19: MF19_OSP | EA19: MH19_OSP | EB19: COMMENTS | EC19: CNTY_CODE
A20: =VLOOKUP(DropDownList!$B$47,CntyQuery!$A$118:$FZ$154,A$1) -> Atkinson | B20: =VLOOKUP(DropDownList!$B$47,CntyQuery!$A$118:$FZ$154,B$1) -> 15005 | C20: =VLOOKUP(DropDownList!$B$47,CntyQuery!$A$118:$FZ$154,C$1) -> 801 | D20: =VLOOKUP(DropDownList!$B$47,CntyQuery!$A$118:$FZ$154,D$1) -> 02340 | E20: =VLOOKUP(DropDownList!$B$47,CntyQuery!$A$118:$FZ$154,E$1) -> 4397 | F20: =VLOOKUP(DropDownList!$B$47,CntyQuery!$A$118:$FZ$154,F$1) -> 5188 | G20: =VLOOKUP(DropDownList!$B$47,CntyQuery!$A$118:$FZ$154,G$1) -> 6178 | H20: =VLOOKUP(DropDownList!$B$47,CntyQuery!$A$118:$FZ$154,H$1) -> 6751 | I20: =VLOOKUP(DropDownList!$B$47,CntyQuery!$A$118:$FZ$154,I$1) -> 7358 | J20: =VLOOKUP(DropDownList!$B$47,CntyQuery!$A$118:$FZ$154,J$1) -> 7485 | K20: =VLOOKUP(DropDownList!$B$47,CntyQuery!$A$118:$FZ$154,K$1) -> 7536 | L20: =VLOOKUP(DropDownList!$B$47,CntyQuery!$A$118:$FZ$154,L$1) -> 24 | M20: =VLOOKUP(DropDownList!$B$47,CntyQuery!$A$118:$FZ$154,M$1) -> 0 | N20: =VLOOKUP(DropDownList!$B$47,CntyQuery!$A$118:$FZ$154,N$1) -> 0 | O20: =VLOOKUP(DropDownList!$B$47,CntyQuery!$A$118:$FZ$154,O$1) -> 21 | P20: =VLOOKUP(DropDownList!$B$47,CntyQuery!$A$118:$FZ$154,P$1) -> 0 | Q20: =VLOOKUP(DropDownList!$B$47,CntyQuery!$A$118:$FZ$154,Q$1) -> 0 | R20: =VLOOKUP(DropDownList!$B$47,CntyQuery!$A$118:$FZ$154,R$1) -> 37 | S20: =VLOOKUP(DropDownList!$B$47,CntyQuery!$A$118:$FZ$154,S$1) -> 0 | T20: =VLOOKUP(DropDownList!$B$47,CntyQuery!$A$118:$FZ$154,T$1) -> 0 | U20: =VLOOKUP(DropDownList!$B$47,CntyQuery!$A$118:$FZ$154,U$1) -> 23 | V20: =VLOOKUP(DropDownList!$B$47,CntyQuery!$A$118:$FZ$154,V$1) -> 0 | W20: =VLOOKUP(DropDownList!$B$47,CntyQuery!$A$118:$FZ$154,W$1) -> 0 | X20: =VLOOKUP(DropDownList!$B$47,CntyQuery!$A$118:$FZ$154,X$1) -> 42 | Y20: =VLOOKUP(DropDownList!$B$47,CntyQuery!$A$118:$FZ$154,Y$1) -> 0 | Z20: =VLOOKUP(DropDownList!$B$47,CntyQuery!$A$118:$FZ$154,Z$1) -> 14 | AA20: =VLOOKUP(DropDownList!$B$47,CntyQuery!$A$118:$FZ$154,AA$1) -> 60 | AB20: =VLOOKUP(DropDownList!$B$47,CntyQuery!$A$118:$FZ$154,AB$1) -> 0 | AC20: =VLOOKUP(DropDownList!$B$47,CntyQuery!$A$118:$FZ$154,AC$1) -> 0 | AD20: =VLOOKUP(DropDownList!$B$47,CntyQuery!$A$118:$FZ$154,AD$1) -> 59 | AE20: =VLOOKUP(DropDownList!$B$47,CntyQuery!$A$118:$FZ$154,AE$1) -> 0 | AF20: =VLOOKUP(DropDownList!$B$47,CntyQuery!$A$118:$FZ$154,AF$1) -> 0 | AG20: =VLOOKUP(DropDownList!$B$47,CntyQuery!$A$118:$FZ$154,AG$1) -> 196 | AH20: =VLOOKUP(DropDownList!$B$47,CntyQuery!$A$118:$FZ$154,AH$1) -> 0 | AI20: =VLOOKUP(DropDownList!$B$47,CntyQuery!$A$118:$FZ$154,AI$1) -> 0 | AJ20: =VLOOKUP(DropDownList!$B$47,CntyQuery!$A$118:$FZ$154,AJ$1) -> 73 | AK20: =VLOOKUP(DropDownList!$B$47,CntyQuery!$A$118:$FZ$154,AK$1) -> 0 | AL20: =VLOOKUP(DropDownList!$B$47,CntyQuery!$A$118:$FZ$154,AL$1) -> 0 | AM20: =VLOOKUP(DropDownList!$B$47,CntyQuery!$A$118:$FZ$154,AM$1) -> 21 | AN20: =VLOOKUP(DropDownList!$B$47,CntyQuery!$A$118:$FZ$154,AN$1) -> 0 | AO20: =VLOOKUP(DropDownList!$B$47,CntyQuery!$A$118:$FZ$154,AO$1) -> 0 | AP20: =VLOOKUP(DropDownList!$B$47,CntyQuery!$A$118:$FZ$154,AP$1) -> 13 | AQ20: =VLOOKUP(DropDownList!$B$47,CntyQuery!$A$118:$FZ$154,AQ$1) -> 54 | AR20: =VLOOKUP(DropDownList!$B$47,CntyQuery!$A$118:$FZ$154,AR$1) -> 0 | AS20: =VLOOKUP(DropDownList!$B$47,CntyQuery!$A$118:$FZ$154,AS$1) -> 20 | AT20: =VLOOKUP(DropDownList!$B$47,CntyQuery!$A$118:$FZ$154,AT$1) -> 43 | AU20: =VLOOKUP(DropDownList!$B$47,CntyQuery!$A$118:$FZ$154,AU$1) -> 0 | AV20: =VLOOKUP(DropDownList!$B$47,CntyQuery!$A$118:$FZ$154,AV$1) -> 11 | AW20: =VLOOKUP(DropDownList!$B$47,CntyQuery!$A$118:$FZ$154,AW$1) -> 44 | AX20: =VLOOKUP(DropDownList!$B$47,CntyQuery!$A$118:$FZ$154,AX$1) -> 0 | AY20: =VLOOKUP(DropDownList!$B$47,CntyQuery!$A$118:$FZ$154,AY$1) -> 18 | AZ20: =VLOOKUP(DropDownList!$B$47,CntyQuery!$A$118:$FZ$154,AZ$1) -> 48 | BA20: =VLOOKUP(DropDownList!$B$47,CntyQuery!$A$118:$FZ$154,BA$1) -> 0 | BB20: =VLOOKUP(DropDownList!$B$47,CntyQuery!$A$118:$FZ$154,BB$1) -> 25 | BC20: =VLOOKUP(DropDownList!$B$47,CntyQuery!$A$118:$FZ$154,BC$1) -> 28 | BD20: =VLOOKUP(DropDownList!$B$47,CntyQuery!$A$118:$FZ$154,BD$1) -> 0 | BE20: =VLOOKUP(DropDownList!$B$47,CntyQuery!$A$118:$FZ$154,BE$1) -> 33 | BF20: =VLOOKUP(DropDownList!$B$47,CntyQuery!$A$118:$FZ$154,BF$1) -> 8 | BG20: =VLOOKUP(DropDownList!$B$47,CntyQuery!$A$118:$FZ$154,BG$1) -> 0 | BH20: =VLOOKUP(DropDownList!$B$47,CntyQuery!$A$118:$FZ$154,BH$1) -> 49 | BI20: =VLOOKUP(DropDownList!$B$47,CntyQuery!$A$118:$FZ$154,BI$1) -> 16 | BJ20: =VLOOKUP(DropDownList!$B$47,CntyQuery!$A$118:$FZ$154,BJ$1) -> 0 | BK20: =VLOOKUP(DropDownList!$B$47,CntyQuery!$A$118:$FZ$154,BK$1) -> 34 | BL20: =VLOOKUP(DropDownList!$B$47,CntyQuery!$A$118:$FZ$154,BL$1) -> 8 | BM20: =VLOOKUP(DropDownList!$B$47,CntyQuery!$A$118:$FZ$154,BM$1) -> 0 | BN20: =VLOOKUP(DropDownList!$B$47,CntyQuery!$A$118:$FZ$154,BN$1) -> 45 | BO20: =VLOOKUP(DropDownList!$B$47,CntyQuery!$A$118:$FZ$154,BO$1) -> 13 | BP20: =VLOOKUP(DropDownList!$B$47,CntyQuery!$A$118:$FZ$154,BP$1) -> 0 | BQ20: =VLOOKUP(DropDownList!$B$47,CntyQuery!$A$118:$FZ$154,BQ$1) -> 49 | BR20: =VLOOKUP(DropDownList!$B$47,CntyQuery!$A$118:$FZ$154,BR$1) -> 76 | BS20: =VLOOKUP(DropDownList!$B$47,CntyQuery!$A$118:$FZ$154,BS$1) -> 0 | BT20: =VLOOKUP(DropDownList!$B$47,CntyQuery!$A$118:$FZ$154,BT$1) -> 30 | BU20: =VLOOKUP(DropDownList!$B$47,CntyQuery!$A$118:$FZ$154,BU$1) -> 44 | BV20: =VLOOKUP(DropDownList!$B$47,CntyQuery!$A$118:$FZ$154,BV$1) -> 2 | BW20: =VLOOKUP(DropDownList!$B$47,CntyQuery!$A$118:$FZ$154,BW$1) -> 34 | BX20: =VLOOKUP(DropDownList!$B$47,CntyQuery!$A$118:$FZ$154,BX$1) -> 54 | BY20: =VLOOKUP(DropDownList!$B$47,CntyQuery!$A$118:$FZ$154,BY$1) -> 0 | BZ20: =VLOOKUP(DropDownList!$B$47,CntyQuery!$A$118:$FZ$154,BZ$1) -> 11 | CA20: =VLOOKUP(DropDownList!$B$47,CntyQuery!$A$118:$FZ$154,CA$1) -> 14 | CB20: =VLOOKUP(DropDownList!$B$47,CntyQuery!$A$118:$FZ$154,CB$1) -> 0 | CC20: =VLOOKUP(DropDownList!$B$47,CntyQuery!$A$118:$FZ$154,CC$1) -> 16 | CD20: =VLOOKUP(DropDownList!$B$47,CntyQuery!$A$118:$FZ$154,CD$1) -> 8 | CE20: =VLOOKUP(DropDownList!$B$47,CntyQuery!$A$118:$FZ$154,CE$1) -> 0 | CF20: =VLOOKUP(DropDownList!$B$47,CntyQuery!$A$118:$FZ$154,CF$1) -> 4 | CG20: =VLOOKUP(DropDownList!$B$47,CntyQuery!$A$118:$FZ$154,CG$1) -> 2 | CH20: =VLOOKUP(DropDownList!$B$47,CntyQuery!$A$118:$FZ$154,CH$1) -> 0 | CI20: =VLOOKUP(DropDownList!$B$47,CntyQuery!$A$118:$FZ$154,CI$1) -> 10 | CJ20: =VLOOKUP(DropDownList!$B$47,CntyQuery!$A$118:$FZ$154,CJ$1) -> 8 | CK20: =VLOOKUP(DropDownList!$B$47,CntyQuery!$A$118:$FZ$154,CK$1) -> 0 | CL20: =VLOOKUP(DropDownList!$B$47,CntyQuery!$A$118:$FZ$154,CL$1) -> 6 | CM20: =VLOOKUP(DropDownList!$B$47,CntyQuery!$A$118:$FZ$154,CM$1) -> 0 | CN20: =VLOOKUP(DropDownList!$B$47,CntyQuery!$A$118:$FZ$154,CN$1) -> 0 | CO20: =VLOOKUP(DropDownList!$B$47,CntyQuery!$A$118:$FZ$154,CO$1) -> 8 | CP20: =VLOOKUP(DropDownList!$B$47,CntyQuery!$A$118:$FZ$154,CP$1) -> 0 | CQ20: =VLOOKUP(DropDownList!$B$47,CntyQuery!$A$118:$FZ$154,CQ$1) -> 0 | CR20: =VLOOKUP(DropDownList!$B$47,CntyQuery!$A$118:$FZ$154,CR$1) -> 3 | CS20: =VLOOKUP(DropDownList!$B$47,CntyQuery!$A$118:$FZ$154,CS$1) -> 0 | CT20: =VLOOKUP(DropDownList!$B$47,CntyQuery!$A$118:$FZ$154,CT$1) -> 0 | CU20: =VLOOKUP(DropDownList!$B$47,CntyQuery!$A$118:$FZ$154,CU$1) -> 5 | CV20: =VLOOKUP(DropDownList!$B$47,CntyQuery!$A$118:$FZ$154,CV$1) -> -2 | CW20: =VLOOKUP(DropDownList!$B$47,CntyQuery!$A$118:$FZ$154,CW$1) -> 0 | CX20: =VLOOKUP(DropDownList!$B$47,CntyQuery!$A$118:$FZ$154,CX$1) -> 5 | CY20: =VLOOKUP(DropDownList!$B$47,CntyQuery!$A$118:$FZ$154,CY$1) -> 0 | CZ20: =VLOOKUP(DropDownList!$B$47,CntyQuery!$A$118:$FZ$154,CZ$1) -> 0 | DA20: =VLOOKUP(DropDownList!$B$47,CntyQuery!$A$118:$FZ$154,DA$1) -> 4 | DB20: =VLOOKUP(DropDownList!$B$47,CntyQuery!$A$118:$FZ$154,DB$1) -> -1 | DC20: =VLOOKUP(DropDownList!$B$47,CntyQuery!$A$118:$FZ$154,DC$1) -> 0 | DD20: =VLOOKUP(DropDownList!$B$47,CntyQuery!$A$118:$FZ$154,DD$1) -> 5 | DE20: =VLOOKUP(DropDownList!$B$47,CntyQuery!$A$118:$FZ$154,DE$1) -> -1 | DF20: =VLOOKUP(DropDownList!$B$47,CntyQuery!$A$118:$FZ$154,DF$1) -> 0 | DG20: =VLOOKUP(DropDownList!$B$47,CntyQuery!$A$118:$FZ$154,DG$1) -> 8 | DH20: =VLOOKUP(DropDownList!$B$47,CntyQuery!$A$118:$FZ$154,DH$1) -> 0 | DI20: =VLOOKUP(DropDownList!$B$47,CntyQuery!$A$118:$FZ$154,DI$1) -> 0 | DJ20: =VLOOKUP(DropDownList!$B$47,CntyQuery!$A$118:$FZ$154,DJ$1) -> 3 | DK20: =VLOOKUP(DropDownList!$B$47,CntyQuery!$A$118:$FZ$154,DK$1) -> 0 | DL20: =VLOOKUP(DropDownList!$B$47,CntyQuery!$A$118:$FZ$154,DL$1) -> 0 | DM20: =VLOOKUP(DropDownList!$B$47,CntyQuery!$A$118:$FZ$154,DM$1) -> 6 | DN20: =VLOOKUP(DropDownList!$B$47,CntyQuery!$A$118:$FZ$154,DN$1) -> 12 | DO20: =VLOOKUP(DropDownList!$B$47,CntyQuery!$A$118:$FZ$154,DO$1) -> 0 | DP20: =VLOOKUP(DropDownList!$B$47,CntyQuery!$A$118:$FZ$154,DP$1) -> 3 | DQ20: =VLOOKUP(DropDownList!$B$47,CntyQuery!$A$118:$FZ$154,DQ$1) -> 30 | DR20: =VLOOKUP(DropDownList!$B$47,CntyQuery!$A$118:$FZ$154,DR$1) -> 0 | DS20: =VLOOKUP(DropDownList!$B$47,CntyQuery!$A$118:$FZ$154,DS$1) -> 4 | DT20: =VLOOKUP(DropDownList!$B$47,CntyQuery!$A$118:$FZ$154,DT$1) -> 44 | DU20: =VLOOKUP(DropDownList!$B$47,CntyQuery!$A$118:$FZ$154,DU$1) -> 0 | DV20: =VLOOKUP(DropDownList!$B$47,CntyQuery!$A$118:$FZ$154,DV$1) -> 27 | DW20: =VLOOKUP(DropDownList!$B$47,CntyQuery!$A$118:$FZ$154,DW$1) -> 41 | DX20: =VLOOKUP(DropDownList!$B$47,CntyQuery!$A$118:$FZ$154,DX$1) -> 0 | DY20: =VLOOKUP(DropDownList!$B$47,CntyQuery!$A$118:$FZ$154,DY$1) -> 20 | DZ20: =VLOOKUP(DropDownList!$B$47,CntyQuery!$A$118:$FZ$154,DZ$1) -> 0 | EA20: =VLOOKUP(DropDownList!$B$47,CntyQuery!$A$118:$FZ$154,EA$1) -> 0 | EB20: =VLOOKUP(DropDownList!$B$47,CntyQuery!$A$118:$FZ$154,EB$1) ->  | EC20: =VLOOKUP(DropDownList!$B$47,CntyQuery!$A$118:$FZ$154,EC$1) -> 8 | ED20: =VLOOKUP(DropDownList!$B$47,CntyQuery!$A$118:$FZ$154,ED$1) -> 0 | EE20: =VLOOKUP(DropDownList!$B$47,CntyQuery!$A$118:$FZ$154,EE$1) -> 0 | EF20: =VLOOKUP(DropDownList!$B$47,CntyQuery!$A$118:$FZ$154,EF$1) -> 0 | EG20: =VLOOKUP(DropDownList!$B$47,CntyQuery!$A$118:$FZ$154,EG$1) -> 0
A23: NH Employment Data | B23: Query Name: DPQryEmploymentByCnty
A24: AreaName | B24: COUNTYCODE | C24: TOTP & G2001 | D24: TOT2001 | E24: GOODPRO2001 | F24: SERVICEPROMAN2001 | G24: WAGEP & G2001 | H24: WAGETOT2001 | I24: WAGEGOODPRO2001 | J24: WAGESERVICEPRO2001 | K24: TOTP & G2002 | L24: TOT2002 | M24: GOODPRO2002 | N24: SERVICEPROMAN2002 | O24: WAGEP & G2002 | P24: WAGETOT2002 | Q24: WAGEGOODPRO2002 | R24: WAGESERVICEPRO2002 | S24: TOTP & G2003 | T24: TOT2003 | U24: GOODPRO2003 | V24: SERVICEPROMAN2003 | W24: WAGEP & G2003 | X24: WAGETOT2003 | Y24: WAGEGOODPRO2003 | Z24: WAGESERVICEPRO2003 | AA24: TOTP & G2004 | AB24: TOT2004 | AC24: GOODPRO2004 | AD24: SERVICEPROMAN2004 | AE24: WAGEP & G2004 | AF24: WAGETOT2004 | AG24: WAGEGOODPRO2004 | AH24: WAGESERVICEPRO2004 | AI24: TOTP & G2005 | AJ24: TOT2005 | AK24: GOODPRO2005 | AL24: SERVICEPROMAN2005 | AM24: WAGEP & G2005 | AN24: WAGETOT2005 | AO24: WAGEGOODPRO2005 | AP24: WAGESERVICEPRO2005 | AQ24: TOTP & G2006 | AR24: TOT2006 | AS24: GOODPRO2006 | AT24: SERVICEPROMAN2006 | AU24: WAGEP & G2006 | AV24: WAGETOT2006 | AW24: WAGEGOODPRO2006 | AX24: WAGESERVICEPRO2006 | AY24: TOTP & G2007 | AZ24: TOT2007 | BA24: GOODPRO2007 | BB24: SERVICEPROMAN2007 | BC24: WAGEP & G2007 | BD24: WAGETOT2007 | BE24: WAGEGOODPRO2007 | BF24: WAGESERVICEPRO2007 | BG24: TOTP & G2008 | BH24: TOT2008 | BI24: GOODPRO2008 | BJ24: SERVICEPROMAN2008 | BK24: WAGEP & G2008 | BL24: WAGETOT2008 | BM24: WAGEGOODPRO2008 | BN24: WAGESERVICEPRO2008 | BO24: TOTP & G2009 | BP24: TOT2009 | BQ24: GOODPRO2009 | BR24: SERVICEPROMAN2009 | BS24: WAGEP & G2009 | BT24: WAGETOT2009 | BU24: WAGEGOODPRO2009 | BV24: WAGESERVICEPRO2009 | BW24: TOTP & G2010 | BX24: TOT2010 | BY24: GOODPRO2010 | BZ24: SERVICEPROMAN2010 | CA24: WAGEP & G2010 | CB24: WAGETOT2010 | CC24: WAGEGOODPRO2010 | CD24: WAGESERVICEPRO2010 | CE24: TOTP & G2011 | CF24: TOT2011 | CG24: GOODPRO2011 | CH24: SERVICEPROMAN2011 | CI24: WAGEP & G2011 | CJ24: WAGETOT2011 | CK24: WAGEGOODPRO2011 | CL24: WAGESERVICEPRO2011 | CM24: TOTP & G2012 | CN24: TOT2012 | CO24: GOODPRO2012 | CP24: SERVICEPROMAN2012 | CQ24: WAGEP & G2012 | CR24: WAGETOT2012 | CS24: WAGEGOODPRO2012 | CT24: WAGESERVICEPRO2012 | CU24: TOTP & G2013 | CV24: TOT2013 | CW24: GOODPRO2013 | CX24: SERVICEPROMAN2013 | CY24: WAGEP & G2013 | CZ24: WAGETOT2013 | DA24: WAGEGOODPRO2013 | DB24: WAGESERVICEPRO2013 | DC24: TOTP & G2014 | DD24: TOT2014 | DE24: GOODPRO2014 | DF24: SERVICEPROMAN2014 | DG24: WAGEP & G2014 | DH24: WAGETOT2014 | DI24: WAGEGOODPRO2014 | DJ24: WAGESERVICEPRO2014 | DK24: TOTP & G2015 | DL24: TOT2015 | DM24: GOODPRO2015 | DN24: SERVICEPROMAN2015 | DO24: WAGEP & G2015 | DP24: WAGETOT2015 | DQ24: WAGEGOODPRO2015 | DR24: WAGESERVICEPRO2015 | DS24: TOTP & G2016 | DT24: TOT2016 | DU24: GOODPRO2016 | DV24: SERVICEPROMAN2016 | DW24: WAGEP & G2016 | DX24: WAGETOT2016 | DY24: WAGEGOODPRO2016 | DZ24: WAGESERVICEPRO2016 | EA24: TOTP & G2017 | EB24: TOT2017 | EC24: GOODPRO2017 | ED24: SERVICEPROMAN2017 | EE24: WAGEP & G2017 | EF24: WAGETOT2017 | EG24: WAGEGOODPRO2017 | EH24: WAGESERVICEPRO2017 | EI24: TOTP & G2018 | EJ24: TOT2018 | EK24: GOODPRO2018 | EL24: SERVICEPROMAN2018 | EM24: WAGEP & G2018 | EN24: WAGETOT2018 | EO24: WAGEGOODPRO2018 | EP24: WAGESERVICEPRO2018 | EQ24: TOTP & G2019 | ER24: TOT2019 | ES24: TOTGov2019 | ET24: GOODPRO2019 | EU24: SERVICEPROMAN2019 | EV24: WAGEP & G2019 | EW24: WAGETOT2019 | EX24: WAGEGov2019 | EY24: WAGEGOODPRO2019 | EZ24: WAGESERVICEPRO2019 | FA24: SummaryLevel
A25: =VLOOKUP(DropDownList!$B$47,CntyQuery!$A$170:$FJ$213,A$1) -> Atkinson | B25: =VLOOKUP(DropDownList!$B$47,CntyQuery!$A$170:$FJ$213,B$1) -> 8 | C25: =VLOOKUP(DropDownList!$B$47,CntyQuery!$A$170:$FJ$213,C$1) -> 799 | D25: =VLOOKUP(DropDownList!$B$47,CntyQuery!$A$170:$FJ$213,D$1) -> 743 | E25: =VLOOKUP(DropDownList!$B$47,CntyQuery!$A$170:$FJ$213,E$1) -> 261 | F25: =VLOOKUP(DropDownList!$B$47,CntyQuery!$A$170:$FJ$213,F$1) -> 482 | G25: =VLOOKUP(DropDownList!$B$47,CntyQuery!$A$170:$FJ$213,G$1) -> 745.92 | H25: =VLOOKUP(DropDownList!$B$47,CntyQuery!$A$170:$FJ$213,H$1) -> 773.45 | I25: =VLOOKUP(DropDownList!$B$47,CntyQuery!$A$170:$FJ$213,I$1) -> 806.51 | J25: =VLOOKUP(DropDownList!$B$47,CntyQuery!$A$170:$FJ$213,J$1) -> 755.52 | K25: =VLOOKUP(DropDownList!$B$47,CntyQuery!$A$170:$FJ$213,K$1) -> 939 | L25: =VLOOKUP(DropDownList!$B$47,CntyQuery!$A$170:$FJ$213,L$1) -> 848 | M25: =VLOOKUP(DropDownList!$B$47,CntyQuery!$A$170:$FJ$213,M$1) -> 250 | N25: =VLOOKUP(DropDownList!$B$47,CntyQuery!$A$170:$FJ$213,N$1) -> 598 | O25: =VLOOKUP(DropDownList!$B$47,CntyQuery!$A$170:$FJ$213,O$1) -> 675.63 | P25: =VLOOKUP(DropDownList!$B$47,CntyQuery!$A$170:$FJ$213,P$1) -> 719.84 | Q25: =VLOOKUP(DropDownList!$B$47,CntyQuery!$A$170:$FJ$213,Q$1) -> 866.61 | R25: =VLOOKUP(DropDownList!$B$47,CntyQuery!$A$170:$FJ$213,R$1) -> 658.49 | S25: =VLOOKUP(DropDownList!$B$47,CntyQuery!$A$170:$FJ$213,S$1) -> 996 | T25: =VLOOKUP(DropDownList!$B$47,CntyQuery!$A$170:$FJ$213,T$1) -> 924 | U25: =VLOOKUP(DropDownList!$B$47,CntyQuery!$A$170:$FJ$213,U$1) -> 244 | V25: =VLOOKUP(DropDownList!$B$47,CntyQuery!$A$170:$FJ$213,V$1) -> 680 | W25: =VLOOKUP(DropDownList!$B$47,CntyQuery!$A$170:$FJ$213,W$1) -> 661.16 | X25: =VLOOKUP(DropDownList!$B$47,CntyQuery!$A$170:$FJ$213,X$1) -> 685.27 | Y25: =VLOOKUP(DropDownList!$B$47,CntyQuery!$A$170:$FJ$213,Y$1) -> 878.72 | Z25: =VLOOKUP(DropDownList!$B$47,CntyQuery!$A$170:$FJ$213,Z$1) -> 615.87 | AA25: =VLOOKUP(DropDownList!$B$47,CntyQuery!$A$170:$FJ$213,AA$1) -> 952 | AB25: =VLOOKUP(DropDownList!$B$47,CntyQuery!$A$170:$FJ$213,AB$1) -> 891 | AC25: =VLOOKUP(DropDownList!$B$47,CntyQuery!$A$170:$FJ$213,AC$1) -> 239 | AD25: =VLOOKUP(DropDownList!$B$47,CntyQuery!$A$170:$FJ$213,AD$1) -> 652 | AE25: =VLOOKUP(DropDownList!$B$47,CntyQuery!$A$170:$FJ$213,AE$1) -> 697.71 | AF25: =VLOOKUP(DropDownList!$B$47,CntyQuery!$A$170:$FJ$213,AF$1) -> 715.81 | AG25: =VLOOKUP(DropDownList!$B$47,CntyQuery!$A$170:$FJ$213,AG$1) -> 984.22 | AH25: =VLOOKUP(DropDownList!$B$47,CntyQuery!$A$170:$FJ$213,AH$1) -> 617.17 | AI25: =VLOOKUP(DropDownList!$B$47,CntyQuery!$A$170:$FJ$213,AI$1) -> 971 | AJ25: =VLOOKUP(DropDownList!$B$47,CntyQuery!$A$170:$FJ$213,AJ$1) -> 901 | AK25: =VLOOKUP(DropDownList!$B$47,CntyQuery!$A$170:$FJ$213,AK$1) -> 236 | AL25: =VLOOKUP(DropDownList!$B$47,CntyQuery!$A$170:$FJ$213,AL$1) -> 665 | AM25: =VLOOKUP(DropDownList!$B$47,CntyQuery!$A$170:$FJ$213,AM$1) -> 752.67 | AN25: =VLOOKUP(DropDownList!$B$47,CntyQuery!$A$170:$FJ$213,AN$1) -> 779.44 | AO25: =VLOOKUP(DropDownList!$B$47,CntyQuery!$A$170:$FJ$213,AO$1) -> 1064.34 | AP25: =VLOOKUP(DropDownList!$B$47,CntyQuery!$A$170:$FJ$213,AP$1) -> 678.14 | AQ25: =VLOOKUP(DropDownList!$B$47,CntyQuery!$A$170:$FJ$213,AQ$1) -> 1014 | AR25: =VLOOKUP(DropDownList!$B$47,CntyQuery!$A$170:$FJ$213,AR$1) -> 954 | AS25: =VLOOKUP(DropDownList!$B$47,CntyQuery!$A$170:$FJ$213,AS$1) -> 318 | AT25: =VLOOKUP(DropDownList!$B$47,CntyQuery!$A$170:$FJ$213,AT$1) -> 636 | AU25: =VLOOKUP(DropDownList!$B$47,CntyQuery!$A$170:$FJ$213,AU$1) -> 730.61 | AV25: =VLOOKUP(DropDownList!$B$47,CntyQuery!$A$170:$FJ$213,AV$1) -> 745.35 | AW25: =VLOOKUP(DropDownList!$B$47,CntyQuery!$A$170:$FJ$213,AW$1) -> 943.26 | AX25: =VLOOKUP(DropDownList!$B$47,CntyQuery!$A$170:$FJ$213,AX$1) -> 646.19 | AY25: =VLOOKUP(DropDownList!$B$47,CntyQuery!$A$170:$FJ$213,AY$1) -> 1007 | AZ25: =VLOOKUP(DropDownList!$B$47,CntyQuery!$A$170:$FJ$213,AZ$1) -> 939 | BA25: =VLOOKUP(DropDownList!$B$47,CntyQuery!$A$170:$FJ$213,BA$1) -> 309 | BB25: =VLOOKUP(DropDownList!$B$47,CntyQuery!$A$170:$FJ$213,BB$1) -> 630 | BC25: =VLOOKUP(DropDownList!$B$47,CntyQuery!$A$170:$FJ$213,BC$1) -> 849.4 | BD25: =VLOOKUP(DropDownList!$B$47,CntyQuery!$A$170:$FJ$213,BD$1) -> 870.92 | BE25: =VLOOKUP(DropDownList!$B$47,CntyQuery!$A$170:$FJ$213,BE$1) -> 1096.54 | BF25: =VLOOKUP(DropDownList!$B$47,CntyQuery!$A$170:$FJ$213,BF$1) -> 760.51 | BG25: =VLOOKUP(DropDownList!$B$47,CntyQuery!$A$170:$FJ$213,BG$1) -> 1002 | BH25: =VLOOKUP(DropDownList!$B$47,CntyQuery!$A$170:$FJ$213,BH$1) -> 939 | BI25: =VLOOKUP(DropDownList!$B$47,CntyQuery!$A$170:$FJ$213,BI$1) -> 253 | BJ25: =VLOOKUP(DropDownList!$B$47,CntyQuery!$A$170:$FJ$213,BJ$1) -> 686 | BK25: =VLOOKUP(DropDownList!$B$47,CntyQuery!$A$170:$FJ$213,BK$1) -> 902.65 | BL25: =VLOOKUP(DropDownList!$B$47,CntyQuery!$A$170:$FJ$213,BL$1) -> 925 | BM25: =VLOOKUP(DropDownList!$B$47,CntyQuery!$A$170:$FJ$213,BM$1) -> 1140.47 | BN25: =VLOOKUP(DropDownList!$B$47,CntyQuery!$A$170:$FJ$213,BN$1) -> 845.58 | BO25: =VLOOKUP(DropDownList!$B$47,CntyQuery!$A$170:$FJ$213,BO$1) -> 922 | BP25: =VLOOKUP(DropDownList!$B$47,CntyQuery!$A$170:$FJ$213,BP$1) -> 856 | BQ25: =VLOOKUP(DropDownList!$B$47,CntyQuery!$A$170:$FJ$213,BQ$1) -> 221 | BR25: =VLOOKUP(DropDownList!$B$47,CntyQuery!$A$170:$FJ$213,BR$1) -> 636 | BS25: =VLOOKUP(DropDownList!$B$47,CntyQuery!$A$170:$FJ$213,BS$1) -> 847.83 | BT25: =VLOOKUP(DropDownList!$B$47,CntyQuery!$A$170:$FJ$213,BT$1) -> 870.43 | BU25: =VLOOKUP(DropDownList!$B$47,CntyQuery!$A$170:$FJ$213,BU$1) -> 1100.69 | BV25: =VLOOKUP(DropDownList!$B$47,CntyQuery!$A$170:$FJ$213,BV$1) -> 790.55 | BW25: =VLOOKUP(DropDownList!$B$47,CntyQuery!$A$170:$FJ$213,BW$1) -> 949 | BX25: =VLOOKUP(DropDownList!$B$47,CntyQuery!$A$170:$FJ$213,BX$1) -> 884 | BY25: =VLOOKUP(DropDownList!$B$47,CntyQuery!$A$170:$FJ$213,BY$1) -> 242 | BZ25: =VLOOKUP(DropDownList!$B$47,CntyQuery!$A$170:$FJ$213,BZ$1) -> 642 | CA25: =VLOOKUP(DropDownList!$B$47,CntyQuery!$A$170:$FJ$213,CA$1) -> 862.69 | CB25: =VLOOKUP(DropDownList!$B$47,CntyQuery!$A$170:$FJ$213,CB$1) -> 885.51 | CC25: =VLOOKUP(DropDownList!$B$47,CntyQuery!$A$170:$FJ$213,CC$1) -> 1069.6 | CD25: =VLOOKUP(DropDownList!$B$47,CntyQuery!$A$170:$FJ$213,CD$1) -> 816.24 | CE25: =VLOOKUP(DropDownList!$B$47,CntyQuery!$A$170:$FJ$213,CE$1) -> 958 | CF25: =VLOOKUP(DropDownList!$B$47,CntyQuery!$A$170:$FJ$213,CF$1) -> 893 | CG25: =VLOOKUP(DropDownList!$B$47,CntyQuery!$A$170:$FJ$213,CG$1) -> 286 | CH25: =VLOOKUP(DropDownList!$B$47,CntyQuery!$A$170:$FJ$213,CH$1) -> 608 | CI25: =VLOOKUP(DropDownList!$B$47,CntyQuery!$A$170:$FJ$213,CI$1) -> 882.75 | CJ25: =VLOOKUP(DropDownList!$B$47,CntyQuery!$A$170:$FJ$213,CJ$1) -> 906.06 | CK25: =VLOOKUP(DropDownList!$B$47,CntyQuery!$A$170:$FJ$213,CK$1) -> 1089.76 | CL25: =VLOOKUP(DropDownList!$B$47,CntyQuery!$A$170:$FJ$213,CL$1) -> 819.77 | CM25: =VLOOKUP(DropDownList!$B$47,CntyQuery!$A$170:$FJ$213,CM$1) -> 1112 | CN25: =VLOOKUP(DropDownList!$B$47,CntyQuery!$A$170:$FJ$213,CN$1) -> 1046 | CO25: =VLOOKUP(DropDownList!$B$47,CntyQuery!$A$170:$FJ$213,CO$1) -> 404 | CP25: =VLOOKUP(DropDownList!$B$47,CntyQuery!$A$170:$FJ$213,CP$1) -> 641 | CQ25: =VLOOKUP(DropDownList!$B$47,CntyQuery!$A$170:$FJ$213,CQ$1) -> 858.1 | CR25: =VLOOKUP(DropDownList!$B$47,CntyQuery!$A$170:$FJ$213,CR$1) -> 874.97 | CS25: =VLOOKUP(DropDownList!$B$47,CntyQuery!$A$170:$FJ$213,CS$1) -> 994.08 | CT25: =VLOOKUP(DropDownList!$B$47,CntyQuery!$A$170:$FJ$213,CT$1) -> 799.93 | CU25: =VLOOKUP(DropDownList!$B$47,CntyQuery!$A$170:$FJ$213,CU$1) -> 1164 | CV25: =VLOOKUP(DropDownList!$B$47,CntyQuery!$A$170:$FJ$213,CV$1) -> 1098 | CW25: =VLOOKUP(DropDownList!$B$47,CntyQuery!$A$170:$FJ$213,CW$1) -> 416 | CX25: =VLOOKUP(DropDownList!$B$47,CntyQuery!$A$170:$FJ$213,CX$1) -> 682 | CY25: =VLOOKUP(DropDownList!$B$47,CntyQuery!$A$170:$FJ$213,CY$1) -> 860.51 | CZ25: =VLOOKUP(DropDownList!$B$47,CntyQuery!$A$170:$FJ$213,CZ$1) -> 877.09 | DA25: =VLOOKUP(DropDownList!$B$47,CntyQuery!$A$170:$FJ$213,DA$1) -> 943.5 | DB25: =VLOOKUP(DropDownList!$B$47,CntyQuery!$A$170:$FJ$213,DB$1) -> 836.57 | DC25: =VLOOKUP(DropDownList!$B$47,CntyQuery!$A$170:$FJ$213,DC$1) -> 1197 | DD25: =VLOOKUP(DropDownList!$B$47,CntyQuery!$A$170:$FJ$213,DD$1) -> 1130 | DE25: =VLOOKUP(DropDownList!$B$47,CntyQuery!$A$170:$FJ$213,DE$1) -> 413 | DF25: =VLOOKUP(DropDownList!$B$47,CntyQuery!$A$170:$FJ$213,DF$1) -> 716 | DG25: =VLOOKUP(DropDownList!$B$47,CntyQuery!$A$170:$FJ$213,DG$1) -> 929 | DH25: =VLOOKUP(DropDownList!$B$47,CntyQuery!$A$170:$FJ$213,DH$1) -> 949.67 | DI25: =VLOOKUP(DropDownList!$B$47,CntyQuery!$A$170:$FJ$213,DI$1) -> 1041.71 | DJ25: =VLOOKUP(DropDownList!$B$47,CntyQuery!$A$170:$FJ$213,DJ$1) -> 896.53 | DK25: =VLOOKUP(DropDownList!$B$47,CntyQuery!$A$170:$FJ$213,DK$1) -> 1180 | DL25: =VLOOKUP(DropDownList!$B$47,CntyQuery!$A$170:$FJ$213,DL$1) -> 1114 | DM25: =VLOOKUP(DropDownList!$B$47,CntyQuery!$A$170:$FJ$213,DM$1) -> 381 | DN25: =VLOOKUP(DropDownList!$B$47,CntyQuery!$A$170:$FJ$213,DN$1) -> 733 | DO25: =VLOOKUP(DropDownList!$B$47,CntyQuery!$A$170:$FJ$213,DO$1) -> 962.04 | DP25: =VLOOKUP(DropDownList!$B$47,CntyQuery!$A$170:$FJ$213,DP$1) -> 980.76 | DQ25: =VLOOKUP(DropDownList!$B$47,CntyQuery!$A$170:$FJ$213,DQ$1) -> 1074.86 | DR25: =VLOOKUP(DropDownList!$B$47,CntyQuery!$A$170:$FJ$213,DR$1) -> 931.82 | DS25: =VLOOKUP(DropDownList!$B$47,CntyQuery!$A$170:$FJ$213,DS$1) -> 1194 | DT25: =VLOOKUP(DropDownList!$B$47,CntyQuery!$A$170:$FJ$213,DT$1) -> 1128 | DU25: =VLOOKUP(DropDownList!$B$47,CntyQuery!$A$170:$FJ$213,DU$1) -> 386 | DV25: =VLOOKUP(DropDownList!$B$47,CntyQuery!$A$170:$FJ$213,DV$1) -> 742 | DW25: =VLOOKUP(DropDownList!$B$47,CntyQuery!$A$170:$FJ$213,DW$1) -> 975.77 | DX25: =VLOOKUP(DropDownList!$B$47,CntyQuery!$A$170:$FJ$213,DX$1) -> 993.46 | DY25: =VLOOKUP(DropDownList!$B$47,CntyQuery!$A$170:$FJ$213,DY$1) -> 1193.65 | DZ25: =VLOOKUP(DropDownList!$B$47,CntyQuery!$A$170:$FJ$213,DZ$1) -> 889.25 | EA25: =VLOOKUP(DropDownList!$B$47,CntyQuery!$A$170:$FJ$213,EA$1) -> 1296 | EB25: =VLOOKUP(DropDownList!$B$47,CntyQuery!$A$170:$FJ$213,EB$1) -> 1226 | EC25: =VLOOKUP(DropDownList!$B$47,CntyQuery!$A$170:$FJ$213,EC$1) -> 407 | ED25: =VLOOKUP(DropDownList!$B$47,CntyQuery!$A$170:$FJ$213,ED$1) -> 818 | EE25: =VLOOKUP(DropDownList!$B$47,CntyQuery!$A$170:$FJ$213,EE$1) -> 970.74 | EF25: =VLOOKUP(DropDownList!$B$47,CntyQuery!$A$170:$FJ$213,EF$1) -> 988.17 | EG25: =VLOOKUP(DropDownList!$B$47,CntyQuery!$A$170:$FJ$213,EG$1) -> 1242.45 | EH25: =VLOOKUP(DropDownList!$B$47,CntyQuery!$A$170:$FJ$213,EH$1) -> 861.61 | EI25: =VLOOKUP(DropDownList!$B$47,CntyQuery!$A$170:$FJ$213,EI$1) -> 1237 | EJ25: =VLOOKUP(DropDownList!$B$47,CntyQuery!$A$170:$FJ$213,EJ$1) -> 1169 | EK25: =VLOOKUP(DropDownList!$B$47,CntyQuery!$A$170:$FJ$213,EK$1) -> 386 | EL25: =VLOOKUP(DropDownList!$B$47,CntyQuery!$A$170:$FJ$213,EL$1) -> 783 | EM25: =VLOOKUP(DropDownList!$B$47,CntyQuery!$A$170:$FJ$213,EM$1) -> 993.9 | EN25: =VLOOKUP(DropDownList!$B$47,CntyQuery!$A$170:$FJ$213,EN$1) -> 1009.02 | EO25: =VLOOKUP(DropDownList!$B$47,CntyQuery!$A$170:$FJ$213,EO$1) -> 1256.43 | EP25: =VLOOKUP(DropDownList!$B$47,CntyQuery!$A$170:$FJ$213,EP$1) -> 887.13 | EQ25: =VLOOKUP(DropDownList!$B$47,CntyQuery!$A$170:$FJ$213,EQ$1) -> 1265 | ER25: =VLOOKUP(DropDownList!$B$47,CntyQuery!$A$170:$FJ$213,ER$1) -> 1197 | ES25: =VLOOKUP(DropDownList!$B$47,CntyQuery!$A$170:$FJ$213,ES$1) -> 68 | ET25: =VLOOKUP(DropDownList!$B$47,CntyQuery!$A$170:$FJ$213,ET$1) -> 374 | EU25: =VLOOKUP(DropDownList!$B$47,CntyQuery!$A$170:$FJ$213,EU$1) -> 823 | EV25: =VLOOKUP(DropDownList!$B$47,CntyQuery!$A$170:$FJ$213,EV$1) -> 992.48 | EW25: =VLOOKUP(DropDownList!$B$47,CntyQuery!$A$170:$FJ$213,EW$1) -> 1004.54 | EX25: =VLOOKUP(DropDownList!$B$47,CntyQuery!$A$170:$FJ$213,EX$1) -> 779.19 | EY25: =VLOOKUP(DropDownList!$B$47,CntyQuery!$A$170:$FJ$213,EY$1) -> 1212.76 | EZ25: =VLOOKUP(DropDownList!$B$47,CntyQuery!$A$170:$FJ$213,EZ$1) -> 909.88 | FA25: =VLOOKUP(DropDownList!$B$47,CntyQuery!$A$170:$FJ$213,FA$1) -> 60
A28: Labor Force and Unemployment Rate | B28: Query Name: DPQryUnempByCnty
A29: PlaceName | B29: LaborForce1990 | C29: LaborForce1991 | D29: LaborForce1992 | E29: LaborForce1993 | F29: LaborForce1994 | G29: LaborForce1995 | H29: LaborForce1996 | I29: LaborForce1997 | J29: LaborForce1998 | K29: LaborForce1999 | L29: LaborForce2000 | M29: LaborForce2001 | N29: LaborForce2002 | O29: LaborForce2003 | P29: NumbEmployed1990 | Q29: NumbEmployed1991 | R29: NumbEmployed1992 | S29: NumbEmployed1993 | T29: NumbEmployed1994 | U29: NumbEmployed1995 | V29: NumbEmployed1996 | W29: NumbEmployed1997 | X29: NumbEmployed1998 | Y29: NumbEmployed1999 | Z29: NumbEmployed2000 | AA29: NumbEmployed2001 | AB29: NumbEmployed2002 | AC29: NumbEmployed2003 | AD29: UnempRate1990 | AE29: UnempRate1991 | AF29: UnempRate1992 | AG29: UnempRate1993 | AH29: UnempRate1994 | AI29: UnempRate1995 | AJ29: UnempRate1996 | AK29: UnempRate1997 | AL29: UnempRate1998 | AM29: UnempRate1999 | AN29: UnempRate2000 | AO29: UnempRate2001 | AP29: UnempRate2002 | AQ29: UnempRate2003 | AR29: NumbUnEmp1990 | AS29: NumbUnEmp1991 | AT29: NumbUnEmp1992 | AU29: NumbUnEmp1993 | AV29: NumbUnEmp1994 | AW29: NumbUnEmp1995 | AX29: NumbUnEmp1996 | AY29: NumbUnEmp1997 | AZ29: NumbUnEmp1998 | BA29: NumbUnEmp1999 | BB29: NumbUnEmp2000 | BC29: NumbUnEmp2001 | BD29: NumbUnEmp2002 | BE29: NumbUnEmp2003 | BF29: LaborForce2004 | BG29: NumbEmployed2004 | BH29: UnempRate2004 | BI29: NumbUnEmp2004 | BJ29: LaborForce2005 | BK29: NumbEmployed2005 | BL29: NumbUnEmp2005 | BM29: UnempRate2005 | BN29: LaborForce2006 | BO29: NumbEmployed2006 | BP29: NumbUnEmp2006 | BQ29: UnempRate2006 | BR29: LaborForce2007 | BS29: NumbEmployed2007 | BT29: NumbUnEmp2007 | BU29: UnempRate2007 | BV29: LaborForce2008 | BW29: NumbEmployed2008 | BX29: NumbUnEmp2008 | BY29: UnempRate2008 | BZ29: LaborForce2009 | CA29: NumbEmployed2009 | CB29: NumbUnEmp2009 | CC29: UnempRate2009 | CD29: LaborForce2010 | CE29: NumbEmployed2010 | CF29: NumbUnEmp2010 | CG29: UnempRate2010 | CH29: LaborForce2011 | CI29: NumbEmployed2011 | CJ29: NumbUnEmp2011 | CK29: UnempRate2011 | CL29: LaborForce2012 | CM29: NumbEmployed2012 | CN29: NumbUnEmp2012 | CO29: UnempRate2012 | CP29: LaborForce2013 | CQ29: NumbEmployed2013 | CR29: NumbUnEmp2013 | CS29: UnempRate2013 | CT29: LaborForce2014 | CU29: NumbEmployed2014 | CV29: NumbUnEmp2014 | CW29: UnempRate2014 | CX29: LaborForce2015 | CY29: NumbEmployed2015 | CZ29: NumbUnEmp2015 | DA29: UnempRate2015 | DB29: LaborForce2016 | DC29: NumbEmployed2016 | DD29: NumbUnEmp2016 | DE29: UnempRate2016 | DF29: LaborForce2017 | DG29: NumbEmployed2017 | DH29: NumbUnEmp2017 | DI29: UnempRate2017 | DJ29: LaborForce2018 | DK29: NumbEmployed2018 | DL29: NumbUnEmp2018 | DM29: UnempRate2018 | DN29: LaborForce2019 | DO29: NumbEmployed2019 | DP29: NumbUnEmp2019 | DQ29: UnempRate2019 | DR29: Place-TownIDNumber
A30: =VLOOKUP(DropDownList!$B$47,CntyQuery!$A$170:$FJ$213,A$1) -> Atkinson | B30: =VLOOKUP(DropDownList!$B$47,CntyQuery!$A$220:$EF$229,B$1) ->  | C30: =VLOOKUP(DropDownList!$B$47,CntyQuery!$A$220:$EF$229,C$1) ->  | D30: =VLOOKUP(DropDownList!$B$47,CntyQuery!$A$220:$EF$229,D$1) ->  | E30: =VLOOKUP(DropDownList!$B$47,CntyQuery!$A$220:$EF$229,E$1) ->  | F30: =VLOOKUP(DropDownList!$B$47,CntyQuery!$A$220:$EF$229,F$1) ->  | G30: =VLOOKUP(DropDownList!$B$47,CntyQuery!$A$220:$EF$229,G$1) ->  | H30: =VLOOKUP(DropDownList!$B$47,CntyQuery!$A$220:$EF$229,H$1) ->  | I30: =VLOOKUP(DropDownList!$B$47,CntyQuery!$A$220:$EF$229,I$1) ->  | J30: =VLOOKUP(DropDownList!$B$47,CntyQuery!$A$220:$EF$229,J$1) ->  | K30: =VLOOKUP(DropDownList!$B$47,CntyQuery!$A$220:$EF$229,K$1) ->  | L30: =VLOOKUP(DropDownList!$B$47,CntyQuery!$A$220:$EF$229,L$1) ->  | M30: =VLOOKUP(DropDownList!$B$47,CntyQuery!$A$220:$EF$229,M$1) ->  | N30: =VLOOKUP(DropDownList!$B$47,CntyQuery!$A$220:$EF$229,N$1) ->  | O30: =VLOOKUP(DropDownList!$B$47,CntyQuery!$A$220:$EF$229,O$1) ->  | P30: =VLOOKUP(DropDownList!$B$47,CntyQuery!$A$220:$EF$229,P$1) ->  | Q30: =VLOOKUP(DropDownList!$B$47,CntyQuery!$A$220:$EF$229,Q$1) ->  | R30: =VLOOKUP(DropDownList!$B$47,CntyQuery!$A$220:$EF$229,R$1) ->  | S30: =VLOOKUP(DropDownList!$B$47,CntyQuery!$A$220:$EF$229,S$1) ->  | T30: =VLOOKUP(DropDownList!$B$47,CntyQuery!$A$220:$EF$229,T$1) ->  | U30: =VLOOKUP(DropDownList!$B$47,CntyQuery!$A$220:$EF$229,U$1) ->  | V30: =VLOOKUP(DropDownList!$B$47,CntyQuery!$A$220:$EF$229,V$1) ->  | W30: =VLOOKUP(DropDownList!$B$47,CntyQuery!$A$220:$EF$229,W$1) ->  | X30: =VLOOKUP(DropDownList!$B$47,CntyQuery!$A$220:$EF$229,X$1) ->  | Y30: =VLOOKUP(DropDownList!$B$47,CntyQuery!$A$220:$EF$229,Y$1) ->  | Z30: =VLOOKUP(DropDownList!$B$47,CntyQuery!$A$220:$EF$229,Z$1) ->  | AA30: =VLOOKUP(DropDownList!$B$47,CntyQuery!$A$220:$EF$229,AA$1) ->  | AB30: =VLOOKUP(DropDownList!$B$47,CntyQuery!$A$220:$EF$229,AB$1) ->  | AC30: =VLOOKUP(DropDownList!$B$47,CntyQuery!$A$220:$EF$229,AC$1) ->  | AD30: =VLOOKUP(DropDownList!$B$47,CntyQuery!$A$220:$EF$229,AD$1) ->  | AE30: =VLOOKUP(DropDownList!$B$47,CntyQuery!$A$220:$EF$229,AE$1) ->  | AF30: =VLOOKUP(DropDownList!$B$47,CntyQuery!$A$220:$EF$229,AF$1) ->  | AG30: =VLOOKUP(DropDownList!$B$47,CntyQuery!$A$220:$EF$229,AG$1) ->  | AH30: =VLOOKUP(DropDownList!$B$47,CntyQuery!$A$220:$EF$229,AH$1) ->  | AI30: =VLOOKUP(DropDownList!$B$47,CntyQuery!$A$220:$EF$229,AI$1) ->  | AJ30: =VLOOKUP(DropDownList!$B$47,CntyQuery!$A$220:$EF$229,AJ$1) ->  | AK30: =VLOOKUP(DropDownList!$B$47,CntyQuery!$A$220:$EF$229,AK$1) ->  | AL30: =VLOOKUP(DropDownList!$B$47,CntyQuery!$A$220:$EF$229,AL$1) ->  | AM30: =VLOOKUP(DropDownList!$B$47,CntyQuery!$A$220:$EF$229,AM$1) ->  | AN30: =VLOOKUP(DropDownList!$B$47,CntyQuery!$A$220:$EF$229,AN$1) ->  | AO30: =VLOOKUP(DropDownList!$B$47,CntyQuery!$A$220:$EF$229,AO$1) ->  | AP30: =VLOOKUP(DropDownList!$B$47,CntyQuery!$A$220:$EF$229,AP$1) ->  | AQ30: =VLOOKUP(DropDownList!$B$47,CntyQuery!$A$220:$EF$229,AQ$1) ->  | AR30: =VLOOKUP(DropDownList!$B$47,CntyQuery!$A$220:$EF$229,AR$1) ->  | AS30: =VLOOKUP(DropDownList!$B$47,CntyQuery!$A$220:$EF$229,AS$1) ->  | AT30: =VLOOKUP(DropDownList!$B$47,CntyQuery!$A$220:$EF$229,AT$1) ->  | AU30: =VLOOKUP(DropDownList!$B$47,CntyQuery!$A$220:$EF$229,AU$1) ->  | AV30: =VLOOKUP(DropDownList!$B$47,CntyQuery!$A$220:$EF$229,AV$1) ->  | AW30: =VLOOKUP(DropDownList!$B$47,CntyQuery!$A$220:$EF$229,AW$1) ->  | AX30: =VLOOKUP(DropDownList!$B$47,CntyQuery!$A$220:$EF$229,AX$1) ->  | AY30: =VLOOKUP(DropDownList!$B$47,CntyQuery!$A$220:$EF$229,AY$1) ->  | AZ30: =VLOOKUP(DropDownList!$B$47,CntyQuery!$A$220:$EF$229,AZ$1) ->  | BA30: =VLOOKUP(DropDownList!$B$47,CntyQuery!$A$220:$EF$229,BA$1) ->  | BB30: =VLOOKUP(DropDownList!$B$47,CntyQuery!$A$220:$EF$229,BB$1) ->  | BC30: =VLOOKUP(DropDownList!$B$47,CntyQuery!$A$220:$EF$229,BC$1) ->  | BD30: =VLOOKUP(DropDownList!$B$47,CntyQuery!$A$220:$EF$229,BD$1) ->  | BE30: =VLOOKUP(DropDownList!$B$47,CntyQuery!$A$220:$EF$229,BE$1) ->  | BF30: =VLOOKUP(DropDownList!$B$47,CntyQuery!$A$220:$EF$229,BF$1) ->  | BG30: =VLOOKUP(DropDownList!$B$47,CntyQuery!$A$220:$EF$229,BG$1) ->  | BH30: =VLOOKUP(DropDownList!$B$47,CntyQuery!$A$220:$EF$229,BH$1) ->  | BI30: =VLOOKUP(DropDownList!$B$47,CntyQuery!$A$220:$EF$229,BI$1) ->  | BJ30: =VLOOKUP(DropDownList!$B$47,CntyQuery!$A$220:$EF$229,BJ$1) ->  | BK30: =VLOOKUP(DropDownList!$B$47,CntyQuery!$A$220:$EF$229,BK$1) ->  | BL30: =VLOOKUP(DropDownList!$B$47,CntyQuery!$A$220:$EF$229,BL$1) ->  | BM30: =VLOOKUP(DropDownList!$B$47,CntyQuery!$A$220:$EF$229,BM$1) ->  | BN30: =VLOOKUP(DropDownList!$B$47,CntyQuery!$A$220:$EF$229,BN$1) ->  | BO30: =VLOOKUP(DropDownList!$B$47,CntyQuery!$A$220:$EF$229,BO$1) ->  | BP30: =VLOOKUP(DropDownList!$B$47,CntyQuery!$A$220:$EF$229,BP$1) ->  | BQ30: =VLOOKUP(DropDownList!$B$47,CntyQuery!$A$220:$EF$229,BQ$1) ->  | BR30: =VLOOKUP(DropDownList!$B$47,CntyQuery!$A$220:$EF$229,BR$1) ->  | BS30: =VLOOKUP(DropDownList!$B$47,CntyQuery!$A$220:$EF$229,BS$1) ->  | BT30: =VLOOKUP(DropDownList!$B$47,CntyQuery!$A$220:$EF$229,BT$1) ->  | BU30: =VLOOKUP(DropDownList!$B$47,CntyQuery!$A$220:$EF$229,BU$1) ->  | BV30: =VLOOKUP(DropDownList!$B$47,CntyQuery!$A$220:$EF$229,BV$1) ->  | BW30: =VLOOKUP(DropDownList!$B$47,CntyQuery!$A$220:$EF$229,BW$1) ->  | BX30: =VLOOKUP(DropDownList!$B$47,CntyQuery!$A$220:$EF$229,BX$1) ->  | BY30: =VLOOKUP(DropDownList!$B$47,CntyQuery!$A$220:$EF$229,BY$1) ->  | BZ30: =VLOOKUP(DropDownList!$B$47,CntyQuery!$A$220:$EF$229,BZ$1) ->  | CA30: =VLOOKUP(DropDownList!$B$47,CntyQuery!$A$220:$EF$229,CA$1) ->  | CB30: =VLOOKUP(DropDownList!$B$47,CntyQuery!$A$220:$EF$229,CB$1) ->  | CC30: =VLOOKUP(DropDownList!$B$47,CntyQuery!$A$220:$EF$229,CC$1) ->  | CD30: =VLOOKUP(DropDownList!$B$47,CntyQuery!$A$220:$EF$229,CD$1) ->  | CE30: =VLOOKUP(DropDownList!$B$47,CntyQuery!$A$220:$EF$229,CE$1) ->  | CF30: =VLOOKUP(DropDownList!$B$47,CntyQuery!$A$220:$EF$229,CF$1) ->  | CG30: =VLOOKUP(DropDownList!$B$47,CntyQuery!$A$220:$EF$229,CG$1) ->  | CH30: =VLOOKUP(DropDownList!$B$47,CntyQuery!$A$220:$EF$229,CH$1) ->  | CI30: =VLOOKUP(DropDownList!$B$47,CntyQuery!$A$220:$EF$229,CI$1) ->  | CJ30: =VLOOKUP(DropDownList!$B$47,CntyQuery!$A$220:$EF$229,CJ$1) ->  | CK30: =VLOOKUP(DropDownList!$B$47,CntyQuery!$A$220:$EF$229,CK$1) ->  | CL30: =VLOOKUP(DropDownList!$B$47,CntyQuery!$A$220:$EF$229,CL$1) ->  | CM30: =VLOOKUP(DropDownList!$B$47,CntyQuery!$A$220:$EF$229,CM$1) ->  | CN30: =VLOOKUP(DropDownList!$B$47,CntyQuery!$A$220:$EF$229,CN$1) ->  | CO30: =VLOOKUP(DropDownList!$B$47,CntyQuery!$A$220:$EF$229,CO$1) ->  | CP30: =VLOOKUP(DropDownList!$B$47,CntyQuery!$A$220:$EF$229,CP$1) ->  | CQ30: =VLOOKUP(DropDownList!$B$47,CntyQuery!$A$220:$EF$229,CQ$1) ->  | CR30: =VLOOKUP(DropDownList!$B$47,CntyQuery!$A$220:$EF$229,CR$1) ->  | CS30: =VLOOKUP(DropDownList!$B$47,CntyQuery!$A$220:$EF$229,CS$1) ->  | CT30: =VLOOKUP(DropDownList!$B$47,CntyQuery!$A$220:$EF$229,CT$1) ->  | CU30: =VLOOKUP(DropDownList!$B$47,CntyQuery!$A$220:$EF$229,CU$1) ->  | CV30: =VLOOKUP(DropDownList!$B$47,CntyQuery!$A$220:$EF$229,CV$1) ->  | CW30: =VLOOKUP(DropDownList!$B$47,CntyQuery!$A$220:$EF$229,CW$1) ->  | CX30: =VLOOKUP(DropDownList!$B$47,CntyQuery!$A$220:$EF$229,CX$1) ->  | CY30: =VLOOKUP(DropDownList!$B$47,CntyQuery!$A$220:$EF$229,CY$1) ->  | CZ30: =VLOOKUP(DropDownList!$B$47,CntyQuery!$A$220:$EF$229,CZ$1) ->  | DA30: =VLOOKUP(DropDownList!$B$47,CntyQuery!$A$220:$EF$229,DA$1) ->  | DB30: =VLOOKUP(DropDownList!$B$47,CntyQuery!$A$220:$EF$229,DB$1) ->  | DC30: =VLOOKUP(DropDownList!$B$47,CntyQuery!$A$220:$EF$229,DC$1) ->  | DD30: =VLOOKUP(DropDownList!$B$47,CntyQuery!$A$220:$EF$229,DD$1) ->  | DE30: =VLOOKUP(DropDownList!$B$47,CntyQuery!$A$220:$EF$229,DE$1) ->  | DF30: =VLOOKUP(DropDownList!$B$47,CntyQuery!$A$220:$EF$229,DF$1) ->  | DG30: =VLOOKUP(DropDownList!$B$47,CntyQuery!$A$220:$EF$229,DG$1) ->  | DH30: =VLOOKUP(DropDownList!$B$47,CntyQuery!$A$220:$EF$229,DH$1) ->  | DI30: =VLOOKUP(DropDownList!$B$47,CntyQuery!$A$220:$EF$229,DI$1) ->  | DJ30: =VLOOKUP(DropDownList!$B$47,CntyQuery!$A$220:$EF$229,DJ$1) ->  | DK30: =VLOOKUP(DropDownList!$B$47,CntyQuery!$A$220:$EF$229,DK$1) ->  | DL30: =VLOOKUP(DropDownList!$B$47,CntyQuery!$A$220:$EF$229,DL$1) ->  | DM30: =VLOOKUP(DropDownList!$B$47,CntyQuery!$A$220:$EF$229,DM$1) ->  | DN30: =VLOOKUP(DropDownList!$B$47,CntyQuery!$A$220:$EF$229,DN$1) ->  | DO30: =VLOOKUP(DropDownList!$B$47,CntyQuery!$A$220:$EF$229,DO$1) ->  | DP30: =VLOOKUP(DropDownList!$B$47,CntyQuery!$A$220:$EF$229,DP$1) ->  | DQ30: =VLOOKUP(DropDownList!$B$47,CntyQuery!$A$220:$EF$229,DQ$1) ->  | DR30: =VLOOKUP(DropDownList!$B$47,CntyQuery!$A$220:$EF$229,DR$1) -> 
M32: =IF((CntyDataLink!$BL$25)="n",NA(),IF(VALUE(CntyDataLink!$BL$25)="",NA(),VALUE(CntyDataLink!$BL$25))) -> 925
A33: Census 2000 - Query Name: TownAllQuery3 | B33: 2 | C33: =B33+1 -> 3 | D33: =C33+1 -> 4 | E33: 5 | F33: 6 | G33: 7 | H33: 8 | I33: 9 | J33: 10 | K33: 11 | L33: 12 | M33: 13 | N33: 14 | O33: 15 | P33: 16 | Q33: 17 | R33: 18 | S33: 19 | T33: 20 | U33: 21 | V33: 22 | W33: 23 | X33: 24 | Y33: 25 | Z33: 26 | AA33: 27 | AB33: 28 | AC33: 29 | AD33: 30 | AE33: 31 | AF33: 32 | AG33: 33 | AH33: 34 | AI33: 35 | AJ33: 36 | AK33: 37 | AL33: 38 | AM33: 39 | AN33: 40 | AO33: 41 | AP33: 42 | AQ33: 43 | AR33: 44 | AS33: 45 | AT33: 46 | AU33: 47 | AV33: 48 | AW33: 49 | AX33: 50 | AY33: 51 | AZ33: 52 | BA33: 53 | BB33: 54 | BC33: 55 | BD33: 56 | BE33: 57 | BF33: 58 | BG33: 59 | BH33: 60 | BI33: 61 | BJ33: 62 | BK33: 63 | BL33: 64 | BM33: 65 | BN33: 66 | BO33: 67 | BP33: =BO33+1 -> 68 | BQ33: 69 | BR33: 70 | BS33: 71 | BT33: 72 | BU33: 73 | BV33: 74 | BW33: 75 | BX33: 76 | BY33: 77 | BZ33: 78 | CA33: 79 | CB33: 80 | CC33: 81 | CD33: 82 | CE33: 83 | CF33: 84 | CG33: 85 | CH33: 86 | CI33: 87 | CJ33: 88 | CK33: 89 | CL33: 90 | CM33: 91 | CN33: 92 | CO33: 93 | CP33: 94 | CQ33: 95 | CR33: 96 | CS33: 97 | CT33: 98 | CU33: 99 | CV33: 100 | CW33: 101 | CX33: 102
A34: NAME | B34: COUNTY | C34: LOGRECNO | D34: COUSUB | E34: TRACT | F34: AREALAND | G34: AREAWATR | H34: POP100 | I34: HU100 | J34: 2000Population | K34: PopOfOneRace | L34: PopWhite | M34: PopBlack | N34: PopAmIndian | O34: PopAsian | P34: PopHawaiian | Q34: PopOtherRace | R34: Pop2orMoreRaces | S34: PopHispanicLatino | T34: PopNotHispanicLatino | U34: PopMale | V34: PopMale<15 | W34: PopMale15to24 | X34: PopMale25to34 | Y34: PopMale35to44 | Z34: PopMale45to54 | AA34: PopMale55to64 | AB34: PopMale65to74 | AC34: PopMale75to84 | AD34: PopMale85andOver | AE34: PopFemale | AF34: PopFemale<15 | AG34: PopFemale15to24 | AH34: PopFemale25to34 | AI34: PopFemale35t44 | AJ34: PopFemale45to54 | AK34: PopFemale55to64 | AL34: PopFemale65to74 | AM34: PopFemale75to84 | AN34: PopFemale85andOver | AO34: Households2000 | AP34: PopInHH | AQ34: AvgHHSize | AR34: HHs1Person | AS34: HHs2orMorePerson | AT34: HHsFamily | AU34: HHMarriedCoupleFam | AV34: HHSingleParentFam | AW34: HHsNonFamily | AX34: Families | AY34: PopInFam | AZ34: AvgFamSize | BA34: TotHsUnits | BB34: OccHsUnits | BC34: OwnerOccHU | BD34: RenterOccHU | BE34: VctHsUnits | BF34: VctHUForRent | BG34: VctHUForSale | BH34: VctHUSeasonal | BI34: PopInOccHU | BJ34: PopInOwnOccHU | BK34: PopInRntOccHU | BL34: AvgHHSize2 | BM34: AvgHHSizOwnOcc | BN34: AvgHHSizRntOcc | BO34: OwnOccWhtHsHldr | BP34: OwnOccBlkHsHldr | BQ34: OwnOccAmIHsHldr | BR34: OwnOccAsnHsHldr | BS34: OwnOccPIsHsHldr | BT34: OwnOccORHsHldr | BU34: OwnOcc2RcHsHldr | BV34: RntOccWhtHsHldr | BW34: RntOccBlkHsHldr | BX34: RntOccAmIHsHldr | BY34: RntOccAsnHsHldr | BZ34: RntOccPIsHsHldr | CA34: RntOccORHsHldr | CB34: RntOcc2RcHsHldr | CC34: OwnOccHH15to24 | CD34: OwnOccHH25to34 | CE34: OwnOccHH35to44 | CF34: OwnOccHH45to54 | CG34: OwnOccHH55to64 | CH34: OwnOccHH65to74 | CI34: OwnOccHH75to84 | CJ34: OwnOccHH85Over | CK34: RntOccHH15to24 | CL34: RntOccHH25to34 | CM34: RntOccHH35to44 | CN34: RntOccHH45to54 | CO34: RntOccHH55to64 | CP34: RntOccHH65to74 | CQ34: RntOccHH75to84 | CR34: RntOccHH85Over | CS34: P27TotalPop | CT34: P27PopInHseHlds | CU34: P27PopInGrpQtrs | CV34: Median Age Total | CW34: Median Age (Male) | CX34: Median Age (Female)
A35: =VLOOKUP(DropDownList!$B$47,CntyQryCensus!$A$4:$CW$46,A$1) -> Atkinson | B35: =VLOOKUP(DropDownList!$B$47,CntyQryCensus!$A$4:$CW$46,B$1) -> 015 | C35: =VLOOKUP(DropDownList!$B$47,CntyQryCensus!$A$4:$CW$46,C$1) -> 0026822 | D35: =VLOOKUP(DropDownList!$B$47,CntyQryCensus!$A$4:$CW$46,D$1) -> 02340 | E35: =VLOOKUP(DropDownList!$B$47,CntyQryCensus!$A$4:$CW$46,E$1) ->  | F35: =VLOOKUP(DropDownList!$B$47,CntyQryCensus!$A$4:$CW$46,F$1) -> 28822322 | G35: =VLOOKUP(DropDownList!$B$47,CntyQryCensus!$A$4:$CW$46,G$1) -> 418679 | H35: =VLOOKUP(DropDownList!$B$47,CntyQryCensus!$A$4:$CW$46,H$1) -> 6178 | I35: =VLOOKUP(DropDownList!$B$47,CntyQryCensus!$A$4:$CW$46,I$1) -> 2431 | J35: =VLOOKUP(DropDownList!$B$47,CntyQryCensus!$A$4:$CW$46,J$1) -> 6178 | K35: =VLOOKUP(DropDownList!$B$47,CntyQryCensus!$A$4:$CW$46,K$1) -> 6137 | L35: =VLOOKUP(DropDownList!$B$47,CntyQryCensus!$A$4:$CW$46,L$1) -> 6031 | M35: =VLOOKUP(DropDownList!$B$47,CntyQryCensus!$A$4:$CW$46,M$1) -> 16 | N35: =VLOOKUP(DropDownList!$B$47,CntyQryCensus!$A$4:$CW$46,N$1) -> 4 | O35: =VLOOKUP(DropDownList!$B$47,CntyQryCensus!$A$4:$CW$46,O$1) -> 73 | P35: =VLOOKUP(DropDownList!$B$47,CntyQryCensus!$A$4:$CW$46,P$1) -> 0 | Q35: =VLOOKUP(DropDownList!$B$47,CntyQryCensus!$A$4:$CW$46,Q$1) -> 13 | R35: =VLOOKUP(DropDownList!$B$47,CntyQryCensus!$A$4:$CW$46,R$1) -> 41 | S35: =VLOOKUP(DropDownList!$B$47,CntyQryCensus!$A$4:$CW$46,S$1) -> 43 | T35: =VLOOKUP(DropDownList!$B$47,CntyQryCensus!$A$4:$CW$46,T$1) -> 6135 | U35: =VLOOKUP(DropDownList!$B$47,CntyQryCensus!$A$4:$CW$46,U$1) -> 3008 | V35: =VLOOKUP(DropDownList!$B$47,CntyQryCensus!$A$4:$CW$46,V$1) -> 609 | W35: =VLOOKUP(DropDownList!$B$47,CntyQryCensus!$A$4:$CW$46,W$1) -> 280 | X35: =VLOOKUP(DropDownList!$B$47,CntyQryCensus!$A$4:$CW$46,X$1) -> 299 | Y35: =VLOOKUP(DropDownList!$B$47,CntyQryCensus!$A$4:$CW$46,Y$1) -> 569 | Z35: =VLOOKUP(DropDownList!$B$47,CntyQryCensus!$A$4:$CW$46,Z$1) -> 536 | AA35: =VLOOKUP(DropDownList!$B$47,CntyQryCensus!$A$4:$CW$46,AA$1) -> 378 | AB35: =VLOOKUP(DropDownList!$B$47,CntyQryCensus!$A$4:$CW$46,AB$1) -> 225 | AC35: =VLOOKUP(DropDownList!$B$47,CntyQryCensus!$A$4:$CW$46,AC$1) -> 86 | AD35: =VLOOKUP(DropDownList!$B$47,CntyQryCensus!$A$4:$CW$46,AD$1) -> 26 | AE35: =VLOOKUP(DropDownList!$B$47,CntyQryCensus!$A$4:$CW$46,AE$1) -> 3170 | AF35: =VLOOKUP(DropDownList!$B$47,CntyQryCensus!$A$4:$CW$46,AF$1) -> 681 | AG35: =VLOOKUP(DropDownList!$B$47,CntyQryCensus!$A$4:$CW$46,AG$1) -> 252 | AH35: =VLOOKUP(DropDownList!$B$47,CntyQryCensus!$A$4:$CW$46,AH$1) -> 316 | AI35: =VLOOKUP(DropDownList!$B$47,CntyQryCensus!$A$4:$CW$46,AI$1) -> 573 | AJ35: =VLOOKUP(DropDownList!$B$47,CntyQryCensus!$A$4:$CW$46,AJ$1) -> 598 | AK35: =VLOOKUP(DropDownList!$B$47,CntyQryCensus!$A$4:$CW$46,AK$1) -> 382 | AL35: =VLOOKUP(DropDownList!$B$47,CntyQryCensus!$A$4:$CW$46,AL$1) -> 228 | AM35: =VLOOKUP(DropDownList!$B$47,CntyQryCensus!$A$4:$CW$46,AM$1) -> 104 | AN35: =VLOOKUP(DropDownList!$B$47,CntyQryCensus!$A$4:$CW$46,AN$1) -> 36 | AO35: =VLOOKUP(DropDownList!$B$47,CntyQryCensus!$A$4:$CW$46,AO$1) -> 2317 | AP35: =VLOOKUP(DropDownList!$B$47,CntyQryCensus!$A$4:$CW$46,AP$1) -> 6174 | AQ35: =VLOOKUP(DropDownList!$B$47,CntyQryCensus!$A$4:$CW$46,AQ$1) -> 2.66 | AR35: =VLOOKUP(DropDownList!$B$47,CntyQryCensus!$A$4:$CW$46,AR$1) -> 441 | AS35: =VLOOKUP(DropDownList!$B$47,CntyQryCensus!$A$4:$CW$46,AS$1) -> 1876 | AT35: =VLOOKUP(DropDownList!$B$47,CntyQryCensus!$A$4:$CW$46,AT$1) -> 1777 | AU35: =VLOOKUP(DropDownList!$B$47,CntyQryCensus!$A$4:$CW$46,AU$1) -> 1593 | AV35: =VLOOKUP(DropDownList!$B$47,CntyQryCensus!$A$4:$CW$46,AV$1) -> 184 | AW35: =VLOOKUP(DropDownList!$B$47,CntyQryCensus!$A$4:$CW$46,AW$1) -> 99 | AX35: =VLOOKUP(DropDownList!$B$47,CntyQryCensus!$A$4:$CW$46,AX$1) -> 1777 | AY35: =VLOOKUP(DropDownList!$B$47,CntyQryCensus!$A$4:$CW$46,AY$1) -> 5474 | AZ35: =VLOOKUP(DropDownList!$B$47,CntyQryCensus!$A$4:$CW$46,AZ$1) -> 3.08 | BA35: =VLOOKUP(DropDownList!$B$47,CntyQryCensus!$A$4:$CW$46,BA$1) -> 2431 | BB35: =VLOOKUP(DropDownList!$B$47,CntyQryCensus!$A$4:$CW$46,BB$1) -> 2317 | BC35: =VLOOKUP(DropDownList!$B$47,CntyQryCensus!$A$4:$CW$46,BC$1) -> 2060 | BD35: =VLOOKUP(DropDownList!$B$47,CntyQryCensus!$A$4:$CW$46,BD$1) -> 257 | BE35: =VLOOKUP(DropDownList!$B$47,CntyQryCensus!$A$4:$CW$46,BE$1) -> 114 | BF35: =VLOOKUP(DropDownList!$B$47,CntyQryCensus!$A$4:$CW$46,BF$1) -> 4 | BG35: =VLOOKUP(DropDownList!$B$47,CntyQryCensus!$A$4:$CW$46,BG$1) -> 30 | BH35: =VLOOKUP(DropDownList!$B$47,CntyQryCensus!$A$4:$CW$46,BH$1) -> 67 | BI35: =VLOOKUP(DropDownList!$B$47,CntyQryCensus!$A$4:$CW$46,BI$1) -> 6174 | BJ35: =VLOOKUP(DropDownList!$B$47,CntyQryCensus!$A$4:$CW$46,BJ$1) -> 5766 | BK35: =VLOOKUP(DropDownList!$B$47,CntyQryCensus!$A$4:$CW$46,BK$1) -> 408 | BL35: =VLOOKUP(DropDownList!$B$47,CntyQryCensus!$A$4:$CW$46,BL$1) -> 2.66 | BM35: =VLOOKUP(DropDownList!$B$47,CntyQryCensus!$A$4:$CW$46,BM$1) -> 2.8 | BN35: =VLOOKUP(DropDownList!$B$47,CntyQryCensus!$A$4:$CW$46,BN$1) -> 1.59 | BO35: =VLOOKUP(DropDownList!$B$47,CntyQryCensus!$A$4:$CW$46,BO$1) -> 2031 | BP35: =VLOOKUP(DropDownList!$B$47,CntyQryCensus!$A$4:$CW$46,BP$1) -> 6 | BQ35: =VLOOKUP(DropDownList!$B$47,CntyQryCensus!$A$4:$CW$46,BQ$1) -> 0 | BR35: =VLOOKUP(DropDownList!$B$47,CntyQryCensus!$A$4:$CW$46,BR$1) -> 15 | BS35: =VLOOKUP(DropDownList!$B$47,CntyQryCensus!$A$4:$CW$46,BS$1) -> 0 | BT35: =VLOOKUP(DropDownList!$B$47,CntyQryCensus!$A$4:$CW$46,BT$1) -> 2 | BU35: =VLOOKUP(DropDownList!$B$47,CntyQryCensus!$A$4:$CW$46,BU$1) -> 6 | BV35: =VLOOKUP(DropDownList!$B$47,CntyQryCensus!$A$4:$CW$46,BV$1) -> 250 | BW35: =VLOOKUP(DropDownList!$B$47,CntyQryCensus!$A$4:$CW$46,BW$1) -> 1 | BX35: =VLOOKUP(DropDownList!$B$47,CntyQryCensus!$A$4:$CW$46,BX$1) -> 1 | BY35: =VLOOKUP(DropDownList!$B$47,CntyQryCensus!$A$4:$CW$46,BY$1) -> 0 | BZ35: =VLOOKUP(DropDownList!$B$47,CntyQryCensus!$A$4:$CW$46,BZ$1) -> 0 | CA35: =VLOOKUP(DropDownList!$B$47,CntyQryCensus!$A$4:$CW$46,CA$1) -> 2 | CB35: =VLOOKUP(DropDownList!$B$47,CntyQryCensus!$A$4:$CW$46,CB$1) -> 3 | CC35: =VLOOKUP(DropDownList!$B$47,CntyQryCensus!$A$4:$CW$46,CC$1) -> 5 | CD35: =VLOOKUP(DropDownList!$B$47,CntyQryCensus!$A$4:$CW$46,CD$1) -> 179 | CE35: =VLOOKUP(DropDownList!$B$47,CntyQryCensus!$A$4:$CW$46,CE$1) -> 528 | CF35: =VLOOKUP(DropDownList!$B$47,CntyQryCensus!$A$4:$CW$46,CF$1) -> 561 | CG35: =VLOOKUP(DropDownList!$B$47,CntyQryCensus!$A$4:$CW$46,CG$1) -> 399 | CH35: =VLOOKUP(DropDownList!$B$47,CntyQryCensus!$A$4:$CW$46,CH$1) -> 262 | CI35: =VLOOKUP(DropDownList!$B$47,CntyQryCensus!$A$4:$CW$46,CI$1) -> 100 | CJ35: =VLOOKUP(DropDownList!$B$47,CntyQryCensus!$A$4:$CW$46,CJ$1) -> 26 | CK35: =VLOOKUP(DropDownList!$B$47,CntyQryCensus!$A$4:$CW$46,CK$1) -> 11 | CL35: =VLOOKUP(DropDownList!$B$47,CntyQryCensus!$A$4:$CW$46,CL$1) -> 49 | CM35: =VLOOKUP(DropDownList!$B$47,CntyQryCensus!$A$4:$CW$46,CM$1) -> 55 | CN35: =VLOOKUP(DropDownList!$B$47,CntyQryCensus!$A$4:$CW$46,CN$1) -> 56 | CO35: =VLOOKUP(DropDownList!$B$47,CntyQryCensus!$A$4:$CW$46,CO$1) -> 33 | CP35: =VLOOKUP(DropDownList!$B$47,CntyQryCensus!$A$4:$CW$46,CP$1) -> 31 | CQ35: =VLOOKUP(DropDownList!$B$47,CntyQryCensus!$A$4:$CW$46,CQ$1) -> 12 | CR35: =VLOOKUP(DropDownList!$B$47,CntyQryCensus!$A$4:$CW$46,CR$1) -> 10 | CS35: =VLOOKUP(DropDownList!$B$47,CntyQryCensus!$A$4:$CW$46,CS$1) -> 6178 | CT35: =VLOOKUP(DropDownList!$B$47,CntyQryCensus!$A$4:$CW$46,CT$1) -> 6174 | CU35: =VLOOKUP(DropDownList!$B$47,CntyQryCensus!$A$4:$CW$46,CU$1) -> 4 | CV35: =VLOOKUP(DropDownList!$B$47,CntyQryCensus!$A$4:$CW$46,CV$1) -> 40.9 | CW35: =VLOOKUP(DropDownList!$B$47,CntyQryCensus!$A$4:$CW$46,CW$1) -> 40.7 | CX35: =VLOOKUP(DropDownList!$B$47,CntyQryCensus!$A$4:$CW$46,CX$1) -> 
A38: Census 2000 DemoProfile Sample Data Tables 2&3 - DPTab23TownQry
A39: NAME | B39: COUSUB | C39: AREANAME | D39: PopInSchool | E39: Preschool | F39: Kindergarten | G39: Elementary | H39: HighSchool | I39: College | J39: Pop25andOver | K39: HighSchoolGrad | L39: SomeCollege | M39: AssocDegree | N39: BachelDegree | O39: GradDegree | P39: HSGradorHigher | Q39: CollegeGradorHigher | R39: Pop5to20yrs | S39: Pop5to20wDis | T39: Pop21to64 | U39: Pop21to64wDis | V39: Pop65over | W39: Pop65overwDis | X39: Pop5yrsOver | Y39: SameHUin95 | Z39: DiffHUinUSin95 | AA39: HUinSameCountyin95 | AB39: HUinSameStatein95 | AC39: TotalPop | AD39: NativePop | AE39: NatPopBornUS | AF39: NatPopBornInStatRes | AG39: NatPopBornDiffState | AH39: NatPopBornOutUS | AI39: FornBornPop | AJ39: FornPopEnt90to00 | AK39: FornPopNatCit | AL39: FornPopNotCit | AM39: Households | AN39: HHIncLessThn10k | AO39: HHInc10to15K | AP39: HHInc15to25K | AQ39: HHInc25to35K | AR39: HHInc35to50K | AS39: HHInc50to75K | AT39: HHInc75to100K | AU39: HHInc100to150K | AV39: HHInc150to200K | AW39: HHIncOver200K | AX39: MedianHHInc | AY39: HHwithPubAssistInc | AZ39: MeanPubAssist | BA39: FamilyHH | BB39: FHHIncLessThn10k | BC39: FHHInc10to15K | BD39: FHHInc15to25K | BE39: FHHInc25to35K | BF39: FHHInc35to50K | BG39: FHHInc50to75K | BH39: FHHInc75to100K | BI39: FHHInc100to150K | BJ39: FHHInc150to200K | BK39: FHHIncOver200K | BL39: MedianFHHInc | BM39: PerCapitaInc | BN39: PovStatFamilies | BO39: PovStatFHHwChilUnd18 | BP39: PovStatFHHwChilUnd5 | BQ39: PovStFmalHH | BR39: DP3088 | BS39: DP3089 | BT39: PovStatIndiv | BU39: PovStatIndiv18yrOver | BV39: PovStatIndiv65yrOver | BW39: DP3093 | BX39: DP3094 | BY39: DP3095
A40: =VLOOKUP(DropDownList!$B$47,CntyQryCensus!$A$53:$BY$96,A$1) -> Atkinson | B40: =VLOOKUP(DropDownList!$B$47,CntyQryCensus!$A$53:$BY$96,B$1) -> 02340 | C40: =VLOOKUP(DropDownList!$B$47,CntyQryCensus!$A$53:$BY$96,C$1) -> Atkinson town, Rockingham County, New Hampshire | D40: =VLOOKUP(DropDownList!$B$47,CntyQryCensus!$A$53:$BY$96,D$1) -> 1575 | E40: =VLOOKUP(DropDownList!$B$47,CntyQryCensus!$A$53:$BY$96,E$1) -> 120 | F40: =VLOOKUP(DropDownList!$B$47,CntyQryCensus!$A$53:$BY$96,F$1) -> 97 | G40: =VLOOKUP(DropDownList!$B$47,CntyQryCensus!$A$53:$BY$96,G$1) -> 725 | H40: =VLOOKUP(DropDownList!$B$47,CntyQryCensus!$A$53:$BY$96,H$1) -> 335 | I40: =VLOOKUP(DropDownList!$B$47,CntyQryCensus!$A$53:$BY$96,I$1) -> 298 | J40: =VLOOKUP(DropDownList!$B$47,CntyQryCensus!$A$53:$BY$96,J$1) -> 4345 | K40: =VLOOKUP(DropDownList!$B$47,CntyQryCensus!$A$53:$BY$96,K$1) -> 1044 | L40: =VLOOKUP(DropDownList!$B$47,CntyQryCensus!$A$53:$BY$96,L$1) -> 898 | M40: =VLOOKUP(DropDownList!$B$47,CntyQryCensus!$A$53:$BY$96,M$1) -> 494 | N40: =VLOOKUP(DropDownList!$B$47,CntyQryCensus!$A$53:$BY$96,N$1) -> 1145 | O40: =VLOOKUP(DropDownList!$B$47,CntyQryCensus!$A$53:$BY$96,O$1) -> 559 | P40: =VLOOKUP(DropDownList!$B$47,CntyQryCensus!$A$53:$BY$96,P$1) -> 4140 | Q40: =VLOOKUP(DropDownList!$B$47,CntyQryCensus!$A$53:$BY$96,Q$1) -> 1704 | R40: =VLOOKUP(DropDownList!$B$47,CntyQryCensus!$A$53:$BY$96,R$1) -> 1262 | S40: =VLOOKUP(DropDownList!$B$47,CntyQryCensus!$A$53:$BY$96,S$1) -> 60 | T40: =VLOOKUP(DropDownList!$B$47,CntyQryCensus!$A$53:$BY$96,T$1) -> 3808 | U40: =VLOOKUP(DropDownList!$B$47,CntyQryCensus!$A$53:$BY$96,U$1) -> 513 | V40: =VLOOKUP(DropDownList!$B$47,CntyQryCensus!$A$53:$BY$96,V$1) -> 697 | W40: =VLOOKUP(DropDownList!$B$47,CntyQryCensus!$A$53:$BY$96,W$1) -> 173 | X40: =VLOOKUP(DropDownList!$B$47,CntyQryCensus!$A$53:$BY$96,X$1) -> 5767 | Y40: =VLOOKUP(DropDownList!$B$47,CntyQryCensus!$A$53:$BY$96,Y$1) -> 3612 | Z40: =VLOOKUP(DropDownList!$B$47,CntyQryCensus!$A$53:$BY$96,Z$1) -> 2095 | AA40: =VLOOKUP(DropDownList!$B$47,CntyQryCensus!$A$53:$BY$96,AA$1) -> 903 | AB40: =VLOOKUP(DropDownList!$B$47,CntyQryCensus!$A$53:$BY$96,AB$1) -> 1192 | AC40: =VLOOKUP(DropDownList!$B$47,CntyQryCensus!$A$53:$BY$96,AC$1) -> 6178 | AD40: =VLOOKUP(DropDownList!$B$47,CntyQryCensus!$A$53:$BY$96,AD$1) -> 5916 | AE40: =VLOOKUP(DropDownList!$B$47,CntyQryCensus!$A$53:$BY$96,AE$1) -> 5889 | AF40: =VLOOKUP(DropDownList!$B$47,CntyQryCensus!$A$53:$BY$96,AF$1) -> 421 | AG40: =VLOOKUP(DropDownList!$B$47,CntyQryCensus!$A$53:$BY$96,AG$1) -> 5468 | AH40: =VLOOKUP(DropDownList!$B$47,CntyQryCensus!$A$53:$BY$96,AH$1) -> 27 | AI40: =VLOOKUP(DropDownList!$B$47,CntyQryCensus!$A$53:$BY$96,AI$1) -> 262 | AJ40: =VLOOKUP(DropDownList!$B$47,CntyQryCensus!$A$53:$BY$96,AJ$1) -> 31 | AK40: =VLOOKUP(DropDownList!$B$47,CntyQryCensus!$A$53:$BY$96,AK$1) -> 232 | AL40: =VLOOKUP(DropDownList!$B$47,CntyQryCensus!$A$53:$BY$96,AL$1) -> 30 | AM40: =VLOOKUP(DropDownList!$B$47,CntyQryCensus!$A$53:$BY$96,AM$1) -> 2326 | AN40: =VLOOKUP(DropDownList!$B$47,CntyQryCensus!$A$53:$BY$96,AN$1) -> 80 | AO40: =VLOOKUP(DropDownList!$B$47,CntyQryCensus!$A$53:$BY$96,AO$1) -> 77 | AP40: =VLOOKUP(DropDownList!$B$47,CntyQryCensus!$A$53:$BY$96,AP$1) -> 133 | AQ40: =VLOOKUP(DropDownList!$B$47,CntyQryCensus!$A$53:$BY$96,AQ$1) -> 120 | AR40: =VLOOKUP(DropDownList!$B$47,CntyQryCensus!$A$53:$BY$96,AR$1) -> 348 | AS40: =VLOOKUP(DropDownList!$B$47,CntyQryCensus!$A$53:$BY$96,AS$1) -> 485 | AT40: =VLOOKUP(DropDownList!$B$47,CntyQryCensus!$A$53:$BY$96,AT$1) -> 405 | AU40: =VLOOKUP(DropDownList!$B$47,CntyQryCensus!$A$53:$BY$96,AU$1) -> 449 | AV40: =VLOOKUP(DropDownList!$B$47,CntyQryCensus!$A$53:$BY$96,AV$1) -> 111 | AW40: =VLOOKUP(DropDownList!$B$47,CntyQryCensus!$A$53:$BY$96,AW$1) -> 118 | AX40: =VLOOKUP(DropDownList!$B$47,CntyQryCensus!$A$53:$BY$96,AX$1) -> 69729 | AY40: =VLOOKUP(DropDownList!$B$47,CntyQryCensus!$A$53:$BY$96,AY$1) -> 33 | AZ40: =VLOOKUP(DropDownList!$B$47,CntyQryCensus!$A$53:$BY$96,AZ$1) -> 905 | BA40: =VLOOKUP(DropDownList!$B$47,CntyQryCensus!$A$53:$BY$96,BA$1) -> 1781 | BB40: =VLOOKUP(DropDownList!$B$47,CntyQryCensus!$A$53:$BY$96,BB$1) -> 24 | BC40: =VLOOKUP(DropDownList!$B$47,CntyQryCensus!$A$53:$BY$96,BC$1) -> 25 | BD40: =VLOOKUP(DropDownList!$B$47,CntyQryCensus!$A$53:$BY$96,BD$1) -> 8 | BE40: =VLOOKUP(DropDownList!$B$47,CntyQryCensus!$A$53:$BY$96,BE$1) -> 90 | BF40: =VLOOKUP(DropDownList!$B$47,CntyQryCensus!$A$53:$BY$96,BF$1) -> 250 | BG40: =VLOOKUP(DropDownList!$B$47,CntyQryCensus!$A$53:$BY$96,BG$1) -> 437 | BH40: =VLOOKUP(DropDownList!$B$47,CntyQryCensus!$A$53:$BY$96,BH$1) -> 337 | BI40: =VLOOKUP(DropDownList!$B$47,CntyQryCensus!$A$53:$BY$96,BI$1) -> 406 | BJ40: =VLOOKUP(DropDownList!$B$47,CntyQryCensus!$A$53:$BY$96,BJ$1) -> 101 | BK40: =VLOOKUP(DropDownList!$B$47,CntyQryCensus!$A$53:$BY$96,BK$1) -> 103 | BL40: =VLOOKUP(DropDownList!$B$47,CntyQryCensus!$A$53:$BY$96,BL$1) -> 77631 | BM40: =VLOOKUP(DropDownList!$B$47,CntyQryCensus!$A$53:$BY$96,BM$1) -> 30412 | BN40: =VLOOKUP(DropDownList!$B$47,CntyQryCensus!$A$53:$BY$96,BN$1) -> 41 | BO40: =VLOOKUP(DropDownList!$B$47,CntyQryCensus!$A$53:$BY$96,BO$1) -> 34 | BP40: =VLOOKUP(DropDownList!$B$47,CntyQryCensus!$A$53:$BY$96,BP$1) -> 8 | BQ40: =VLOOKUP(DropDownList!$B$47,CntyQryCensus!$A$53:$BY$96,BQ$1) -> 23 | BR40: =VLOOKUP(DropDownList!$B$47,CntyQryCensus!$A$53:$BY$96,BR$1) -> 16 | BS40: =VLOOKUP(DropDownList!$B$47,CntyQryCensus!$A$53:$BY$96,BS$1) -> 0 | BT40: =VLOOKUP(DropDownList!$B$47,CntyQryCensus!$A$53:$BY$96,BT$1) -> 202 | BU40: =VLOOKUP(DropDownList!$B$47,CntyQryCensus!$A$53:$BY$96,BU$1) -> 133 | BV40: =VLOOKUP(DropDownList!$B$47,CntyQryCensus!$A$53:$BY$96,BV$1) -> 15 | BW40: =VLOOKUP(DropDownList!$B$47,CntyQryCensus!$A$53:$BY$96,BW$1) -> 69 | BX40: =VLOOKUP(DropDownList!$B$47,CntyQryCensus!$A$53:$BY$96,BX$1) -> 53 | BY40: =VLOOKUP(DropDownList!$B$47,CntyQryCensus!$A$53:$BY$96,BY$1) -> 65
A43: Census 2000 DemoProfile Sample Data Table 4 - DPTab4TownQry
A44: NAME | B44: COUSUB | C44: TotHousingUnits | D44: 1UnitDet | E44: 1UnitAtt | F44: 2Units | G44: 3to4Units | H44: 5to9Units | I44: 10to19Units | J44: 20orMoreUnits | K44: MobileHomes | L44: BoatRvVan | M44: SingleFamilyUnits | N44: MultiFamUnits | O44: MobileHomeUnits | P44: YearBuilt99to00 | Q44: YearBuilt95to98 | R44: YearBUilt90to94 | S44: YearBuilt80to89 | T44: YearBuilt70to79 | U44: YearBuilt60to69 | V44: YearBuilt40to59 | W44: YearBuilt39orEarlier | X44: Rooms1 | Y44: Rooms2 | Z44: Rooms3 | AA44: Rooms4 | AB44: Rooms5 | AC44: Rooms6 | AD44: Rooms7 | AE44: Rooms8 | AF44: Rooms9orMore | AG44: MedianRooms | AH44: OccHU1 | AI44: YrHHMvdIn99to00 | AJ44: YrHHMvdIn95to98 | AK44: YrHHMvdIn90to94 | AL44: YrHHMvdIn80to89 | AM44: YrHHMvdIn70to79 | AN44: YrHHMvdIn69orBefore | AO44: HeatFuelNatGas | AP44: HeatFuelBotGas | AQ44: HeatFuelElectric | AR44: HeatFuelOil | AS44: HeatFuelCoal | AT44: HeatFuelWood | AU44: HeatFuelSolar | AV44: HeatFuelOther | AW44: HeatFuelNone | AX44: LackCompPlumb | AY44: LackCompKit | AZ44: NoTelephone | BA44: OccHU | BB44: OccPerRm1orLess | BC44: OccPerRm1to1_5 | BD44: OccPerRm1_5orMore | BE44: SpecOwnOccUnits | BF44: Value<50K | BG44: Value50to100K | BH44: Value100to150K | BI44: Value150to200K | BJ44: Value200to300K | BK44: Value300to500K | BL44: Value500Kto1mil | BM44: Value1MilorMore | BN44: MedianValue | BO44: WithMortg | BP44: MnthOwnCst<300 | BQ44: MnthOwnCst300to500 | BR44: MnthOwnCst500to700 | BS44: MnthOwnCst700to1000 | BT44: MnthOwnCst1000to1500 | BU44: MnthOwnCst1500to2000 | BV44: MnthOwnCst2000orMore | BW44: MediMnthOwnCst | BX44: NotMrtg | BY44: NotMrtgMediMnthOwnCst | BZ44: OwnCst%HHInc<15 | CA44: OwnCst%HHInc15to20 | CB44: OwnCst%HHInc20to25 | CC44: OwnCst%HHInc25to30 | CD44: OwnCst%HHInc30to35 | CE44: OwnCst%HHInc35orMor | CF44: NotComputed | CG44: SpecRntOccUnits | CH44: Rnt<200 | CI44: Rnt200to300 | CJ44: Rnt300to500 | CK44: Rnt500to750 | CL44: Rnt750to1000 | CM44: Rnt1000to1500 | CN44: Rnt1500orMore | CO44: NoRent | CP44: MedianRent | CQ44: Rnt%HHInc<15 | CR44: Rnt%HHInc15to20 | CS44: Rnt%HHInc20to25 | CT44: Rnt%HHInc25to30 | CU44: Rnt%HHInc30to35 | CV44: Rnt%HHInc35orMore | CW44: Rnt%NotCompute
A45: =VLOOKUP(DropDownList!$B$47,CntyQryCensus!$A$103:$CX$146,A$1) -> Atkinson | B45: =VLOOKUP(DropDownList!$B$47,CntyQryCensus!$A$103:$CX$146,B$1) -> 02340 | C45: =VLOOKUP(DropDownList!$B$47,CntyQryCensus!$A$103:$CX$146,C$1) -> 2431 | D45: =VLOOKUP(DropDownList!$B$47,CntyQryCensus!$A$103:$CX$146,D$1) -> 1826 | E45: =VLOOKUP(DropDownList!$B$47,CntyQryCensus!$A$103:$CX$146,E$1) -> 322 | F45: =VLOOKUP(DropDownList!$B$47,CntyQryCensus!$A$103:$CX$146,F$1) -> 81 | G45: =VLOOKUP(DropDownList!$B$47,CntyQryCensus!$A$103:$CX$146,G$1) -> 61 | H45: =VLOOKUP(DropDownList!$B$47,CntyQryCensus!$A$103:$CX$146,H$1) -> 0 | I45: =VLOOKUP(DropDownList!$B$47,CntyQryCensus!$A$103:$CX$146,I$1) -> 125 | J45: =VLOOKUP(DropDownList!$B$47,CntyQryCensus!$A$103:$CX$146,J$1) -> 6 | K45: =VLOOKUP(DropDownList!$B$47,CntyQryCensus!$A$103:$CX$146,K$1) -> 10 | L45: =VLOOKUP(DropDownList!$B$47,CntyQryCensus!$A$103:$CX$146,L$1) -> 0 | M45: =VLOOKUP(DropDownList!$B$47,CntyQryCensus!$A$103:$CX$146,M$1) -> 1826 | N45: =VLOOKUP(DropDownList!$B$47,CntyQryCensus!$A$103:$CX$146,N$1) -> 595 | O45: =VLOOKUP(DropDownList!$B$47,CntyQryCensus!$A$103:$CX$146,O$1) -> 10 | P45: =VLOOKUP(DropDownList!$B$47,CntyQryCensus!$A$103:$CX$146,P$1) -> 86 | Q45: =VLOOKUP(DropDownList!$B$47,CntyQryCensus!$A$103:$CX$146,Q$1) -> 246 | R45: =VLOOKUP(DropDownList!$B$47,CntyQryCensus!$A$103:$CX$146,R$1) -> 316 | S45: =VLOOKUP(DropDownList!$B$47,CntyQryCensus!$A$103:$CX$146,S$1) -> 426 | T45: =VLOOKUP(DropDownList!$B$47,CntyQryCensus!$A$103:$CX$146,T$1) -> 613 | U45: =VLOOKUP(DropDownList!$B$47,CntyQryCensus!$A$103:$CX$146,U$1) -> 355 | V45: =VLOOKUP(DropDownList!$B$47,CntyQryCensus!$A$103:$CX$146,V$1) -> 272 | W45: =VLOOKUP(DropDownList!$B$47,CntyQryCensus!$A$103:$CX$146,W$1) -> 117 | X45: =VLOOKUP(DropDownList!$B$47,CntyQryCensus!$A$103:$CX$146,X$1) -> 0 | Y45: =VLOOKUP(DropDownList!$B$47,CntyQryCensus!$A$103:$CX$146,Y$1) -> 105 | Z45: =VLOOKUP(DropDownList!$B$47,CntyQryCensus!$A$103:$CX$146,Z$1) -> 36 | AA45: =VLOOKUP(DropDownList!$B$47,CntyQryCensus!$A$103:$CX$146,AA$1) -> 131 | AB45: =VLOOKUP(DropDownList!$B$47,CntyQryCensus!$A$103:$CX$146,AB$1) -> 409 | AC45: =VLOOKUP(DropDownList!$B$47,CntyQryCensus!$A$103:$CX$146,AC$1) -> 559 | AD45: =VLOOKUP(DropDownList!$B$47,CntyQryCensus!$A$103:$CX$146,AD$1) -> 457 | AE45: =VLOOKUP(DropDownList!$B$47,CntyQryCensus!$A$103:$CX$146,AE$1) -> 358 | AF45: =VLOOKUP(DropDownList!$B$47,CntyQryCensus!$A$103:$CX$146,AF$1) -> 376 | AG45: =VLOOKUP(DropDownList!$B$47,CntyQryCensus!$A$103:$CX$146,AG$1) -> 6.5 | AH45: =VLOOKUP(DropDownList!$B$47,CntyQryCensus!$A$103:$CX$146,AH$1) -> 2317 | AI45: =VLOOKUP(DropDownList!$B$47,CntyQryCensus!$A$103:$CX$146,AI$1) -> 256 | AJ45: =VLOOKUP(DropDownList!$B$47,CntyQryCensus!$A$103:$CX$146,AJ$1) -> 632 | AK45: =VLOOKUP(DropDownList!$B$47,CntyQryCensus!$A$103:$CX$146,AK$1) -> 437 | AL45: =VLOOKUP(DropDownList!$B$47,CntyQryCensus!$A$103:$CX$146,AL$1) -> 479 | AM45: =VLOOKUP(DropDownList!$B$47,CntyQryCensus!$A$103:$CX$146,AM$1) -> 354 | AN45: =VLOOKUP(DropDownList!$B$47,CntyQryCensus!$A$103:$CX$146,AN$1) -> 159 | AO45: =VLOOKUP(DropDownList!$B$47,CntyQryCensus!$A$103:$CX$146,AO$1) -> 313 | AP45: =VLOOKUP(DropDownList!$B$47,CntyQryCensus!$A$103:$CX$146,AP$1) -> 223 | AQ45: =VLOOKUP(DropDownList!$B$47,CntyQryCensus!$A$103:$CX$146,AQ$1) -> 85 | AR45: =VLOOKUP(DropDownList!$B$47,CntyQryCensus!$A$103:$CX$146,AR$1) -> 1657 | AS45: =VLOOKUP(DropDownList!$B$47,CntyQryCensus!$A$103:$CX$146,AS$1) -> 7 | AT45: =VLOOKUP(DropDownList!$B$47,CntyQryCensus!$A$103:$CX$146,AT$1) -> 32 | AU45: =VLOOKUP(DropDownList!$B$47,CntyQryCensus!$A$103:$CX$146,AU$1) -> 0 | AV45: =VLOOKUP(DropDownList!$B$47,CntyQryCensus!$A$103:$CX$146,AV$1) -> 0 | AW45: =VLOOKUP(DropDownList!$B$47,CntyQryCensus!$A$103:$CX$146,AW$1) -> 0 | AX45: =VLOOKUP(DropDownList!$B$47,CntyQryCensus!$A$103:$CX$146,AX$1) -> 0 | AY45: =VLOOKUP(DropDownList!$B$47,CntyQryCensus!$A$103:$CX$146,AY$1) -> 0 | AZ45: =VLOOKUP(DropDownList!$B$47,CntyQryCensus!$A$103:$CX$146,AZ$1) -> 0 | BA45: =VLOOKUP(DropDownList!$B$47,CntyQryCensus!$A$103:$CX$146,BA$1) -> 2317 | BB45: =VLOOKUP(DropDownList!$B$47,CntyQryCensus!$A$103:$CX$146,BB$1) -> 2302 | BC45: =VLOOKUP(DropDownList!$B$47,CntyQryCensus!$A$103:$CX$146,BC$1) -> 15 | BD45: =VLOOKUP(DropDownList!$B$47,CntyQryCensus!$A$103:$CX$146,BD$1) -> 0 | BE45: =VLOOKUP(DropDownList!$B$47,CntyQryCensus!$A$103:$CX$146,BE$1) -> 1791 | BF45: =VLOOKUP(DropDownList!$B$47,CntyQryCensus!$A$103:$CX$146,BF$1) -> 0 | BG45: =VLOOKUP(DropDownList!$B$47,CntyQryCensus!$A$103:$CX$146,BG$1) -> 34 | BH45: =VLOOKUP(DropDownList!$B$47,CntyQryCensus!$A$103:$CX$146,BH$1) -> 226 | BI45: =VLOOKUP(DropDownList!$B$47,CntyQryCensus!$A$103:$CX$146,BI$1) -> 670 | BJ45: =VLOOKUP(DropDownList!$B$47,CntyQryCensus!$A$103:$CX$146,BJ$1) -> 632 | BK45: =VLOOKUP(DropDownList!$B$47,CntyQryCensus!$A$103:$CX$146,BK$1) -> 170 | BL45: =VLOOKUP(DropDownList!$B$47,CntyQryCensus!$A$103:$CX$146,BL$1) -> 59 | BM45: =VLOOKUP(DropDownList!$B$47,CntyQryCensus!$A$103:$CX$146,BM$1) -> 0 | BN45: =VLOOKUP(DropDownList!$B$47,CntyQryCensus!$A$103:$CX$146,BN$1) -> 197900 | BO45: =VLOOKUP(DropDownList!$B$47,CntyQryCensus!$A$103:$CX$146,BO$1) -> 1426 | BP45: =VLOOKUP(DropDownList!$B$47,CntyQryCensus!$A$103:$CX$146,BP$1) -> 0 | BQ45: =VLOOKUP(DropDownList!$B$47,CntyQryCensus!$A$103:$CX$146,BQ$1) -> 24 | BR45: =VLOOKUP(DropDownList!$B$47,CntyQryCensus!$A$103:$CX$146,BR$1) -> 58 | BS45: =VLOOKUP(DropDownList!$B$47,CntyQryCensus!$A$103:$CX$146,BS$1) -> 121 | BT45: =VLOOKUP(DropDownList!$B$47,CntyQryCensus!$A$103:$CX$146,BT$1) -> 552 | BU45: =VLOOKUP(DropDownList!$B$47,CntyQryCensus!$A$103:$CX$146,BU$1) -> 485 | BV45: =VLOOKUP(DropDownList!$B$47,CntyQryCensus!$A$103:$CX$146,BV$1) -> 186 | BW45: =VLOOKUP(DropDownList!$B$47,CntyQryCensus!$A$103:$CX$146,BW$1) -> 1465 | BX45: =VLOOKUP(DropDownList!$B$47,CntyQryCensus!$A$103:$CX$146,BX$1) -> 365 | BY45: =VLOOKUP(DropDownList!$B$47,CntyQryCensus!$A$103:$CX$146,BY$1) -> 459 | BZ45: =VLOOKUP(DropDownList!$B$47,CntyQryCensus!$A$103:$CX$146,BZ$1) -> 595 | CA45: =VLOOKUP(DropDownList!$B$47,CntyQryCensus!$A$103:$CX$146,CA$1) -> 278 | CB45: =VLOOKUP(DropDownList!$B$47,CntyQryCensus!$A$103:$CX$146,CB$1) -> 253 | CC45: =VLOOKUP(DropDownList!$B$47,CntyQryCensus!$A$103:$CX$146,CC$1) -> 241 | CD45: =VLOOKUP(DropDownList!$B$47,CntyQryCensus!$A$103:$CX$146,CD$1) -> 114 | CE45: =VLOOKUP(DropDownList!$B$47,CntyQryCensus!$A$103:$CX$146,CE$1) -> 310 | CF45: =VLOOKUP(DropDownList!$B$47,CntyQryCensus!$A$103:$CX$146,CF$1) -> 0 | CG45: =VLOOKUP(DropDownList!$B$47,CntyQryCensus!$A$103:$CX$146,CG$1) -> 238 | CH45: =VLOOKUP(DropDownList!$B$47,CntyQryCensus!$A$103:$CX$146,CH$1) -> 10 | CI45: =VLOOKUP(DropDownList!$B$47,CntyQryCensus!$A$103:$CX$146,CI$1) -> 0 | CJ45: =VLOOKUP(DropDownList!$B$47,CntyQryCensus!$A$103:$CX$146,CJ$1) -> 92 | CK45: =VLOOKUP(DropDownList!$B$47,CntyQryCensus!$A$103:$CX$146,CK$1) -> 102 | CL45: =VLOOKUP(DropDownList!$B$47,CntyQryCensus!$A$103:$CX$146,CL$1) -> 18 | CM45: =VLOOKUP(DropDownList!$B$47,CntyQryCensus!$A$103:$CX$146,CM$1) -> 0 | CN45: =VLOOKUP(DropDownList!$B$47,CntyQryCensus!$A$103:$CX$146,CN$1) -> 0 | CO45: =VLOOKUP(DropDownList!$B$47,CntyQryCensus!$A$103:$CX$146,CO$1) -> 16 | CP45: =VLOOKUP(DropDownList!$B$47,CntyQryCensus!$A$103:$CX$146,CP$1) -> 509 | CQ45: =VLOOKUP(DropDownList!$B$47,CntyQryCensus!$A$103:$CX$146,CQ$1) -> 33 | CR45: =VLOOKUP(DropDownList!$B$47,CntyQryCensus!$A$103:$CX$146,CR$1) -> 43 | CS45: =VLOOKUP(DropDownList!$B$47,CntyQryCensus!$A$103:$CX$146,CS$1) -> 10 | CT45: =VLOOKUP(DropDownList!$B$47,CntyQryCensus!$A$103:$CX$146,CT$1) -> 30 | CU45: =VLOOKUP(DropDownList!$B$47,CntyQryCensus!$A$103:$CX$146,CU$1) -> 10 | CV45: =VLOOKUP(DropDownList!$B$47,CntyQryCensus!$A$103:$CX$146,CV$1) -> 96 | CW45: =VLOOKUP(DropDownList!$B$47,CntyQryCensus!$A$103:$CX$146,CW$1) -> 16
A48: Census 2000 SummaryFile3 Sample Data - SF3TownQry1SocialChar
A49: TOWN_NAME | B49: LOGRECNO | C49: COUSUB | D49: P01TotalPopulation | E49: P02SampleCountOfPop | F49: P03Pop100pctCount | G49: P05UrbanPopulation | H49: P05RuralPopulation | I49: P06WhiteAlone | J49: P06BlackOrAfAm | K49: P06AmIndAlone | L49: P06AsianAlone | M49: P06HawaiianOrPI | N49: P06OtherRace | O49: P06TwoPlusRaces | P49: P07NotHispanicOrLatino | Q49: P07HispanicOrLatino | R49: P08MalePop | S49: P08FemalePop | T49: P09PopInHouseholds | U49: P09PopInFamHH | V49: P09PopInNonFamHH | W49: P09PopInGroupQtr | X49: P13TotalHH | Y49: P13FamilyHH | Z49: P13FamHHolder15to24yrs | AA49: P13FamHHolder25to34yrs | AB49: P13FamHHolder35to44yrs | AC49: P13FamHHolder45to54yrs | AD49: P13FamHHolder55to64yrs | AE49: P13FamHHolder65to74yrs | AF49: P13FamHHolder75to84yrs | AG49: P13FamHHolder85yrsOver | AH49: P13NonFamilyHH | AI49: P13NonFamHHolder15to24yrs | AJ49: P13NonFamHHolder25to34yrs | AK49: P13NonFamHHolder35to44yrs | AL49: P13NonFamHHolder45to54yrs | AM49: P13NonFamHHolder55to64yrs | AN49: P13NonFamHHolder65to74yrs | AO49: P13NonFamHHolder75to84yrs | AP49: P13NonFamHHolder85yrsOver | AQ49: P18Pop15yrsOver | AR49: P18MaritalStatNeverMarried | AS49: P18MaritalStatNowMarried | AT49: P18MaritalStatSeparated | AU49: P18MaritalStatWidowed | AV49: P18MaritalStatWidowFemale | AW49: P18MaritalStatDivorced | AX49: P18MaritalStatDivorcedFemale | AY49: P21NativeBornPop | AZ49: P21NatPopBornInState | BA49: P21NatPopBornOtherState | BB49: P021005 | BC49: P021006 | BD49: P021007 | BE49: P021008 | BF49: P21NatPopBornOutUS | BG49: P21ForeignBornPop | BH49: P021014 | BI49: P021015 | BJ49: P24Pop5YrsPlus | BK49: P24ResSameHouseIn95 | BL49: P24ResDiffHouseIn95 | BM49: P24ResDiffHouseInUSIn95 | BN49: P24ResDiffHouseSameCountyIn95 | BO49: P24ResDiffHouseDiffCountyIn95 | BP49: P24ResDiffHouseDiffCntySamStIn95 | BQ49: P24ResDiffHouseDiffCntyDifStIn95 | BR49: P24ResDiffHouseDiffCntyNEStIn95 | BS49: P24ResDiffHouseDiffCntyMWStIn95 | BT49: P24ResDiffHouseDiffCntySoStIn95 | BU49: P24ResDiffHouseDiffCntyWstStIn95 | BV49: P24ResDiffInPR | BW49: P24ResDiffElsewhereIn95 | BX49: P26Workers16yrsOver | BY49: P26WorkedInState | BZ49: P26WorkedInCnty | CA49: P26WorkedOutsideCnty | CB49: P26WorkedOutsideState | CC49: P30Workers16Over | CD49: P30TranspToWrkCar | CE49: P30TranspToWrkPublic | CF49: P30TranspToWrkOther | CG49: P30WrkdAtHome | CH49: P31WrkrsNotWrkAtHom | CI49: P31TravTim<5min | CJ49: P31TravTim5to9Min | CK49: P31TravTim10to14Min | CL49: P31TravTim15to19Min | CM49: P31TravTim20to24Min | CN49: P31TravTim25to29Min | CO49: P31TravTim30to34Min | CP49: P31TravTim35to39Min | CQ49: P31TravTim40to44Min | CR49: P31TravTim45to59Min | CS49: P31TravTim60to89Min | CT49: P31TravTim90MinMore | CU49: P31WorkAtHome | CV49: P36SchEnrlPop3yrOver | CW49: P36NurserSchEnrl | CX49: P36KinderSchEnrl | CY49: P36ElemSchEnrl | CZ49: P36HighSchEnrl | DA49: P36CollGradSchEnrl | DB49: P37Pop25yrsOver | DC49: P37EduAtain<9grd | DD49: P37EduAtainHSnoDip | DE49: P37EduAtainHSgrad | DF49: P37EduAtainCollNoDeg | DG49: P37EduAtainAssocDeg | DH49: P37EduAtainBachDeg | DI49: P37EduAtainGradProfDeg | DJ49: P42NIPop5to15 | DK49: P42NIPop5to15wDisabl | DL49: P42NIPop16to20 | DM49: P42NIPop16to20wDisab | DN49: P42NIPop16to20wDisEmp | DO49: P42NIPop16to21NoDis | DP49: P42NIPop16to21NoDisEmpl | DQ49: P42NIPop21to64 | DR49: P42NIPop21to64wDis | DS49: P42NIPop21to64wDisEmp | DT49: P42NIPop21to64NoDis | DU49: P42NIPop21to64NoDisEmp | DV49: P42NIPop65to74 | DW49: P42NIPop65to74wDis | DX49: P42NIPop75Over | DY49: P42NIPop75OverwDis | DZ49: P43Pop16YrsOver | EA49: P43Pop16OvrInLaborForce | EB49: P43Pop16OvrCivlLabFrc | EC49: P43Pop16OvrCivlLbrFrcEmp | ED49: P48Families | EE49: P48MarriedFam | EF49: P48MarrFamNoWorkers | EG49: P48MarrFam1Worker | EH49: P48MarrFam2Worker | EI49: P48MarrFamHusbWifeWorked | EJ49: P48MarrFamOther | EK49: P48MarrFam3PlusWorker | EL49: P48MarrFam3WorkHsbWif | EM49: P48MarrFam3PlsWrkOther | EN49: P48OtherFam | EO49: P48MaleHHNoWif | EP49: P48MaleHHNoWifNoWorker | EQ49: P48MaleHHNoWif1Worker | ER49: P48MaleHHNoWif2Worker | ES49: P48MaleHHNoWif3PlusWorker | ET49: P48FemaleHHNoHsb | EU49: P48FemaleHHNoHsbNoWorker | EV49: P48FemaleHHNoHsb1Worker | EW49: P48FemaleHHNoHsb2Worker | EX49: P48FemaleHHNoHsb3Worker | EY49: P49EmpCivPop16YrOver | EZ49: P49IndustAgricult | FA49: P49IndustConst | FB49: P49IndustMnftg | FC49: P49IndustWhlslTrd | FD49: P49IndustRtlTrd | FE49: P49IndustTrspWrhsUtlt | FF49: P49IndustInfrm | FG49: P49IndustFinInsRE | FH49: P49IndustPrfsScntfMngmt | FI49: P49IndustEduHlthSocSrv | FJ49: P49IndustArtsEntRec | FK49: P49IndustOthrSrvc | FL49: P49IndustPubAdm | FM49: P50OccupMngmtProfs | FN49: P50OccupService | FO49: P50OccupSalesOff | FP49: P50OccupFarmFishForest | FQ49: P50OccupConstExtrctMaint | FR49: P50OccupPrdctTrnspMatMv
A50: =VLOOKUP(DropDownList!$B$47,CntyQryCensus!$A$156:$FR$198,A$1) -> Atkinson | B50: =VLOOKUP(DropDownList!$B$47,CntyQryCensus!$A$156:$FR$198,B$1) -> 0003039 | C50: =VLOOKUP(DropDownList!$B$47,CntyQryCensus!$A$156:$FR$198,C$1) -> 02340 | D50: =VLOOKUP(DropDownList!$B$47,CntyQryCensus!$A$156:$FR$198,D$1) -> 6178 | E50: =VLOOKUP(DropDownList!$B$47,CntyQryCensus!$A$156:$FR$198,E$1) -> 729 | F50: =VLOOKUP(DropDownList!$B$47,CntyQryCensus!$A$156:$FR$198,F$1) -> 6178 | G50: =VLOOKUP(DropDownList!$B$47,CntyQryCensus!$A$156:$FR$198,G$1) -> 6178 | H50: =VLOOKUP(DropDownList!$B$47,CntyQryCensus!$A$156:$FR$198,H$1) -> 0 | I50: =VLOOKUP(DropDownList!$B$47,CntyQryCensus!$A$156:$FR$198,I$1) -> 6069 | J50: =VLOOKUP(DropDownList!$B$47,CntyQryCensus!$A$156:$FR$198,J$1) -> 0 | K50: =VLOOKUP(DropDownList!$B$47,CntyQryCensus!$A$156:$FR$198,K$1) -> 0 | L50: =VLOOKUP(DropDownList!$B$47,CntyQryCensus!$A$156:$FR$198,L$1) -> 58 | M50: =VLOOKUP(DropDownList!$B$47,CntyQryCensus!$A$156:$FR$198,M$1) -> 0 | N50: =VLOOKUP(DropDownList!$B$47,CntyQryCensus!$A$156:$FR$198,N$1) -> 19 | O50: =VLOOKUP(DropDownList!$B$47,CntyQryCensus!$A$156:$FR$198,O$1) -> 32 | P50: =VLOOKUP(DropDownList!$B$47,CntyQryCensus!$A$156:$FR$198,P$1) -> 6104 | Q50: =VLOOKUP(DropDownList!$B$47,CntyQryCensus!$A$156:$FR$198,Q$1) -> 74 | R50: =VLOOKUP(DropDownList!$B$47,CntyQryCensus!$A$156:$FR$198,R$1) -> 3032 | S50: =VLOOKUP(DropDownList!$B$47,CntyQryCensus!$A$156:$FR$198,S$1) -> 3146 | T50: =VLOOKUP(DropDownList!$B$47,CntyQryCensus!$A$156:$FR$198,T$1) -> 6174 | U50: =VLOOKUP(DropDownList!$B$47,CntyQryCensus!$A$156:$FR$198,U$1) -> 5528 | V50: =VLOOKUP(DropDownList!$B$47,CntyQryCensus!$A$156:$FR$198,V$1) -> 646 | W50: =VLOOKUP(DropDownList!$B$47,CntyQryCensus!$A$156:$FR$198,W$1) -> 4 | X50: =VLOOKUP(DropDownList!$B$47,CntyQryCensus!$A$156:$FR$198,X$1) -> 2326 | Y50: =VLOOKUP(DropDownList!$B$47,CntyQryCensus!$A$156:$FR$198,Y$1) -> 1781 | Z50: =VLOOKUP(DropDownList!$B$47,CntyQryCensus!$A$156:$FR$198,Z$1) -> 9 | AA50: =VLOOKUP(DropDownList!$B$47,CntyQryCensus!$A$156:$FR$198,AA$1) -> 178 | AB50: =VLOOKUP(DropDownList!$B$47,CntyQryCensus!$A$156:$FR$198,AB$1) -> 504 | AC50: =VLOOKUP(DropDownList!$B$47,CntyQryCensus!$A$156:$FR$198,AC$1) -> 490 | AD50: =VLOOKUP(DropDownList!$B$47,CntyQryCensus!$A$156:$FR$198,AD$1) -> 342 | AE50: =VLOOKUP(DropDownList!$B$47,CntyQryCensus!$A$156:$FR$198,AE$1) -> 171 | AF50: =VLOOKUP(DropDownList!$B$47,CntyQryCensus!$A$156:$FR$198,AF$1) -> 74 | AG50: =VLOOKUP(DropDownList!$B$47,CntyQryCensus!$A$156:$FR$198,AG$1) -> 13 | AH50: =VLOOKUP(DropDownList!$B$47,CntyQryCensus!$A$156:$FR$198,AH$1) -> 545 | AI50: =VLOOKUP(DropDownList!$B$47,CntyQryCensus!$A$156:$FR$198,AI$1) -> 0 | AJ50: =VLOOKUP(DropDownList!$B$47,CntyQryCensus!$A$156:$FR$198,AJ$1) -> 34 | AK50: =VLOOKUP(DropDownList!$B$47,CntyQryCensus!$A$156:$FR$198,AK$1) -> 104 | AL50: =VLOOKUP(DropDownList!$B$47,CntyQryCensus!$A$156:$FR$198,AL$1) -> 126 | AM50: =VLOOKUP(DropDownList!$B$47,CntyQryCensus!$A$156:$FR$198,AM$1) -> 96 | AN50: =VLOOKUP(DropDownList!$B$47,CntyQryCensus!$A$156:$FR$198,AN$1) -> 130 | AO50: =VLOOKUP(DropDownList!$B$47,CntyQryCensus!$A$156:$FR$198,AO$1) -> 21 | AP50: =VLOOKUP(DropDownList!$B$47,CntyQryCensus!$A$156:$FR$198,AP$1) -> 34 | AQ50: =VLOOKUP(DropDownList!$B$47,CntyQryCensus!$A$156:$FR$198,AQ$1) -> 4882 | AR50: =VLOOKUP(DropDownList!$B$47,CntyQryCensus!$A$156:$FR$198,AR$1) -> 951 | AS50: =VLOOKUP(DropDownList!$B$47,CntyQryCensus!$A$156:$FR$198,AS$1) -> 3226 | AT50: =VLOOKUP(DropDownList!$B$47,CntyQryCensus!$A$156:$FR$198,AT$1) -> 72 | AU50: =VLOOKUP(DropDownList!$B$47,CntyQryCensus!$A$156:$FR$198,AU$1) -> 242 | AV50: =VLOOKUP(DropDownList!$B$47,CntyQryCensus!$A$156:$FR$198,AV$1) -> 169 | AW50: =VLOOKUP(DropDownList!$B$47,CntyQryCensus!$A$156:$FR$198,AW$1) -> 391 | AX50: =VLOOKUP(DropDownList!$B$47,CntyQryCensus!$A$156:$FR$198,AX$1) -> 205 | AY50: =VLOOKUP(DropDownList!$B$47,CntyQryCensus!$A$156:$FR$198,AY$1) -> 5916 | AZ50: =VLOOKUP(DropDownList!$B$47,CntyQryCensus!$A$156:$FR$198,AZ$1) -> 421 | BA50: =VLOOKUP(DropDownList!$B$47,CntyQryCensus!$A$156:$FR$198,BA$1) -> 5468 | BB50: =VLOOKUP(DropDownList!$B$47,CntyQryCensus!$A$156:$FR$198,BB$1) -> 4943 | BC50: =VLOOKUP(DropDownList!$B$47,CntyQryCensus!$A$156:$FR$198,BC$1) -> 227 | BD50: =VLOOKUP(DropDownList!$B$47,CntyQryCensus!$A$156:$FR$198,BD$1) -> 206 | BE50: =VLOOKUP(DropDownList!$B$47,CntyQryCensus!$A$156:$FR$198,BE$1) -> 92 | BF50: =VLOOKUP(DropDownList!$B$47,CntyQryCensus!$A$156:$FR$198,BF$1) -> 27 | BG50: =VLOOKUP(DropDownList!$B$47,CntyQryCensus!$A$156:$FR$198,BG$1) -> 262 | BH50: =VLOOKUP(DropDownList!$B$47,CntyQryCensus!$A$156:$FR$198,BH$1) -> 232 | BI50: =VLOOKUP(DropDownList!$B$47,CntyQryCensus!$A$156:$FR$198,BI$1) -> 30 | BJ50: =VLOOKUP(DropDownList!$B$47,CntyQryCensus!$A$156:$FR$198,BJ$1) -> 5767 | BK50: =VLOOKUP(DropDownList!$B$47,CntyQryCensus!$A$156:$FR$198,BK$1) -> 3612 | BL50: =VLOOKUP(DropDownList!$B$47,CntyQryCensus!$A$156:$FR$198,BL$1) -> 2155 | BM50: =VLOOKUP(DropDownList!$B$47,CntyQryCensus!$A$156:$FR$198,BM$1) -> 2095 | BN50: =VLOOKUP(DropDownList!$B$47,CntyQryCensus!$A$156:$FR$198,BN$1) -> 903 | BO50: =VLOOKUP(DropDownList!$B$47,CntyQryCensus!$A$156:$FR$198,BO$1) -> 1192 | BP50: =VLOOKUP(DropDownList!$B$47,CntyQryCensus!$A$156:$FR$198,BP$1) -> 116 | BQ50: =VLOOKUP(DropDownList!$B$47,CntyQryCensus!$A$156:$FR$198,BQ$1) -> 1076 | BR50: =VLOOKUP(DropDownList!$B$47,CntyQryCensus!$A$156:$FR$198,BR$1) -> 905 | BS50: =VLOOKUP(DropDownList!$B$47,CntyQryCensus!$A$156:$FR$198,BS$1) -> 4 | BT50: =VLOOKUP(DropDownList!$B$47,CntyQryCensus!$A$156:$FR$198,BT$1) -> 134 | BU50: =VLOOKUP(DropDownList!$B$47,CntyQryCensus!$A$156:$FR$198,BU$1) -> 33 | BV50: =VLOOKUP(DropDownList!$B$47,CntyQryCensus!$A$156:$FR$198,BV$1) -> 0 | BW50: =VLOOKUP(DropDownList!$B$47,CntyQryCensus!$A$156:$FR$198,BW$1) -> 60 | BX50: =VLOOKUP(DropDownList!$B$47,CntyQryCensus!$A$156:$FR$198,BX$1) -> 3422 | BY50: =VLOOKUP(DropDownList!$B$47,CntyQryCensus!$A$156:$FR$198,BY$1) -> 1524 | BZ50: =VLOOKUP(DropDownList!$B$47,CntyQryCensus!$A$156:$FR$198,BZ$1) -> 1279 | CA50: =VLOOKUP(DropDownList!$B$47,CntyQryCensus!$A$156:$FR$198,CA$1) -> 245 | CB50: =VLOOKUP(DropDownList!$B$47,CntyQryCensus!$A$156:$FR$198,CB$1) -> 1898 | CC50: =VLOOKUP(DropDownList!$B$47,CntyQryCensus!$A$156:$FR$198,CC$1) -> 3422 | CD50: =VLOOKUP(DropDownList!$B$47,CntyQryCensus!$A$156:$FR$198,CD$1) -> 3156 | CE50: =VLOOKUP(DropDownList!$B$47,CntyQryCensus!$A$156:$FR$198,CE$1) -> 24 | CF50: =VLOOKUP(DropDownList!$B$47,CntyQryCensus!$A$156:$FR$198,CF$1) -> 100 | CG50: =VLOOKUP(DropDownList!$B$47,CntyQryCensus!$A$156:$FR$198,CG$1) -> 208 | CH50: =VLOOKUP(DropDownList!$B$47,CntyQryCensus!$A$156:$FR$198,CH$1) -> 3214 | CI50: =VLOOKUP(DropDownList!$B$47,CntyQryCensus!$A$156:$FR$198,CI$1) -> 49 | CJ50: =VLOOKUP(DropDownList!$B$47,CntyQryCensus!$A$156:$FR$198,CJ$1) -> 156 | CK50: =VLOOKUP(DropDownList!$B$47,CntyQryCensus!$A$156:$FR$198,CK$1) -> 428 | CL50: =VLOOKUP(DropDownList!$B$47,CntyQryCensus!$A$156:$FR$198,CL$1) -> 401 | CM50: =VLOOKUP(DropDownList!$B$47,CntyQryCensus!$A$156:$FR$198,CM$1) -> 436 | CN50: =VLOOKUP(DropDownList!$B$47,CntyQryCensus!$A$156:$FR$198,CN$1) -> 167 | CO50: =VLOOKUP(DropDownList!$B$47,CntyQryCensus!$A$156:$FR$198,CO$1) -> 526 | CP50: =VLOOKUP(DropDownList!$B$47,CntyQryCensus!$A$156:$FR$198,CP$1) -> 79 | CQ50: =VLOOKUP(DropDownList!$B$47,CntyQryCensus!$A$156:$FR$198,CQ$1) -> 185 | CR50: =VLOOKUP(DropDownList!$B$47,CntyQryCensus!$A$156:$FR$198,CR$1) -> 406 | CS50: =VLOOKUP(DropDownList!$B$47,CntyQryCensus!$A$156:$FR$198,CS$1) -> 316 | CT50: =VLOOKUP(DropDownList!$B$47,CntyQryCensus!$A$156:$FR$198,CT$1) -> 65 | CU50: =VLOOKUP(DropDownList!$B$47,CntyQryCensus!$A$156:$FR$198,CU$1) -> 208 | CV50: =VLOOKUP(DropDownList!$B$47,CntyQryCensus!$A$156:$FR$198,CV$1) -> 5932 | CW50: =VLOOKUP(DropDownList!$B$47,CntyQryCensus!$A$156:$FR$198,CW$1) -> 120 | CX50: =VLOOKUP(DropDownList!$B$47,CntyQryCensus!$A$156:$FR$198,CX$1) -> 97 | CY50: =VLOOKUP(DropDownList!$B$47,CntyQryCensus!$A$156:$FR$198,CY$1) -> 725 | CZ50: =VLOOKUP(DropDownList!$B$47,CntyQryCensus!$A$156:$FR$198,CZ$1) -> 335 | DA50: =VLOOKUP(DropDownList!$B$47,CntyQryCensus!$A$156:$FR$198,DA$1) -> 298 | DB50: =VLOOKUP(DropDownList!$B$47,CntyQryCensus!$A$156:$FR$198,DB$1) -> 4345 | DC50: =VLOOKUP(DropDownList!$B$47,CntyQryCensus!$A$156:$FR$198,DC$1) -> 43 | DD50: =VLOOKUP(DropDownList!$B$47,CntyQryCensus!$A$156:$FR$198,DD$1) -> 162 | DE50: =VLOOKUP(DropDownList!$B$47,CntyQryCensus!$A$156:$FR$198,DE$1) -> 1044 | DF50: =VLOOKUP(DropDownList!$B$47,CntyQryCensus!$A$156:$FR$198,DF$1) -> 898 | DG50: =VLOOKUP(DropDownList!$B$47,CntyQryCensus!$A$156:$FR$198,DG$1) -> 494 | DH50: =VLOOKUP(DropDownList!$B$47,CntyQryCensus!$A$156:$FR$198,DH$1) -> 1145 | DI50: =VLOOKUP(DropDownList!$B$47,CntyQryCensus!$A$156:$FR$198,DI$1) -> 559 | DJ50: =VLOOKUP(DropDownList!$B$47,CntyQryCensus!$A$156:$FR$198,DJ$1) -> 965 | DK50: =VLOOKUP(DropDownList!$B$47,CntyQryCensus!$A$156:$FR$198,DK$1) -> 27 | DL50: =VLOOKUP(DropDownList!$B$47,CntyQryCensus!$A$156:$FR$198,DL$1) -> 297 | DM50: =VLOOKUP(DropDownList!$B$47,CntyQryCensus!$A$156:$FR$198,DM$1) -> 33 | DN50: =VLOOKUP(DropDownList!$B$47,CntyQryCensus!$A$156:$FR$198,DN$1) -> 23 | DO50: =VLOOKUP(DropDownList!$B$47,CntyQryCensus!$A$156:$FR$198,DO$1) -> 264 | DP50: =VLOOKUP(DropDownList!$B$47,CntyQryCensus!$A$156:$FR$198,DP$1) -> 109 | DQ50: =VLOOKUP(DropDownList!$B$47,CntyQryCensus!$A$156:$FR$198,DQ$1) -> 3808 | DR50: =VLOOKUP(DropDownList!$B$47,CntyQryCensus!$A$156:$FR$198,DR$1) -> 513 | DS50: =VLOOKUP(DropDownList!$B$47,CntyQryCensus!$A$156:$FR$198,DS$1) -> 410 | DT50: =VLOOKUP(DropDownList!$B$47,CntyQryCensus!$A$156:$FR$198,DT$1) -> 3295 | DU50: =VLOOKUP(DropDownList!$B$47,CntyQryCensus!$A$156:$FR$198,DU$1) -> 2805 | DV50: =VLOOKUP(DropDownList!$B$47,CntyQryCensus!$A$156:$FR$198,DV$1) -> 446 | DW50: =VLOOKUP(DropDownList!$B$47,CntyQryCensus!$A$156:$FR$198,DW$1) -> 97 | DX50: =VLOOKUP(DropDownList!$B$47,CntyQryCensus!$A$156:$FR$198,DX$1) -> 251 | DY50: =VLOOKUP(DropDownList!$B$47,CntyQryCensus!$A$156:$FR$198,DY$1) -> 76 | DZ50: =VLOOKUP(DropDownList!$B$47,CntyQryCensus!$A$156:$FR$198,DZ$1) -> 4802 | EA50: =VLOOKUP(DropDownList!$B$47,CntyQryCensus!$A$156:$FR$198,EA$1) -> 3551 | EB50: =VLOOKUP(DropDownList!$B$47,CntyQryCensus!$A$156:$FR$198,EB$1) -> 3551 | EC50: =VLOOKUP(DropDownList!$B$47,CntyQryCensus!$A$156:$FR$198,EC$1) -> 3459 | ED50: =VLOOKUP(DropDownList!$B$47,CntyQryCensus!$A$156:$FR$198,ED$1) -> 1781 | EE50: =VLOOKUP(DropDownList!$B$47,CntyQryCensus!$A$156:$FR$198,EE$1) -> 1550 | EF50: =VLOOKUP(DropDownList!$B$47,CntyQryCensus!$A$156:$FR$198,EF$1) -> 122 | EG50: =VLOOKUP(DropDownList!$B$47,CntyQryCensus!$A$156:$FR$198,EG$1) -> 278 | EH50: =VLOOKUP(DropDownList!$B$47,CntyQryCensus!$A$156:$FR$198,EH$1) -> 865 | EI50: =VLOOKUP(DropDownList!$B$47,CntyQryCensus!$A$156:$FR$198,EI$1) -> 826 | EJ50: =VLOOKUP(DropDownList!$B$47,CntyQryCensus!$A$156:$FR$198,EJ$1) -> 39 | EK50: =VLOOKUP(DropDownList!$B$47,CntyQryCensus!$A$156:$FR$198,EK$1) -> 285 | EL50: =VLOOKUP(DropDownList!$B$47,CntyQryCensus!$A$156:$FR$198,EL$1) -> 271 | EM50: =VLOOKUP(DropDownList!$B$47,CntyQryCensus!$A$156:$FR$198,EM$1) -> 14 | EN50: =VLOOKUP(DropDownList!$B$47,CntyQryCensus!$A$156:$FR$198,EN$1) -> 231 | EO50: =VLOOKUP(DropDownList!$B$47,CntyQryCensus!$A$156:$FR$198,EO$1) -> 91 | EP50: =VLOOKUP(DropDownList!$B$47,CntyQryCensus!$A$156:$FR$198,EP$1) -> 0 | EQ50: =VLOOKUP(DropDownList!$B$47,CntyQryCensus!$A$156:$FR$198,EQ$1) -> 23 | ER50: =VLOOKUP(DropDownList!$B$47,CntyQryCensus!$A$156:$FR$198,ER$1) -> 46 | ES50: =VLOOKUP(DropDownList!$B$47,CntyQryCensus!$A$156:$FR$198,ES$1) -> 22 | ET50: =VLOOKUP(DropDownList!$B$47,CntyQryCensus!$A$156:$FR$198,ET$1) -> 140 | EU50: =VLOOKUP(DropDownList!$B$47,CntyQryCensus!$A$156:$FR$198,EU$1) -> 20 | EV50: =VLOOKUP(DropDownList!$B$47,CntyQryCensus!$A$156:$FR$198,EV$1) -> 49 | EW50: =VLOOKUP(DropDownList!$B$47,CntyQryCensus!$A$156:$FR$198,EW$1) -> 53 | EX50: =VLOOKUP(DropDownList!$B$47,CntyQryCensus!$A$156:$FR$198,EX$1) -> 18 | EY50: =VLOOKUP(DropDownList!$B$47,CntyQryCensus!$A$156:$FR$198,EY$1) -> 3459 | EZ50: =VLOOKUP(DropDownList!$B$47,CntyQryCensus!$A$156:$FR$198,EZ$1) -> 46 | FA50: =VLOOKUP(DropDownList!$B$47,CntyQryCensus!$A$156:$FR$198,FA$1) -> 150 | FB50: =VLOOKUP(DropDownList!$B$47,CntyQryCensus!$A$156:$FR$198,FB$1) -> 668 | FC50: =VLOOKUP(DropDownList!$B$47,CntyQryCensus!$A$156:$FR$198,FC$1) -> 156 | FD50: =VLOOKUP(DropDownList!$B$47,CntyQryCensus!$A$156:$FR$198,FD$1) -> 517 | FE50: =VLOOKUP(DropDownList!$B$47,CntyQryCensus!$A$156:$FR$198,FE$1) -> 126 | FF50: =VLOOKUP(DropDownList!$B$47,CntyQryCensus!$A$156:$FR$198,FF$1) -> 138 | FG50: =VLOOKUP(DropDownList!$B$47,CntyQryCensus!$A$156:$FR$198,FG$1) -> 244 | FH50: =VLOOKUP(DropDownList!$B$47,CntyQryCensus!$A$156:$FR$198,FH$1) -> 363 | FI50: =VLOOKUP(DropDownList!$B$47,CntyQryCensus!$A$156:$FR$198,FI$1) -> 696 | FJ50: =VLOOKUP(DropDownList!$B$47,CntyQryCensus!$A$156:$FR$198,FJ$1) -> 193 | FK50: =VLOOKUP(DropDownList!$B$47,CntyQryCensus!$A$156:$FR$198,FK$1) -> 60 | FL50: =VLOOKUP(DropDownList!$B$47,CntyQryCensus!$A$156:$FR$198,FL$1) -> 102 | FM50: =VLOOKUP(DropDownList!$B$47,CntyQryCensus!$A$156:$FR$198,FM$1) -> 1670 | FN50: =VLOOKUP(DropDownList!$B$47,CntyQryCensus!$A$156:$FR$198,FN$1) -> 297 | FO50: =VLOOKUP(DropDownList!$B$47,CntyQryCensus!$A$156:$FR$198,FO$1) -> 856 | FP50: =VLOOKUP(DropDownList!$B$47,CntyQryCensus!$A$156:$FR$198,FP$1) -> 22 | FQ50: =VLOOKUP(DropDownList!$B$47,CntyQryCensus!$A$156:$FR$198,FQ$1) -> 172 | FR50: =VLOOKUP(DropDownList!$B$47,CntyQryCensus!$A$156:$FR$198,FR$1) -> 442
A53: Census 2000 SummaryFile3 Sample Data - SF3TownQry2aIncomeChar
A54: NAME | B54: LOGRECNO | C54: COUNTY | D54: TotalPop | E54: P52Households1 | F54: P52HHInc<10K | G54: P52HHInc10to15K | H54: P52HHInc15to20K | I54: P52HHInc20to25K | J54: P52HHInc25to30K | K54: P52HHInc30to35K | L54: P52HHInc35to40K | M54: P52HHInc40to45K | N54: P52HHInc45to50K | O54: P52HHInc50to60K | P54: P52HHInc60to75K | Q54: P52HHInc75to100K | R54: P52HHInc100to125K | S54: P52HHInc125to150K | T54: P52HHInc150to200K | U54: P52HHInc>200K | V54: P53MedianHHInc | W54: P54AggregHHInc | X54: P55Households2 | Y54: P55HHUnder25yrs | Z54: P55HH<25HHInc<10K | AA54: P55HH<25HHInc10to15K | AB54: P55HH<25HHInc15to20K | AC54: P55HH<25HHInc20to25K | AD54: P55HH<25HHInc25to30K | AE54: P55HH<25HHInc30to35K | AF54: P55HH<25HHInc35to40K | AG54: P55HH<25HHInc40to45K | AH54: P55HH<25HHInc45to50K | AI54: P55HH<25HHInc50to60K | AJ54: P55HH<25HHInc60to75K | AK54: P55HH<25HHInc75to100K | AL54: P55HH<25HHInc100to125K | AM54: P55HH<25HHInc125to150K | AN54: P55HH<25HHInc150to200K | AO54: P55HH<25HHInc>200K | AP54: P55HH25to34yrs | AQ54: P55HH25to34HHInc<10K | AR54: P55HH25to34HHInc10to15K | AS54: P55HH25to34HHInc15to20K | AT54: P55HH25to34HHInc20to25K | AU54: P55HH25to34HHInc25to30K | AV54: P55HH25to34HHInc30to35K | AW54: P55HH25to34HHInc35to40K | AX54: P55HH25to34HHInc40to45K | AY54: P55HH25to34HHInc45to50K | AZ54: P55HH25to34HHInc50to60K | BA54: P55HH25to34HHInc60to75K | BB54: P55HH25to34HHInc75to100K | BC54: P55HH25to34HHInc100to125K | BD54: P55HH25to34HHInc125to150K | BE54: P55HH25to34HHInc150to200K | BF54: P55HH25to34HHInc>200K | BG54: P55HH35to44yrs | BH54: P55HH35to44HHInc<10K | BI54: P55HH35to44HHInc10to15K | BJ54: P55HH35to44HHInc15to20K | BK54: P55HH35to44HHInc20to25K | BL54: P55HH35to44HHInc25to30K | BM54: P55HH35to44HHInc30to35K | BN54: P55HH35to44HHInc35to40K | BO54: P55HH35to44HHInc40to45K | BP54: P55HH35to44HHInc45to50K | BQ54: P55HH35to44HHInc50to60K | BR54: P55HH35to44HHInc60to75K | BS54: P55HH35to44HHInc75to100K | BT54: P55HH35to44HHInc100to125K | BU54: P55HH35to44HHInc125to150K | BV54: P55HH35to44HHInc150to200K | BW54: P55HH35to44HHInc>200K | BX54: P55HH45to54yrs | BY54: P55HH45to55HHInc<10K | BZ54: P55HH45to55HHInc10to15K | CA54: P55HH45to55HHInc15to20K | CB54: P55HH45to55HHInc20to25K | CC54: P55HH45to55HHInc25to30K | CD54: P55HH45to55HHInc30to35K | CE54: P55HH45to55HHInc35to40K | CF54: P55HH45to55HHInc40to45K | CG54: P55HH45to55HHInc45to50K | CH54: P55HH45to55HHInc50to60K | CI54: P55HH45to55HHInc60to75K | CJ54: P55HH45to55HHInc75to100K | CK54: P55HH45to55HHInc100to125K | CL54: P55HH45to55HHInc125to150K | CM54: P55HH45to55HHInc150to200K | CN54: P55HH45to55HHInc>200K | CO54: P55HH55to64yrs | CP54: P55HH55to64HHInc<10K | CQ54: P55HH55to64HHInc10to15K | CR54: P55HH55to64HHInc15to20K | CS54: P55HH55to64HHInc20to25K | CT54: P55HH55to64HHInc25to30K | CU54: P55HH55to64HHInc30to35K | CV54: P55HH55to64HHInc35to40K | CW54: P55HH55to64HHInc40to45K | CX54: P55HH55to64HHInc45to50K | CY54: P55HH55to64HHInc50to60K | CZ54: P55HH55to64HHInc60to75K | DA54: P55HH55to64HHInc75to100K | DB54: P55HH55to64HHInc100to125K | DC54: P55HH55to64HHInc125to150K | DD54: P55HH55to64HHInc150to200K | DE54: P55HH55to64HHInc>200K | DF54: P55HH65to74yrs | DG54: P55HH65to74HHInc<10K | DH54: P55HH65to74HHInc10to15K | DI54: P55HH65to74HHInc15to20K | DJ54: P55HH65to74HHInc20to25K | DK54: P55HH65to74HHInc25to30K | DL54: P55HH65to74HHInc30to35K | DM54: P55HH65to74HHInc35to40K | DN54: P55HH65to74HHInc40to45K | DO54: P55HH65to74HHInc45to50K | DP54: P55HH65to74HHInc50to60K | DQ54: P55HH65to74HHInc60to75K | DR54: P55HH65to74HHInc75to100K | DS54: P55HH65to74HHInc100to125K | DT54: P55HH65to74HHInc125to150K | DU54: P55HH65to74HHInc150to200K | DV54: P55HH65to74HHInc>200K | DW54: P55HH>75yrs | DX54: P55HH>75HHInc<10K | DY54: P55HH>75HHInc10to15K | DZ54: P55HH>75HHInc15to20K | EA54: P55HH>75HHInc20to25K | EB54: P55HH>75HHInc25to30K | EC54: P55HH>75HHInc30to35K | ED54: P55HH>75HHInc35to40K | EE54: P55HH>75HHInc40to45K | EF54: P55HH>75HHInc45to50K | EG54: P55HH>75HHInc50to60K | EH54: P55HH>75HHInc60to75K | EI54: P55HH>75HHInc75to100K | EJ54: P55HH>75HHInc100to125K | EK54: P55HH>75HHInc125to150K | EL54: P55HH>75HHInc150to200K | EM54: P55HH>75HHInc>200K | EN54: P56MedHHInc | EO54: P56MedHHIncHH<25y | EP54: P56MedHHIncHH25to34y | EQ54: P56MedHHIncHH35to44y | ER54: P56MedHHIncHH45to54y | ES54: P56MedHHIncHH55to64y | ET54: P56MedHHIncHH65to74y | EU54: P56MedHHIncHH>75y | EV54: P58Households3 | EW54: P58HHwithEarnings | EX54: P58HHNoEarnings | EY54: P59HHwWageSalInc | EZ54: P59HHNoWageSalInc | FA54: P60HHwSelfEmpInc | FB54: P60HHNoSelfEmpInc | FC54: P61HHwIndDivInc | FD54: P61HHNoIndDivInc | FE54: P62HHwSocSecInc | FF54: P62HHNoSocSecInc | FG54: P63HHwSSI | FH54: P63HHNoSSI | FI54: P64HHwPubAssInc | FJ54: P64HHNoPubAssInc | FK54: P65HHwRetInc | FL54: P65HHNoRetInc | FM54: P66HHwOtherTypInc | FN54: P66HHNoOtherTypInc | FO54: P67AggregEarnings | FP54: P68AggregWageSalInc | FQ54: P69AggregSelfEmpInc | FR54: P70AggregIntDivInc | FS54: P71AggregSocSecInc | FT54: P72AggregSSIInc | FU54: P73AggregPublicAssInc | FV54: P74AggregRetireInc | FW54: P76Families1 | FX54: P76FamInc<10K | FY54: P76FamInc10to15K | FZ54: P76FamInc15to20K | GA54: P76FamInc20to25K | GB54: P76FamInc25to30K | GC54: P76FamInc30to35K | GD54: P76FamInc35to40K | GE54: P76FamInc40to45K | GF54: P76FamInc45to50K | GG54: P76FamInc50to60K | GH54: P76FamInc60to75K | GI54: P76FamInc75to100K | GJ54: P76FamInc100to125K | GK54: P76FamInc125to150K | GL54: P76FamInc150to200K | GM54: P76FamInc>200K | GN54: P77MedFamInc | GO54: P78AggregFamInc | GP54: P79NonFamHH | GQ54: P79NonFamHHwInc<10K | GR54: P79NonFamHHwInc10to15K | GS54: P79NonFamHHwInc15to20K | GT54: P79NonFamHHwInc20to25K | GU54: P79NonFamHHwInc25to30K | GV54: P79NonFamHHwInc30to35K | GW54: P79NonFamHHwInc35to40K | GX54: P79NonFamHHwInc40to45K | GY54: P79NonFamHHwInc45to50K | GZ54: P79NonFamHHwInc50to60K | HA54: P79NonFamHHwInc60to75K | HB54: P79NonFamHHwInc75to100K | HC54: P79NonFamHHwInc100to125K | HD54: P79NonFamHHwInc125to150K | HE54: P79NonFamHHwInc150to200K | HF54: P79NonFamHHwInc200KorMore | HG54: P80MedNonFamInc | HH54: P82PerCapitaInc
A55: =VLOOKUP(DropDownList!$B$47,CntyQryCensus!$A$206:$HH$248,A$1) -> Atkinson | B55: =VLOOKUP(DropDownList!$B$47,CntyQryCensus!$A$206:$HH$248,B$1) -> 0003039 | C55: =VLOOKUP(DropDownList!$B$47,CntyQryCensus!$A$206:$HH$248,C$1) -> 02340 | D55: =VLOOKUP(DropDownList!$B$47,CntyQryCensus!$A$206:$HH$248,D$1) -> 6178 | E55: =VLOOKUP(DropDownList!$B$47,CntyQryCensus!$A$206:$HH$248,E$1) -> 2326 | F55: =VLOOKUP(DropDownList!$B$47,CntyQryCensus!$A$206:$HH$248,F$1) -> 80 | G55: =VLOOKUP(DropDownList!$B$47,CntyQryCensus!$A$206:$HH$248,G$1) -> 77 | H55: =VLOOKUP(DropDownList!$B$47,CntyQryCensus!$A$206:$HH$248,H$1) -> 42 | I55: =VLOOKUP(DropDownList!$B$47,CntyQryCensus!$A$206:$HH$248,I$1) -> 91 | J55: =VLOOKUP(DropDownList!$B$47,CntyQryCensus!$A$206:$HH$248,J$1) -> 46 | K55: =VLOOKUP(DropDownList!$B$47,CntyQryCensus!$A$206:$HH$248,K$1) -> 74 | L55: =VLOOKUP(DropDownList!$B$47,CntyQryCensus!$A$206:$HH$248,L$1) -> 85 | M55: =VLOOKUP(DropDownList!$B$47,CntyQryCensus!$A$206:$HH$248,M$1) -> 169 | N55: =VLOOKUP(DropDownList!$B$47,CntyQryCensus!$A$206:$HH$248,N$1) -> 94 | O55: =VLOOKUP(DropDownList!$B$47,CntyQryCensus!$A$206:$HH$248,O$1) -> 212 | P55: =VLOOKUP(DropDownList!$B$47,CntyQryCensus!$A$206:$HH$248,P$1) -> 273 | Q55: =VLOOKUP(DropDownList!$B$47,CntyQryCensus!$A$206:$HH$248,Q$1) -> 405 | R55: =VLOOKUP(DropDownList!$B$47,CntyQryCensus!$A$206:$HH$248,R$1) -> 267 | S55: =VLOOKUP(DropDownList!$B$47,CntyQryCensus!$A$206:$HH$248,S$1) -> 182 | T55: =VLOOKUP(DropDownList!$B$47,CntyQryCensus!$A$206:$HH$248,T$1) -> 111 | U55: =VLOOKUP(DropDownList!$B$47,CntyQryCensus!$A$206:$HH$248,U$1) -> 118 | V55: =VLOOKUP(DropDownList!$B$47,CntyQryCensus!$A$206:$HH$248,V$1) -> 69729 | W55: =VLOOKUP(DropDownList!$B$47,CntyQryCensus!$A$206:$HH$248,W$1) -> 186834100 | X55: =VLOOKUP(DropDownList!$B$47,CntyQryCensus!$A$206:$HH$248,X$1) -> 2326 | Y55: =VLOOKUP(DropDownList!$B$47,CntyQryCensus!$A$206:$HH$248,Y$1) -> 9 | Z55: =VLOOKUP(DropDownList!$B$47,CntyQryCensus!$A$206:$HH$248,Z$1) -> 0 | AA55: =VLOOKUP(DropDownList!$B$47,CntyQryCensus!$A$206:$HH$248,AA$1) -> 0 | AB55: =VLOOKUP(DropDownList!$B$47,CntyQryCensus!$A$206:$HH$248,AB$1) -> 0 | AC55: =VLOOKUP(DropDownList!$B$47,CntyQryCensus!$A$206:$HH$248,AC$1) -> 0 | AD55: =VLOOKUP(DropDownList!$B$47,CntyQryCensus!$A$206:$HH$248,AD$1) -> 0 | AE55: =VLOOKUP(DropDownList!$B$47,CntyQryCensus!$A$206:$HH$248,AE$1) -> 0 | AF55: =VLOOKUP(DropDownList!$B$47,CntyQryCensus!$A$206:$HH$248,AF$1) -> 0 | AG55: =VLOOKUP(DropDownList!$B$47,CntyQryCensus!$A$206:$HH$248,AG$1) -> 0 | AH55: =VLOOKUP(DropDownList!$B$47,CntyQryCensus!$A$206:$HH$248,AH$1) -> 9 | AI55: =VLOOKUP(DropDownList!$B$47,CntyQryCensus!$A$206:$HH$248,AI$1) -> 0 | AJ55: =VLOOKUP(DropDownList!$B$47,CntyQryCensus!$A$206:$HH$248,AJ$1) -> 0 | AK55: =VLOOKUP(DropDownList!$B$47,CntyQryCensus!$A$206:$HH$248,AK$1) -> 0 | AL55: =VLOOKUP(DropDownList!$B$47,CntyQryCensus!$A$206:$HH$248,AL$1) -> 0 | AM55: =VLOOKUP(DropDownList!$B$47,CntyQryCensus!$A$206:$HH$248,AM$1) -> 0 | AN55: =VLOOKUP(DropDownList!$B$47,CntyQryCensus!$A$206:$HH$248,AN$1) -> 0 | AO55: =VLOOKUP(DropDownList!$B$47,CntyQryCensus!$A$206:$HH$248,AO$1) -> 0 | AP55: =VLOOKUP(DropDownList!$B$47,CntyQryCensus!$A$206:$HH$248,AP$1) -> 212 | AQ55: =VLOOKUP(DropDownList!$B$47,CntyQryCensus!$A$206:$HH$248,AQ$1) -> 8 | AR55: =VLOOKUP(DropDownList!$B$47,CntyQryCensus!$A$206:$HH$248,AR$1) -> 9 | AS55: =VLOOKUP(DropDownList!$B$47,CntyQryCensus!$A$206:$HH$248,AS$1) -> 0 | AT55: =VLOOKUP(DropDownList!$B$47,CntyQryCensus!$A$206:$HH$248,AT$1) -> 0 | AU55: =VLOOKUP(DropDownList!$B$47,CntyQryCensus!$A$206:$HH$248,AU$1) -> 0 | AV55: =VLOOKUP(DropDownList!$B$47,CntyQryCensus!$A$206:$HH$248,AV$1) -> 0 | AW55: =VLOOKUP(DropDownList!$B$47,CntyQryCensus!$A$206:$HH$248,AW$1) -> 9 | AX55: =VLOOKUP(DropDownList!$B$47,CntyQryCensus!$A$206:$HH$248,AX$1) -> 10 | AY55: =VLOOKUP(DropDownList!$B$47,CntyQryCensus!$A$206:$HH$248,AY$1) -> 0 | AZ55: =VLOOKUP(DropDownList!$B$47,CntyQryCensus!$A$206:$HH$248,AZ$1) -> 34 | BA55: =VLOOKUP(DropDownList!$B$47,CntyQryCensus!$A$206:$HH$248,BA$1) -> 72 | BB55: =VLOOKUP(DropDownList!$B$47,CntyQryCensus!$A$206:$HH$248,BB$1) -> 36 | BC55: =VLOOKUP(DropDownList!$B$47,CntyQryCensus!$A$206:$HH$248,BC$1) -> 16 | BD55: =VLOOKUP(DropDownList!$B$47,CntyQryCensus!$A$206:$HH$248,BD$1) -> 0 | BE55: =VLOOKUP(DropDownList!$B$47,CntyQryCensus!$A$206:$HH$248,BE$1) -> 18 | BF55: =VLOOKUP(DropDownList!$B$47,CntyQryCensus!$A$206:$HH$248,BF$1) -> 0 | BG55: =VLOOKUP(DropDownList!$B$47,CntyQryCensus!$A$206:$HH$248,BG$1) -> 608 | BH55: =VLOOKUP(DropDownList!$B$47,CntyQryCensus!$A$206:$HH$248,BH$1) -> 16 | BI55: =VLOOKUP(DropDownList!$B$47,CntyQryCensus!$A$206:$HH$248,BI$1) -> 7 | BJ55: =VLOOKUP(DropDownList!$B$47,CntyQryCensus!$A$206:$HH$248,BJ$1) -> 0 | BK55: =VLOOKUP(DropDownList!$B$47,CntyQryCensus!$A$206:$HH$248,BK$1) -> 0 | BL55: =VLOOKUP(DropDownList!$B$47,CntyQryCensus!$A$206:$HH$248,BL$1) -> 25 | BM55: =VLOOKUP(DropDownList!$B$47,CntyQryCensus!$A$206:$HH$248,BM$1) -> 18 | BN55: =VLOOKUP(DropDownList!$B$47,CntyQryCensus!$A$206:$HH$248,BN$1) -> 8 | BO55: =VLOOKUP(DropDownList!$B$47,CntyQryCensus!$A$206:$HH$248,BO$1) -> 51 | BP55: =VLOOKUP(DropDownList!$B$47,CntyQryCensus!$A$206:$HH$248,BP$1) -> 28 | BQ55: =VLOOKUP(DropDownList!$B$47,CntyQryCensus!$A$206:$HH$248,BQ$1) -> 29 | BR55: =VLOOKUP(DropDownList!$B$47,CntyQryCensus!$A$206:$HH$248,BR$1) -> 92 | BS55: =VLOOKUP(DropDownList!$B$47,CntyQryCensus!$A$206:$HH$248,BS$1) -> 99 | BT55: =VLOOKUP(DropDownList!$B$47,CntyQryCensus!$A$206:$HH$248,BT$1) -> 89 | BU55: =VLOOKUP(DropDownList!$B$47,CntyQryCensus!$A$206:$HH$248,BU$1) -> 64 | BV55: =VLOOKUP(DropDownList!$B$47,CntyQryCensus!$A$206:$HH$248,BV$1) -> 60 | BW55: =VLOOKUP(DropDownList!$B$47,CntyQryCensus!$A$206:$HH$248,BW$1) -> 22 | BX55: =VLOOKUP(DropDownList!$B$47,CntyQryCensus!$A$206:$HH$248,BX$1) -> 616 | BY55: =VLOOKUP(DropDownList!$B$47,CntyQryCensus!$A$206:$HH$248,BY$1) -> 12 | BZ55: =VLOOKUP(DropDownList!$B$47,CntyQryCensus!$A$206:$HH$248,BZ$1) -> 22 | CA55: =VLOOKUP(DropDownList!$B$47,CntyQryCensus!$A$206:$HH$248,CA$1) -> 24 | CB55: =VLOOKUP(DropDownList!$B$47,CntyQryCensus!$A$206:$HH$248,CB$1) -> 23 | CC55: =VLOOKUP(DropDownList!$B$47,CntyQryCensus!$A$206:$HH$248,CC$1) -> 12 | CD55: =VLOOKUP(DropDownList!$B$47,CntyQryCensus!$A$206:$HH$248,CD$1) -> 9 | CE55: =VLOOKUP(DropDownList!$B$47,CntyQryCensus!$A$206:$HH$248,CE$1) -> 33 | CF55: =VLOOKUP(DropDownList!$B$47,CntyQryCensus!$A$206:$HH$248,CF$1) -> 25 | CG55: =VLOOKUP(DropDownList!$B$47,CntyQryCensus!$A$206:$HH$248,CG$1) -> 7 | CH55: =VLOOKUP(DropDownList!$B$47,CntyQryCensus!$A$206:$HH$248,CH$1) -> 11 | CI55: =VLOOKUP(DropDownList!$B$47,CntyQryCensus!$A$206:$HH$248,CI$1) -> 24 | CJ55: =VLOOKUP(DropDownList!$B$47,CntyQryCensus!$A$206:$HH$248,CJ$1) -> 148 | CK55: =VLOOKUP(DropDownList!$B$47,CntyQryCensus!$A$206:$HH$248,CK$1) -> 111 | CL55: =VLOOKUP(DropDownList!$B$47,CntyQryCensus!$A$206:$HH$248,CL$1) -> 59 | CM55: =VLOOKUP(DropDownList!$B$47,CntyQryCensus!$A$206:$HH$248,CM$1) -> 17 | CN55: =VLOOKUP(DropDownList!$B$47,CntyQryCensus!$A$206:$HH$248,CN$1) -> 79 | CO55: =VLOOKUP(DropDownList!$B$47,CntyQryCensus!$A$206:$HH$248,CO$1) -> 438 | CP55: =VLOOKUP(DropDownList!$B$47,CntyQryCensus!$A$206:$HH$248,CP$1) -> 9 | CQ55: =VLOOKUP(DropDownList!$B$47,CntyQryCensus!$A$206:$HH$248,CQ$1) -> 5 | CR55: =VLOOKUP(DropDownList!$B$47,CntyQryCensus!$A$206:$HH$248,CR$1) -> 9 | CS55: =VLOOKUP(DropDownList!$B$47,CntyQryCensus!$A$206:$HH$248,CS$1) -> 17 | CT55: =VLOOKUP(DropDownList!$B$47,CntyQryCensus!$A$206:$HH$248,CT$1) -> 0 | CU55: =VLOOKUP(DropDownList!$B$47,CntyQryCensus!$A$206:$HH$248,CU$1) -> 0 | CV55: =VLOOKUP(DropDownList!$B$47,CntyQryCensus!$A$206:$HH$248,CV$1) -> 26 | CW55: =VLOOKUP(DropDownList!$B$47,CntyQryCensus!$A$206:$HH$248,CW$1) -> 25 | CX55: =VLOOKUP(DropDownList!$B$47,CntyQryCensus!$A$206:$HH$248,CX$1) -> 25 | CY55: =VLOOKUP(DropDownList!$B$47,CntyQryCensus!$A$206:$HH$248,CY$1) -> 71 | CZ55: =VLOOKUP(DropDownList!$B$47,CntyQryCensus!$A$206:$HH$248,CZ$1) -> 58 | DA55: =VLOOKUP(DropDownList!$B$47,CntyQryCensus!$A$206:$HH$248,DA$1) -> 91 | DB55: =VLOOKUP(DropDownList!$B$47,CntyQryCensus!$A$206:$HH$248,DB$1) -> 28 | DC55: =VLOOKUP(DropDownList!$B$47,CntyQryCensus!$A$206:$HH$248,DC$1) -> 51 | DD55: =VLOOKUP(DropDownList!$B$47,CntyQryCensus!$A$206:$HH$248,DD$1) -> 8 | DE55: =VLOOKUP(DropDownList!$B$47,CntyQryCensus!$A$206:$HH$248,DE$1) -> 15 | DF55: =VLOOKUP(DropDownList!$B$47,CntyQryCensus!$A$206:$HH$248,DF$1) -> 301 | DG55: =VLOOKUP(DropDownList!$B$47,CntyQryCensus!$A$206:$HH$248,DG$1) -> 17 | DH55: =VLOOKUP(DropDownList!$B$47,CntyQryCensus!$A$206:$HH$248,DH$1) -> 18 | DI55: =VLOOKUP(DropDownList!$B$47,CntyQryCensus!$A$206:$HH$248,DI$1) -> 9 | DJ55: =VLOOKUP(DropDownList!$B$47,CntyQryCensus!$A$206:$HH$248,DJ$1) -> 35 | DK55: =VLOOKUP(DropDownList!$B$47,CntyQryCensus!$A$206:$HH$248,DK$1) -> 9 | DL55: =VLOOKUP(DropDownList!$B$47,CntyQryCensus!$A$206:$HH$248,DL$1) -> 32 | DM55: =VLOOKUP(DropDownList!$B$47,CntyQryCensus!$A$206:$HH$248,DM$1) -> 9 | DN55: =VLOOKUP(DropDownList!$B$47,CntyQryCensus!$A$206:$HH$248,DN$1) -> 33 | DO55: =VLOOKUP(DropDownList!$B$47,CntyQryCensus!$A$206:$HH$248,DO$1) -> 18 | DP55: =VLOOKUP(DropDownList!$B$47,CntyQryCensus!$A$206:$HH$248,DP$1) -> 39 | DQ55: =VLOOKUP(DropDownList!$B$47,CntyQryCensus!$A$206:$HH$248,DQ$1) -> 27 | DR55: =VLOOKUP(DropDownList!$B$47,CntyQryCensus!$A$206:$HH$248,DR$1) -> 22 | DS55: =VLOOKUP(DropDownList!$B$47,CntyQryCensus!$A$206:$HH$248,DS$1) -> 23 | DT55: =VLOOKUP(DropDownList!$B$47,CntyQryCensus!$A$206:$HH$248,DT$1) -> 8 | DU55: =VLOOKUP(DropDownList!$B$47,CntyQryCensus!$A$206:$HH$248,DU$1) -> 0 | DV55: =VLOOKUP(DropDownList!$B$47,CntyQryCensus!$A$206:$HH$248,DV$1) -> 2 | DW55: =VLOOKUP(DropDownList!$B$47,CntyQryCensus!$A$206:$HH$248,DW$1) -> 142 | DX55: =VLOOKUP(DropDownList!$B$47,CntyQryCensus!$A$206:$HH$248,DX$1) -> 18 | DY55: =VLOOKUP(DropDownList!$B$47,CntyQryCensus!$A$206:$HH$248,DY$1) -> 16 | DZ55: =VLOOKUP(DropDownList!$B$47,CntyQryCensus!$A$206:$HH$248,DZ$1) -> 0 | EA55: =VLOOKUP(DropDownList!$B$47,CntyQryCensus!$A$206:$HH$248,EA$1) -> 16 | EB55: =VLOOKUP(DropDownList!$B$47,CntyQryCensus!$A$206:$HH$248,EB$1) -> 0 | EC55: =VLOOKUP(DropDownList!$B$47,CntyQryCensus!$A$206:$HH$248,EC$1) -> 15 | ED55: =VLOOKUP(DropDownList!$B$47,CntyQryCensus!$A$206:$HH$248,ED$1) -> 0 | EE55: =VLOOKUP(DropDownList!$B$47,CntyQryCensus!$A$206:$HH$248,EE$1) -> 25 | EF55: =VLOOKUP(DropDownList!$B$47,CntyQryCensus!$A$206:$HH$248,EF$1) -> 7 | EG55: =VLOOKUP(DropDownList!$B$47,CntyQryCensus!$A$206:$HH$248,EG$1) -> 28 | EH55: =VLOOKUP(DropDownList!$B$47,CntyQryCensus!$A$206:$HH$248,EH$1) -> 0 | EI55: =VLOOKUP(DropDownList!$B$47,CntyQryCensus!$A$206:$HH$248,EI$1) -> 9 | EJ55: =VLOOKUP(DropDownList!$B$47,CntyQryCensus!$A$206:$HH$248,EJ$1) -> 0 | EK55: =VLOOKUP(DropDownList!$B$47,CntyQryCensus!$A$206:$HH$248,EK$1) -> 0 | EL55: =VLOOKUP(DropDownList!$B$47,CntyQryCensus!$A$206:$HH$248,EL$1) -> 8 | EM55: =VLOOKUP(DropDownList!$B$47,CntyQryCensus!$A$206:$HH$248,EM$1) -> 0 | EN55: =VLOOKUP(DropDownList!$B$47,CntyQryCensus!$A$206:$HH$248,EN$1) -> 69729 | EO55: =VLOOKUP(DropDownList!$B$47,CntyQryCensus!$A$206:$HH$248,EO$1) -> 48750 | EP55: =VLOOKUP(DropDownList!$B$47,CntyQryCensus!$A$206:$HH$248,EP$1) -> 67586 | EQ55: =VLOOKUP(DropDownList!$B$47,CntyQryCensus!$A$206:$HH$248,EQ$1) -> 80000 | ER55: =VLOOKUP(DropDownList!$B$47,CntyQryCensus!$A$206:$HH$248,ER$1) -> 84035 | ES55: =VLOOKUP(DropDownList!$B$47,CntyQryCensus!$A$206:$HH$248,ES$1) -> 66563 | ET55: =VLOOKUP(DropDownList!$B$47,CntyQryCensus!$A$206:$HH$248,ET$1) -> 42946 | EU55: =VLOOKUP(DropDownList!$B$47,CntyQryCensus!$A$206:$HH$248,EU$1) -> 41250 | EV55: =VLOOKUP(DropDownList!$B$47,CntyQryCensus!$A$206:$HH$248,EV$1) -> 2326 | EW55: =VLOOKUP(DropDownList!$B$47,CntyQryCensus!$A$206:$HH$248,EW$1) -> 2037 | EX55: =VLOOKUP(DropDownList!$B$47,CntyQryCensus!$A$206:$HH$248,EX$1) -> 289 | EY55: =VLOOKUP(DropDownList!$B$47,CntyQryCensus!$A$206:$HH$248,EY$1) -> 2000 | EZ55: =VLOOKUP(DropDownList!$B$47,CntyQryCensus!$A$206:$HH$248,EZ$1) -> 326 | FA55: =VLOOKUP(DropDownList!$B$47,CntyQryCensus!$A$206:$HH$248,FA$1) -> 356 | FB55: =VLOOKUP(DropDownList!$B$47,CntyQryCensus!$A$206:$HH$248,FB$1) -> 1970 | FC55: =VLOOKUP(DropDownList!$B$47,CntyQryCensus!$A$206:$HH$248,FC$1) -> 1231 | FD55: =VLOOKUP(DropDownList!$B$47,CntyQryCensus!$A$206:$HH$248,FD$1) -> 1095 | FE55: =VLOOKUP(DropDownList!$B$47,CntyQryCensus!$A$206:$HH$248,FE$1) -> 589 | FF55: =VLOOKUP(DropDownList!$B$47,CntyQryCensus!$A$206:$HH$248,FF$1) -> 1737 | FG55: =VLOOKUP(DropDownList!$B$47,CntyQryCensus!$A$206:$HH$248,FG$1) -> 61 | FH55: =VLOOKUP(DropDownList!$B$47,CntyQryCensus!$A$206:$HH$248,FH$1) -> 2265 | FI55: =VLOOKUP(DropDownList!$B$47,CntyQryCensus!$A$206:$HH$248,FI$1) -> 33 | FJ55: =VLOOKUP(DropDownList!$B$47,CntyQryCensus!$A$206:$HH$248,FJ$1) -> 2293 | FK55: =VLOOKUP(DropDownList!$B$47,CntyQryCensus!$A$206:$HH$248,FK$1) -> 476 | FL55: =VLOOKUP(DropDownList!$B$47,CntyQryCensus!$A$206:$HH$248,FL$1) -> 1850 | FM55: =VLOOKUP(DropDownList!$B$47,CntyQryCensus!$A$206:$HH$248,FM$1) -> 244 | FN55: =VLOOKUP(DropDownList!$B$47,CntyQryCensus!$A$206:$HH$248,FN$1) -> 2082 | FO55: =VLOOKUP(DropDownList!$B$47,CntyQryCensus!$A$206:$HH$248,FO$1) -> 158909200 | FP55: =VLOOKUP(DropDownList!$B$47,CntyQryCensus!$A$206:$HH$248,FP$1) -> 149002200 | FQ55: =VLOOKUP(DropDownList!$B$47,CntyQryCensus!$A$206:$HH$248,FQ$1) -> 9907000 | FR55: =VLOOKUP(DropDownList!$B$47,CntyQryCensus!$A$206:$HH$248,FR$1) -> 11253600 | FS55: =VLOOKUP(DropDownList!$B$47,CntyQryCensus!$A$206:$HH$248,FS$1) -> 6617000 | FT55: =VLOOKUP(DropDownList!$B$47,CntyQryCensus!$A$206:$HH$248,FT$1) -> 428800 | FU55: =VLOOKUP(DropDownList!$B$47,CntyQryCensus!$A$206:$HH$248,FU$1) -> 29900 | FV55: =VLOOKUP(DropDownList!$B$47,CntyQryCensus!$A$206:$HH$248,FV$1) -> 8026100 | FW55: =VLOOKUP(DropDownList!$B$47,CntyQryCensus!$A$206:$HH$248,FW$1) -> 1781 | FX55: =VLOOKUP(DropDownList!$B$47,CntyQryCensus!$A$206:$HH$248,FX$1) -> 24 | FY55: =VLOOKUP(DropDownList!$B$47,CntyQryCensus!$A$206:$HH$248,FY$1) -> 25 | FZ55: =VLOOKUP(DropDownList!$B$47,CntyQryCensus!$A$206:$HH$248,FZ$1) -> 0 | GA55: =VLOOKUP(DropDownList!$B$47,CntyQryCensus!$A$206:$HH$248,GA$1) -> 8 | GB55: =VLOOKUP(DropDownList!$B$47,CntyQryCensus!$A$206:$HH$248,GB$1) -> 26 | GC55: =VLOOKUP(DropDownList!$B$47,CntyQryCensus!$A$206:$HH$248,GC$1) -> 64 | GD55: =VLOOKUP(DropDownList!$B$47,CntyQryCensus!$A$206:$HH$248,GD$1) -> 58 | GE55: =VLOOKUP(DropDownList!$B$47,CntyQryCensus!$A$206:$HH$248,GE$1) -> 118 | GF55: =VLOOKUP(DropDownList!$B$47,CntyQryCensus!$A$206:$HH$248,GF$1) -> 74 | GG55: =VLOOKUP(DropDownList!$B$47,CntyQryCensus!$A$206:$HH$248,GG$1) -> 188 | GH55: =VLOOKUP(DropDownList!$B$47,CntyQryCensus!$A$206:$HH$248,GH$1) -> 249 | GI55: =VLOOKUP(DropDownList!$B$47,CntyQryCensus!$A$206:$HH$248,GI$1) -> 337 | GJ55: =VLOOKUP(DropDownList!$B$47,CntyQryCensus!$A$206:$HH$248,GJ$1) -> 243 | GK55: =VLOOKUP(DropDownList!$B$47,CntyQryCensus!$A$206:$HH$248,GK$1) -> 163 | GL55: =VLOOKUP(DropDownList!$B$47,CntyQryCensus!$A$206:$HH$248,GL$1) -> 101 | GM55: =VLOOKUP(DropDownList!$B$47,CntyQryCensus!$A$206:$HH$248,GM$1) -> 103 | GN55: =VLOOKUP(DropDownList!$B$47,CntyQryCensus!$A$206:$HH$248,GN$1) -> 77631 | GO55: =VLOOKUP(DropDownList!$B$47,CntyQryCensus!$A$206:$HH$248,GO$1) -> 159092300 | GP55: =VLOOKUP(DropDownList!$B$47,CntyQryCensus!$A$206:$HH$248,GP$1) -> 545 | GQ55: =VLOOKUP(DropDownList!$B$47,CntyQryCensus!$A$206:$HH$248,GQ$1) -> 56 | GR55: =VLOOKUP(DropDownList!$B$47,CntyQryCensus!$A$206:$HH$248,GR$1) -> 52 | GS55: =VLOOKUP(DropDownList!$B$47,CntyQryCensus!$A$206:$HH$248,GS$1) -> 42 | GT55: =VLOOKUP(DropDownList!$B$47,CntyQryCensus!$A$206:$HH$248,GT$1) -> 83 | GU55: =VLOOKUP(DropDownList!$B$47,CntyQryCensus!$A$206:$HH$248,GU$1) -> 29 | GV55: =VLOOKUP(DropDownList!$B$47,CntyQryCensus!$A$206:$HH$248,GV$1) -> 17 | GW55: =VLOOKUP(DropDownList!$B$47,CntyQryCensus!$A$206:$HH$248,GW$1) -> 27 | GX55: =VLOOKUP(DropDownList!$B$47,CntyQryCensus!$A$206:$HH$248,GX$1) -> 68 | GY55: =VLOOKUP(DropDownList!$B$47,CntyQryCensus!$A$206:$HH$248,GY$1) -> 19 | GZ55: =VLOOKUP(DropDownList!$B$47,CntyQryCensus!$A$206:$HH$248,GZ$1) -> 24 | HA55: =VLOOKUP(DropDownList!$B$47,CntyQryCensus!$A$206:$HH$248,HA$1) -> 20 | HB55: =VLOOKUP(DropDownList!$B$47,CntyQryCensus!$A$206:$HH$248,HB$1) -> 40 | HC55: =VLOOKUP(DropDownList!$B$47,CntyQryCensus!$A$206:$HH$248,HC$1) -> 24 | HD55: =VLOOKUP(DropDownList!$B$47,CntyQryCensus!$A$206:$HH$248,HD$1) -> 19 | HE55: =VLOOKUP(DropDownList!$B$47,CntyQryCensus!$A$206:$HH$248,HE$1) -> 10 | HF55: =VLOOKUP(DropDownList!$B$47,CntyQryCensus!$A$206:$HH$248,HF$1) -> 15 | HG55: =VLOOKUP(DropDownList!$B$47,CntyQryCensus!$A$206:$HH$248,HG$1) -> 34044 | HH55: =VLOOKUP(DropDownList!$B$47,CntyQryCensus!$A$206:$HH$248,HH$1) -> 30412
A58: Census 2000 SummaryFile3 Sample Data - SF3TownQry2bPovertyChar
A59: NAME | B59: LOGRECNO | C59: COUNTY | D59: TotalPop | E59: P52Households1 | F59: P82PerCapitaInc | G59: P87PopForPovStatus | H59: P87PopWIncBelowPovStatus | I59: P87PopUnder5yrBelowPoverty | J59: P87Pop5yrBelowPoverty | K59: P87Pop5to11yrBelowPoverty | L59: P87Pop12to17yrBelowPoverty | M59: P87Pop18to64yrBelowPoverty | N59: P87Pop65to74yrBelowPoverty | O59: P87PopOver75yrBelowPoverty | P59: P87PopWIncAbovePovStatus | Q59: P87PopUnder5yrAbovePoverty | R59: P87Pop5yrAbovePoverty | S59: P87Pop5to11yrAbovePoverty | T59: P87Pop12to17yrAbovePoverty | U59: P87Pop18to64yrAbovePoverty | V59: P87Pop65to74yrAbovePoverty | W59: P87PopOver75yrAbovePoverty | X59: P90Families | Y59: P90FamWIncBelowPov | Z59: P90MarCupFamWIncBelowPov | AA59: P90MCFamWRltdChld<18WIncBelowPov | AB59: P90MCFamWRltdChld<5WIncBelowPov | AC59: P90MaleHhlrWIncBelowPov | AD59: P90MaleHhlrWRltdChld<18yrWIncBelowPov | AE59: P90MaleHhlrWRltdChld<5yrWIncBelowPov | AF59: P90FemaleHhlrWIncBelowPov | AG59: P90FemaleHhlrWRltdChld<18yWIncBelowPov | AH59: P90FemaleHhlrWRltdChld<5yWIncBelowPov | AI59: P90FamWIncAbovePov | AJ59: P90MarCupFamWIncAbovePov | AK59: P90MCFamWRltdChld<18WIncAbovePov | AL59: P90MCFamWRltdChld<5WIncAbovePov | AM59: P90MaleHhlrWIncAbovePov | AN59: P90MaleHhlrWRltdChld<18yrWIncAbovePov | AO59: P90MaleHhlrWRltdChld<5yrWIncAbovePov | AP59: P90FemaleHhlrWIncAbovePov | AQ59: P90FemaleHhlrWRltdChld<18yWIncAbovePov | AR59: P90FemaleHhlrWRltdChld<5yWIncAbovePov | AS59: P92Households | AT59: P92HHwIncBelowPov | AU59: P92FamHHwIncBelowPov | AV59: P92MCFamHHwIncBelowPov | AW59: P92MaleFamHHwIncBelowPov | AX59: P92FemaleFamHHwIncBelowPov | AY59: P92NonFamHHwIncBelowPov | AZ59: P92NonFamMaleHHwIncBelowPov | BA59: P92NonFamFemaleHHwIncBelowPov | BB59: P92HHwIncAbovePov | BC59: P92FamHHwIncAbovePov | BD59: P92MCFamHHwIncAbovePov | BE59: P92MaleFamHHwIncAbovePov | BF59: P92FemaleFamHHwIncAbovePov | BG59: P92NonFamHHwIncAbovePov | BH59: P92NonFamMaleHHwIncAbovePov | BI59: P92NonFamFemaleHHwIncAbovePov
A60: =VLOOKUP(DropDownList!$B$47,CntyQryCensus!$A$256:$BI$298,A$1) -> Atkinson | B60: =VLOOKUP(DropDownList!$B$47,CntyQryCensus!$A$256:$BI$298,B$1) -> 0003039 | C60: =VLOOKUP(DropDownList!$B$47,CntyQryCensus!$A$256:$BI$298,C$1) -> 02340 | D60: =VLOOKUP(DropDownList!$B$47,CntyQryCensus!$A$256:$BI$298,D$1) -> 6178 | E60: =VLOOKUP(DropDownList!$B$47,CntyQryCensus!$A$256:$BI$298,E$1) -> 2326 | F60: =VLOOKUP(DropDownList!$B$47,CntyQryCensus!$A$256:$BI$298,F$1) -> 30412 | G60: =VLOOKUP(DropDownList!$B$47,CntyQryCensus!$A$256:$BI$298,G$1) -> 6178 | H60: =VLOOKUP(DropDownList!$B$47,CntyQryCensus!$A$256:$BI$298,H$1) -> 202 | I60: =VLOOKUP(DropDownList!$B$47,CntyQryCensus!$A$256:$BI$298,I$1) -> 16 | J60: =VLOOKUP(DropDownList!$B$47,CntyQryCensus!$A$256:$BI$298,J$1) -> 0 | K60: =VLOOKUP(DropDownList!$B$47,CntyQryCensus!$A$256:$BI$298,K$1) -> 35 | L60: =VLOOKUP(DropDownList!$B$47,CntyQryCensus!$A$256:$BI$298,L$1) -> 18 | M60: =VLOOKUP(DropDownList!$B$47,CntyQryCensus!$A$256:$BI$298,M$1) -> 118 | N60: =VLOOKUP(DropDownList!$B$47,CntyQryCensus!$A$256:$BI$298,N$1) -> 9 | O60: =VLOOKUP(DropDownList!$B$47,CntyQryCensus!$A$256:$BI$298,O$1) -> 6 | P60: =VLOOKUP(DropDownList!$B$47,CntyQryCensus!$A$256:$BI$298,P$1) -> 5976 | Q60: =VLOOKUP(DropDownList!$B$47,CntyQryCensus!$A$256:$BI$298,Q$1) -> 395 | R60: =VLOOKUP(DropDownList!$B$47,CntyQryCensus!$A$256:$BI$298,R$1) -> 35 | S60: =VLOOKUP(DropDownList!$B$47,CntyQryCensus!$A$256:$BI$298,S$1) -> 544 | T60: =VLOOKUP(DropDownList!$B$47,CntyQryCensus!$A$256:$BI$298,T$1) -> 477 | U60: =VLOOKUP(DropDownList!$B$47,CntyQryCensus!$A$256:$BI$298,U$1) -> 3843 | V60: =VLOOKUP(DropDownList!$B$47,CntyQryCensus!$A$256:$BI$298,V$1) -> 437 | W60: =VLOOKUP(DropDownList!$B$47,CntyQryCensus!$A$256:$BI$298,W$1) -> 245 | X60: =VLOOKUP(DropDownList!$B$47,CntyQryCensus!$A$256:$BI$298,X$1) -> 1781 | Y60: =VLOOKUP(DropDownList!$B$47,CntyQryCensus!$A$256:$BI$298,Y$1) -> 41 | Z60: =VLOOKUP(DropDownList!$B$47,CntyQryCensus!$A$256:$BI$298,Z$1) -> 18 | AA60: =VLOOKUP(DropDownList!$B$47,CntyQryCensus!$A$256:$BI$298,AA$1) -> 18 | AB60: =VLOOKUP(DropDownList!$B$47,CntyQryCensus!$A$256:$BI$298,AB$1) -> 8 | AC60: =VLOOKUP(DropDownList!$B$47,CntyQryCensus!$A$256:$BI$298,AC$1) -> 0 | AD60: =VLOOKUP(DropDownList!$B$47,CntyQryCensus!$A$256:$BI$298,AD$1) -> 0 | AE60: =VLOOKUP(DropDownList!$B$47,CntyQryCensus!$A$256:$BI$298,AE$1) -> 0 | AF60: =VLOOKUP(DropDownList!$B$47,CntyQryCensus!$A$256:$BI$298,AF$1) -> 23 | AG60: =VLOOKUP(DropDownList!$B$47,CntyQryCensus!$A$256:$BI$298,AG$1) -> 16 | AH60: =VLOOKUP(DropDownList!$B$47,CntyQryCensus!$A$256:$BI$298,AH$1) -> 0 | AI60: =VLOOKUP(DropDownList!$B$47,CntyQryCensus!$A$256:$BI$298,AI$1) -> 1740 | AJ60: =VLOOKUP(DropDownList!$B$47,CntyQryCensus!$A$256:$BI$298,AJ$1) -> 1532 | AK60: =VLOOKUP(DropDownList!$B$47,CntyQryCensus!$A$256:$BI$298,AK$1) -> 709 | AL60: =VLOOKUP(DropDownList!$B$47,CntyQryCensus!$A$256:$BI$298,AL$1) -> 150 | AM60: =VLOOKUP(DropDownList!$B$47,CntyQryCensus!$A$256:$BI$298,AM$1) -> 91 | AN60: =VLOOKUP(DropDownList!$B$47,CntyQryCensus!$A$256:$BI$298,AN$1) -> 49 | AO60: =VLOOKUP(DropDownList!$B$47,CntyQryCensus!$A$256:$BI$298,AO$1) -> 21 | AP60: =VLOOKUP(DropDownList!$B$47,CntyQryCensus!$A$256:$BI$298,AP$1) -> 117 | AQ60: =VLOOKUP(DropDownList!$B$47,CntyQryCensus!$A$256:$BI$298,AQ$1) -> 45 | AR60: =VLOOKUP(DropDownList!$B$47,CntyQryCensus!$A$256:$BI$298,AR$1) -> 3 | AS60: =VLOOKUP(DropDownList!$B$47,CntyQryCensus!$A$256:$BI$298,AS$1) -> 2326 | AT60: =VLOOKUP(DropDownList!$B$47,CntyQryCensus!$A$256:$BI$298,AT$1) -> 76 | AU60: =VLOOKUP(DropDownList!$B$47,CntyQryCensus!$A$256:$BI$298,AU$1) -> 41 | AV60: =VLOOKUP(DropDownList!$B$47,CntyQryCensus!$A$256:$BI$298,AV$1) -> 18 | AW60: =VLOOKUP(DropDownList!$B$47,CntyQryCensus!$A$256:$BI$298,AW$1) -> 0 | AX60: =VLOOKUP(DropDownList!$B$47,CntyQryCensus!$A$256:$BI$298,AX$1) -> 23 | AY60: =VLOOKUP(DropDownList!$B$47,CntyQryCensus!$A$256:$BI$298,AY$1) -> 35 | AZ60: =VLOOKUP(DropDownList!$B$47,CntyQryCensus!$A$256:$BI$298,AZ$1) -> 0 | BA60: =VLOOKUP(DropDownList!$B$47,CntyQryCensus!$A$256:$BI$298,BA$1) -> 35 | BB60: =VLOOKUP(DropDownList!$B$47,CntyQryCensus!$A$256:$BI$298,BB$1) -> 2250 | BC60: =VLOOKUP(DropDownList!$B$47,CntyQryCensus!$A$256:$BI$298,BC$1) -> 1740 | BD60: =VLOOKUP(DropDownList!$B$47,CntyQryCensus!$A$256:$BI$298,BD$1) -> 1532 | BE60: =VLOOKUP(DropDownList!$B$47,CntyQryCensus!$A$256:$BI$298,BE$1) -> 91 | BF60: =VLOOKUP(DropDownList!$B$47,CntyQryCensus!$A$256:$BI$298,BF$1) -> 117 | BG60: =VLOOKUP(DropDownList!$B$47,CntyQryCensus!$A$256:$BI$298,BG$1) -> 510 | BH60: =VLOOKUP(DropDownList!$B$47,CntyQryCensus!$A$256:$BI$298,BH$1) -> 275 | BI60: =VLOOKUP(DropDownList!$B$47,CntyQryCensus!$A$256:$BI$298,BI$1) -> 235
S61: =SUM(R60:T60) -> 1056
A63: Census 2000 SummaryFile3 Sample Data - SF3TownQry7HousingA
A64: NAME | B64: LOGRECNO | C64: COUNTY | D64: TotalPop | E64: H1HousingUnitsTotal | F64: H2SampleHU | G64: H2SampleOccHU | H64: H2SampleVacHU | I64: H3HU100pctCount | J64: H5HUTotal | K64: H5HUUrban | L64: H5HUUrbanInUrbanAreas | M64: H5HUUrbanInUrbanClusters | N64: H5HURural | O64: H5HURuralFarm | P64: H5HURuralNonFarm | Q64: H7HUOcc | R64: H7HUOwnrOcc | S64: H7HURentrOcc | T64: H8HUVacant | U64: H8HUVacantForRent | V64: H8HUVacantForSale | W64: H8HUVacRentedorSold | X64: H8HUVacSeasonal | Y64: H8HUVacForMigrantWrkrs | Z64: H8HUOtherVacant | AA64: H14OccHUa | AB64: H14OwnerOccHU | AC64: H14OwnOccHuHh15to24 | AD64: H14OwnOccHuHh25to34 | AE64: H14OwnOccHuHh35to44 | AF64: H14OwnOccHuHh45to54 | AG64: H14OwnOccHuHh55to59 | AH64: H14OwnOccHuHh60to64 | AI64: H14OwnOccHuHh65to74 | AJ64: H14OwnOccHuHh75to84 | AK64: H14OwnOccHuHh85Over | AL64: H14RenterOccHU1 | AM64: H14RntrOccHuHh15to24 | AN64: H14RntrOccHuHh25to34 | AO64: H14RntrOccHuHh35to44 | AP64: H14RntrOccHuHh45to54 | AQ64: H14RntrOccHuHh55to59 | AR64: H14RntrOccHuHh60to64 | AS64: H14RntrOccHuHh65to74 | AT64: H14RntrOccHuHh75to84 | AU64: H14RntrOccHuHh85Over | AV64: H15PopInOccHU | AW64: H15PopInOwnOccHU1 | AX64: H15PopInRentOccHU1 | AY64: H17OccupHUb | AZ64: H17OwnOccHU2 | BA64: H17OwnOccHU1PersonHH | BB64: H17OwnOccHU2PersonHH | BC64: H17OwnOccHU3PersonHH | BD64: H17OwnOccHU4PersonHH | BE64: H17OwnOccHU5PersonHH | BF64: H17OwnOccHU6PersonHH | BG64: H17OwnOccHU7PlusPersonHH | BH64: H17RentOccHU2 | BI64: H17RntOccHU1PersonHH | BJ64: H17RntOccHU2PersonHH | BK64: H17RntOccHU3PersonHH | BL64: H17RntOccHU4PersonHH | BM64: H17RntOccHU5PersonHH | BN64: H17RntOccHU6PersonHH | BO64: H17RntOccHU7PlusPersonHH | BP64: H18AvgHHSize | BQ64: H18AvgHHSizeOwnOcc | BR64: H18AvgHHSizeRentOcc | BS64: H23TotHU | BT64: H23HU1Room | BU64: H23HU2Room | BV64: H23HU3Room | BW64: H23HU4Room | BX64: H23HU5Room | BY64: H23HU6Room | BZ64: H23HU7Room | CA64: H23HU8Room | CB64: H23HU9orMoreRoom | CC64: H24MedianNumRooms | CD64: H25AggregNumRooms | CE64: H30TotalHU | CF64: H30Det1HU | CG64: H30Att1HU | CH64: H30Units2 | CI64: H30Units3or4 | CJ64: H30Units5to9 | CK64: H30Units10to19 | CL64: H30Units20to49 | CM64: H30Units50orMore | CN64: H30UnitsMobileHome | CO64: H30UnitsBoatRv | CP64: H32OccHUcTotal | CQ64: H32OwnerOccHU3 | CR64: H32OwnOccHU1Det | CS64: H32OwnOccHU1Att | CT64: H32OwnOccHU2Unit | CU64: H32OwnOccHU3to4Unit | CV64: H32OwnOccHU5to9Unit | CW64: H32OwnOccHU10to19Unit | CX64: H32OwnOccHU20to49Unit | CY64: H32OwnOccHU50plusUnit | CZ64: H32OwnOccHUMobHom | DA64: H32OwnOccHUBoatRVOth | DB64: H32RentrOccHU3 | DC64: H32RntrOccHU1Det | DD64: H32RntrOccHU1Att | DE64: H32RntrOccHU2Unit | DF64: H32RntrOccHU3to4Unit | DG64: H32RntrOccHU5to9Unit | DH64: H32RntrOccHU10to19Unit | DI64: H32RntrOccHU20to49Unit | DJ64: H32RntrOccHU50PlusUnit | DK64: H32RntrOccHUMobHom | DL64: H32RntrOccHUBoatRVOth | DM64: H33TotPopInOccHU | DN64: H33PopInOwnOccHU2 | DO64: H33PopInOOHU1Det | DP64: H33PopInOOHU1Att | DQ64: H33PopInOOHU2unit | DR64: H33PopInOOHU3to4Unit | DS64: H33PopInOOHU5to9Unit | DT64: H33PopInOOHU10to19Unit | DU64: H33PopInOOHU20to49Unit | DV64: H33PopInOOHU50PlusUnit | DW64: H33PopInOOHUMobilHome | DX64: H33PopInOOHUOtherUnit | DY64: H33PopInRentOccHU2 | DZ64: H33PopInROHU1Det | EA64: H33PopInROHU1Att | EB64: H33PopInROHU2Unit | EC64: H33PopInROHU3to4Unit | ED64: H33PopInROHU5to9Unit | EE64: H33PopInROHU10to19Unit | EF64: H33PopInROHU20to49Unit | EG64: H33PopInROHU50PlusUnit | EH64: H33PopInROHUMobilHome | EI64: H33PopInROHUOtherUnit | EJ64: H36OccHousingUnitsdTotal | EK64: H36OwnerOccHU4 | EL64: H36OOHUBuilt99to0300 | EM64: H36OOHUBuilt95to98 | EN64: H36OOHUBuilt90to94 | EO64: H36OOHUBuilt80to89 | EP64: H36OOHUBuilt70to79 | EQ64: H36OOHUBuilt60to69 | ER64: H36OOHUBuilt50to59 | ES64: H36OOHUBuilt40to49 | ET64: H36OOHUBuilt39Earlier | EU64: H36RentOccHU4 | EV64: H36ROHUBuilt99to0300 | EW64: H36ROHUBuilt95to98 | EX64: H36ROHUBuilt90to94 | EY64: H36ROHUBuilt80to89 | EZ64: H36ROHUBuilt70to79 | FA64: H36ROHUBuilt60to69 | FB64: H36ROHUBuilt50to59 | FC64: H36ROHUBuilt40to49 | FD64: H36ROHUBuilt39Earlier | FE64: H40OccupHousUnitse | FF64: H40HeatFuelUtilGas | FG64: H40HeatFuelBotGas | FH64: H40HeatFuelElect | FI64: H40HeatFuelOilKero | FJ64: H40HeatFuelCoal | FK64: H40HeatFuelWood | FL64: H40HeatFuelSolar | FM64: H40HeatFuelOther | FN64: H40HeatFuelNone | FO64: H41TotalHU | FP64: H41HUNoBdrm | FQ64: H41HU1Bdrm | FR64: H41HU2Bdrm | FS64: H41HU3Bdrm | FT64: H41HU4Bdrm | FU64: H41HU5MoreBdrm | FV64: H42OccuHousUnitf | FW64: H42OwnerOccHU5 | FX64: H42OOHUNoBdrm | FY64: H42OOHU1Bdrm | FZ64: H42OOHU2Bdrm | GA64: H42OOHU3Bdrm | GB64: H42OOHU4Bdrm | GC64: H42OOHU5PlusBdrm | GD64: H42RentOccHU5 | GE64: H42ROHUNoBdrm | GF64: H42ROHU1Bdrm | GG64: H42ROHU2Bdrm | GH64: H42ROHU3Bdrm | GI64: H42ROHU4Bdrm | GJ64: H42ROHU5PlusBdrm | GK64: H48OccupHousUnitsg | GL64: H48OwnerOccHU6 | GM64: H48OOHUwCompltPlumFacil | GN64: H48OOHULackCompltPlumFacil | GO64: H48RentOccHU6 | GP64: H48ROHUwCompltPlumFacil | GQ64: H48ROHULackCompltPlumFacil | GR64: H51OccupHousUnitf | GS64: H51OwnerOccHU7 | GT64: H51OOHUwCompleteKitFacil | GU64: H51OOHULackCompleteKitFacil | GV64: H51RenterOccHU7 | GW64: H51ROHUwCompleteKitFacil | GX64: H51ROHULackCompleteKitFacil
A65: =VLOOKUP(DropDownList!$B47,CntyQryCensus!$A$306:$GX$348,A$1) -> Atkinson | B65: =VLOOKUP(DropDownList!$B47,CntyQryCensus!$A$306:$GX$348,B$1) -> 0003039 | C65: =VLOOKUP(DropDownList!$B47,CntyQryCensus!$A$306:$GX$348,C$1) -> 02340 | D65: =VLOOKUP(DropDownList!$B47,CntyQryCensus!$A$306:$GX$348,D$1) -> 6178 | E65: =VLOOKUP(DropDownList!$B47,CntyQryCensus!$A$306:$GX$348,E$1) -> 2431 | F65: =VLOOKUP(DropDownList!$B47,CntyQryCensus!$A$306:$GX$348,F$1) -> 280 | G65: =VLOOKUP(DropDownList!$B47,CntyQryCensus!$A$306:$GX$348,G$1) -> 272 | H65: =VLOOKUP(DropDownList!$B47,CntyQryCensus!$A$306:$GX$348,H$1) -> 8 | I65: =VLOOKUP(DropDownList!$B47,CntyQryCensus!$A$306:$GX$348,I$1) -> 2431 | J65: =VLOOKUP(DropDownList!$B47,CntyQryCensus!$A$306:$GX$348,J$1) -> 2431 | K65: =VLOOKUP(DropDownList!$B47,CntyQryCensus!$A$306:$GX$348,K$1) -> 2431 | L65: =VLOOKUP(DropDownList!$B47,CntyQryCensus!$A$306:$GX$348,L$1) -> 2431 | M65: =VLOOKUP(DropDownList!$B47,CntyQryCensus!$A$306:$GX$348,M$1) -> 0 | N65: =VLOOKUP(DropDownList!$B47,CntyQryCensus!$A$306:$GX$348,N$1) -> 0 | O65: =VLOOKUP(DropDownList!$B47,CntyQryCensus!$A$306:$GX$348,O$1) -> 0 | P65: =VLOOKUP(DropDownList!$B47,CntyQryCensus!$A$306:$GX$348,P$1) -> 0 | Q65: =VLOOKUP(DropDownList!$B47,CntyQryCensus!$A$306:$GX$348,Q$1) -> 2317 | R65: =VLOOKUP(DropDownList!$B47,CntyQryCensus!$A$306:$GX$348,R$1) -> 2060 | S65: =VLOOKUP(DropDownList!$B47,CntyQryCensus!$A$306:$GX$348,S$1) -> 257 | T65: =VLOOKUP(DropDownList!$B47,CntyQryCensus!$A$306:$GX$348,T$1) -> 114 | U65: =VLOOKUP(DropDownList!$B47,CntyQryCensus!$A$306:$GX$348,U$1) -> 0 | V65: =VLOOKUP(DropDownList!$B47,CntyQryCensus!$A$306:$GX$348,V$1) -> 8 | W65: =VLOOKUP(DropDownList!$B47,CntyQryCensus!$A$306:$GX$348,W$1) -> 24 | X65: =VLOOKUP(DropDownList!$B47,CntyQryCensus!$A$306:$GX$348,X$1) -> 75 | Y65: =VLOOKUP(DropDownList!$B47,CntyQryCensus!$A$306:$GX$348,Y$1) -> 0 | Z65: =VLOOKUP(DropDownList!$B47,CntyQryCensus!$A$306:$GX$348,Z$1) -> 7 | AA65: =VLOOKUP(DropDownList!$B47,CntyQryCensus!$A$306:$GX$348,AA$1) -> 2317 | AB65: =VLOOKUP(DropDownList!$B47,CntyQryCensus!$A$306:$GX$348,AB$1) -> 2060 | AC65: =VLOOKUP(DropDownList!$B47,CntyQryCensus!$A$306:$GX$348,AC$1) -> 0 | AD65: =VLOOKUP(DropDownList!$B47,CntyQryCensus!$A$306:$GX$348,AD$1) -> 178 | AE65: =VLOOKUP(DropDownList!$B47,CntyQryCensus!$A$306:$GX$348,AE$1) -> 596 | AF65: =VLOOKUP(DropDownList!$B47,CntyQryCensus!$A$306:$GX$348,AF$1) -> 471 | AG65: =VLOOKUP(DropDownList!$B47,CntyQryCensus!$A$306:$GX$348,AG$1) -> 251 | AH65: =VLOOKUP(DropDownList!$B47,CntyQryCensus!$A$306:$GX$348,AH$1) -> 168 | AI65: =VLOOKUP(DropDownList!$B47,CntyQryCensus!$A$306:$GX$348,AI$1) -> 269 | AJ65: =VLOOKUP(DropDownList!$B47,CntyQryCensus!$A$306:$GX$348,AJ$1) -> 96 | AK65: =VLOOKUP(DropDownList!$B47,CntyQryCensus!$A$306:$GX$348,AK$1) -> 31 | AL65: =VLOOKUP(DropDownList!$B47,CntyQryCensus!$A$306:$GX$348,AL$1) -> 257 | AM65: =VLOOKUP(DropDownList!$B47,CntyQryCensus!$A$306:$GX$348,AM$1) -> 8 | AN65: =VLOOKUP(DropDownList!$B47,CntyQryCensus!$A$306:$GX$348,AN$1) -> 15 | AO65: =VLOOKUP(DropDownList!$B47,CntyQryCensus!$A$306:$GX$348,AO$1) -> 47 | AP65: =VLOOKUP(DropDownList!$B47,CntyQryCensus!$A$306:$GX$348,AP$1) -> 65 | AQ65: =VLOOKUP(DropDownList!$B47,CntyQryCensus!$A$306:$GX$348,AQ$1) -> 34 | AR65: =VLOOKUP(DropDownList!$B47,CntyQryCensus!$A$306:$GX$348,AR$1) -> 9 | AS65: =VLOOKUP(DropDownList!$B47,CntyQryCensus!$A$306:$GX$348,AS$1) -> 59 | AT65: =VLOOKUP(DropDownList!$B47,CntyQryCensus!$A$306:$GX$348,AT$1) -> 0 | AU65: =VLOOKUP(DropDownList!$B47,CntyQryCensus!$A$306:$GX$348,AU$1) -> 20 | AV65: =VLOOKUP(DropDownList!$B47,CntyQryCensus!$A$306:$GX$348,AV$1) -> 6174 | AW65: =VLOOKUP(DropDownList!$B47,CntyQryCensus!$A$306:$GX$348,AW$1) -> 5741 | AX65: =VLOOKUP(DropDownList!$B47,CntyQryCensus!$A$306:$GX$348,AX$1) -> 433 | AY65: =VLOOKUP(DropDownList!$B47,CntyQryCensus!$A$306:$GX$348,AY$1) -> 2317 | AZ65: =VLOOKUP(DropDownList!$B47,CntyQryCensus!$A$306:$GX$348,AZ$1) -> 2060 | BA65: =VLOOKUP(DropDownList!$B47,CntyQryCensus!$A$306:$GX$348,BA$1) -> 275 | BB65: =VLOOKUP(DropDownList!$B47,CntyQryCensus!$A$306:$GX$348,BB$1) -> 778 | BC65: =VLOOKUP(DropDownList!$B47,CntyQryCensus!$A$306:$GX$348,BC$1) -> 391 | BD65: =VLOOKUP(DropDownList!$B47,CntyQryCensus!$A$306:$GX$348,BD$1) -> 392 | BE65: =VLOOKUP(DropDownList!$B47,CntyQryCensus!$A$306:$GX$348,BE$1) -> 169 | BF65: =VLOOKUP(DropDownList!$B47,CntyQryCensus!$A$306:$GX$348,BF$1) -> 47 | BG65: =VLOOKUP(DropDownList!$B47,CntyQryCensus!$A$306:$GX$348,BG$1) -> 8 | BH65: =VLOOKUP(DropDownList!$B47,CntyQryCensus!$A$306:$GX$348,BH$1) -> 257 | BI65: =VLOOKUP(DropDownList!$B47,CntyQryCensus!$A$306:$GX$348,BI$1) -> 165 | BJ65: =VLOOKUP(DropDownList!$B47,CntyQryCensus!$A$306:$GX$348,BJ$1) -> 60 | BK65: =VLOOKUP(DropDownList!$B47,CntyQryCensus!$A$306:$GX$348,BK$1) -> 25 | BL65: =VLOOKUP(DropDownList!$B47,CntyQryCensus!$A$306:$GX$348,BL$1) -> 0 | BM65: =VLOOKUP(DropDownList!$B47,CntyQryCensus!$A$306:$GX$348,BM$1) -> 0 | BN65: =VLOOKUP(DropDownList!$B47,CntyQryCensus!$A$306:$GX$348,BN$1) -> 7 | BO65: =VLOOKUP(DropDownList!$B47,CntyQryCensus!$A$306:$GX$348,BO$1) -> 0 | BP65: =VLOOKUP(DropDownList!$B47,CntyQryCensus!$A$306:$GX$348,BP$1) -> 3 | BQ65: =VLOOKUP(DropDownList!$B47,CntyQryCensus!$A$306:$GX$348,BQ$1) -> 3 | BR65: =VLOOKUP(DropDownList!$B47,CntyQryCensus!$A$306:$GX$348,BR$1) -> 2 | BS65: =VLOOKUP(DropDownList!$B47,CntyQryCensus!$A$306:$GX$348,BS$1) -> 2431 | BT65: =VLOOKUP(DropDownList!$B47,CntyQryCensus!$A$306:$GX$348,BT$1) -> 0 | BU65: =VLOOKUP(DropDownList!$B47,CntyQryCensus!$A$306:$GX$348,BU$1) -> 105 | BV65: =VLOOKUP(DropDownList!$B47,CntyQryCensus!$A$306:$GX$348,BV$1) -> 36 | BW65: =VLOOKUP(DropDownList!$B47,CntyQryCensus!$A$306:$GX$348,BW$1) -> 131 | BX65: =VLOOKUP(DropDownList!$B47,CntyQryCensus!$A$306:$GX$348,BX$1) -> 409 | BY65: =VLOOKUP(DropDownList!$B47,CntyQryCensus!$A$306:$GX$348,BY$1) -> 559 | BZ65: =VLOOKUP(DropDownList!$B47,CntyQryCensus!$A$306:$GX$348,BZ$1) -> 457 | CA65: =VLOOKUP(DropDownList!$B47,CntyQryCensus!$A$306:$GX$348,CA$1) -> 358 | CB65: =VLOOKUP(DropDownList!$B47,CntyQryCensus!$A$306:$GX$348,CB$1) -> 376 | CC65: =VLOOKUP(DropDownList!$B47,CntyQryCensus!$A$306:$GX$348,CC$1) -> 6 | CD65: =VLOOKUP(DropDownList!$B47,CntyQryCensus!$A$306:$GX$348,CD$1) -> 16064 | CE65: =VLOOKUP(DropDownList!$B47,CntyQryCensus!$A$306:$GX$348,CE$1) -> 2431 | CF65: =VLOOKUP(DropDownList!$B47,CntyQryCensus!$A$306:$GX$348,CF$1) -> 1826 | CG65: =VLOOKUP(DropDownList!$B47,CntyQryCensus!$A$306:$GX$348,CG$1) -> 322 | CH65: =VLOOKUP(DropDownList!$B47,CntyQryCensus!$A$306:$GX$348,CH$1) -> 81 | CI65: =VLOOKUP(DropDownList!$B47,CntyQryCensus!$A$306:$GX$348,CI$1) -> 61 | CJ65: =VLOOKUP(DropDownList!$B47,CntyQryCensus!$A$306:$GX$348,CJ$1) -> 0 | CK65: =VLOOKUP(DropDownList!$B47,CntyQryCensus!$A$306:$GX$348,CK$1) -> 125 | CL65: =VLOOKUP(DropDownList!$B47,CntyQryCensus!$A$306:$GX$348,CL$1) -> 6 | CM65: =VLOOKUP(DropDownList!$B47,CntyQryCensus!$A$306:$GX$348,CM$1) -> 0 | CN65: =VLOOKUP(DropDownList!$B47,CntyQryCensus!$A$306:$GX$348,CN$1) -> 10 | CO65: =VLOOKUP(DropDownList!$B47,CntyQryCensus!$A$306:$GX$348,CO$1) -> 0 | CP65: =VLOOKUP(DropDownList!$B47,CntyQryCensus!$A$306:$GX$348,CP$1) -> 2317 | CQ65: =VLOOKUP(DropDownList!$B47,CntyQryCensus!$A$306:$GX$348,CQ$1) -> 2060 | CR65: =VLOOKUP(DropDownList!$B47,CntyQryCensus!$A$306:$GX$348,CR$1) -> 1669 | CS65: =VLOOKUP(DropDownList!$B47,CntyQryCensus!$A$306:$GX$348,CS$1) -> 266 | CT65: =VLOOKUP(DropDownList!$B47,CntyQryCensus!$A$306:$GX$348,CT$1) -> 53 | CU65: =VLOOKUP(DropDownList!$B47,CntyQryCensus!$A$306:$GX$348,CU$1) -> 56 | CV65: =VLOOKUP(DropDownList!$B47,CntyQryCensus!$A$306:$GX$348,CV$1) -> 0 | CW65: =VLOOKUP(DropDownList!$B47,CntyQryCensus!$A$306:$GX$348,CW$1) -> 0 | CX65: =VLOOKUP(DropDownList!$B47,CntyQryCensus!$A$306:$GX$348,CX$1) -> 6 | CY65: =VLOOKUP(DropDownList!$B47,CntyQryCensus!$A$306:$GX$348,CY$1) -> 0 | CZ65: =VLOOKUP(DropDownList!$B47,CntyQryCensus!$A$306:$GX$348,CZ$1) -> 10 | DA65: =VLOOKUP(DropDownList!$B47,CntyQryCensus!$A$306:$GX$348,DA$1) -> 0 | DB65: =VLOOKUP(DropDownList!$B47,CntyQryCensus!$A$306:$GX$348,DB$1) -> 257 | DC65: =VLOOKUP(DropDownList!$B47,CntyQryCensus!$A$306:$GX$348,DC$1) -> 96 | DD65: =VLOOKUP(DropDownList!$B47,CntyQryCensus!$A$306:$GX$348,DD$1) -> 8 | DE65: =VLOOKUP(DropDownList!$B47,CntyQryCensus!$A$306:$GX$348,DE$1) -> 28 | DF65: =VLOOKUP(DropDownList!$B47,CntyQryCensus!$A$306:$GX$348,DF$1) -> 0 | DG65: =VLOOKUP(DropDownList!$B47,CntyQryCensus!$A$306:$GX$348,DG$1) -> 0 | DH65: =VLOOKUP(DropDownList!$B47,CntyQryCensus!$A$306:$GX$348,DH$1) -> 125 | DI65: =VLOOKUP(DropDownList!$B47,CntyQryCensus!$A$306:$GX$348,DI$1) -> 0 | DJ65: =VLOOKUP(DropDownList!$B47,CntyQryCensus!$A$306:$GX$348,DJ$1) -> 0 | DK65: =VLOOKUP(DropDownList!$B47,CntyQryCensus!$A$306:$GX$348,DK$1) -> 0 | DL65: =VLOOKUP(DropDownList!$B47,CntyQryCensus!$A$306:$GX$348,DL$1) -> 0 | DM65: =VLOOKUP(DropDownList!$B47,CntyQryCensus!$A$306:$GX$348,DM$1) -> 6174 | DN65: =VLOOKUP(DropDownList!$B47,CntyQryCensus!$A$306:$GX$348,DN$1) -> 5741 | DO65: =VLOOKUP(DropDownList!$B47,CntyQryCensus!$A$306:$GX$348,DO$1) -> 4967 | DP65: =VLOOKUP(DropDownList!$B47,CntyQryCensus!$A$306:$GX$348,DP$1) -> 477 | DQ65: =VLOOKUP(DropDownList!$B47,CntyQryCensus!$A$306:$GX$348,DQ$1) -> 117 | DR65: =VLOOKUP(DropDownList!$B47,CntyQryCensus!$A$306:$GX$348,DR$1) -> 159 | DS65: =VLOOKUP(DropDownList!$B47,CntyQryCensus!$A$306:$GX$348,DS$1) -> 0 | DT65: =VLOOKUP(DropDownList!$B47,CntyQryCensus!$A$306:$GX$348,DT$1) -> 0 | DU65: =VLOOKUP(DropDownList!$B47,CntyQryCensus!$A$306:$GX$348,DU$1) -> 12 | DV65: =VLOOKUP(DropDownList!$B47,CntyQryCensus!$A$306:$GX$348,DV$1) -> 0 | DW65: =VLOOKUP(DropDownList!$B47,CntyQryCensus!$A$306:$GX$348,DW$1) -> 9 | DX65: =VLOOKUP(DropDownList!$B47,CntyQryCensus!$A$306:$GX$348,DX$1) -> 0 | DY65: =VLOOKUP(DropDownList!$B47,CntyQryCensus!$A$306:$GX$348,DY$1) -> 433 | DZ65: =VLOOKUP(DropDownList!$B47,CntyQryCensus!$A$306:$GX$348,DZ$1) -> 238 | EA65: =VLOOKUP(DropDownList!$B47,CntyQryCensus!$A$306:$GX$348,EA$1) -> 20 | EB65: =VLOOKUP(DropDownList!$B47,CntyQryCensus!$A$306:$GX$348,EB$1) -> 42 | EC65: =VLOOKUP(DropDownList!$B47,CntyQryCensus!$A$306:$GX$348,EC$1) -> 0 | ED65: =VLOOKUP(DropDownList!$B47,CntyQryCensus!$A$306:$GX$348,ED$1) -> 0 | EE65: =VLOOKUP(DropDownList!$B47,CntyQryCensus!$A$306:$GX$348,EE$1) -> 133 | EF65: =VLOOKUP(DropDownList!$B47,CntyQryCensus!$A$306:$GX$348,EF$1) -> 0 | EG65: =VLOOKUP(DropDownList!$B47,CntyQryCensus!$A$306:$GX$348,EG$1) -> 0 | EH65: =VLOOKUP(DropDownList!$B47,CntyQryCensus!$A$306:$GX$348,EH$1) -> 0 | EI65: =VLOOKUP(DropDownList!$B47,CntyQryCensus!$A$306:$GX$348,EI$1) -> 0 | EJ65: =VLOOKUP(DropDownList!$B47,CntyQryCensus!$A$306:$GX$348,EJ$1) -> 2317 | EK65: =VLOOKUP(DropDownList!$B47,CntyQryCensus!$A$306:$GX$348,EK$1) -> 2060 | EL65: =VLOOKUP(DropDownList!$B47,CntyQryCensus!$A$306:$GX$348,EL$1) -> 38 | EM65: =VLOOKUP(DropDownList!$B47,CntyQryCensus!$A$306:$GX$348,EM$1) -> 242 | EN65: =VLOOKUP(DropDownList!$B47,CntyQryCensus!$A$306:$GX$348,EN$1) -> 264 | EO65: =VLOOKUP(DropDownList!$B47,CntyQryCensus!$A$306:$GX$348,EO$1) -> 373 | EP65: =VLOOKUP(DropDownList!$B47,CntyQryCensus!$A$306:$GX$348,EP$1) -> 529 | EQ65: =VLOOKUP(DropDownList!$B47,CntyQryCensus!$A$306:$GX$348,EQ$1) -> 317 | ER65: =VLOOKUP(DropDownList!$B47,CntyQryCensus!$A$306:$GX$348,ER$1) -> 165 | ES65: =VLOOKUP(DropDownList!$B47,CntyQryCensus!$A$306:$GX$348,ES$1) -> 42 | ET65: =VLOOKUP(DropDownList!$B47,CntyQryCensus!$A$306:$GX$348,ET$1) -> 90 | EU65: =VLOOKUP(DropDownList!$B47,CntyQryCensus!$A$306:$GX$348,EU$1) -> 257 | EV65: =VLOOKUP(DropDownList!$B47,CntyQryCensus!$A$306:$GX$348,EV$1) -> 0 | EW65: =VLOOKUP(DropDownList!$B47,CntyQryCensus!$A$306:$GX$348,EW$1) -> 0 | EX65: =VLOOKUP(DropDownList!$B47,CntyQryCensus!$A$306:$GX$348,EX$1) -> 20 | EY65: =VLOOKUP(DropDownList!$B47,CntyQryCensus!$A$306:$GX$348,EY$1) -> 53 | EZ65: =VLOOKUP(DropDownList!$B47,CntyQryCensus!$A$306:$GX$348,EZ$1) -> 61 | FA65: =VLOOKUP(DropDownList!$B47,CntyQryCensus!$A$306:$GX$348,FA$1) -> 38 | FB65: =VLOOKUP(DropDownList!$B47,CntyQryCensus!$A$306:$GX$348,FB$1) -> 40 | FC65: =VLOOKUP(DropDownList!$B47,CntyQryCensus!$A$306:$GX$348,FC$1) -> 18 | FD65: =VLOOKUP(DropDownList!$B47,CntyQryCensus!$A$306:$GX$348,FD$1) -> 27 | FE65: =VLOOKUP(DropDownList!$B47,CntyQryCensus!$A$306:$GX$348,FE$1) -> 2317 | FF65: =VLOOKUP(DropDownList!$B47,CntyQryCensus!$A$306:$GX$348,FF$1) -> 313 | FG65: =VLOOKUP(DropDownList!$B47,CntyQryCensus!$A$306:$GX$348,FG$1) -> 223 | FH65: =VLOOKUP(DropDownList!$B47,CntyQryCensus!$A$306:$GX$348,FH$1) -> 85 | FI65: =VLOOKUP(DropDownList!$B47,CntyQryCensus!$A$306:$GX$348,FI$1) -> 1657 | FJ65: =VLOOKUP(DropDownList!$B47,CntyQryCensus!$A$306:$GX$348,FJ$1) -> 7 | FK65: =VLOOKUP(DropDownList!$B47,CntyQryCensus!$A$306:$GX$348,FK$1) -> 32 | FL65: =VLOOKUP(DropDownList!$B47,CntyQryCensus!$A$306:$GX$348,FL$1) -> 0 | FM65: =VLOOKUP(DropDownList!$B47,CntyQryCensus!$A$306:$GX$348,FM$1) -> 0 | FN65: =VLOOKUP(DropDownList!$B47,CntyQryCensus!$A$306:$GX$348,FN$1) -> 0 | FO65: =VLOOKUP(DropDownList!$B47,CntyQryCensus!$A$306:$GX$348,FO$1) -> 2431 | FP65: =VLOOKUP(DropDownList!$B47,CntyQryCensus!$A$306:$GX$348,FP$1) -> 0 | FQ65: =VLOOKUP(DropDownList!$B47,CntyQryCensus!$A$306:$GX$348,FQ$1) -> 141 | FR65: =VLOOKUP(DropDownList!$B47,CntyQryCensus!$A$306:$GX$348,FR$1) -> 556 | FS65: =VLOOKUP(DropDownList!$B47,CntyQryCensus!$A$306:$GX$348,FS$1) -> 1189 | FT65: =VLOOKUP(DropDownList!$B47,CntyQryCensus!$A$306:$GX$348,FT$1) -> 475 | FU65: =VLOOKUP(DropDownList!$B47,CntyQryCensus!$A$306:$GX$348,FU$1) -> 70 | FV65: =VLOOKUP(DropDownList!$B47,CntyQryCensus!$A$306:$GX$348,FV$1) -> 2317 | FW65: =VLOOKUP(DropDownList!$B47,CntyQryCensus!$A$306:$GX$348,FW$1) -> 2060 | FX65: =VLOOKUP(DropDownList!$B47,CntyQryCensus!$A$306:$GX$348,FX$1) -> 0 | FY65: =VLOOKUP(DropDownList!$B47,CntyQryCensus!$A$306:$GX$348,FY$1) -> 6 | FZ65: =VLOOKUP(DropDownList!$B47,CntyQryCensus!$A$306:$GX$348,FZ$1) -> 443 | GA65: =VLOOKUP(DropDownList!$B47,CntyQryCensus!$A$306:$GX$348,GA$1) -> 1094 | GB65: =VLOOKUP(DropDownList!$B47,CntyQryCensus!$A$306:$GX$348,GB$1) -> 457 | GC65: =VLOOKUP(DropDownList!$B47,CntyQryCensus!$A$306:$GX$348,GC$1) -> 60 | GD65: =VLOOKUP(DropDownList!$B47,CntyQryCensus!$A$306:$GX$348,GD$1) -> 257 | GE65: =VLOOKUP(DropDownList!$B47,CntyQryCensus!$A$306:$GX$348,GE$1) -> 0 | GF65: =VLOOKUP(DropDownList!$B47,CntyQryCensus!$A$306:$GX$348,GF$1) -> 135 | GG65: =VLOOKUP(DropDownList!$B47,CntyQryCensus!$A$306:$GX$348,GG$1) -> 61 | GH65: =VLOOKUP(DropDownList!$B47,CntyQryCensus!$A$306:$GX$348,GH$1) -> 41 | GI65: =VLOOKUP(DropDownList!$B47,CntyQryCensus!$A$306:$GX$348,GI$1) -> 10 | GJ65: =VLOOKUP(DropDownList!$B47,CntyQryCensus!$A$306:$GX$348,GJ$1) -> 10 | GK65: =VLOOKUP(DropDownList!$B47,CntyQryCensus!$A$306:$GX$348,GK$1) -> 2317 | GL65: =VLOOKUP(DropDownList!$B47,CntyQryCensus!$A$306:$GX$348,GL$1) -> 2060 | GM65: =VLOOKUP(DropDownList!$B47,CntyQryCensus!$A$306:$GX$348,GM$1) -> 2060 | GN65: =VLOOKUP(DropDownList!$B47,CntyQryCensus!$A$306:$GX$348,GN$1) -> 0 | GO65: =VLOOKUP(DropDownList!$B47,CntyQryCensus!$A$306:$GX$348,GO$1) -> 257 | GP65: =VLOOKUP(DropDownList!$B47,CntyQryCensus!$A$306:$GX$348,GP$1) -> 257 | GQ65: =VLOOKUP(DropDownList!$B47,CntyQryCensus!$A$306:$GX$348,GQ$1) -> 0 | GR65: =VLOOKUP(DropDownList!$B47,CntyQryCensus!$A$306:$GX$348,GR$1) -> 2317 | GS65: =VLOOKUP(DropDownList!$B47,CntyQryCensus!$A$306:$GX$348,GS$1) -> 2060 | GT65: =VLOOKUP(DropDownList!$B47,CntyQryCensus!$A$306:$GX$348,GT$1) -> 2060 | GU65: =VLOOKUP(DropDownList!$B47,CntyQryCensus!$A$306:$GX$348,GU$1) -> 0 | GV65: =VLOOKUP(DropDownList!$B47,CntyQryCensus!$A$306:$GX$348,GV$1) -> 257 | GW65: =VLOOKUP(DropDownList!$B47,CntyQryCensus!$A$306:$GX$348,GW$1) -> 257 | GX65: =VLOOKUP(DropDownList!$B47,CntyQryCensus!$A$306:$GX$348,GX$1) -> 0
A68: Census 2000 SummaryFile3 Sample Data - SF3TownQry8HousingCostA
A69: NAME | B69: LOGRECNO | C69: COUNTY | D69: TotalPop | E69: H62RntrOccHU | F69: H62RntrOccHUwRent | G69: H62ROHUGRent<100 | H69: H62ROHUGRent100to149 | I69: H62ROHUGRent150to199 | J69: H62ROHUGRent200to249 | K69: H62ROHUGRent250to299 | L69: H62ROHUGRent300to349 | M69: H62ROHUGRent350to399 | N69: H62ROHUGRent400to449 | O69: H62ROHUGRent450to499 | P69: H62ROHUGRent500to549 | Q69: H62ROHUGRent550to599 | R69: H62ROHUGRent600to649 | S69: H62ROHUGRent650to699 | T69: H62ROHUGRent700to749 | U69: H62ROHUGRent750to799 | V69: H62ROHUGRent800to899 | W69: H62ROHUGRent900to999 | X69: H62ROHUGRent1000to1249 | Y69: H62ROHUGRent1250to1499 | Z69: H62ROHUGRent1500to1999 | AA69: H62ROHUGRent2000> | AB69: H62ROHUNoGRent | AC69: H63MedianGrossRnt | AD69: H69RenterOccHsU | AE69: H69GRnt<10PctHHInc | AF69: H69GRnt10to15PctHHInc | AG69: H69GRnt15to20PctHHInc | AH69: H69GRnt20to25PctHHInc | AI69: H69GRnt25to30PctHHInc | AJ69: H69GRnt30to35PctHHInc | AK69: H69GRnt35to40PctHHInc | AL69: H69GRnt40to50PctHHInc | AM69: H69GRnt>50PctHHInc | AN69: H69GRntPctNotcomputed | AO69: H73RenterOccHU | AP69: H73ROHUHhInc<10k | AQ69: H73ROHUHhInc<10kRnt<20pct | AR69: H73ROHUHhInc<10kRnt20to25pct | AS69: H73ROHUHhInc<10kRnt25to30pct | AT69: H73ROHUHhInc<10kRnt30to35pct | AU69: H73ROHUHhInc<10kRnt>35pct | AV69: H73ROHUHhInc<10kPctNotComput | AW69: H73ROHUHhInc10to20k | AX69: H73ROHUHhInc10to20kRnt<20pct | AY69: H73ROHUHhInc10to20kRnt20to25pct | AZ69: H73ROHUHhInc10to20kRnt25to30pct | BA69: H73ROHUHhInc10to20kRnt30to35pct | BB69: H73ROHUHhInc10to20kRnt>35pct | BC69: H73ROHUHhInc10to20kRntPctNC | BD69: H73ROHUHhInc20to35k | BE69: H73ROHUHhInc20to35kRnt<20pct | BF69: H73ROHUHhInc20to35kRnt20to25pct | BG69: H73ROHUHhInc20to35kRnt25to30pct | BH69: H73ROHUHhInc20to35kRnt30to35pct | BI69: H73ROHUHhInc20to35kRnt>35pct | BJ69: H73ROHUHhInc20to35kRntPctNC | BK69: H73ROHUHhInc35to40k | BL69: H73ROHUHhInc35to40kRnt<20pct | BM69: H73ROHUHhInc35to40kRnt20to25pct | BN69: H73ROHUHhInc35to40kRnt25to30pct | BO69: H73ROHUHhInc35to40kRnt30to35pct | BP69: H73ROHUHhInc35to40kRnt>35pct | BQ69: H73ROHUHhInc35to40kRntPctNC | BR69: H73ROHUHhInc50to75k | BS69: H73ROHUHhInc50to75kRnt<20pct | BT69: H73ROHUHhInc50to75kRnt20to25pct | BU69: H73ROHUHhInc50to75kRnt25to30pct | BV69: H73ROHUHhInc50to75kRnt30to35pct | BW69: H73ROHUHhInc50to75kRnt>35pct | BX69: H73ROHUHhInc50to75kRntPctNC | BY69: H73ROHUHhInc75to100k | BZ69: H73ROHUHhInc75to100kRnt<20pct | CA69: H73ROHUHhInc75to100kRnt20to25pct | CB69: H73ROHUHhInc75to100kRnt25to30pct | CC69: H73ROHUHhInc75to100kRnt30to35pct | CD69: H73ROHUHhInc75to100kRnt>35pct | CE69: H73ROHUHhInc75to100kRntPctNC | CF69: H73ROHUHhInc>100k | CG69: H73ROHUHhInc>100kRnt<20pct | CH69: H73ROHUHhInc>100kRnt20to25pct | CI69: H73ROHUHhInc>100kRnt25to30pct | CJ69: H73ROHUHhInc>100kRnt30to35pct | CK69: H73ROHUHhInc>100kRnt>35pct | CL69: H73ROHUHhInc>100kRntPctNC | CM69: H73ROHUHhInc>100kRntPctNC
A70: =VLOOKUP(DropDownList!$B$47,CntyQryCensus!$A$357:$CM$399,A$1) -> Atkinson | B70: =VLOOKUP(DropDownList!$B$47,CntyQryCensus!$A$357:$CM$399,B$1) -> 0003039 | C70: =VLOOKUP(DropDownList!$B$47,CntyQryCensus!$A$357:$CM$399,C$1) -> 02340 | D70: =VLOOKUP(DropDownList!$B$47,CntyQryCensus!$A$357:$CM$399,D$1) -> 6178 | E70: =VLOOKUP(DropDownList!$B$47,CntyQryCensus!$A$357:$CM$399,E$1) -> 238 | F70: =VLOOKUP(DropDownList!$B$47,CntyQryCensus!$A$357:$CM$399,F$1) -> 222 | G70: =VLOOKUP(DropDownList!$B$47,CntyQryCensus!$A$357:$CM$399,G$1) -> 0 | H70: =VLOOKUP(DropDownList!$B$47,CntyQryCensus!$A$357:$CM$399,H$1) -> 10 | I70: =VLOOKUP(DropDownList!$B$47,CntyQryCensus!$A$357:$CM$399,I$1) -> 0 | J70: =VLOOKUP(DropDownList!$B$47,CntyQryCensus!$A$357:$CM$399,J$1) -> 0 | K70: =VLOOKUP(DropDownList!$B$47,CntyQryCensus!$A$357:$CM$399,K$1) -> 0 | L70: =VLOOKUP(DropDownList!$B$47,CntyQryCensus!$A$357:$CM$399,L$1) -> 0 | M70: =VLOOKUP(DropDownList!$B$47,CntyQryCensus!$A$357:$CM$399,M$1) -> 0 | N70: =VLOOKUP(DropDownList!$B$47,CntyQryCensus!$A$357:$CM$399,N$1) -> 27 | O70: =VLOOKUP(DropDownList!$B$47,CntyQryCensus!$A$357:$CM$399,O$1) -> 65 | P70: =VLOOKUP(DropDownList!$B$47,CntyQryCensus!$A$357:$CM$399,P$1) -> 50 | Q70: =VLOOKUP(DropDownList!$B$47,CntyQryCensus!$A$357:$CM$399,Q$1) -> 10 | R70: =VLOOKUP(DropDownList!$B$47,CntyQryCensus!$A$357:$CM$399,R$1) -> 0 | S70: =VLOOKUP(DropDownList!$B$47,CntyQryCensus!$A$357:$CM$399,S$1) -> 17 | T70: =VLOOKUP(DropDownList!$B$47,CntyQryCensus!$A$357:$CM$399,T$1) -> 25 | U70: =VLOOKUP(DropDownList!$B$47,CntyQryCensus!$A$357:$CM$399,U$1) -> 9 | V70: =VLOOKUP(DropDownList!$B$47,CntyQryCensus!$A$357:$CM$399,V$1) -> 9 | W70: =VLOOKUP(DropDownList!$B$47,CntyQryCensus!$A$357:$CM$399,W$1) -> 0 | X70: =VLOOKUP(DropDownList!$B$47,CntyQryCensus!$A$357:$CM$399,X$1) -> 0 | Y70: =VLOOKUP(DropDownList!$B$47,CntyQryCensus!$A$357:$CM$399,Y$1) -> 0 | Z70: =VLOOKUP(DropDownList!$B$47,CntyQryCensus!$A$357:$CM$399,Z$1) -> 0 | AA70: =VLOOKUP(DropDownList!$B$47,CntyQryCensus!$A$357:$CM$399,AA$1) -> 0 | AB70: =VLOOKUP(DropDownList!$B$47,CntyQryCensus!$A$357:$CM$399,AB$1) -> 16 | AC70: =VLOOKUP(DropDownList!$B$47,CntyQryCensus!$A$357:$CM$399,AC$1) -> 509 | AD70: =VLOOKUP(DropDownList!$B$47,CntyQryCensus!$A$357:$CM$399,AD$1) -> 238 | AE70: =VLOOKUP(DropDownList!$B$47,CntyQryCensus!$A$357:$CM$399,AE$1) -> 23 | AF70: =VLOOKUP(DropDownList!$B$47,CntyQryCensus!$A$357:$CM$399,AF$1) -> 10 | AG70: =VLOOKUP(DropDownList!$B$47,CntyQryCensus!$A$357:$CM$399,AG$1) -> 43 | AH70: =VLOOKUP(DropDownList!$B$47,CntyQryCensus!$A$357:$CM$399,AH$1) -> 10 | AI70: =VLOOKUP(DropDownList!$B$47,CntyQryCensus!$A$357:$CM$399,AI$1) -> 30 | AJ70: =VLOOKUP(DropDownList!$B$47,CntyQryCensus!$A$357:$CM$399,AJ$1) -> 10 | AK70: =VLOOKUP(DropDownList!$B$47,CntyQryCensus!$A$357:$CM$399,AK$1) -> 29 | AL70: =VLOOKUP(DropDownList!$B$47,CntyQryCensus!$A$357:$CM$399,AL$1) -> 10 | AM70: =VLOOKUP(DropDownList!$B$47,CntyQryCensus!$A$357:$CM$399,AM$1) -> 57 | AN70: =VLOOKUP(DropDownList!$B$47,CntyQryCensus!$A$357:$CM$399,AN$1) -> 16 | AO70: =VLOOKUP(DropDownList!$B$47,CntyQryCensus!$A$357:$CM$399,AO$1) -> 238 | AP70: =VLOOKUP(DropDownList!$B$47,CntyQryCensus!$A$357:$CM$399,AP$1) -> 48 | AQ70: =VLOOKUP(DropDownList!$B$47,CntyQryCensus!$A$357:$CM$399,AQ$1) -> 0 | AR70: =VLOOKUP(DropDownList!$B$47,CntyQryCensus!$A$357:$CM$399,AR$1) -> 0 | AS70: =VLOOKUP(DropDownList!$B$47,CntyQryCensus!$A$357:$CM$399,AS$1) -> 0 | AT70: =VLOOKUP(DropDownList!$B$47,CntyQryCensus!$A$357:$CM$399,AT$1) -> 0 | AU70: =VLOOKUP(DropDownList!$B$47,CntyQryCensus!$A$357:$CM$399,AU$1) -> 48 | AV70: =VLOOKUP(DropDownList!$B$47,CntyQryCensus!$A$357:$CM$399,AV$1) -> 0 | AW70: =VLOOKUP(DropDownList!$B$47,CntyQryCensus!$A$357:$CM$399,AW$1) -> 48 | AX70: =VLOOKUP(DropDownList!$B$47,CntyQryCensus!$A$357:$CM$399,AX$1) -> 0 | AY70: =VLOOKUP(DropDownList!$B$47,CntyQryCensus!$A$357:$CM$399,AY$1) -> 0 | AZ70: =VLOOKUP(DropDownList!$B$47,CntyQryCensus!$A$357:$CM$399,AZ$1) -> 0 | BA70: =VLOOKUP(DropDownList!$B$47,CntyQryCensus!$A$357:$CM$399,BA$1) -> 0 | BB70: =VLOOKUP(DropDownList!$B$47,CntyQryCensus!$A$357:$CM$399,BB$1) -> 48 | BC70: =VLOOKUP(DropDownList!$B$47,CntyQryCensus!$A$357:$CM$399,BC$1) -> 0 | BD70: =VLOOKUP(DropDownList!$B$47,CntyQryCensus!$A$357:$CM$399,BD$1) -> 67 | BE70: =VLOOKUP(DropDownList!$B$47,CntyQryCensus!$A$357:$CM$399,BE$1) -> 9 | BF70: =VLOOKUP(DropDownList!$B$47,CntyQryCensus!$A$357:$CM$399,BF$1) -> 10 | BG70: =VLOOKUP(DropDownList!$B$47,CntyQryCensus!$A$357:$CM$399,BG$1) -> 30 | BH70: =VLOOKUP(DropDownList!$B$47,CntyQryCensus!$A$357:$CM$399,BH$1) -> 10 | BI70: =VLOOKUP(DropDownList!$B$47,CntyQryCensus!$A$357:$CM$399,BI$1) -> 0 | BJ70: =VLOOKUP(DropDownList!$B$47,CntyQryCensus!$A$357:$CM$399,BJ$1) -> 8 | BK70: =VLOOKUP(DropDownList!$B$47,CntyQryCensus!$A$357:$CM$399,BK$1) -> 28 | BL70: =VLOOKUP(DropDownList!$B$47,CntyQryCensus!$A$357:$CM$399,BL$1) -> 28 | BM70: =VLOOKUP(DropDownList!$B$47,CntyQryCensus!$A$357:$CM$399,BM$1) -> 0 | BN70: =VLOOKUP(DropDownList!$B$47,CntyQryCensus!$A$357:$CM$399,BN$1) -> 0 | BO70: =VLOOKUP(DropDownList!$B$47,CntyQryCensus!$A$357:$CM$399,BO$1) -> 0 | BP70: =VLOOKUP(DropDownList!$B$47,CntyQryCensus!$A$357:$CM$399,BP$1) -> 0 | BQ70: =VLOOKUP(DropDownList!$B$47,CntyQryCensus!$A$357:$CM$399,BQ$1) -> 0 | BR70: =VLOOKUP(DropDownList!$B$47,CntyQryCensus!$A$357:$CM$399,BR$1) -> 16 | BS70: =VLOOKUP(DropDownList!$B$47,CntyQryCensus!$A$357:$CM$399,BS$1) -> 16 | BT70: =VLOOKUP(DropDownList!$B$47,CntyQryCensus!$A$357:$CM$399,BT$1) -> 0 | BU70: =VLOOKUP(DropDownList!$B$47,CntyQryCensus!$A$357:$CM$399,BU$1) -> 0 | BV70: =VLOOKUP(DropDownList!$B$47,CntyQryCensus!$A$357:$CM$399,BV$1) -> 0 | BW70: =VLOOKUP(DropDownList!$B$47,CntyQryCensus!$A$357:$CM$399,BW$1) -> 0 | BX70: =VLOOKUP(DropDownList!$B$47,CntyQryCensus!$A$357:$CM$399,BX$1) -> 0 | BY70: =VLOOKUP(DropDownList!$B$47,CntyQryCensus!$A$357:$CM$399,BY$1) -> 6 | BZ70: =VLOOKUP(DropDownList!$B$47,CntyQryCensus!$A$357:$CM$399,BZ$1) -> 6 | CA70: =VLOOKUP(DropDownList!$B$47,CntyQryCensus!$A$357:$CM$399,CA$1) -> 0 | CB70: =VLOOKUP(DropDownList!$B$47,CntyQryCensus!$A$357:$CM$399,CB$1) -> 0 | CC70: =VLOOKUP(DropDownList!$B$47,CntyQryCensus!$A$357:$CM$399,CC$1) -> 0 | CD70: =VLOOKUP(DropDownList!$B$47,CntyQryCensus!$A$357:$CM$399,CD$1) -> 0 | CE70: =VLOOKUP(DropDownList!$B$47,CntyQryCensus!$A$357:$CM$399,CE$1) -> 0 | CF70: =VLOOKUP(DropDownList!$B$47,CntyQryCensus!$A$357:$CM$399,CF$1) -> 25 | CG70: =VLOOKUP(DropDownList!$B$47,CntyQryCensus!$A$357:$CM$399,CG$1) -> 17 | CH70: =VLOOKUP(DropDownList!$B$47,CntyQryCensus!$A$357:$CM$399,CH$1) -> 0 | CI70: =VLOOKUP(DropDownList!$B$47,CntyQryCensus!$A$357:$CM$399,CI$1) -> 0 | CJ70: =VLOOKUP(DropDownList!$B$47,CntyQryCensus!$A$357:$CM$399,CJ$1) -> 0 | CK70: =VLOOKUP(DropDownList!$B$47,CntyQryCensus!$A$357:$CM$399,CK$1) -> 0 | CL70: =VLOOKUP(DropDownList!$B$47,CntyQryCensus!$A$357:$CM$399,CL$1) -> 8 | CM70: =VLOOKUP(DropDownList!$B$47,CntyQryCensus!$A$357:$CM$399,CM$1) -> 0
A73: Census 2000 SummaryFile3 Sample Data - SF3TownQry8HousingCostB
A74: NAME | B74: LOGRECNO | C74: COUNTY | D74: TotalPop | E74: H74SpecOwnerOccHU | F74: H74OOHU<10k | G74: H74OOHU10to15k | H74: H74OOHU15to20k | I74: H74OOHU20to25k | J74: H74OOHU25to30k | K74: H74OOHU30to35k | L74: H74OOHU35to40k | M74: H74OOHU40to50k | N74: H74OOHU50to60k | O74: H74OOHU60to70k | P74: H74OOHU70to80k | Q74: H74OOHU80to90k | R74: H74OOHU90to100k | S74: H74OOHU100to125k | T74: H74OOHU125to150k | U74: H74OOHU150to175k | V74: H74OOHU175to200k | W74: H74OOHU200to250k | X74: H74OOHU250to300k | Y74: H74OOHU300to400k | Z74: H74OOHU400to500k | AA74: H74OOHU500to750k | AB74: H74OOHU750to1000k | AC74: H74OOHU1000kmore | AD74: H76OOHUMedianVal | AE74: H84OwnerOccHU | AF74: H84AllOOHU<10k | AG74: H84AllOOHU10to15k | AH74: H84AllOOHU15to20k | AI74: H84AllOOHU20to25k | AJ74: H84AllOOHU25to30k | AK74: H84AllOOHU30to35k | AL74: H84AllOOHU35to40k | AM74: H84AllOOHU40to50k | AN74: H84AllOOHU50to60k | AO74: H84AllOOHU60to70k | AP74: H84AllOOHU70to80k | AQ74: H84AllOOHU80to90k | AR74: H84AllOOHU90to100k | AS74: H84AllOOHU100to125k | AT74: H84AllOOHU125to150k | AU74: H84AllOOHU150to175k | AV74: H84AllOOHU175to200k | AW74: H84AllOOHU200to250k | AX74: H84AllOOHU250to300k | AY74: H84AllOOHU300to400k | AZ74: H84AllOOHU400to500k | BA74: H84AllOOHU500to750k | BB74: H84AllOOHU750to1000k | BC74: H84AllOOHU1000kmore | BD74: H85OOHUMedVal | BE74: H90SOOHU | BF74: H90HUwMorgt | BG74: H90HUwMtgHC<200 | BH74: H90HUwMtgHC200to300 | BI74: H90HUwMtgHC300to400 | BJ74: H90HUwMtgHC400to500 | BK74: H90HUwMtgHC500to600 | BL74: H90HUwMtgHC600to700 | BM74: H90HUwMtgHC700to800 | BN74: H90HUwMtgHC800to900 | BO74: H90HUwMtgHC900to1000 | BP74: H90HUwMtgHC1000to1250 | BQ74: H90HUwMtgHC1250to1500 | BR74: H90HUwMtgHC1500to2000 | BS74: H90HUwMtgHC2000to2500 | BT74: H90HUwMtgHC2500to3000 | BU74: H90HUwMtgHC3000orMore | BV74: H90HUwOutMorgt | BW74: H90HUwOutMtgHC<100 | BX74: H90HUwOutMtgHC100to150 | BY74: H90HUwOutMtgHC150to200 | BZ74: H90HUwOutMtgHC200to250 | CA74: H90HUwOutMtgHC250to300 | CB74: H90HUwOutMtgHC300to350 | CC74: H90HUwOutMtgHC350to400 | CD74: H90HUwOutMtgHC400to500 | CE74: H90HUwOutMtgHC500to600 | CF74: H90HUwOutMtgHC600to700 | CG74: H90HUwOutMtgHC700to800 | CH74: H90HUwOutMtgHC800to900 | CI74: H90HUwOutMtgHC900to1000 | CJ74: H90HUwOutMtgHC1000orMore | CK74: H91MedianOCHUwMtg | CL74: H91MedianOCHUwOutMtg | CM74: H94SpecOOHU | CN74: H94HUwMortg | CO74: H94HUwMtgHC<10pct | CP74: H94HUwMtgHC10to15pct | CQ74: H94HUwMtgHC15to20pct | CR74: H94HUwMtgHC20to25pct | CS74: H94HUwMtgHC25to30pct | CT74: H94HUwMtgHC30to35pct | CU74: H94HUwMtgHC35to40pct | CV74: H94HUwMtgHC40to50pct | CW74: H94HUwMtgHC50pctOrMore | CX74: H94HUwMtgHCpctNotComp | CY74: H94HUWOutMortg | CZ74: H94HUWOutMortgHC<10pct | DA74: H94HUWOutMortgHC10to15pct | DB74: H94HUWOutMortgHC15to20pct | DC74: H94HUWOutMortgHC20to25pct | DD74: H94HUWOutMortgHC25to30pct | DE74: H94HUWOutMortgHC30to35pct | DF74: H94HUWOutMortgHC35to40pct | DG74: H94HUWOutMortgHC40to50pct | DH74: H94HUWOutMortgHC50pctOrMore | DI74: H94HUWOutMortgHCpctNotComp | DJ74: H97SpecifOwnOccHU | DK74: H97SOOHUInc<10k | DL74: H97SOOHUInc<10kHC<20pct | DM74: H97SOOHUInc<10kHC20to25pct | DN74: H97SOOHUInc<10kHC25to30pct | DO74: H97SOOHUInc<10kHC30to35pct | DP74: H97SOOHUInc<10kHC>35pct | DQ74: H97SOOHUInc<10kHCpctNotComput | DR74: H97SOOHUInc10to20k | DS74: H97SOOHUInc10to20kHC<20pct | DT74: H97SOOHUInc10to20kHC20to25pct | DU74: H97SOOHUInc10to20kHC25to30pct | DV74: H97SOOHUInc10to20kHC30to35pct | DW74: H97SOOHUInc10to20kHC>35pct | DX74: H97SOOHUInc10to20kHCpctNotComput | DY74: H97SOOHUInc20to35k | DZ74: H97SOOHUInc20to35kRC<20pct | EA74: H97SOOHUInc20to35kRC20to25pct | EB74: H97SOOHUInc20to35kRC25to30pct | EC74: H97SOOHUInc20to35kRC30to35pct | ED74: H97SOOHUInc20to35kRC>35pct | EE74: H97SOOHUInc20to35kRCpctNotComput | EF74: H97SOOHUInc35to50k | EG74: H97SOOHUInc35to50kRC<20pct | EH74: H97SOOHUInc35to50kRC20to25pct | EI74: H97SOOHUInc35to50kRC25to30pct | EJ74: H97SOOHUInc35to50kRC30to35pct | EK74: H97SOOHUInc35to50kRC>35pct | EL74: H97SOOHUInc35to50kRCpctNotCompute | EM74: H97SOOHUInc50to75k | EN74: H97SOOHUInc50to75kRC<20pct | EO74: H97SOOHUInc50to75kRC20to25pct | EP74: H97SOOHUInc50to75kRC25to30pct | EQ74: H97SOOHUInc50to75kRC30to35pct | ER74: H97SOOHUInc50to75kRC>35pct | ES74: H97SOOHUInc50to75kRCpctNotComput | ET74: H97SOOHUInc75to100k | EU74: H97SOOHUInc75to100kRC<20pct | EV74: H97SOOHUInc75to100kRC20to25pct | EW74: H97SOOHUInc75to100kRC25to30pct | EX74: H97SOOHUInc75to100kRC30to35pct | EY74: H97SOOHUInc75to100kRC>35pct | EZ74: H97SOOHUInc75to100kRCpctNotCompute | FA74: H97SOOHUInc100to150k | FB74: H97SOOHUInc100to150kRC<20pct | FC74: H97SOOHUInc100to150kRC20to25pct | FD74: H97SOOHUInc100to150kRC25to30pct | FE74: H97SOOHUInc100to150kRC30to35pct | FF74: H97SOOHUInc100to150kRC>35pct | FG74: H97SOOHUInc100to150kRCpctNotCompute | FH74: H97SOOHUInc>150k | FI74: H97SOOHUInc>150kRC<20pct | FJ74: H97SOOHUInc>150kRC20to25pct | FK74: H97SOOHUInc>150kRC25to30pct | FL74: H97SOOHUInc>150kRC30to35pct | FM74: H97SOOHUInc>150kRC>35pct | FN74: H97SOOHUInc>150kRCpctNotCompute
A75: =VLOOKUP(DropDownList!$B$47,CntyQryCensus!$A$408:$FN$450,A$1) -> Atkinson | B75: =VLOOKUP(DropDownList!$B$47,CntyQryCensus!$A$408:$FN$450,B$1) -> 0003039 | C75: =VLOOKUP(DropDownList!$B$47,CntyQryCensus!$A$408:$FN$450,C$1) -> 02340 | D75: =VLOOKUP(DropDownList!$B$47,CntyQryCensus!$A$408:$FN$450,D$1) -> 6178 | E75: =VLOOKUP(DropDownList!$B$47,CntyQryCensus!$A$408:$FN$450,E$1) -> 1791 | F75: =VLOOKUP(DropDownList!$B$47,CntyQryCensus!$A$408:$FN$450,F$1) -> 0 | G75: =VLOOKUP(DropDownList!$B$47,CntyQryCensus!$A$408:$FN$450,G$1) -> 0 | H75: =VLOOKUP(DropDownList!$B$47,CntyQryCensus!$A$408:$FN$450,H$1) -> 0 | I75: =VLOOKUP(DropDownList!$B$47,CntyQryCensus!$A$408:$FN$450,I$1) -> 0 | J75: =VLOOKUP(DropDownList!$B$47,CntyQryCensus!$A$408:$FN$450,J$1) -> 0 | K75: =VLOOKUP(DropDownList!$B$47,CntyQryCensus!$A$408:$FN$450,K$1) -> 0 | L75: =VLOOKUP(DropDownList!$B$47,CntyQryCensus!$A$408:$FN$450,L$1) -> 0 | M75: =VLOOKUP(DropDownList!$B$47,CntyQryCensus!$A$408:$FN$450,M$1) -> 0 | N75: =VLOOKUP(DropDownList!$B$47,CntyQryCensus!$A$408:$FN$450,N$1) -> 0 | O75: =VLOOKUP(DropDownList!$B$47,CntyQryCensus!$A$408:$FN$450,O$1) -> 0 | P75: =VLOOKUP(DropDownList!$B$47,CntyQryCensus!$A$408:$FN$450,P$1) -> 9 | Q75: =VLOOKUP(DropDownList!$B$47,CntyQryCensus!$A$408:$FN$450,Q$1) -> 18 | R75: =VLOOKUP(DropDownList!$B$47,CntyQryCensus!$A$408:$FN$450,R$1) -> 7 | S75: =VLOOKUP(DropDownList!$B$47,CntyQryCensus!$A$408:$FN$450,S$1) -> 46 | T75: =VLOOKUP(DropDownList!$B$47,CntyQryCensus!$A$408:$FN$450,T$1) -> 180 | U75: =VLOOKUP(DropDownList!$B$47,CntyQryCensus!$A$408:$FN$450,U$1) -> 252 | V75: =VLOOKUP(DropDownList!$B$47,CntyQryCensus!$A$408:$FN$450,V$1) -> 418 | W75: =VLOOKUP(DropDownList!$B$47,CntyQryCensus!$A$408:$FN$450,W$1) -> 427 | X75: =VLOOKUP(DropDownList!$B$47,CntyQryCensus!$A$408:$FN$450,X$1) -> 205 | Y75: =VLOOKUP(DropDownList!$B$47,CntyQryCensus!$A$408:$FN$450,Y$1) -> 153 | Z75: =VLOOKUP(DropDownList!$B$47,CntyQryCensus!$A$408:$FN$450,Z$1) -> 17 | AA75: =VLOOKUP(DropDownList!$B$47,CntyQryCensus!$A$408:$FN$450,AA$1) -> 39 | AB75: =VLOOKUP(DropDownList!$B$47,CntyQryCensus!$A$408:$FN$450,AB$1) -> 20 | AC75: =VLOOKUP(DropDownList!$B$47,CntyQryCensus!$A$408:$FN$450,AC$1) -> 0 | AD75: =VLOOKUP(DropDownList!$B$47,CntyQryCensus!$A$408:$FN$450,AD$1) -> 197900 | AE75: =VLOOKUP(DropDownList!$B$47,CntyQryCensus!$A$408:$FN$450,AE$1) -> 2060 | AF75: =VLOOKUP(DropDownList!$B$47,CntyQryCensus!$A$408:$FN$450,AF$1) -> 0 | AG75: =VLOOKUP(DropDownList!$B$47,CntyQryCensus!$A$408:$FN$450,AG$1) -> 0 | AH75: =VLOOKUP(DropDownList!$B$47,CntyQryCensus!$A$408:$FN$450,AH$1) -> 10 | AI75: =VLOOKUP(DropDownList!$B$47,CntyQryCensus!$A$408:$FN$450,AI$1) -> 0 | AJ75: =VLOOKUP(DropDownList!$B$47,CntyQryCensus!$A$408:$FN$450,AJ$1) -> 0 | AK75: =VLOOKUP(DropDownList!$B$47,CntyQryCensus!$A$408:$FN$450,AK$1) -> 0 | AL75: =VLOOKUP(DropDownList!$B$47,CntyQryCensus!$A$408:$FN$450,AL$1) -> 0 | AM75: =VLOOKUP(DropDownList!$B$47,CntyQryCensus!$A$408:$FN$450,AM$1) -> 0 | AN75: =VLOOKUP(DropDownList!$B$47,CntyQryCensus!$A$408:$FN$450,AN$1) -> 0 | AO75: =VLOOKUP(DropDownList!$B$47,CntyQryCensus!$A$408:$FN$450,AO$1) -> 0 | AP75: =VLOOKUP(DropDownList!$B$47,CntyQryCensus!$A$408:$FN$450,AP$1) -> 9 | AQ75: =VLOOKUP(DropDownList!$B$47,CntyQryCensus!$A$408:$FN$450,AQ$1) -> 18 | AR75: =VLOOKUP(DropDownList!$B$47,CntyQryCensus!$A$408:$FN$450,AR$1) -> 16 | AS75: =VLOOKUP(DropDownList!$B$47,CntyQryCensus!$A$408:$FN$450,AS$1) -> 52 | AT75: =VLOOKUP(DropDownList!$B$47,CntyQryCensus!$A$408:$FN$450,AT$1) -> 193 | AU75: =VLOOKUP(DropDownList!$B$47,CntyQryCensus!$A$408:$FN$450,AU$1) -> 295 | AV75: =VLOOKUP(DropDownList!$B$47,CntyQryCensus!$A$408:$FN$450,AV$1) -> 509 | AW75: =VLOOKUP(DropDownList!$B$47,CntyQryCensus!$A$408:$FN$450,AW$1) -> 460 | AX75: =VLOOKUP(DropDownList!$B$47,CntyQryCensus!$A$408:$FN$450,AX$1) -> 221 | AY75: =VLOOKUP(DropDownList!$B$47,CntyQryCensus!$A$408:$FN$450,AY$1) -> 177 | AZ75: =VLOOKUP(DropDownList!$B$47,CntyQryCensus!$A$408:$FN$450,AZ$1) -> 23 | BA75: =VLOOKUP(DropDownList!$B$47,CntyQryCensus!$A$408:$FN$450,BA$1) -> 57 | BB75: =VLOOKUP(DropDownList!$B$47,CntyQryCensus!$A$408:$FN$450,BB$1) -> 20 | BC75: =VLOOKUP(DropDownList!$B$47,CntyQryCensus!$A$408:$FN$450,BC$1) -> 0 | BD75: =VLOOKUP(DropDownList!$B$47,CntyQryCensus!$A$408:$FN$450,BD$1) -> 196500 | BE75: =VLOOKUP(DropDownList!$B$47,CntyQryCensus!$A$408:$FN$450,BE$1) -> 1791 | BF75: =VLOOKUP(DropDownList!$B$47,CntyQryCensus!$A$408:$FN$450,BF$1) -> 1426 | BG75: =VLOOKUP(DropDownList!$B$47,CntyQryCensus!$A$408:$FN$450,BG$1) -> 0 | BH75: =VLOOKUP(DropDownList!$B$47,CntyQryCensus!$A$408:$FN$450,BH$1) -> 0 | BI75: =VLOOKUP(DropDownList!$B$47,CntyQryCensus!$A$408:$FN$450,BI$1) -> 8 | BJ75: =VLOOKUP(DropDownList!$B$47,CntyQryCensus!$A$408:$FN$450,BJ$1) -> 16 | BK75: =VLOOKUP(DropDownList!$B$47,CntyQryCensus!$A$408:$FN$450,BK$1) -> 25 | BL75: =VLOOKUP(DropDownList!$B$47,CntyQryCensus!$A$408:$FN$450,BL$1) -> 33 | BM75: =VLOOKUP(DropDownList!$B$47,CntyQryCensus!$A$408:$FN$450,BM$1) -> 26 | BN75: =VLOOKUP(DropDownList!$B$47,CntyQryCensus!$A$408:$FN$450,BN$1) -> 17 | BO75: =VLOOKUP(DropDownList!$B$47,CntyQryCensus!$A$408:$FN$450,BO$1) -> 78 | BP75: =VLOOKUP(DropDownList!$B$47,CntyQryCensus!$A$408:$FN$450,BP$1) -> 252 | BQ75: =VLOOKUP(DropDownList!$B$47,CntyQryCensus!$A$408:$FN$450,BQ$1) -> 300 | BR75: =VLOOKUP(DropDownList!$B$47,CntyQryCensus!$A$408:$FN$450,BR$1) -> 485 | BS75: =VLOOKUP(DropDownList!$B$47,CntyQryCensus!$A$408:$FN$450,BS$1) -> 149 | BT75: =VLOOKUP(DropDownList!$B$47,CntyQryCensus!$A$408:$FN$450,BT$1) -> 28 | BU75: =VLOOKUP(DropDownList!$B$47,CntyQryCensus!$A$408:$FN$450,BU$1) -> 9 | BV75: =VLOOKUP(DropDownList!$B$47,CntyQryCensus!$A$408:$FN$450,BV$1) -> 365 | BW75: =VLOOKUP(DropDownList!$B$47,CntyQryCensus!$A$408:$FN$450,BW$1) -> 0 | BX75: =VLOOKUP(DropDownList!$B$47,CntyQryCensus!$A$408:$FN$450,BX$1) -> 0 | BY75: =VLOOKUP(DropDownList!$B$47,CntyQryCensus!$A$408:$FN$450,BY$1) -> 0 | BZ75: =VLOOKUP(DropDownList!$B$47,CntyQryCensus!$A$408:$FN$450,BZ$1) -> 10 | CA75: =VLOOKUP(DropDownList!$B$47,CntyQryCensus!$A$408:$FN$450,CA$1) -> 15 | CB75: =VLOOKUP(DropDownList!$B$47,CntyQryCensus!$A$408:$FN$450,CB$1) -> 44 | CC75: =VLOOKUP(DropDownList!$B$47,CntyQryCensus!$A$408:$FN$450,CC$1) -> 31 | CD75: =VLOOKUP(DropDownList!$B$47,CntyQryCensus!$A$408:$FN$450,CD$1) -> 140 | CE75: =VLOOKUP(DropDownList!$B$47,CntyQryCensus!$A$408:$FN$450,CE$1) -> 15 | CF75: =VLOOKUP(DropDownList!$B$47,CntyQryCensus!$A$408:$FN$450,CF$1) -> 44 | CG75: =VLOOKUP(DropDownList!$B$47,CntyQryCensus!$A$408:$FN$450,CG$1) -> 41 | CH75: =VLOOKUP(DropDownList!$B$47,CntyQryCensus!$A$408:$FN$450,CH$1) -> 0 | CI75: =VLOOKUP(DropDownList!$B$47,CntyQryCensus!$A$408:$FN$450,CI$1) -> 25 | CJ75: =VLOOKUP(DropDownList!$B$47,CntyQryCensus!$A$408:$FN$450,CJ$1) -> 0 | CK75: =VLOOKUP(DropDownList!$B$47,CntyQryCensus!$A$408:$FN$450,CK$1) -> 1465 | CL75: =VLOOKUP(DropDownList!$B$47,CntyQryCensus!$A$408:$FN$450,CL$1) -> 459 | CM75: =VLOOKUP(DropDownList!$B$47,CntyQryCensus!$A$408:$FN$450,CM$1) -> 1791 | CN75: =VLOOKUP(DropDownList!$B$47,CntyQryCensus!$A$408:$FN$450,CN$1) -> 1426 | CO75: =VLOOKUP(DropDownList!$B$47,CntyQryCensus!$A$408:$FN$450,CO$1) -> 115 | CP75: =VLOOKUP(DropDownList!$B$47,CntyQryCensus!$A$408:$FN$450,CP$1) -> 225 | CQ75: =VLOOKUP(DropDownList!$B$47,CntyQryCensus!$A$408:$FN$450,CQ$1) -> 268 | CR75: =VLOOKUP(DropDownList!$B$47,CntyQryCensus!$A$408:$FN$450,CR$1) -> 236 | CS75: =VLOOKUP(DropDownList!$B$47,CntyQryCensus!$A$408:$FN$450,CS$1) -> 241 | CT75: =VLOOKUP(DropDownList!$B$47,CntyQryCensus!$A$408:$FN$450,CT$1) -> 95 | CU75: =VLOOKUP(DropDownList!$B$47,CntyQryCensus!$A$408:$FN$450,CU$1) -> 38 | CV75: =VLOOKUP(DropDownList!$B$47,CntyQryCensus!$A$408:$FN$450,CV$1) -> 94 | CW75: =VLOOKUP(DropDownList!$B$47,CntyQryCensus!$A$408:$FN$450,CW$1) -> 114 | CX75: =VLOOKUP(DropDownList!$B$47,CntyQryCensus!$A$408:$FN$450,CX$1) -> 0 | CY75: =VLOOKUP(DropDownList!$B$47,CntyQryCensus!$A$408:$FN$450,CY$1) -> 365 | CZ75: =VLOOKUP(DropDownList!$B$47,CntyQryCensus!$A$408:$FN$450,CZ$1) -> 113 | DA75: =VLOOKUP(DropDownList!$B$47,CntyQryCensus!$A$408:$FN$450,DA$1) -> 142 | DB75: =VLOOKUP(DropDownList!$B$47,CntyQryCensus!$A$408:$FN$450,DB$1) -> 10 | DC75: =VLOOKUP(DropDownList!$B$47,CntyQryCensus!$A$408:$FN$450,DC$1) -> 17 | DD75: =VLOOKUP(DropDownList!$B$47,CntyQryCensus!$A$408:$FN$450,DD$1) -> 0 | DE75: =VLOOKUP(DropDownList!$B$47,CntyQryCensus!$A$408:$FN$450,DE$1) -> 19 | DF75: =VLOOKUP(DropDownList!$B$47,CntyQryCensus!$A$408:$FN$450,DF$1) -> 0 | DG75: =VLOOKUP(DropDownList!$B$47,CntyQryCensus!$A$408:$FN$450,DG$1) -> 37 | DH75: =VLOOKUP(DropDownList!$B$47,CntyQryCensus!$A$408:$FN$450,DH$1) -> 27 | DI75: =VLOOKUP(DropDownList!$B$47,CntyQryCensus!$A$408:$FN$450,DI$1) -> 0 | DJ75: =VLOOKUP(DropDownList!$B$47,CntyQryCensus!$A$408:$FN$450,DJ$1) -> 1791 | DK75: =VLOOKUP(DropDownList!$B$47,CntyQryCensus!$A$408:$FN$450,DK$1) -> 28 | DL75: =VLOOKUP(DropDownList!$B$47,CntyQryCensus!$A$408:$FN$450,DL$1) -> 0 | DM75: =VLOOKUP(DropDownList!$B$47,CntyQryCensus!$A$408:$FN$450,DM$1) -> 0 | DN75: =VLOOKUP(DropDownList!$B$47,CntyQryCensus!$A$408:$FN$450,DN$1) -> 0 | DO75: =VLOOKUP(DropDownList!$B$47,CntyQryCensus!$A$408:$FN$450,DO$1) -> 10 | DP75: =VLOOKUP(DropDownList!$B$47,CntyQryCensus!$A$408:$FN$450,DP$1) -> 18 | DQ75: =VLOOKUP(DropDownList!$B$47,CntyQryCensus!$A$408:$FN$450,DQ$1) -> 0 | DR75: =VLOOKUP(DropDownList!$B$47,CntyQryCensus!$A$408:$FN$450,DR$1) -> 60 | DS75: =VLOOKUP(DropDownList!$B$47,CntyQryCensus!$A$408:$FN$450,DS$1) -> 0 | DT75: =VLOOKUP(DropDownList!$B$47,CntyQryCensus!$A$408:$FN$450,DT$1) -> 0 | DU75: =VLOOKUP(DropDownList!$B$47,CntyQryCensus!$A$408:$FN$450,DU$1) -> 0 | DV75: =VLOOKUP(DropDownList!$B$47,CntyQryCensus!$A$408:$FN$450,DV$1) -> 9 | DW75: =VLOOKUP(DropDownList!$B$47,CntyQryCensus!$A$408:$FN$450,DW$1) -> 51 | DX75: =VLOOKUP(DropDownList!$B$47,CntyQryCensus!$A$408:$FN$450,DX$1) -> 0 | DY75: =VLOOKUP(DropDownList!$B$47,CntyQryCensus!$A$408:$FN$450,DY$1) -> 151 | DZ75: =VLOOKUP(DropDownList!$B$47,CntyQryCensus!$A$408:$FN$450,DZ$1) -> 26 | EA75: =VLOOKUP(DropDownList!$B$47,CntyQryCensus!$A$408:$FN$450,EA$1) -> 17 | EB75: =VLOOKUP(DropDownList!$B$47,CntyQryCensus!$A$408:$FN$450,EB$1) -> 9 | EC75: =VLOOKUP(DropDownList!$B$47,CntyQryCensus!$A$408:$FN$450,EC$1) -> 0 | ED75: =VLOOKUP(DropDownList!$B$47,CntyQryCensus!$A$408:$FN$450,ED$1) -> 99 | EE75: =VLOOKUP(DropDownList!$B$47,CntyQryCensus!$A$408:$FN$450,EE$1) -> 0 | EF75: =VLOOKUP(DropDownList!$B$47,CntyQryCensus!$A$408:$FN$450,EF$1) -> 235 | EG75: =VLOOKUP(DropDownList!$B$47,CntyQryCensus!$A$408:$FN$450,EG$1) -> 79 | EH75: =VLOOKUP(DropDownList!$B$47,CntyQryCensus!$A$408:$FN$450,EH$1) -> 9 | EI75: =VLOOKUP(DropDownList!$B$47,CntyQryCensus!$A$408:$FN$450,EI$1) -> 29 | EJ75: =VLOOKUP(DropDownList!$B$47,CntyQryCensus!$A$408:$FN$450,EJ$1) -> 24 | EK75: =VLOOKUP(DropDownList!$B$47,CntyQryCensus!$A$408:$FN$450,EK$1) -> 94 | EL75: =VLOOKUP(DropDownList!$B$47,CntyQryCensus!$A$408:$FN$450,EL$1) -> 0 | EM75: =VLOOKUP(DropDownList!$B$47,CntyQryCensus!$A$408:$FN$450,EM$1) -> 444 | EN75: =VLOOKUP(DropDownList!$B$47,CntyQryCensus!$A$408:$FN$450,EN$1) -> 135 | EO75: =VLOOKUP(DropDownList!$B$47,CntyQryCensus!$A$408:$FN$450,EO$1) -> 72 | EP75: =VLOOKUP(DropDownList!$B$47,CntyQryCensus!$A$408:$FN$450,EP$1) -> 135 | EQ75: =VLOOKUP(DropDownList!$B$47,CntyQryCensus!$A$408:$FN$450,EQ$1) -> 62 | ER75: =VLOOKUP(DropDownList!$B$47,CntyQryCensus!$A$408:$FN$450,ER$1) -> 40 | ES75: =VLOOKUP(DropDownList!$B$47,CntyQryCensus!$A$408:$FN$450,ES$1) -> 0 | ET75: =VLOOKUP(DropDownList!$B$47,CntyQryCensus!$A$408:$FN$450,ET$1) -> 315 | EU75: =VLOOKUP(DropDownList!$B$47,CntyQryCensus!$A$408:$FN$450,EU$1) -> 149 | EV75: =VLOOKUP(DropDownList!$B$47,CntyQryCensus!$A$408:$FN$450,EV$1) -> 110 | EW75: =VLOOKUP(DropDownList!$B$47,CntyQryCensus!$A$408:$FN$450,EW$1) -> 39 | EX75: =VLOOKUP(DropDownList!$B$47,CntyQryCensus!$A$408:$FN$450,EX$1) -> 9 | EY75: =VLOOKUP(DropDownList!$B$47,CntyQryCensus!$A$408:$FN$450,EY$1) -> 8 | EZ75: =VLOOKUP(DropDownList!$B$47,CntyQryCensus!$A$408:$FN$450,EZ$1) -> 0 | FA75: =VLOOKUP(DropDownList!$B$47,CntyQryCensus!$A$408:$FN$450,FA$1) -> 362 | FB75: =VLOOKUP(DropDownList!$B$47,CntyQryCensus!$A$408:$FN$450,FB$1) -> 288 | FC75: =VLOOKUP(DropDownList!$B$47,CntyQryCensus!$A$408:$FN$450,FC$1) -> 45 | FD75: =VLOOKUP(DropDownList!$B$47,CntyQryCensus!$A$408:$FN$450,FD$1) -> 29 | FE75: =VLOOKUP(DropDownList!$B$47,CntyQryCensus!$A$408:$FN$450,FE$1) -> 0 | FF75: =VLOOKUP(DropDownList!$B$47,CntyQryCensus!$A$408:$FN$450,FF$1) -> 0 | FG75: =VLOOKUP(DropDownList!$B$47,CntyQryCensus!$A$408:$FN$450,FG$1) -> 0 | FH75: =VLOOKUP(DropDownList!$B$47,CntyQryCensus!$A$408:$FN$450,FH$1) -> 196 | FI75: =VLOOKUP(DropDownList!$B$47,CntyQryCensus!$A$408:$FN$450,FI$1) -> 196 | FJ75: =VLOOKUP(DropDownList!$B$47,CntyQryCensus!$A$408:$FN$450,FJ$1) -> 0 | FK75: =VLOOKUP(DropDownList!$B$47,CntyQryCensus!$A$408:$FN$450,FK$1) -> 0 | FL75: =VLOOKUP(DropDownList!$B$47,CntyQryCensus!$A$408:$FN$450,FL$1) -> 0 | FM75: =VLOOKUP(DropDownList!$B$47,CntyQryCensus!$A$408:$FN$450,FM$1) -> 0 | FN75: =VLOOKUP(DropDownList!$B$47,CntyQryCensus!$A$408:$FN$450,FN$1) -> 0
A78: Census 2000 SummaryFile3 Sample Data - SF3TownQry9HHIncomeByTenure
A79: NAME | B79: LOGRECNO | C79: COUNTY | D79: TotalPop | E79: HCT11OccHU | F79: HCT11OwnOccHU | G79: HCT11OOHUInc<5K | H79: HCT11OOHUInc5to10K | I79: HCT11OOHUInc10to15K | J79: HCT11OOHUInc15to20K | K79: HCT11OOHUInc20to25K | L79: HCT11OOHUInc25to35K | M79: HCT11OOHUInc35to50K | N79: HCT11OOHUInc50to75K | O79: HCT11OOHUInc75to100K | P79: HCT11OOHUInc100to150K | Q79: HCT11OOHUInc>150K | R79: HCT11RentOccHU | S79: HCT11ROHUInc<5K | T79: HCT11ROHUInc5to10K | U79: HCT11ROHUInc10to15K | V79: HCT11ROHUInc15to20K | W79: HCT11ROHUInc20to25K | X79: HCT11ROHUInc25to35K | Y79: HCT11ROHUInc35to50K | Z79: HCT11ROHUInc50to75K | AA79: HCT11ROHUInc75to100K | AB79: HCT11ROHUInc100to150K | AC79: HCT11ROHUInc>150K | AD79: HCT12MedHHInc | AE79: HCT12MedOwnOccHHInc | AF79: HCT12MedRentOccHHInc | AG79: Summary Level
A80: =VLOOKUP(DropDownList!$B$47,CntyQryCensus!$A$459:$AG$501,A$1) -> Atkinson | B80: =VLOOKUP(DropDownList!$B$47,CntyQryCensus!$A$459:$AG$501,B$1) -> 0003039 | C80: =VLOOKUP(DropDownList!$B$47,CntyQryCensus!$A$459:$AG$501,C$1) -> 02340 | D80: =VLOOKUP(DropDownList!$B$47,CntyQryCensus!$A$459:$AG$501,D$1) -> Atkinson town | E80: =VLOOKUP(DropDownList!$B$47,CntyQryCensus!$A$459:$AG$501,E$1) -> 015 | F80: =VLOOKUP(DropDownList!$B$47,CntyQryCensus!$A$459:$AG$501,F$1) -> 6178 | G80: =VLOOKUP(DropDownList!$B$47,CntyQryCensus!$A$459:$AG$501,G$1) -> 2317 | H80: =VLOOKUP(DropDownList!$B$47,CntyQryCensus!$A$459:$AG$501,H$1) -> 2060 | I80: =VLOOKUP(DropDownList!$B$47,CntyQryCensus!$A$459:$AG$501,I$1) -> 9 | J80: =VLOOKUP(DropDownList!$B$47,CntyQryCensus!$A$459:$AG$501,J$1) -> 28 | K80: =VLOOKUP(DropDownList!$B$47,CntyQryCensus!$A$459:$AG$501,K$1) -> 60 | L80: =VLOOKUP(DropDownList!$B$47,CntyQryCensus!$A$459:$AG$501,L$1) -> 9 | M80: =VLOOKUP(DropDownList!$B$47,CntyQryCensus!$A$459:$AG$501,M$1) -> 44 | N80: =VLOOKUP(DropDownList!$B$47,CntyQryCensus!$A$459:$AG$501,N$1) -> 107 | O80: =VLOOKUP(DropDownList!$B$47,CntyQryCensus!$A$459:$AG$501,O$1) -> 307 | P80: =VLOOKUP(DropDownList!$B$47,CntyQryCensus!$A$459:$AG$501,P$1) -> 471 | Q80: =VLOOKUP(DropDownList!$B$47,CntyQryCensus!$A$459:$AG$501,Q$1) -> 382 | R80: =VLOOKUP(DropDownList!$B$47,CntyQryCensus!$A$459:$AG$501,R$1) -> 423 | S80: =VLOOKUP(DropDownList!$B$47,CntyQryCensus!$A$459:$AG$501,S$1) -> 220 | T80: =VLOOKUP(DropDownList!$B$47,CntyQryCensus!$A$459:$AG$501,T$1) -> 257 | U80: =VLOOKUP(DropDownList!$B$47,CntyQryCensus!$A$459:$AG$501,U$1) -> 20 | V80: =VLOOKUP(DropDownList!$B$47,CntyQryCensus!$A$459:$AG$501,V$1) -> 28 | W80: =VLOOKUP(DropDownList!$B$47,CntyQryCensus!$A$459:$AG$501,W$1) -> 19 | X80: =VLOOKUP(DropDownList!$B$47,CntyQryCensus!$A$459:$AG$501,X$1) -> 29 | Y80: =VLOOKUP(DropDownList!$B$47,CntyQryCensus!$A$459:$AG$501,Y$1) -> 48 | Z80: =VLOOKUP(DropDownList!$B$47,CntyQryCensus!$A$459:$AG$501,Z$1) -> 19 | AA80: =VLOOKUP(DropDownList!$B$47,CntyQryCensus!$A$459:$AG$501,AA$1) -> 37 | AB80: =VLOOKUP(DropDownList!$B$47,CntyQryCensus!$A$459:$AG$501,AB$1) -> 16 | AC80: =VLOOKUP(DropDownList!$B$47,CntyQryCensus!$A$459:$AG$501,AC$1) -> 6 | AD80: =VLOOKUP(DropDownList!$B$47,CntyQryCensus!$A$459:$AG$501,AD$1) -> 27 | AE80: =VLOOKUP(DropDownList!$B$47,CntyQryCensus!$A$459:$AG$501,AE$1) -> 8 | AF80: =VLOOKUP(DropDownList!$B$47,CntyQryCensus!$A$459:$AG$501,AF$1) -> 69552 | AG80: =VLOOKUP(DropDownList!$B$47,CntyQryCensus!$A$459:$AG$501,AG$1) -> 74716
A86: =A80 -> Atkinson
A94: Census 2000 SummaryFile3 Sample Data - SF3TownQry10Disabil
A95: NAME | B95: LOGRECNO | C95: COUNTY | D95: TotalPop | E95: PCT026001-NonInstPop5yrs+ | F95: PCT026002-MaleNonInstPop5yrs+ | G95: PCT026003 | H95: PCT026004 | I95: PCT026005 | J95: PCT026006 | K95: PCT026007 | L95: PCT026008 | M95: PCT026009 | N95: PCT026010 | O95: PCT026011 | P95: PCT026012 | Q95: PCT026013 | R95: PCT026014 | S95: PCT026015 | T95: PCT026016 | U95: PCT026017 | V95: PCT026018 | W95: PCT026019 | X95: PCT026020 | Y95: PCT026021 | Z95: PCT026022 | AA95: PCT026023 | AB95: PCT026024 | AC95: PCT026025 | AD95: PCT026026 | AE95: PCT026027 | AF95: PCT026028 | AG95: PCT026029 | AH95: PCT026030 | AI95: PCT026031 | AJ95: PCT026032 | AK95: PCT026033 | AL95: PCT026034 | AM95: PCT026035 | AN95: PCT026036 | AO95: PCT026037 | AP95: PCT026038 | AQ95: PCT026039 | AR95: PCT026040 | AS95: PCT026041 | AT95: PCT026042 | AU95: PCT026043 | AV95: PCT026044 | AW95: PCT026045 | AX95: PCT026046 | AY95: PCT026047 | AZ95: PCT026048 | BA95: PCT026049 | BB95: PCT026050 | BC95: PCT026051 | BD95: PCT026052 | BE95: PCT026053 | BF95: PCT026054 | BG95: PCT026055 | BH95: PCT026056 | BI95: PCT026057 | BJ95: PCT026058 | BK95: PCT026059 | BL95: PCT026060 | BM95: PCT026061 | BN95: PCT026062 | BO95: PCT026063 | BP95: PCT026064 | BQ95: PCT026065 | BR95: PCT026066 | BS95: PCT026067 | BT95: PCT026068 | BU95: PCT026069 | BV95: PCT026070 | BW95: PCT026071 | BX95: PCT026072 | BY95: PCT026073 | BZ95: PCT026074 | CA95: PCT026075 | CB95: PCT026076 | CC95: PCT026077 | CD95: PCT026078 | CE95: PCT026079 | CF95: PCT026080 | CG95: PCT026081 | CH95: PCT026082 | CI95: PCT026083 | CJ95: PCT026084 | CK95: PCT026085 | CL95: PCT026086 | CM95: PCT026087 | CN95: PCT026088 | CO95: PCT026089 | CP95: PCT026090 | CQ95: PCT026091 | CR95: PCT026092 | CS95: PCT026093 | CT95: PCT026094 | CU95: PCT026095 | CV95: PCT026096 | CW95: PCT026097 | CX95: PCT026098 | CY95: PCT026099 | CZ95: PCT026100 | DA95: PCT026101
A96: =VLOOKUP(DropDownList!$B$47,CntyQryCensus!$A$54:$DA$90,A$1) -> Atkinson | B96: =VLOOKUP(DropDownList!$B$47,CntyQryCensus!$A$510:$DA$552,B$1) -> 0003039 | C96: =VLOOKUP(DropDownList!$B$47,CntyQryCensus!$A$510:$DA$552,C$1) -> 02340 | D96: =VLOOKUP(DropDownList!$B$47,CntyQryCensus!$A$510:$DA$552,D$1) -> 6178 | E96: =VLOOKUP(DropDownList!$B$47,CntyQryCensus!$A$510:$DA$552,E$1) -> 5767 | F96: =VLOOKUP(DropDownList!$B$47,CntyQryCensus!$A$510:$DA$552,F$1) -> 2833 | G96: =VLOOKUP(DropDownList!$B$47,CntyQryCensus!$A$510:$DA$552,G$1) -> 434 | H96: =VLOOKUP(DropDownList!$B$47,CntyQryCensus!$A$510:$DA$552,H$1) -> 9 | I96: =VLOOKUP(DropDownList!$B$47,CntyQryCensus!$A$510:$DA$552,I$1) -> 0 | J96: =VLOOKUP(DropDownList!$B$47,CntyQryCensus!$A$510:$DA$552,J$1) -> 0 | K96: =VLOOKUP(DropDownList!$B$47,CntyQryCensus!$A$510:$DA$552,K$1) -> 9 | L96: =VLOOKUP(DropDownList!$B$47,CntyQryCensus!$A$510:$DA$552,L$1) -> 0 | M96: =VLOOKUP(DropDownList!$B$47,CntyQryCensus!$A$510:$DA$552,M$1) -> 10 | N96: =VLOOKUP(DropDownList!$B$47,CntyQryCensus!$A$510:$DA$552,N$1) -> 10 | O96: =VLOOKUP(DropDownList!$B$47,CntyQryCensus!$A$510:$DA$552,O$1) -> 0 | P96: =VLOOKUP(DropDownList!$B$47,CntyQryCensus!$A$510:$DA$552,P$1) -> 415 | Q96: =VLOOKUP(DropDownList!$B$47,CntyQryCensus!$A$510:$DA$552,Q$1) -> 173 | R96: =VLOOKUP(DropDownList!$B$47,CntyQryCensus!$A$510:$DA$552,R$1) -> 20 | S96: =VLOOKUP(DropDownList!$B$47,CntyQryCensus!$A$510:$DA$552,S$1) -> 0 | T96: =VLOOKUP(DropDownList!$B$47,CntyQryCensus!$A$510:$DA$552,T$1) -> 10 | U96: =VLOOKUP(DropDownList!$B$47,CntyQryCensus!$A$510:$DA$552,U$1) -> 0 | V96: =VLOOKUP(DropDownList!$B$47,CntyQryCensus!$A$510:$DA$552,V$1) -> 0 | W96: =VLOOKUP(DropDownList!$B$47,CntyQryCensus!$A$510:$DA$552,W$1) -> 0 | X96: =VLOOKUP(DropDownList!$B$47,CntyQryCensus!$A$510:$DA$552,X$1) -> 10 | Y96: =VLOOKUP(DropDownList!$B$47,CntyQryCensus!$A$510:$DA$552,Y$1) -> 6 | Z96: =VLOOKUP(DropDownList!$B$47,CntyQryCensus!$A$510:$DA$552,Z$1) -> 0 | AA96: =VLOOKUP(DropDownList!$B$47,CntyQryCensus!$A$510:$DA$552,AA$1) -> 6 | AB96: =VLOOKUP(DropDownList!$B$47,CntyQryCensus!$A$510:$DA$552,AB$1) -> 0 | AC96: =VLOOKUP(DropDownList!$B$47,CntyQryCensus!$A$510:$DA$552,AC$1) -> 6 | AD96: =VLOOKUP(DropDownList!$B$47,CntyQryCensus!$A$510:$DA$552,AD$1) -> 147 | AE96: =VLOOKUP(DropDownList!$B$47,CntyQryCensus!$A$510:$DA$552,AE$1) -> 1891 | AF96: =VLOOKUP(DropDownList!$B$47,CntyQryCensus!$A$510:$DA$552,AF$1) -> 233 | AG96: =VLOOKUP(DropDownList!$B$47,CntyQryCensus!$A$510:$DA$552,AG$1) -> 43 | AH96: =VLOOKUP(DropDownList!$B$47,CntyQryCensus!$A$510:$DA$552,AH$1) -> 13 | AI96: =VLOOKUP(DropDownList!$B$47,CntyQryCensus!$A$510:$DA$552,AI$1) -> 33 | AJ96: =VLOOKUP(DropDownList!$B$47,CntyQryCensus!$A$510:$DA$552,AJ$1) -> 0 | AK96: =VLOOKUP(DropDownList!$B$47,CntyQryCensus!$A$510:$DA$552,AK$1) -> 0 | AL96: =VLOOKUP(DropDownList!$B$47,CntyQryCensus!$A$510:$DA$552,AL$1) -> 144 | AM96: =VLOOKUP(DropDownList!$B$47,CntyQryCensus!$A$510:$DA$552,AM$1) -> 64 | AN96: =VLOOKUP(DropDownList!$B$47,CntyQryCensus!$A$510:$DA$552,AN$1) -> 14 | AO96: =VLOOKUP(DropDownList!$B$47,CntyQryCensus!$A$510:$DA$552,AO$1) -> 50 | AP96: =VLOOKUP(DropDownList!$B$47,CntyQryCensus!$A$510:$DA$552,AP$1) -> 27 | AQ96: =VLOOKUP(DropDownList!$B$47,CntyQryCensus!$A$510:$DA$552,AQ$1) -> 23 | AR96: =VLOOKUP(DropDownList!$B$47,CntyQryCensus!$A$510:$DA$552,AR$1) -> 1594 | AS96: =VLOOKUP(DropDownList!$B$47,CntyQryCensus!$A$510:$DA$552,AS$1) -> 335 | AT96: =VLOOKUP(DropDownList!$B$47,CntyQryCensus!$A$510:$DA$552,AT$1) -> 79 | AU96: =VLOOKUP(DropDownList!$B$47,CntyQryCensus!$A$510:$DA$552,AU$1) -> 51 | AV96: =VLOOKUP(DropDownList!$B$47,CntyQryCensus!$A$510:$DA$552,AV$1) -> 19 | AW96: =VLOOKUP(DropDownList!$B$47,CntyQryCensus!$A$510:$DA$552,AW$1) -> 9 | AX96: =VLOOKUP(DropDownList!$B$47,CntyQryCensus!$A$510:$DA$552,AX$1) -> 0 | AY96: =VLOOKUP(DropDownList!$B$47,CntyQryCensus!$A$510:$DA$552,AY$1) -> 0 | AZ96: =VLOOKUP(DropDownList!$B$47,CntyQryCensus!$A$510:$DA$552,AZ$1) -> 15 | BA96: =VLOOKUP(DropDownList!$B$47,CntyQryCensus!$A$510:$DA$552,BA$1) -> 0 | BB96: =VLOOKUP(DropDownList!$B$47,CntyQryCensus!$A$510:$DA$552,BB$1) -> 15 | BC96: =VLOOKUP(DropDownList!$B$47,CntyQryCensus!$A$510:$DA$552,BC$1) -> 241 | BD96: =VLOOKUP(DropDownList!$B$47,CntyQryCensus!$A$510:$DA$552,BD$1) -> 2934 | BE96: =VLOOKUP(DropDownList!$B$47,CntyQryCensus!$A$510:$DA$552,BE$1) -> 531 | BF96: =VLOOKUP(DropDownList!$B$47,CntyQryCensus!$A$510:$DA$552,BF$1) -> 0 | BG96: =VLOOKUP(DropDownList!$B$47,CntyQryCensus!$A$510:$DA$552,BG$1) -> 0 | BH96: =VLOOKUP(DropDownList!$B$47,CntyQryCensus!$A$510:$DA$552,BH$1) -> 0 | BI96: =VLOOKUP(DropDownList!$B$47,CntyQryCensus!$A$510:$DA$552,BI$1) -> 0 | BJ96: =VLOOKUP(DropDownList!$B$47,CntyQryCensus!$A$510:$DA$552,BJ$1) -> 0 | BK96: =VLOOKUP(DropDownList!$B$47,CntyQryCensus!$A$510:$DA$552,BK$1) -> 8 | BL96: =VLOOKUP(DropDownList!$B$47,CntyQryCensus!$A$510:$DA$552,BL$1) -> 8 | BM96: =VLOOKUP(DropDownList!$B$47,CntyQryCensus!$A$510:$DA$552,BM$1) -> 0 | BN96: =VLOOKUP(DropDownList!$B$47,CntyQryCensus!$A$510:$DA$552,BN$1) -> 523 | BO96: =VLOOKUP(DropDownList!$B$47,CntyQryCensus!$A$510:$DA$552,BO$1) -> 124 | BP96: =VLOOKUP(DropDownList!$B$47,CntyQryCensus!$A$510:$DA$552,BP$1) -> 7 | BQ96: =VLOOKUP(DropDownList!$B$47,CntyQryCensus!$A$510:$DA$552,BQ$1) -> 0 | BR96: =VLOOKUP(DropDownList!$B$47,CntyQryCensus!$A$510:$DA$552,BR$1) -> 0 | BS96: =VLOOKUP(DropDownList!$B$47,CntyQryCensus!$A$510:$DA$552,BS$1) -> 0 | BT96: =VLOOKUP(DropDownList!$B$47,CntyQryCensus!$A$510:$DA$552,BT$1) -> 0 | BU96: =VLOOKUP(DropDownList!$B$47,CntyQryCensus!$A$510:$DA$552,BU$1) -> 0 | BV96: =VLOOKUP(DropDownList!$B$47,CntyQryCensus!$A$510:$DA$552,BV$1) -> 7 | BW96: =VLOOKUP(DropDownList!$B$47,CntyQryCensus!$A$510:$DA$552,BW$1) -> 0 | BX96: =VLOOKUP(DropDownList!$B$47,CntyQryCensus!$A$510:$DA$552,BX$1) -> 0 | BY96: =VLOOKUP(DropDownList!$B$47,CntyQryCensus!$A$510:$DA$552,BY$1) -> 0 | BZ96: =VLOOKUP(DropDownList!$B$47,CntyQryCensus!$A$510:$DA$552,BZ$1) -> 0 | CA96: =VLOOKUP(DropDownList!$B$47,CntyQryCensus!$A$510:$DA$552,CA$1) -> 0 | CB96: =VLOOKUP(DropDownList!$B$47,CntyQryCensus!$A$510:$DA$552,CB$1) -> 117 | CC96: =VLOOKUP(DropDownList!$B$47,CntyQryCensus!$A$510:$DA$552,CC$1) -> 1917 | CD96: =VLOOKUP(DropDownList!$B$47,CntyQryCensus!$A$510:$DA$552,CD$1) -> 150 | CE96: =VLOOKUP(DropDownList!$B$47,CntyQryCensus!$A$510:$DA$552,CE$1) -> 7 | CF96: =VLOOKUP(DropDownList!$B$47,CntyQryCensus!$A$510:$DA$552,CF$1) -> 16 | CG96: =VLOOKUP(DropDownList!$B$47,CntyQryCensus!$A$510:$DA$552,CG$1) -> 0 | CH96: =VLOOKUP(DropDownList!$B$47,CntyQryCensus!$A$510:$DA$552,CH$1) -> 7 | CI96: =VLOOKUP(DropDownList!$B$47,CntyQryCensus!$A$510:$DA$552,CI$1) -> 16 | CJ96: =VLOOKUP(DropDownList!$B$47,CntyQryCensus!$A$510:$DA$552,CJ$1) -> 104 | CK96: =VLOOKUP(DropDownList!$B$47,CntyQryCensus!$A$510:$DA$552,CK$1) -> 66 | CL96: =VLOOKUP(DropDownList!$B$47,CntyQryCensus!$A$510:$DA$552,CL$1) -> 26 | CM96: =VLOOKUP(DropDownList!$B$47,CntyQryCensus!$A$510:$DA$552,CM$1) -> 40 | CN96: =VLOOKUP(DropDownList!$B$47,CntyQryCensus!$A$510:$DA$552,CN$1) -> 7 | CO96: =VLOOKUP(DropDownList!$B$47,CntyQryCensus!$A$510:$DA$552,CO$1) -> 33 | CP96: =VLOOKUP(DropDownList!$B$47,CntyQryCensus!$A$510:$DA$552,CP$1) -> 1701 | CQ96: =VLOOKUP(DropDownList!$B$47,CntyQryCensus!$A$510:$DA$552,CQ$1) -> 362 | CR96: =VLOOKUP(DropDownList!$B$47,CntyQryCensus!$A$510:$DA$552,CR$1) -> 16 | CS96: =VLOOKUP(DropDownList!$B$47,CntyQryCensus!$A$510:$DA$552,CS$1) -> 7 | CT96: =VLOOKUP(DropDownList!$B$47,CntyQryCensus!$A$510:$DA$552,CT$1) -> 9 | CU96: =VLOOKUP(DropDownList!$B$47,CntyQryCensus!$A$510:$DA$552,CU$1) -> 0 | CV96: =VLOOKUP(DropDownList!$B$47,CntyQryCensus!$A$510:$DA$552,CV$1) -> 0 | CW96: =VLOOKUP(DropDownList!$B$47,CntyQryCensus!$A$510:$DA$552,CW$1) -> 0 | CX96: =VLOOKUP(DropDownList!$B$47,CntyQryCensus!$A$510:$DA$552,CX$1) -> 63 | CY96: =VLOOKUP(DropDownList!$B$47,CntyQryCensus!$A$510:$DA$552,CY$1) -> 19 | CZ96: =VLOOKUP(DropDownList!$B$47,CntyQryCensus!$A$510:$DA$552,CZ$1) -> 44 | DA96: =VLOOKUP(DropDownList!$B$47,CntyQryCensus!$A$510:$DA$552,DA$1) -> 283
A105: ACS | B105: 2 | C105: =B105+1 -> 3 | D105: =C105+1 -> 4 | E105: 5 | F105: 6 | G105: 7 | H105: 8 | I105: 9 | J105: 10 | K105: 11 | L105: =K105+1 -> 12 | M105: 13 | N105: 14 | O105: 15 | P105: =O105+1 -> 16 | Q105: 17 | R105: 18 | S105: 19 | T105: 20 | U105: 21 | V105: 22 | W105: 23 | X105: 24 | Y105: 25 | Z105: 26 | AA105: 27 | AB105: 28 | AC105: 29 | AD105: 30 | AE105: 31 | AF105: 32 | AG105: 33 | AH105: 34 | AI105: 35 | AJ105: 36 | AK105: 37 | AL105: 38 | AM105: 39 | AN105: 40 | AO105: 41 | AP105: 42 | AQ105: 43 | AR105: 44 | AS105: 45 | AT105: 46 | AU105: 47 | AV105: 48 | AW105: 49 | AX105: 50 | AY105: 51 | AZ105: 52 | BA105: 53 | BB105: 54 | BC105: 55 | BD105: 56 | BE105: 57 | BF105: 58 | BG105: 59 | BH105: 60 | BI105: 61 | BJ105: 62 | BK105: 63 | BL105: 64 | BM105: 65 | BN105: 66 | BO105: 67 | BP105: =BO105+1 -> 68 | BQ105: 69 | BR105: 70 | BS105: 71 | BT105: 72 | BU105: 73 | BV105: 74 | BW105: 75 | BX105: 76 | BY105: 77 | BZ105: 78 | CA105: 79 | CB105: 80 | CC105: 81 | CD105: 82 | CE105: 83 | CF105: 84 | CG105: 85 | CH105: 86 | CI105: 87 | CJ105: 88 | CK105: 89 | CL105: 90 | CM105: 91 | CN105: 92 | CO105: 93 | CP105: 94 | CQ105: 95 | CR105: 96 | CS105: 97 | CT105: 98 | CU105: 99 | CV105: 100 | CW105: 101 | CX105: 102 | CY105: 103 | CZ105: 104 | DA105: 105 | DB105: 106 | DC105: 107 | DD105: 108 | DE105: 109 | DF105: 110 | DG105: 111 | DH105: 112 | DI105: 113 | DJ105: 114 | DK105: 115 | DL105: 116 | DM105: 117 | DN105: 118 | DO105: 119 | DP105: 120 | DQ105: 121 | DR105: 122 | DS105: 123 | DT105: 124 | DU105: 125
A106: Househould Data (Housing Unit Type)
A107: NAME | B107: TotalHU | C107: ="MOE "&B107 -> MOE TotalHU | D107: TotalOccHU | E107: ="MOE "&D107 -> MOE TotalOccHU | F107: TotalOwnerOccUn | G107: ="MOE "&F107 -> MOE TotalOwnerOccUn | H107: TotalRenterOccn | I107: ="MOE "&H107 -> MOE TotalRenterOccn | J107: TotalVacantUntis | K107: ="MOE "&J107 -> MOE TotalVacantUntis | L107: VacantUnitsForRent | M107: ="MOE "&L107 -> MOE VacantUnitsForRent | N107: VacantUnitRentedNotOcc | O107: ="MOE "&N107 -> MOE VacantUnitRentedNotOcc | P107: VacantUnitForSale | Q107: ="MOE "&P107 -> MOE VacantUnitForSale | R107: VacantUnitSoldNotOcc | S107: ="MOE "&R107 -> MOE VacantUnitSoldNotOcc | T107: VacantUnitSeasonalRec | U107: ="MOE "&T107 -> MOE VacantUnitSeasonalRec | V107: TotalPopInHousingUnits | W107: ="MOE "&V107 -> MOE TotalPopInHousingUnits | X107: OwnerOccPopHousingUnits | Y107: ="MOE "&X107 -> MOE OwnerOccPopHousingUnits | Z107: RenterOccPopHousingUnits | AA107: ="MOE "&Z107 -> MOE RenterOccPopHousingUnits | AB107: TotalUntis | AC107: ="MOE "&AB107 -> MOE TotalUntis | AD107: TotalOwnerOccUnits | AE107: ="MOE "&AD107 -> MOE TotalOwnerOccUnits | AF107: SigFamOwnerOcc | AG107: ="MOE "&AF107 -> MOE SigFamOwnerOcc | AH107: MultiFamOwnerOcc | AI107: ="MOE "&AH107 -> MOE MultiFamOwnerOcc | AJ107: MobileOwnerOcc | AK107: ="MOE "&AJ107 -> MOE MobileOwnerOcc | AL107: TotalRenterOccUnits | AM107: ="MOE "&AL107 -> MOE TotalRenterOccUnits | AN107: SigFamRenterOcc | AO107: ="MOE "&AN107 -> MOE SigFamRenterOcc | AP107: MultiFamRenterOcc | AQ107: ="MOE "&AP107 -> MOE MultiFamRenterOcc | AR107: MobileRenterOcc | AS107: ="MOE "&AR107 -> MOE MobileRenterOcc | AT107: TotalSigFamilyUnits | AU107: ="MOE "&AT107 -> MOE TotalSigFamilyUnits | AV107: TotalMultiFamilyUnits | AW107: ="MOE "&AV107 -> MOE TotalMultiFamilyUnits | AX107: TotalMobileUnits | AY107: ="MOE "&AX107 -> MOE TotalMobileUnits | AZ107: YrHouseBuilt2014Later | BA107: ="MOE "&AZ107 -> MOE YrHouseBuilt2014Later | BB107: YrHouseBuilt2010-2013 | BC107: ="MOE "&BB107 -> MOE YrHouseBuilt2010-2013 | BD107: YrHouseBuilt2000-2009 | BE107: ="MOE "&BD107 -> MOE YrHouseBuilt2000-2009 | BF107: YrHouseBuilt1990-1999 | BG107: ="MOE "&BF107 -> MOE YrHouseBuilt1990-1999 | BH107: YrHouseBuilt1980-1989 | BI107: ="MOE "&BH107 -> MOE YrHouseBuilt1980-1989 | BJ107: YrHouseBuilt1970-1979 | BK107: ="MOE "&BJ107 -> MOE YrHouseBuilt1970-1979 | BL107: YrHouseBuilt1960-1969 | BM107: ="MOE "&BL107 -> MOE YrHouseBuilt1960-1969 | BN107: YrHouseBuilt1950-1959 | BO107: ="MOE "&BN107 -> MOE YrHouseBuilt1950-1959 | BP107: YrHouseBuilt1940-1949 | BQ107: ="MOE "&BP107 -> MOE YrHouseBuilt1940-1949 | BR107: YrHouseBuilt1939orEarlier | BS107: ="MOE "&BR107 -> MOE YrHouseBuilt1939orEarlier | BT107: NoBedrooms | BU107: ="MOE "&BT107 -> MOE NoBedrooms | BV107: 1Bedroom | BW107: ="MOE "&BV107 -> MOE 1Bedroom | BX107: 2Bedroom | BY107: ="MOE "&BX107 -> MOE 2Bedroom | BZ107: 3Bedroom | CA107: ="MOE "&BZ107 -> MOE 3Bedroom | CB107: 4+Bedroom | CC107: ="MOE "&CB107 -> MOE 4+Bedroom
A108: =VLOOKUP(DropDownList!$B$47,CntyQryCensus!$A$510:$DA$546,A$1) -> Atkinson | B108: 2899 | C108: 199 | D108: 2745 | E108: 185 | F108: 2551 | G108: 169 | H108: 194 | I108: 106 | J108: 154 | K108: 101 | L108: 0 | M108: 16 | N108: 0 | O108: 16 | P108: 0 | Q108: 16 | R108: 0 | S108: 16 | T108: 78 | U108: 73 | V108: 6952 | W108: 33 | X108: 6688 | Y108: 165 | Z108: 264 | AA108: 160 | AB108: 2745 | AC108: 185 | AD108: 2551 | AE108: 169 | AF108: 2087 | AG108: 162 | AH108: 464 | AI108: 124.5552086 | AJ108: 0 | AK108: 22.627417 | AL108: 194 | AM108: 106 | AN108: 18 | AO108: 29 | AP108: 176 | AQ108: 130.1038047 | AR108: 0 | AS108: 22.627417 | AT108: 2259 | AU108: 187 | AV108: 640 | AW108: 184.596858 | AX108: 0 | AY108: 22.627417 | AZ108: 81 | BA108: 66 | BB108: 37 | BC108: 41 | BD108: 335 | BE108: 112 | BF108: 521 | BG108: 177 | BH108: 536 | BI108: 137 | BJ108: 571 | BK108: 165 | BL108: 432 | BM108: 128 | BN108: 167 | BO108: 113 | BP108: 18 | BQ108: 28 | BR108: 201 | BS108: 104 | BT108: 40 | BU108: 39 | BV108: 136 | BW108: 80 | BX108: 529 | BY108: 140 | BZ108: 1352 | CA108: 223 | CB108: 842 | CC108: 203.3937069 | CD108: 81 | CE108: 79 | CF108: 36 | CG108: 74 | CH108: 28 | CI108: 76 | CJ108: 114 | CK108: 30 | CL108: 114 | CM108: 142 | CN108: 91 | CO108: 44 | CP108: 40 | CQ108: 134 | CR108: 119 | CS108: 76 | CT108: 105 | CU108: 14 | CV108: 132 | CW108: 142 | CX108: 84 | CY108: 108 | CZ108: 151 | DA108: 154 | DB108: 137 | DC108: 30 | DD108: 701 | DE108: 207.1038387 | DF108: 300 | DG108: 141.0141837 | DH108: 207.2751794 | DI108: 197.813043
A110: Disability Data
A111: NAME | B111: TotalPop | C111: ="MOE "&B111 -> MOE TotalPop | D111: PopUnder 5 years: | E111: ="MOE "&D111 -> MOE PopUnder 5 years: | F111: =D$111&"-WithDisability" -> PopUnder 5 years:-WithDisability | G111: ="MOE "&F111 -> MOE PopUnder 5 years:-WithDisability | H111: =D111&"-NoDisability" -> PopUnder 5 years:-NoDisability | I111: ="MOE "&H111 -> MOE PopUnder 5 years:-NoDisability | J111: PopUnder 5 to 17years: | K111: ="MOE "&J111 -> MOE PopUnder 5 to 17years: | L111: =J$111&"-WithDisability" -> PopUnder 5 to 17years:-WithDisability | M111: ="MOE "&L111 -> MOE PopUnder 5 to 17years:-WithDisability | N111: =J111&"-NoDisability" -> PopUnder 5 to 17years:-NoDisability | O111: ="MOE "&N111 -> MOE PopUnder 5 to 17years:-NoDisability | P111: PopUnder 18 to 34 years: | Q111: ="MOE "&P111 -> MOE PopUnder 18 to 34 years: | R111: =P$111&"-WithDisability" -> PopUnder 18 to 34 years:-WithDisability | S111: ="MOE "&R111 -> MOE PopUnder 18 to 34 years:-WithDisability | T111: =P111&"-NoDisability" -> PopUnder 18 to 34 years:-NoDisability | U111: ="MOE "&T111 -> MOE PopUnder 18 to 34 years:-NoDisability | V111: Pop 35 years to 64: | W111: ="MOE "&V111 -> MOE Pop 35 years to 64: | X111: =$V$111&"-WithDisability" -> Pop 35 years to 64:-WithDisability | Y111: ="MOE "&X111 -> MOE Pop 35 years to 64:-WithDisability | Z111: =$V$111&"-NoDisability" -> Pop 35 years to 64:-NoDisability | AA111: ="MOE "&Z111 -> MOE Pop 35 years to 64:-NoDisability | AB111: Pop 65 years to 74: | AC111: ="MOE "&AB111 -> MOE Pop 65 years to 74: | AD111: =$AB$111&"-WithDisability" -> Pop 65 years to 74:-WithDisability | AE111: ="MOE "&AD111 -> MOE Pop 65 years to 74:-WithDisability | AF111: =$AB$111&"-NoDisability" -> Pop 65 years to 74:-NoDisability | AG111: ="MOE "&AF111 -> MOE Pop 65 years to 74:-NoDisability | AH111: Pop 75 and older: | AI111: ="MOE "&AH111 -> MOE Pop 75 and older: | AJ111: =$AH$111&"-WithDisability" -> Pop 75 and older:-WithDisability | AK111: ="MOE "&AJ111 -> MOE Pop 75 and older:-WithDisability | AL111: =$AH$111&"-NoDisability" -> Pop 75 and older:-NoDisability | AM111: ="MOE "&AL111 -> MOE Pop 75 and older:-NoDisability | AN111: TotalPopUnder5_HearingDisability | AO111: ="MOE "&AN111 -> MOE TotalPopUnder5_HearingDisability | AP111: TotalPopUnder5_HearingDisability | AQ111: ="MOE "&AP111 -> MOE TotalPopUnder5_HearingDisability | AR111: TotalPop18To34_HearingDisability | AS111: ="MOE "&AR111 -> MOE TotalPop18To34_HearingDisability | AT111: TotalPop35To64_HearingDisability | AU111: ="MOE "&AT111 -> MOE TotalPop35To64_HearingDisability | AV111: TotalPop65To74_HearingDisability | AW111: ="MOE "&AV111 -> MOE TotalPop65To74_HearingDisability | AX111: TotalPop75andOlder_HearingDisability | AY111: ="MOE "&AX111 -> MOE TotalPop75andOlder_HearingDisability | AZ111: TotalPopUnder5_VisionDisability | BA111: ="MOE "&AZ111 -> MOE TotalPopUnder5_VisionDisability | BB111: TotalPop5To17_VisionDisability | BC111: ="MOE "&BB111 -> MOE TotalPop5To17_VisionDisability | BD111: TotalPop18To34_VisionDisability | BE111: ="MOE "&BD111 -> MOE TotalPop18To34_VisionDisability | BF111: TotalPop35To64_VisionDisability | BG111: ="MOE "&BF111 -> MOE TotalPop35To64_VisionDisability | BH111: TotalPop65To74_VisionDisability | BI111: ="MOE "&BH111 -> MOE TotalPop65To74_VisionDisability | BJ111: TotalPop75andOlder_VisionDisability | BK111: ="MOE "&BJ111 -> MOE TotalPop75andOlder_VisionDisability | BL111: TotalPop5To17_CongnitiveDisability | BM111: ="MOE "&BL111 -> MOE TotalPop5To17_CongnitiveDisability | BN111: TotalPop18To34_CongnitiveDisability | BO111: ="MOE "&BN111 -> MOE TotalPop18To34_CongnitiveDisability | BP111: TotalPop35To64_CongnitiveDisability | BQ111: ="MOE "&BP111 -> MOE TotalPop35To64_CongnitiveDisability | BR111: TotalPop65To74_CongnitiveDisability | BS111: ="MOE "&BR111 -> MOE TotalPop65To74_CongnitiveDisability | BT111: TotalPop75andOlder_CongnitiveDisability | BU111: ="MOE "&BT111 -> MOE TotalPop75andOlder_CongnitiveDisability | BV111: TotalPop5To17_AmbulatoryDisability | BW111: ="MOE "&BV111 -> MOE TotalPop5To17_AmbulatoryDisability | BX111: TotalPop18To34_AmbulatoryDisability | BY111: ="MOE "&BX111 -> MOE TotalPop18To34_AmbulatoryDisability | BZ111: TotalPop35To64_AmbulatoryDisability | CA111: ="MOE "&BZ111 -> MOE TotalPop35To64_AmbulatoryDisability | CB111: TotalPop65To74_AmbulatoryDisability | CC111: ="MOE "&CB111 -> MOE TotalPop65To74_AmbulatoryDisability | CD111: TotalPop75andOlder_AmbulatoryDisability | CE111: ="MOE "&CD111 -> MOE TotalPop75andOlder_AmbulatoryDisability | CF111: TotalPop5To17_SelfCareDisability | CG111: ="MOE "&CF111 -> MOE TotalPop5To17_SelfCareDisability | CH111: TotalPop18To34_SelfCareDisability | CI111: ="MOE "&CH111 -> MOE TotalPop18To34_SelfCareDisability | CJ111: TotalPop35To64_SelfCareDisability | CK111: ="MOE "&CJ111 -> MOE TotalPop35To64_SelfCareDisability | CL111: TotalPop65To74_SelfCareDisability | CM111: ="MOE "&CL111 -> MOE TotalPop65To74_SelfCareDisability | CN111: TotalPop75andOlder_SelfCareDisability | CO111: ="MOE "&CN111 -> MOE TotalPop75andOlder_SelfCareDisability | CP111: TotalPop18To34_IndependantLivingDisability | CQ111: ="MOE "&CP111 -> MOE TotalPop18To34_IndependantLivingDisability | CR111: TotalPop35To64_IndependantLivingDisability | CS111: ="MOE "&CR111 -> MOE TotalPop35To64_IndependantLivingDisability | CT111: TotalPop65To74_IndependantLivingDisability | CU111: ="MOE "&CT111 -> MOE TotalPop65To74_IndependantLivingDisability | CV111: TotalPop75andOlder_IndependantLivingDisability | CW111: ="MOE "&CV111 -> MOE TotalPop75andOlder_IndependantLivingDisability | CX111: TotalUnder5_HearingorVisionDisability | CY111: ="MOE "&CX111 -> MOE TotalUnder5_HearingorVisionDisability | CZ111: TotalUnder5_HearingandVisionDisability | DA111: ="MOE "&CZ111 -> MOE TotalUnder5_HearingandVisionDisability | DB111: 5to17YearWIthOneDisability | DC111: ="MOE "&DB111 -> MOE 5to17YearWIthOneDisability | DD111: 5to17YearWIthTwoOrMoreDisability | DE111: ="MOE "&DD111 -> MOE 5to17YearWIthTwoOrMoreDisability | DF111: 18to34YearWIthOneDisability | DG111: ="MOE "&DF111 -> MOE 18to34YearWIthOneDisability | DH111: 18to34YearWIthTwoOrMoreDisability | DI111: ="MOE "&DH111 -> MOE 18to34YearWIthTwoOrMoreDisability | DJ111: 35to64YearWIthOneDisability | DK111: ="MOE "&DJ111 -> MOE 35to64YearWIthOneDisability | DL111: 35to64YearWIthTwoOrMoreDisability | DM111: ="MOE "&DL111 -> MOE 35to64YearWIthTwoOrMoreDisability | DN111: 65to74YearWIthOneDisability | DO111: ="MOE "&DN111 -> MOE 65to74YearWIthOneDisability | DP111: 65to74YearWIthTwoOrMoreDisability | DQ111: ="MOE "&DP111 -> MOE 65to74YearWIthTwoOrMoreDisability | DR111: 75AndOlderWIthOneDisability | DS111: ="MOE "&DR111 -> MOE 75AndOlderWIthOneDisability | DT111: 75AndOlderWIthTwoOrMoreDisability | DU111: ="MOE "&DT111 -> MOE 75AndOlderWIthTwoOrMoreDisability
A112: =VLOOKUP(DropDownList!$B$47,CntyQryCensus!$A$510:$DA$546,A$1) -> Atkinson | B112: 6952 | C112: 33 | D112: 275 | E112: 133.8431918 | F112: 0 | G112: 22.627417 | H112: 275 | I112: 133.8431918 | J112: 1110 | K112: 282.3349075 | L112: 144 | M112: 111.8302285 | N112: 966 | O112: 274.415743 | P112: 1015 | Q112: 226.9911893 | R112: 15 | S112: 28.8444102 | T112: 1000 | U112: 229.8107917 | V112: 3177 | W112: 191.637679 | X112: 347 | Y112: 137.0583817 | Z112: 2830 | AA112: 210.7605276 | AB112: 902 | AC112: 189.6127633 | AD112: 130 | AE112: 103.9422917 | AF112: 772 | AG112: 164.1036258 | AH112: 473 | AI112: 114.2015762 | AJ112: 212 | AK112: 83.5463943 | AL112: 261 | AM112: 100.124922 | AN112: 0 | AO112: 22.627417 | AP112: 0 | AQ112: 22.627417 | AR112: 0 | AS112: 22.627417 | AT112: 97 | AU112: 80.49844719 | AV112: 12 | AW112: 24.8394847 | AX112: 144 | AY112: 66.52818951 | AZ112: 0 | BA112: 22.627417 | BB112: 0 | BC112: 22.627417 | BD112: 0 | BE112: 22.627417 | BF112: 98 | BG112: 81.83520025 | BH112: 13 | BI112: 25.61249695 | BJ112: 63 | BK112: 48.3011387 | BL112: 144 | BM112: 111.8302285 | BN112: 15 | BO112: 28.8444102 | BP112: 64 | BQ112: 57.45432969 | BR112: 13 | BS112: 25.61249695 | BT112: 25 | BU112: 29.06888371 | BV112: 0 | BW112: 22.627417 | BX112: 0 | BY112: 22.627417 | BZ112: 130 | CA112: 78.10249676 | CB112: 118 | CC112: 101.9803903 | CD112: 53 | CE112: 43.93176527 | CF112: 18 | CG112: 33.12099032 | CH112: 0 | CI112: 22.627417 | CJ112: 0 | CK112: 22.627417 | CL112: 13 | CM112: 25.61249695 | CN112: 13 | CO112: 27.20294102 | CP112: 0 | CQ112: 22.627417 | CR112: 43 | CS112: 50.59644256 | CT112: 0 | CU112: 22.627417 | CV112: 67 | CW112: 48.83646179 | CX112: 103 | CY112: 93 | CZ112: 41 | DA112: 45 | DB112: 301 | DC112: 146 | DD112: 61 | DE112: 56 | DF112: 228 | DG112: 110 | DH112: 114 | DI112: 68
A114: Househould Income By Age
